Workbook

Sheet Kent Local Wellbeing Tool
H5: Select a Ward:
H6: =IFERROR(CONCATENATE("Ranked ",Data!GX3,IF(RIGHT(Data!GX3,1)="1","st",IF(Data!GX3=12,"th",IF(RIGHT(Data!GX3,1)="2","nd",(IF(RIGHT(Data!GX3,1)="3","rd","th"))))), " Overall"), "No Rank") -> No Rank
H7: Kent Mental Health & Wellbeing Index Local Wellbeing Tool
H8: =IFERROR(CONCATENATE("Ranked ",Data!GZ3,IF(RIGHT(Data!GZ3,1)="1","st",IF(Data!GZ3=12,"th",IF(RIGHT(Data!GZ3,1)="2","nd",(IF(RIGHT(Data!GZ3,1)="3","rd","th")))))), "No Rank") -> No Rank
H9: =IFERROR(CONCATENATE("Ranked ",Data!HB3,IF(RIGHT(Data!HB3,1)="1","st",IF(Data!HB3=12,"th",IF(RIGHT(Data!HB3,1)="2","nd",(IF(RIGHT(Data!HB3,1)="3","rd","th")))))), "No Rank") -> No Rank
H10: =IFERROR(CONCATENATE("Ranked ",Data!HD3,IF(RIGHT(Data!HD3,1)="1","st",IF(Data!HD3=12,"th",IF(RIGHT(Data!HD3,1)="2","nd",(IF(RIGHT(Data!HD3,1)="3","rd","th")))))), "No Rank") -> No Rank
D16: Select district and ward: | N16: =IFERROR(CONCATENATE("Assets and Vulnerabilities: Benchmarked against Kent - ",Data!$C$2), " ") -> 
AG23: =Sheet1!L5 -> Attainment: Key Stage 4 pupils - % pupils achieving 5+ A*-C GCSEs (including English & Maths) at the end of Key Stage 4, 2019. Source: KCC, MIU.
D29: =IFERROR(CONCATENATE("Overall Wellbeing Index: ",Data!C2), " ") -> 
H52: =Charts!A2 ->  | I52: =Charts!A3 ->  | J52: =Charts!A4 -> Kent
D56: =IFERROR(CONCATENATE("Assets and Vulnerabilities: Summary - ",Data!$C$2), " ") -> 
F60: Self | J60: Education
J62: Material Wellbeing
J64: Health
J66: Life Satisfaction
F69: Supports | J69: Strong & Stable Families
J71: Social Capital
F74: Systems & Structures | J74: Enabling Infrastructure | P74: Useful links
J76: Local Economy
P77: Data Sources
J78: Effective Public Services | AO78: Wellbeing rank indicates ranking within the 283 Wards in Kent.
J80: Crime | P80: KPHO Health & Social Care Maps | Y80: Ward-level data on a range of health and social care needs.
P81: Mind the Gap: Inequalities Action Plan for Kent - Analytical Report | Y81: Analysis seeking to provide greater understanding of the true nature of the health inequalities in Kent.
H83: Asset (within upper quartile in Kent) | Y83: Containing a range of social and economic data at Ward-level.
P84: KCC Kent Analytics Area Profiles
H86: Vulnerability (within lower quartile in Kent) | P86: Public Health England Local Health | Y86: Containing health information, including interactive maps and reports, at small area level.
P89: Other Links
H90: Average (within interquartile range in Kent)
P93: Live it Well | Y93: Designed to promote better wellbeing and mental health for all of the residents in Kent and Medway, and to help people connect with support in their local communities.
D94: https://www.kpho.org.uk/health-intelligence/disease-groups/mental-health/kent-mental-health-and-wellbeing-index
D108: Assets and Vulnerabilities: Key
D110: Education | S110: Social Capital
D112: 1 | E112: % pupils achieving 5+ A*-C GCSEs (including English & Maths) at the end of Key Stage 4, 2017 to 2019. Source: KCC | S112: 25 | T112: Member of a sports/hobby organisation (modelled from Mosaic segmentation tool). Source: Mosaic 2021
D113: 2 | E113: % pupils achieving a good level of development at early years foundation stage, 2017 to 2019. Source: KCC | S113: 26 | T113: Member of a Children's/youth clubs organisation (modelled from Mosaic segmentation tool). Source: Mosaic 2021
D114: 3 | E114: Index of Multiple Deprivation: Education, skills and training domain. Source: IMD 2019 | S114: 27 | T114: Member of a Social club organisation, (modelled from Mosaic segmentation tool). Source: Mosaic 2021
S115: 28 | T115: Member of a Local community organisation (modelled from Mosaic segmentation tool). Source: Mosaic 2021
D116: Material Wellbeing
S117: Enabling Infrastructure
D118: 4 | E118: % of working age (aged 16-64) claiming benefits, July 2021. Source: DWP
D119: 5 | E119: Index of Multiple Deprivation: children affected by income deprivation (IDACI). Source: IMD 2019 | S119: 29 | T119: Index of Multiple Deprivation: Barriers to housing and services domain - Source: IMD 2019
D120: 6 | E120: Index of Multiple Deprivation: older people affected by income deprivation (IDAOPI). Source: IMD 2019 | S120: 30 | T120: Access to services - Distance to nearest GP, 2016. Source: KCC
D121: 7 | E121: Adequacy of income 'Very difficult' (modelled from Mosaic segmentation tool). Source: Mosaic 2019 | S121: 31 | T121: Access to services - Distance to nearest urgent care centre/A&E, 2016. Source: KCC
D122: 8 | E122: % of young people (aged 18 - 24) claiming benefits, Jul 2021. Source: DWP
S123: Local Economy
D124: Health
D125: 9 | E125: Deaths from all causes, (all ages, standardised mortality ratio) 2015-2019. Source: PHE Fingertips | S125: 32 | T125: Jobs per 16-64 population (employed within the ward), 2021. Source: Nomis
D126: 10 | E126: Prevantable Deaths in under 75s, 2015-2019. Source: Fingertips. | S126: 33 | T126: Travel time to nearest employment centres by car, public transport or cycle, 2017. Source: Department for Transport.
D127: 11 | E127: Hospital admissions for self-harm (Age standardised rate), 2013/14- 2020/21. Source: NHS England HES.
D128: 12 | E128: "Limited Day to Day activity"(modelled from Mosaic segmentation tool). Source: Mosaic 2019 | S128: Effective Public Services
D129: 13 | E129: Diagnosed with depression (modelled from GP-level recorded prevalence), 2020/21. Source: QOF
D130: 14 | E130: Diagnosed with severe mental health condition (modelled from GP-level recorded prevalence), 2020/21. Source: QOF | S130: 34 | T130: Perception of local police as effective at catching criminals (modelled from Mosaic segmentation tool). Source: Mosaic 2021
D131: 15 | E131: Index of Multiple Deprivation: Health domain - Source: IMD 2019 | S131: 35 | T131: Perception of ablity to talk about issues with local GP (modelled from Mosaic segmentation tool). Source: Mosaic 2021
D132: 16 | E132: Alcohol-related hospital admissions (Age standardised rate), 2013/14- 2020/21. Source: NHS England HES
S133: Crime
D134: Life Satisfaction
S135: 36 | T135: Reported crime rate: all recorded crime excl. antisocial behaviour (rate per 1,000 population), Jul 2019 - Jun 2021. Source: Police.data.uk
D136: 17 | E136: "Does not enjoy general happiness" (modelled from Acorn segmentation tool). Source: CACI ACORN Wellbing | S136: 37 | T136: Reported crime rate: burglary (rate per 1,000 population), Jul 2019 - Jun 2021. Source: Police.data.uk
D137: 18 | E137: "Not satisfied with: Life overall" (modelled from Acorn segmentation tool). Source: CACI ACORN Wellbing | S137: 38 | T137: Reported crime rate: antisocial behaviour (rate per 1,000 population), Jul 2019 - Jun 2021. Source: Police.data.uk
D138: 19 | E138: "More than usual difficulties: under strain" (modelled from Acorn segmentation tool). Source: CACI ACORN Wellbing | S138: 39 | T138: Reported crime rate: violence & sexual offences (rate per 1,000 population), Jul 2019 - Jun 2021. Source: Police.data.uk
S139: 40 | T139: Index of Multiple Deprivation: Crime domain. Source: IMD 2019
D140: Strong & Stable Families
D142: 20 | E142: % living in households consisting of a lone parent with dependent children, 2011. Source: Census
D143: 21 | E143: % living in one person pensioner (aged 65+) households, 2011. Source: Census
D144: 22 | E144: % providing 50+ hours of unpaid care per week, 2011. Source: Census
D145: 23 | E145: Domestic abuse victims (troubled families programme), rate per 1,000 population, 2020/21. Source: KCC
D146: 24 | E146: Children's social care referrals progressing to an initial assessment, 2018/19- 2020/21. Source: KCC

Sheet Data (hidden)
A1: =GETPIVOTDATA("Index Number",Slicer!$A$3) -> 40186 | V1: 0.7836879433 | W1: 0.04255319149 | X1: 0.4007092199 | Y1: 0.09574468085 | Z1: 0.05673758865 | AA1: 0.5035460993 | AB1: 0.1737588652 | AC1: 0.5319148936 | AD1: 0.6170212766 | AE1: 0.6170212766 | AF1: 0.07446808511 | AG1: 0.02836879433 | AH1: 0.3617021277 | AI1: 0.1773049645 | AJ1: 0.1773049645 | AK1: 0.8936170213 | AL1: 0.7765957447 | AM1: 0.4255319149 | AN1: 0.2092198582 | AO1: 0.07446808511 | AP1: 0.1170212766 | AQ1: 0.3333333333 | AR1: 0.4929078014 | AS1: 0.1595744681 | AT1: 0.2482269504
B2: =INDEX(B5:B287,$A$1) ->  | C2: =INDEX(C5:C287,$A$1) ->  | AU2: =INDEX(AU5:AU287,$A$1) ->  | CO2: =INDEX(CO5:CO287,$A$1) -> 
C3: =CONCATENATE(" Wellbeing Index: ",C2) ->  | G3: 1 | H3: 2 | I3: 3 | J3: 4 | K3: 5 | L3: 6 | M3: 7 | N3: 8 | O3: 9 | P3: 10 | Q3: 11 | R3: 12 | S3: 13 | T3: 14 | U3: 15 | V3: 16 | W3: 17 | X3: 18 | Y3: 19 | Z3: 20 | AA3: 21 | AB3: 22 | AC3: 23 | AD3: 24 | AE3: 25 | AF3: 26 | AG3: 27 | AH3: 28 | AI3: 29 | AJ3: 30 | AK3: 31 | AL3: 32 | AM3: 33 | AN3: 34 | AO3: 35 | AP3: 36 | AQ3: 37 | AR3: 38 | AS3: 39 | AT3: 40 | AU3: Education | BB3: material wellbeing | BI3: health | BP3: life satisfaction | BW3: strong and stable families | CD3: social capital | CK3: enabling infrastructure | CR3: local economy | CY3: effective public services | DF3: crime | DM3: selfdomain | DT3: supportsdomain | EA3: structuresdomain | EH3: overallindex | EY3: Adjusted values of the catagories ------> | GW3: =INDEX(GW5:GW288,$A$1) ->  | GX3: =INDEX(GX5:GX288,$A$1) -> 
A4: ward11 | B4: ward01 | C4: wardname | D4: District | E4: ccg | F4: Index Number | G4: education1 | H4: education7 | I4: education5 | J4: matwellbeing1b | K4: matwellbeing4 | L4: matwellbeing5 | M4: matwellbeing6 | N4: matwellbeing7 | O4: health1 | P4: health2 | Q4: health7 | R4: health8b | S4: health10 | T4: health11 | U4: health12 | V4: health13 | W4: lifesatisfaction1 | X4: lifesatisfaction2 | Y4: lifesatisfaction3 | Z4: strong2 | AA4: strong3 | AB4: strong7b | AC4: strong8b | AD4: strong12 | AE4: social4a | AF4: social2a | AG4: social3 | AH4: social5 | AI4: infra1 | AJ4: infra6a | AK4: infra6e | AL4: economy3b | AM4: economy4a | AN4: services2 | AO4: services3 | AP4: crime2c | AQ4: crime3 | AR4: crime4 | AS4: crime5 | AT4: crime6 | AU4: arithmeticmean | AV4: rank | AW4: percentilerank | AX4: sloperank | AY4: slopevar | AZ4: tdecvar | BA4: bdecvar | BB4: arithmeticmean | BC4: rank | BD4: percentilerank | BE4: sloperank | BF4: slopevar | BG4: tdecvar | BH4: bdecvar | BI4: arithmeticmean | BJ4: rank | BK4: percentilerank | BL4: sloperank | BM4: slopevar | BN4: tdecvar | BO4: bdecvar | BP4: arithmeticmean | BQ4: rank | BR4: percentilerank | BS4: sloperank | BT4: slopevar | BU4: tdecvar | BV4: bdecvar | BW4: arithmeticmean | BX4: rank | BY4: percentilerank | BZ4: sloperank | CA4: slopevar | CB4: tdecvar | CC4: bdecvar | CD4: arithmeticmean | CE4: rank | CF4: percentilerank | CG4: sloperank | CH4: slopevar | CI4: tdecvar | CJ4: bdecvar | CK4: arithmeticmean | CL4: rank | CM4: percentilerank | CN4: sloperank | CO4: slopevar | CP4: tdecvar | CQ4: bdecvar | CR4: arithmeticmean | CS4: rank | CT4: percentilerank | CU4: sloperank | CV4: slopevar | CW4: tdecvar | CX4: bdecvar | CY4: arithmeticmean | CZ4: rank | DA4: percentilerank | DB4: sloperank | DC4: slopevar | DD4: tdecvar | DE4: bdecvar | DF4: arithmeticmean | DG4: rank | DH4: percentilerank | DI4: sloperank | DJ4: slopevar | DK4: tdecvar | DL4: bdecvar | DM4: weightedindex | DN4: rank | DO4: percentilerank | DP4: sloperank | DQ4: slopevar | DR4: tdecvar | DS4: bdecvar | DT4: weightedindex | DU4: rank | DV4: percentilerank | DW4: sloperank | DX4: slopevar | DY4: tdecvar | DZ4: bdecvar | EA4: weightedindex | EB4: rank | EC4: percentilerank | ED4: sloperank | EE4: slopevar | EF4: tdecvar | EG4: bdecvar | EH4: weightedindex | EI4: rank | EJ4: percentilerank | EK4: sloperank | EL4: slopevar | EM4: tdecvar | EN4: bdecvar | EO4: District | EP4: inverted rank | EQ4: self inverted rank | ER4: supports inverted rank | ES4: structures inverted rank | ET4: self inverted % rank | EU4: supports inverted % rank | EV4: structures inverted % rank | EW4: Overall inverted Rank | EX4: Overall % Rank | EY4: education1 | EZ4: education7 | FA4: education5 | FB4: matwellbeing1b | FC4: matwellbeing4 | FD4: matwellbeing5 | FE4: matwellbeing6 | FF4: matwellbeing7 | FG4: health1 | FH4: health2 | FI4: health7 | FJ4: health8b | FK4: health10 | FL4: health11 | FM4: health12 | FN4: health13 | FO4: lifesatisfaction1 | FP4: lifesatisfaction2 | FQ4: lifesatisfaction3 | FR4: strong2 | FS4: strong3 | FT4: strong7b | FU4: strong8b | FV4: strong12 | FW4: social4a | FX4: social2a | FY4: social3 | FZ4: social5 | GA4: infra1 | GB4: infra6a | GC4: infra6e | GD4: economy3b | GE4: economy4a | GF4: services2 | GG4: services3 | GH4: crime2c | GI4: crime3 | GJ4: crime4 | GK4: crime5 | GL4: crime6 | GM4: Education Average | GN4: Material Wellbeing Average | GO4: Health Average | GP4: Life Satisfaction Average | GQ4: Strong Average | GR4: Social Average | GS4: Infra Average | GT4: Economy Average | GU4: Services Average | GV4: Crime Average | GW4: Overall index | GX4: Overall rank | GY4: Self Index | GZ4: self rank | HA4: Supports Index | HB4: supports rank | HC4: Structures index | HD4: structures rank
A5: E05004867 | B5: 29UBGZ | C5: Aylesford Green | D5: Ashford | E5: NHS Ashford CCG | F5: 1 | G5: 0.7476005958 | H5: 0.7335635278 | I5: 0.6473026 | J5: 1.000992564 | K5: 0.7086770665 | L5: 0.4632800529 | M5: 0.2597261054 | N5: 0.925705086 | O5: 1.324663059 | P5: 1.202580905 | Q5: 0.5219952107 | R5: 0.4783630477 | S5: 0.2598434519 | T5: 0.8882918391 | U5: 0.6723760872 | V5: 1.031843092 | W5: 1.637959741 | X5: 1.473645476 | Y5: 1.65636362 | Z5: 0.5158184427 | AA5: 1.031475299 | AB5: 0.7681225409 | AC5: 1.486205945 | AD5: 1.006795682 | AE5: 0.1946887769 | AF5: 0.5754974058 | AG5: 1.300087044 | AH5: 0.1727490948 | AI5: 0.8539890217 | AJ5: 1.127360959 | AK5: 1.339202911 | AL5: 0.3081771534 | AM5: 0.5219952107 | AN5: 0.6137278965 | AO5: 1.157421986 | AP5: 0.9990783575 | AQ5: 1.299939294 | AR5: 0.9993974279 | AS5: 0.9700879276 | AT5: 0.4134234158 | AU5: =AVERAGE(G5:I5) -> 0.7094889078 | AV5: =RANK(AU5,$AU$5:$AU$287) -> 250 | AW5: =PERCENTRANK($AV$5:$AV$287,AV5) -> 0.882 | BB5: =AVERAGE(J5:N5) -> 0.671676175 | BC5: =RANK(BB5,$BB$5:$BB$287) -> 247 | BD5: =PERCENTRANK($BC$5:$BC$287,BC5) -> 0.872 | BI5: =AVERAGE(O5:V5) -> 0.7974945866 | BJ5: =RANK(BI5,$BI$5:$BI$287) -> 226 | BK5: =PERCENTRANK($BJ$5:$BJ$287,BJ5) -> 0.797 | BP5: =AVERAGE(W5:Y5) -> 1.589322946 | BQ5: =RANK(BP5,$BP$5:$BP$287) -> 12 | BR5: =PERCENTRANK($BJ$5:$BJ$287,BQ5) -> 0.039 | BW5: =AVERAGE(Z5:AD5) -> 0.9616835822 | BX5: =RANK(BW5,$BW$5:$BW$287) -> 176 | BY5: =PERCENTRANK($BX$5:$BX$287,BX5) -> 0.62 | CD5: =AVERAGE(AE5:AH5) -> 0.5607555804 | CE5: =RANK(CD5,$CD$5:$CD$287) -> 270 | CF5: =PERCENTRANK($CE$5:$CE$287,CE5) -> 0.953 | CK5: =AVERAGE(AI5:AK5) -> 1.106850964 | CL5: =RANK(CK5,$CK$5:$CK$287) -> 97 | CM5: =PERCENTRANK($CL$5:$CL$287,CL5) -> 0.34 | CR5: =AVERAGE(AL5:AM5) -> 0.415086182 | CS5: =RANK(CR5,$CR$5:$CR$287) -> 279 | CT5: =PERCENTRANK($CS$5:$CS$287,CS5) -> 0.985 | CY5: =AVERAGE(AN5:AO5) -> 0.8855749413 | CZ5: =RANK(CY5,$CY$5:$CY$287) -> 242 | DA5: =PERCENTRANK($CZ$5:$CZ$287,CZ5) -> 0.854 | DF5: =AVERAGE(AP5:AT5) -> 0.9363852846 | DG5: =RANK(DF5,DF$5:DF$287) -> 215 | DH5: =PERCENTRANK(DG$5:DG$287,DG5) -> 0.758 | DM5: =AVERAGE(G5:Y5) -> 0.8755143752 | DN5: =RANK(DM5,DM$5:DM$287) -> 206 | DO5: =PERCENTRANK(DN$5:DN$287,DN5) -> 0.726 | DT5: =AVERAGE(Data!Z5:AH5) -> 0.7834933591 | DU5: =RANK(DT5,DT$5:DT$287) -> 224 | DV5: =PERCENTRANK(DU$5:DU$287,DU5) -> 0.79 | EA5: =AVERAGE(AI5:AT5) -> 0.8836501301 | EB5: =RANK(EA5,EA$5:EA$287) -> 257 | EC5: =PERCENTRANK(EB$5:EB$287,EB5) -> 0.907 | EH5: =AVERAGE(G5:AT5) -> 0.8572503731 | EI5: =RANK(EH5,EH$5:EH$287) -> 227 | EJ5: =PERCENTRANK(EI$5:EI$287,EI5) -> 0.801 | EO5: Ashford | EP5: =RANK(EH5,EH$5:EH$287,1) -> 57 | EQ5: =RANK(DM5,DM$5:DM$287,1) -> 78 | ER5: =RANK(DT5,DT$5:DT$287,1) -> 60 | ES5: =RANK(EA5,EA$5:EA$287,1) -> 27 | ET5: =PERCENTRANK(EQ$5:EQ$287,EQ5) -> 0.273 | EU5: =PERCENTRANK(ER$5:ER$287,ER5) -> 0.209 | EV5: =PERCENTRANK(ES$5:ES$287,ES5) -> 0.092 | EW5: =RANK(EH5,EH$5:EH$287,1) -> 57 | EX5: =PERCENTRANK(EW$5:EW$287,EW5) -> 0.198 | EY5: =G5/G$292 -> 0.4363738462 | EZ5: =H5/H$292 -> 0.4587179653 | FA5: 0.4885492569 | FB5: 0.6950470233 | FC5: 0.5024258146 | FD5: 0.3516783023 | FE5: 0.1711515716 | FF5: 0.52803286 | FG5: 0.6716915495 | FH5: 0.6798028998 | FI5: 0.398255751 | FJ5: 0.3074028876 | FK5: 0.1133370326 | FL5: 0.5522303622 | FM5: 0.3591976178 | FN5: 0.6162788281 | FO5: 0.7948723081 | FP5: 0.775324405 | FQ5: 0.6398435667 | FR5: 0.3737957063 | FS5: 0.6370293304 | FT5: 0.4875368018 | FU5: 0.8349251143 | FV5: 0.6058278493 | FW5: 0.0788887161 | FX5: 0.1696767419 | FY5: 0.6054571297 | FZ5: 0.06014930094 | GA5: 0.5028803669 | GB5: 0.9189036013 | GC5: 0.9687115881 | GD5: 0.04251379999 | GE5: 0.398255751 | GF5: 0.2084283756 | GG5: 0.5533219812 | GH5: 0.8693975294 | GI5: 0.9500963448 | GJ5: 0.8888354796 | GK5: 0.8590713969 | GL5: 0.2248057383 | GM5: =AVERAGE(EY5:FA5) -> 0.4612136894 | GN5: =AVERAGE(FB5:FF5) -> 0.4496671144 | GO5: =AVERAGE(FG5:FN5) -> 0.4622746161 | GP5: =AVERAGE(FO5:FQ5) -> 0.7366800933 | GQ5: =AVERAGE(FR5:FV5) -> 0.5878229604 | GR5: =AVERAGE(FW5:FZ5) -> 0.2285429722 | GS5: =AVERAGE(GA5:GC5) -> 0.7968318521 | GT5: =AVERAGE(GD5:GE5) -> 0.2203847755 | GU5: =AVERAGE(GF5:GG5) -> 0.3808751784 | GV5: =AVERAGE(GH5:GL5) -> 0.7584412978 | GW5: =AVERAGE(EY5:GL5) -> 0.5194680623 | GX5: =RANK(GW5,$GW$5:$GW$287) -> 226 | GY5: =AVERAGE(Data!EY5:FQ5) -> 0.5021165183 | GZ5: =RANK(GY5,GY$5:GY$287) -> 218 | HA5: =AVERAGE(Data!FR5:FZ5) -> 0.4281429656 | HB5: =RANK(HA5,HA$5:HA$287) -> 219 | HC5: =AVERAGE(Data!GA5:GL5) -> 0.6154351628 | HD5: =RANK(HC5,HC$5:HC$287) -> 222
A6: E05004868 | B6: 29UBHA | C6: Beaver | D6: Ashford | E6: NHS Ashford CCG | F6: 2 | G6: 0.5059112912 | H6: 0.4608489865 | I6: 0.4878030238 | J6: 1.000992564 | K6: 0.557002778 | L6: 0.6418437196 | M6: 0.3985596289 | N6: 0.925705086 | O6: 1.324663059 | P6: 1.202580905 | Q6: 1.05865364 | R6: 0.4264655051 | S6: 0.33527845 | T6: 0.906712477 | U6: 0.6999616015 | V6: 0.7994192122 | W6: 1.389711395 | X6: 1.363679422 | Y6: 1.207117232 | Z6: 0.7623394181 | AA6: 0.9921920616 | AB6: 0.8777712858 | AC6: 1.486205945 | AD6: 1.006795682 | AE6: 0.2313049605 | AF6: 0.3296845948 | AG6: 1.355736424 | AH6: 0.175832402 | AI6: 1.10976245 | AJ6: 1.169606872 | AK6: 1.252879843 | AL6: 0.2621469893 | AM6: 1.05865364 | AN6: 0.6924346072 | AO6: 1.145334014 | AP6: 0.9629355676 | AQ6: 0.9839048966 | AR6: 0.9990283348 | AS6: 0.9469733263 | AT6: 1.250513271 | AU6: =AVERAGE(G6:I6) -> 0.4848544338 | AV6: =RANK(AU6,$AU$5:$AU$287) -> 277 | AW6: =PERCENTRANK($AV$5:$AV$287,AV6) -> 0.978 | BB6: =AVERAGE(J6:N6) -> 0.7048207553 | BC6: =RANK(BB6,$BB$5:$BB$287) -> 242 | BD6: =PERCENTRANK($BC$5:$BC$287,BC6) -> 0.854 | BI6: =AVERAGE(O6:V6) -> 0.8442168562 | BJ6: =RANK(BI6,$BI$5:$BI$287) -> 211 | BK6: =PERCENTRANK($BJ$5:$BJ$287,BJ6) -> 0.744 | BP6: =AVERAGE(W6:Y6) -> 1.32016935 | BQ6: =RANK(BP6,$BP$5:$BP$287) -> 66 | BR6: =PERCENTRANK($BJ$5:$BJ$287,BQ6) -> 0.23 | BW6: =AVERAGE(Z6:AD6) -> 1.025060879 | BX6: =RANK(BW6,$BW$5:$BW$287) -> 148 | BY6: =PERCENTRANK($BX$5:$BX$287,BX6) -> 0.521 | CD6: =AVERAGE(AE6:AH6) -> 0.5231395954 | CE6: =RANK(CD6,$CD$5:$CD$287) -> 276 | CF6: =PERCENTRANK($CE$5:$CE$287,CE6) -> 0.975 | CK6: =AVERAGE(AI6:AK6) -> 1.177416388 | CL6: =RANK(CK6,$CK$5:$CK$287) -> 43 | CM6: =PERCENTRANK($CL$5:$CL$287,CL6) -> 0.148 | CR6: =AVERAGE(AL6:AM6) -> 0.6604003146 | CS6: =RANK(CR6,$CR$5:$CR$287) -> 239 | CT6: =PERCENTRANK($CS$5:$CS$287,CS6) -> 0.843 | CY6: =AVERAGE(AN6:AO6) -> 0.9188843106 | CZ6: =RANK(CY6,$CY$5:$CY$287) -> 222 | DA6: =PERCENTRANK($CZ$5:$CZ$287,CZ6) -> 0.783 | DF6: =AVERAGE(AP6:AT6) -> 1.028671079 | DG6: =RANK(DF6,$DF$5:$DF$287) -> 135 | DH6: =PERCENTRANK($DG$5:$DG$287,DG6) -> 0.475 | DM6: =AVERAGE(G6:Y6) -> 0.8259426304 | DN6: =RANK(DM6,DM$5:DM$287) -> 220 | DO6: =PERCENTRANK(DN$5:DN$287,DN6) -> 0.776 | DT6: =AVERAGE(Data!Z6:AH6) -> 0.8019847528 | DU6: =RANK(DT6,DT$5:DT$287) -> 219 | DV6: =PERCENTRANK(DU$5:DU$287,DU6) -> 0.773 | EA6: =AVERAGE(AI6:AT6) -> 0.9861811509 | EB6: =RANK(EA6,EA$5:EA$287) -> 152 | EC6: =PERCENTRANK(EB$5:EB$287,EB6) -> 0.535 | EH6: =AVERAGE(G6:AT6) -> 0.8686236641 | EI6: =RANK(EH6,EH$5:EH$287) -> 224 | EJ6: =PERCENTRANK(EI$5:EI$287,EI6) -> 0.79 | EO6: Ashford | EP6: =RANK(EH6,EH$5:EH$287,1) -> 60 | EQ6: =RANK(DM6,DM$5:DM$287,1) -> 64 | ER6: =RANK(DT6,DT$5:DT$287,1) -> 65 | ES6: =RANK(EA6,EA$5:EA$287,1) -> 132 | ET6: =PERCENTRANK(EQ$5:EQ$287,EQ6) -> 0.223 | EU6: =PERCENTRANK(ER$5:ER$287,ER6) -> 0.226 | EV6: =PERCENTRANK(ES$5:ES$287,ES6) -> 0.464 | EW6: =RANK(EH6,EH$5:EH$287,1) -> 60 | EX6: =PERCENTRANK(EW$5:EW$287,EW6) -> 0.209 | EY6: =G6/G$292 -> 0.2953 | EZ6: 0.2881818703 | FA6: 0.3681675384 | FB6: 0.6950470233 | FC6: 0.394894357 | FD6: 0.4872269122 | FE6: 0.2626386237 | FF6: 0.52803286 | FG6: 0.6716915495 | FH6: 0.6798028998 | FI6: 0.8076987907 | FJ6: 0.2740527897 | FK6: 0.1462398392 | FL6: 0.563682044 | FM6: 0.3739343867 | FN6: 0.4774612913 | FO6: 0.6744018651 | FP6: 0.7174683151 | FQ6: 0.4663023179 | FR6: 0.5524408932 | FS6: 0.6127683765 | FT6: 0.5571322056 | FU6: 0.8349251143 | FV6: 0.6058278493 | FW6: 0.0937257486 | FX6: 0.09720253702 | FY6: 0.6313733284 | FZ6: 0.06122287398 | GA6: 0.6534952252 | GB6: 0.9533379328 | GC6: 0.9062698509 | GD6: 0.03616382509 | GE6: 0.8076987907 | GF6: 0.235157993 | GG6: 0.5475431548 | GH6: 0.8379460902 | GI6: 0.7191139233 | GJ6: 0.8885072188 | GK6: 0.8386020227 | GL6: 0.6799870264 | GM6: =AVERAGE(EY6:FA6) -> 0.3172164695 | GN6: =AVERAGE(FB6:FF6) -> 0.4735679552 | GO6: =AVERAGE(FG6:FN6) -> 0.4993204489 | GP6: =AVERAGE(FO6:FQ6) -> 0.6193908327 | GQ6: =AVERAGE(FR6:FV6) -> 0.6326188878 | GR6: =AVERAGE(FW6:FZ6) -> 0.220881122 | GS6: =AVERAGE(GA6:GC6) -> 0.837701003 | GT6: =AVERAGE(GD6:GE6) -> 0.4219313079 | GU6: =AVERAGE(GF6:GG6) -> 0.3913505739 | GV6: =AVERAGE(GH6:GL6) -> 0.7928312563 | GW6: =AVERAGE(EY6:GL6) -> 0.5330666814 | GX6: =RANK(GW6,$GW$5:$GW$287) -> 218 | GY6: =AVERAGE(Data!EY6:FQ6) -> 0.4827486986 | GZ6: =RANK(GY6,GY$5:GY$287) -> 226 | HA6: =AVERAGE(Data!FR6:FZ6) -> 0.4496243252 | HB6: 209 | HC6: =AVERAGE(Data!GA6:GL6) -> 0.6753185878 | HD6: 89
A7: E05004869 | B7: 29UBHB | C7: Biddenden | D7: Ashford | E7: NHS Ashford CCG | F7: 3 | G7: 0.9246919725 | H7: 0.6124553677 | I7: 0.9925523229 | J7: 1.000992564 | K7: 1.115102465 | L7: 1.11330804 | M7: 1.110504295 | N7: 0.925705086 | O7: 1.324663059 | P7: 1.202580905 | Q7: 1.174085927 | R7: 1.094953564 | S7: 1.214284527 | T7: 1.189388238 | U7: 1.17560688 | V7: 1.160225366 | W7: 1.066752496 | X7: 1.065396847 | Y7: 1.050709055 | Z7: 1.141808537 | AA7: 1.041413534 | AB7: 0.9745374991 | AC7: 1.486205945 | AD7: 1.006795682 | AE7: 1.173945711 | AF7: 1.634393207 | AG7: 0.669735149 | AH7: 2.230705684 | AI7: 0.686511946 | AJ7: 0.3695710259 | AK7: 0.924057523 | AL7: 0.6216643308 | AM7: 1.174085927 | AN7: 0.4028220207 | AO7: 1.458818394 | AP7: 1.129740242 | AQ7: 0.8109917734 | AR7: 1.110350344 | AS7: 1.114764931 | AT7: 0.7863493251 | AU7: 0.843233221 | AV7: =RANK(AU7,$AU$5:$AU$287) -> 216 | AW7: 0.762 | BB7: 1.05312249 | BC7: 133 | BD7: 0.468 | BI7: 1.191973558 | BJ7: 70 | BK7: 0.244 | BP7: 1.060952799 | BQ7: 134 | BR7: 0.471 | BW7: 1.130152239 | BX7: 98 | BY7: 0.343 | CD7: 1.427194938 | CE7: 26 | CF7: 0.088 | CK7: 0.6600468316 | CL7: 267 | CM7: 0.943 | CR7: 0.897875129 | CS7: 140 | CT7: 0.492 | CY7: 0.9308202074 | CZ7: 214 | DA7: 0.755 | DF7: 0.9904393232 | DG7: 174 | DH7: 0.613 | DM7: 1.079682051 | DN7: 116 | DO7: 0.407 | DT7: =AVERAGE(Data!Z7:AH7) -> 1.262171217 | DU7: 38 | DV7: 0.131 | EA7: 0.8824773153 | EB7: 258 | EC7: 0.911 | EH7: 1.061580693 | EI7: 110 | EJ7: 0.386 | EO7: Ashford | EP7: 174 | EQ7: 168 | ER7: 246 | ES7: 26 | ET7: 0.592 | EU7: 0.868 | EV7: 0.088 | EW7: 174 | EX7: 0.613 | EY7: 0.5397419355 | EZ7: 0.3829856167 | FA7: 0.7491252156 | FB7: 0.6950470233 | FC7: 0.7905663816 | FD7: 0.8451179348 | FE7: 0.731788416 | FF7: 0.52803286 | FG7: 0.6716915495 | FH7: 0.6798028998 | FI7: 0.8957677448 | FJ7: 0.7036327091 | FK7: 0.529639689 | FL7: 0.7394149854 | FM7: 0.6280342187 | FN7: 0.6929564525 | FO7: 0.5176757385 | FP7: 0.5605338531 | FQ7: 0.4058827549 | FR7: 0.8274289811 | FS7: 0.6431670893 | FT7: 0.6185509085 | FU7: 0.8349251143 | FV7: 0.6058278493 | FW7: 0.4756877688 | FX7: 0.4818762196 | FY7: 0.3118990554 | FZ7: 0.7767067471 | GA7: 0.4042597393 | GB7: 0.3012346169 | GC7: 0.6684164315 | GD7: 0.08576013093 | GE7: 0.8957677448 | GF7: 0.1368025471 | GG7: 0.6974088047 | GH7: 0.9830994417 | GI7: 0.592735617 | GJ7: 0.9875138287 | GK7: 0.9871916139 | GL7: 0.4275902957 | GM7: 0.5572842559 | GN7: 0.7181105231 | GO7: 0.6926175311 | GP7: 0.4946974488 | GQ7: 0.7059799885 | GR7: 0.5115424478 | GS7: 0.4579702625 | GT7: 0.4907639379 | GU7: 0.4171056759 | GV7: 0.7956261594 | GW7: 0.6257822131 | GX7: 120 | GY7: =AVERAGE(Data!EY7:FQ7) -> 0.646707262 | GZ7: 119 | HA7: =AVERAGE(Data!FR7:FZ7) -> 0.6195633037 | HB7: 54 | HC7: =AVERAGE(Data!GA7:GL7) -> 0.5973150677 | HD7: 243
A8: E05004870 | B8: 29UBHC | C8: Bockhanger | D8: Ashford | E8: NHS Ashford CCG | F8: 4 | G8: 0.9467361283 | H8: 1.223768397 | I8: 0.8939767588 | J8: 1.000992564 | K8: 0.680259652 | L8: 0.9815622488 | M8: 0.890687659 | N8: 0.925705086 | O8: 1.324663059 | P8: 1.202580905 | Q8: 0.8014875297 | R8: 0.6857774689 | S8: 0.6071258345 | T8: 1.089976468 | U8: 0.8118920182 | V8: 0.7869815848 | W8: 1.532471988 | X8: 1.379622423 | Y8: 1.35748348 | Z8: 0.9469848341 | AA8: 0.9254616065 | AB8: 0.6862846217 | AC8: 1.486205945 | AD8: 1.006795682 | AE8: 0.6280884346 | AF8: 0.5856555896 | AG8: 1.385589595 | AH8: 0.7015409747 | AI8: 0.5181662757 | AJ8: 1.05227568 | AK8: 1.054092723 | AL8: 2.814830757 | AM8: 0.8014875297 | AN8: 0.8721208218 | AO8: 1.311621373 | AP8: 1.09289855 | AQ8: 1.039718663 | AR8: 1.068776489 | AS8: 1.077527074 | AT8: 1.247748205 | AU8: 1.021493761 | AV8: 151 | AW8: 0.531 | BB8: 0.895841442 | BC8: 198 | BD8: 0.698 | BI8: 0.9138106085 | BJ8: 184 | BK8: 0.648 | BP8: 1.42319263 | BQ8: 48 | BR8: 0.166 | BW8: 1.010346538 | BX8: 158 | BY8: 0.556 | CD8: 0.8252186484 | CE8: 195 | CF8: 0.687 | CK8: 0.874844893 | CL8: 221 | CM8: 0.78 | CR8: 1.808159143 | CS8: 13 | CT8: 0.042 | CY8: 1.091871097 | CZ8: 50 | DA8: 0.173 | DF8: 1.105333796 | DG8: 60 | DH8: 0.209 | DM8: 1.006513224 | DN8: 158 | DO8: 0.556 | DT8: =AVERAGE(Data!Z8:AH8) -> 0.928067476 | DU8: 182 | DV8: 0.641 | EA8: 1.162605345 | EB8: 15 | EC8: 0.049 | EH8: 1.035690567 | EI8: 136 | EJ8: 0.478 | EO8: Ashford | EP8: 148 | EQ8: 126 | ER8: 102 | ES8: 269 | ET8: 0.443 | EU8: 0.358 | EV8: 0.95 | EW8: 148 | EX8: 0.521 | EY8: 0.5526090909 | EZ8: 0.7652568972 | FA8: 0.6747256711 | FB8: 0.6950470233 | FC8: 0.4822789194 | FD8: 0.7451090179 | FE8: 0.5869359662 | FF8: 0.52803286 | FG8: 0.6716915495 | FH8: 0.6798028998 | FI8: 0.6114941507 | FJ8: 0.4406903401 | FK8: 0.2648126785 | FL8: 0.6776130019 | FM8: 0.4337299978 | FN8: 0.4700327913 | FO8: 0.7436810049 | FP8: 0.7258563551 | FQ8: 0.5243879189 | FR8: 0.6862470117 | FS8: 0.5715562823 | FT8: 0.4355932703 | FU8: 0.8349251143 | FV8: 0.6058278493 | FW8: 0.254504091 | FX8: 0.1726717294 | FY8: 0.6452761012 | FZ8: 0.2442687138 | GA8: 0.3051276307 | GB8: 0.8577021445 | GC8: 0.762477312 | GD8: 0.3883128599 | GE8: 0.6114941507 | GF8: 0.2961813 | GG8: 0.627039183 | GH8: 0.9510398181 | GI8: 0.7599069475 | GJ8: 0.9505392319 | GK8: 0.9542152439 | GL8: 0.6784834764 | GM8: 0.6641972198 | GN8: 0.6074807574 | GO8: 0.5312334262 | GP8: 0.6646417596 | GQ8: 0.6268299056 | GR8: 0.3291801588 | GS8: 0.6417690291 | GT8: 0.4999035053 | GU8: 0.4616102415 | GV8: 0.8588369436 | GW8: 0.5966794399 | GX8: 161 | GY8: =AVERAGE(Data!EY8:FQ8) -> 0.5933572702 | GZ8: 165 | HA8: =AVERAGE(Data!FR8:FZ8) -> 0.4945411293 | HB8: 173 | HC8: =AVERAGE(Data!GA8:GL8) -> 0.6785432749 | HD8: 85
A9: E05004871 | B9: 29UBHD | C9: Boughton Aluph and Eastwell | D9: Ashford | E9: NHS Ashford CCG | F9: 5 | G9: 1.175789832 | H9: 1.039851592 | I9: 1.100455445 | J9: 1.000992564 | K9: 0.9058544952 | L9: 0.9483623599 | M9: 1.023990456 | N9: 0.925705086 | O9: 1.324663059 | P9: 1.202580905 | Q9: 1.138565738 | R9: 1.234147785 | S9: 0.7150386589 | T9: 1.129802083 | U9: 1.172887584 | V9: 1.285242936 | W9: 0.5241852451 | X9: 0.6781236702 | Y9: 0.3557874941 | Z9: 1.06549607 | AA9: 1.400148992 | AB9: 1.22633672 | AC9: 1.486205945 | AD9: 1.006795682 | AE9: 1.206596195 | AF9: 1.610687275 | AG9: 0.7253687211 | AH9: 0.909823954 | AI9: 0.8833349506 | AJ9: 0.773432999 | AK9: 1.139625074 | AL9: 3.754405026 | AM9: 1.138565738 | AN9: 1.063092988 | AO9: 0.6985100842 | AP9: 1.011175517 | AQ9: 1.099280273 | AR9: 0.9836254898 | AS9: 1.012987394 | AT9: 0.7646815045 | AU9: 1.105365623 | AV9: 113 | AW9: 0.397 | BB9: 0.9609809923 | BC9: 180 | BD9: 0.634 | BI9: 1.150366094 | BJ9: 87 | BK9: 0.304 | BP9: 0.5193654698 | BQ9: 245 | BR9: 0.865 | BW9: 1.236996682 | BX9: 50 | BY9: 0.173 | CD9: 1.113119036 | CE9: 98 | CF9: 0.343 | CK9: 0.9321310079 | CL9: 196 | CM9: 0.691 | CR9: 2.446485382 | CS9: 6 | CT9: 0.017 | CY9: 0.8808015362 | CZ9: 245 | DA9: 0.865 | DF9: 0.9743500357 | DG9: 188 | DH9: 0.663 | DM9: 0.9937908942 | DN9: 162 | DO9: 0.57 | DT9: =AVERAGE(Data!Z9:AH9) -> 1.181939951 | DU9: 67 | DV9: 0.234 | EA9: 1.193559753 | EB9: 9 | EC9: 0.028 | EH9: 1.09605509 | EI9: 92 | EJ9: 0.322 | EO9: Ashford | EP9: 192 | EQ9: 122 | ER9: 217 | ES9: 275 | ET9: 0.429 | EU9: 0.765 | EV9: 0.971 | EW9: 192 | EX9: 0.677 | EY9: 0.6863075472 | EZ9: 0.6502485314 | FA9: 0.8305646999 | FB9: 0.6950470233 | FC9: 0.6422173148 | FD9: 0.7199068093 | FE9: 0.6747784386 | FF9: 0.52803286 | FG9: 0.6716915495 | FH9: 0.6798028998 | FI9: 0.8686676503 | FJ9: 0.7930808927 | FK9: 0.3118814778 | FL9: 0.7023716599 | FM9: 0.6265815129 | FN9: 0.7676244737 | FO9: 0.2543776414 | FP9: 0.3567790488 | FQ9: 0.1374386255 | FR9: 0.7721279873 | FS9: 0.8647186952 | FT9: 0.7783709637 | FU9: 0.8349251143 | FV9: 0.6058278493 | FW9: 0.4889178829 | FX9: 0.4748868826 | FY9: 0.3378078921 | FZ9: 0.3167905155 | GA9: 0.520161024 | GB9: 0.6304195319 | GC9: 0.8243470847 | GD9: 0.5179294526 | GE9: 0.8686676503 | GF9: 0.3610374336 | GG9: 0.3339326436 | GH9: 0.879924472 | GI9: 0.8034391866 | GJ9: 0.874808369 | GK9: 0.8970614635 | GL9: 0.4158080641 | GM9: 0.7223735928 | GN9: 0.6519964892 | GO9: 0.6777127646 | GP9: 0.2495317719 | GQ9: 0.7711941219 | GR9: 0.4046007933 | GS9: 0.6583092135 | GT9: 0.6932985515 | GU9: 0.3474850386 | GV9: 0.774208311 | GW9: 0.6249827704 | GX9: 123 | GY9: =AVERAGE(Data!EY9:FQ9) -> 0.6103895082 | GZ9: 156 | HA9: =AVERAGE(Data!FR9:FZ9) -> 0.6082637537 | HB9: 64 | HC9: =AVERAGE(Data!GA9:GL9) -> 0.6606280313 | HD9: 120
A10: E05004872 | B10: 29UBHE | C10: Bybrook | D10: Ashford | E10: NHS Ashford CCG | F10: 6 | G10: 0.6666051555 | H10: 0.9466334857 | I10: 0.915424505 | J10: 1.000992564 | K10: 0.8386830043 | L10: 0.9602446641 | M10: 0.8076125514 | N10: 0.925705086 | O10: 1.324663059 | P10: 1.202580905 | Q10: 1.077643212 | R10: 0.7354813798 | S10: 0.6201430951 | T10: 1.093903144 | U10: 0.8474957721 | V10: 1.004676727 | W10: 1.168444107 | X10: 1.097087535 | Y10: 1.044039315 | Z10: 0.7364531009 | AA10: 0.8981429623 | AB10: 0.7721796524 | AC10: 1.486205945 | AD10: 1.006795682 | AE10: 0.5981836956 | AF10: 0.5835756809 | AG10: 1.229918793 | AH10: 0.483581472 | AI10: 1.292617834 | AJ10: 1.171821073 | AK10: 1.174120029 | AL10: 0.478533393 | AM10: 1.077643212 | AN10: 0.8454657109 | AO10: 1.051581973 | AP10: 1.067886102 | AQ10: 1.046350882 | AR10: 1.049404284 | AS10: 1.061822896 | AT10: 0.8931471581 | AU10: 0.8428877154 | AV10: 217 | AW10: 0.765 | BB10: 0.906647574 | BC10: 196 | BD10: 0.691 | BI10: 0.9883234118 | BJ10: 147 | BK10: 0.517 | BP10: 1.103190319 | BQ10: 121 | BR10: 0.425 | BW10: 0.9799554687 | BX10: 173 | BY10: 0.609 | CD10: 0.7238149104 | CE10: 224 | CF10: 0.79 | CK10: 1.212852979 | CL10: 28 | CM10: 0.095 | CR10: 0.7780883027 | CS10: 191 | CT10: 0.673 | CY10: 0.9485238417 | CZ10: 201 | DA10: 0.709 | DF10: 1.023722264 | DG10: 144 | DH10: 0.507 | DM10: 0.9620031193 | DN10: 177 | DO10: 0.624 | DT10: =AVERAGE(Data!Z10:AH10) -> 0.8661152206 | DU10: 203 | DV10: 0.716 | EA10: 1.017532879 | EB10: 115 | EC10: 0.404 | EH10: 0.95708727 | EI10: 181 | EJ10: 0.638 | EO10: Ashford | EP10: 103 | EQ10: 107 | ER10: 81 | ES10: 169 | ET10: 0.375 | EU10: 0.283 | EV10: 0.595 | EW10: 103 | EX10: 0.361 | EY10: 0.389096875 | EZ10: 0.59195662 | FA10: 0.6909132787 | FB10: 0.6950470233 | FC10: 0.5945952135 | FD10: 0.7289267284 | FE10: 0.5321920073 | FF10: 0.52803286 | FG10: 0.6716915495 | FH10: 0.6798028998 | FI10: 0.8221868669 | FJ10: 0.4726307791 | FK10: 0.2704904729 | FL10: 0.680054125 | FM10: 0.452750281 | FN10: 0.6000534388 | FO10: 0.5670248427 | FP10: 0.5772071736 | FQ10: 0.4033062733 | FR10: 0.5336819783 | FS10: 0.5546845476 | FT10: 0.4901119002 | FU10: 0.8349251143 | FV10: 0.6058278493 | FW10: 0.2423865642 | FX10: 0.1720584996 | FY10: 0.5727794195 | FZ10: 0.168377655 | GA10: 0.7611715306 | GB10: 0.9551427124 | GC10: 0.8492989886 | GD10: 0.0660148643 | GE10: 0.8221868669 | GF10: 0.2871289472 | GG10: 0.5027236629 | GH10: 0.9292739968 | GI10: 0.7647542871 | GJ10: 0.9333101463 | GK10: 0.9403082469 | GL10: 0.4856633626 | GM10: 0.5573222579 | GN10: 0.6157587665 | GO10: 0.5812075516 | GP10: 0.5158460965 | GQ10: 0.6038462779 | GR10: 0.2889005346 | GS10: 0.8552044105 | GT10: 0.4441008656 | GU10: 0.394926305 | GV10: 0.8106620079 | GW10: 0.5854942612 | GX10: 173 | GY10: =AVERAGE(Data!EY10:FQ10) -> 0.5762083847 | GZ10: 178 | HA10: =AVERAGE(Data!FR10:FZ10) -> 0.463870392 | HB10: 199 | HC10: =AVERAGE(Data!GA10:GL10) -> 0.691414801 | HD10: 58
A11: E05004873 | B11: 29UBHF | C11: Charing | D11: Ashford | E11: NHS Ashford CCG | F11: 7 | G11: 1.109442993 | H11: 1.116120952 | I11: 0.9807937904 | J11: 1.000992564 | K11: 0.8670037119 | L11: 1.014732997 | M11: 1.193007284 | N11: 0.925705086 | O11: 1.324663059 | P11: 1.202580905 | Q11: 1.130670618 | R11: 1.065615445 | S11: 0.5131913353 | T11: 1.183746206 | U11: 0.9601993188 | V11: 0.8090555674 | W11: 1.517561783 | X11: 1.372543833 | Y11: 1.542246545 | Z11: 1.245919973 | AA11: 0.5605941626 | AB11: 0.7224516851 | AC11: 1.486205945 | AD11: 1.006795682 | AE11: 1.122540907 | AF11: 1.079838069 | AG11: 0.8486462252 | AH11: 2.077790311 | AI11: 1.062409621 | AJ11: 1.144298388 | AK11: 1.348753824 | AL11: 1.122099783 | AM11: 1.130670618 | AN11: 0.7482438182 | AO11: 1.598620898 | AP11: 1.131158619 | AQ11: 0.7263323316 | AR11: 1.111068858 | AS11: 1.11661738 | AT11: 1.094123203 | AU11: 1.068785912 | AV11: 125 | AW11: 0.439 | BB11: 1.000288329 | BC11: 160 | BD11: 0.563 | BI11: 1.023715307 | BJ11: 134 | BK11: 0.471 | BP11: 1.47745072 | BQ11: 33 | BR11: 0.113 | BW11: 1.00439349 | BX11: 159 | BY11: 0.56 | CD11: 1.282203878 | CE11: 56 | CF11: 0.195 | CK11: 1.185153944 | CL11: 38 | CM11: 0.131 | CR11: 1.126385201 | CS11: 71 | CT11: 0.248 | CY11: 1.173432358 | CZ11: 26 | DA11: 0.088 | DF11: 1.035860079 | DG11: 125 | DH11: 0.439 | DM11: 1.096309158 | DN11: 102 | DO11: 0.358 | DT11: =AVERAGE(Data!Z11:AH11) -> 1.127864773 | DU11: 82 | DV11: 0.287 | EA11: 1.111199779 | EB11: 29 | EC11: 0.099 | EH11: 1.107876357 | EI11: 79 | EJ11: 0.276 | EO11: Ashford | EP11: 205 | EQ11: 182 | ER11: 202 | ES11: 255 | ET11: 0.641 | EU11: 0.712 | EV11: 0.9 | EW11: 205 | EX11: 0.723 | EY11: 0.6475809524 | EZ11: 0.6979419135 | FA11: 0.7402505064 | FB11: 0.6950470233 | FC11: 0.6146735471 | FD11: 0.7702891058 | FE11: 0.7861553665 | FF11: 0.52803286 | FG11: 0.6716915495 | FH11: 0.6798028998 | FI11: 0.8626440758 | FJ11: 0.6847796173 | FK11: 0.2238408652 | FL11: 0.7359074655 | FM11: 0.5129589146 | FN11: 0.4832167029 | FO11: 0.7364453513 | FP11: 0.7221321194 | FQ11: 0.5957608089 | FR11: 0.9028749219 | FS11: 0.3462176207 | FT11: 0.4585489492 | FU11: =AC11/AC$292 -> 0.8349251143 | FV11: =AD11/AD$292 -> 0.6058278493 | FW11: =AE11/AE$292 -> 0.4548583247 | FX11: =AF11/AF$292 -> 0.3183739901 | FY11: =AG11/AG$292 -> 0.395218851 | FZ11: =AH11/AH$292 -> 0.7234633261 | GA11: =AI11/AI$292 -> 0.6256110163 | GB11: =AJ11/AJ$292 -> 0.9327091742 | GC11: =AK11/AK$292 -> 0.9756202353 | GD11: =AL11/AL$292 -> 0.1547964385 | GE11: =AM11/AM$292 -> 0.8626440758 | GF11: =AN11/AN$292 -> 0.2541113815 | GG11: =AO11/AO$292 -> 0.7642433725 | GH11: =AP11/AP$292 -> 0.9843337125 | GI11: =AQ11/AQ$292 -> 0.5308599382 | GJ11: =AR11/AR$292 -> 0.988152855 | GK11: =AS11/AS$292 -> 0.9888320693 | GL11: =AT11/AT$292 -> 0.5949473713 | GM11: 0.6952577908 | GN11: 0.6788395806 | GO11: 0.6068552613 | GP11: 0.6847794265 | GQ11: 0.6296788911 | GR11: 0.472978623 | GS11: 0.8446468086 | GT11: 0.5087202571 | GU11: 0.509177377 | GV11: 0.8174251893 | GW11: 0.6521580558 | GX11: 86 | GY11: =AVERAGE(Data!EY11:FQ11) -> 0.6520606129 | GZ11: 114 | HA11: =AVERAGE(Data!FR11:FZ11) -> 0.5600343275 | HB11: 107 | HC11: =AVERAGE(Data!GA11:GL11) -> 0.7214051367 | HD11: 15
A12: E05004874 | B12: 29UBHG | C12: Downs North | D12: Ashford | E12: NHS Ashford CCG | F12: 8 | G12: 1.049643435 | H12: 1.159236185 | I12: 1.145236455 | J12: 1.000992564 | K12: 1.012318425 | L12: 1.138989016 | M12: 1.069469512 | N12: 0.925705086 | O12: 1.324663059 | P12: 1.202580905 | Q12: 1.217224508 | R12: 1.165424735 | S12: 0.888107554 | T12: 1.130011333 | U12: 1.141030481 | V12: 1.036313018 | W12: 1.587592023 | X12: 1.423918575 | Y12: 1.521387237 | Z12: 1.22187051 | AA12: 1.033968027 | AB12: 0.9254195844 | AC12: 1.486205945 | AD12: 1.006795682 | AE12: 1.199469928 | AF12: 1.875481819 | AG12: 0.7451612482 | AH12: 2.181617996 | AI12: 0.3669262266 | AJ12: 0.5729613697 | AK12: 0.9691528286 | AL12: 0.6059719172 | AM12: 1.217224508 | AN12: 0.7328172011 | AO12: 1.322104167 | AP12: 1.117996988 | AQ12: 0.8769466605 | AR12: 1.097305751 | AS12: 1.101503479 | AT12: 0.9622584089 | AU12: 1.118038691 | AV12: 108 | AW12: 0.379 | BB12: 1.029494921 | BC12: 147 | BD12: 0.517 | BI12: 1.138169449 | BJ12: 93 | BK12: 0.326 | BP12: 1.510965945 | BQ12: 28 | BR12: 0.095 | BW12: 1.13485195 | BX12: 96 | BY12: 0.336 | CD12: 1.500432748 | CE12: 15 | CF12: 0.049 | CK12: 0.6363468083 | CL12: 271 | CM12: 0.957 | CR12: 0.9115982128 | CS12: 131 | CT12: 0.46 | CY12: 1.027460684 | CZ12: 97 | DA12: 0.34 | DF12: 1.031202257 | DG12: 133 | DH12: 0.468 | DM12: 1.165254953 | DN12: 67 | DO12: 0.234 | DT12: =AVERAGE(Data!Z12:AH12) -> 1.297332305 | DU12: 30 | DV12: 0.102 | EA12: 0.9119307922 | EB12: 240 | EC12: 0.847 | EH12: 1.118975109 | EI12: 66 | EJ12: 0.23 | EO12: Ashford | EP12: 218 | EQ12: 217 | ER12: 254 | ES12: 44 | ET12: 0.765 | EU12: 0.897 | EV12: 0.152 | EW12: 218 | EX12: 0.769 | EY12: 0.612676 | EZ12: =H12/H$292 -> 0.7249030846 | FA12: =I12/I$292 -> 0.8643630024 | FB12: =J12/J$292 -> 0.6950470233 | FC12: =K12/K$292 -> 0.7176963013 | FD12: =L12/L$292 -> 0.8646124971 | FE12: =M12/M$292 -> 0.7047477476 | FF12: =N12/N$292 -> 0.52803286 | FG12: =O12/O$292 -> 0.6716915495 | FH12: =P12/P$292 -> 0.6798028998 | FI12: =Q12/Q$292 -> 0.9286802844 | FJ12: =R12/R$292 -> 0.7489184848 | FK12: =S12/S$292 -> 0.3873696799 | FL12: =T12/T$292 -> 0.7025017455 | FM12: =U12/U$292 -> 0.6095627705 | FN12: =V12/V$292 -> 0.618948537 | FO12: =W12/W$292 -> 0.7704297635 | FP12: =X12/X$292 -> 0.7491617489 | FQ12: =Y12/Y$292 -> 0.5877029805 | FR12: =Z12/Z$292 -> 0.8854471116 | FS12: =AA12/AA$292 -> 0.6385688149 | FT12: =AB12/AB$292 -> 0.5873751653 | FU12: 0.8349251143 | FV12: 0.6058278493 | FW12: 0.4860302895 | FX12: 0.5529575657 | FY12: 0.3470253724 | FZ12: 0.7596149637 | GA12: 0.216068346 | GB12: 0.4670165857 | GC12: 0.7010360926 | GD12: 0.08359532368 | GE12: 0.9286802844 | GF12: 0.2488723419 | GG12: 0.6320506314 | GH12: 0.9728804676 | GI12: 0.6409405581 | GJ12: 0.9759123408 | GK12: 0.9754477972 | GL12: 0.5232437346 | GM12: 0.7339806957 | GN12: 0.7020272859 | GO12: 0.6684344939 | GP12: 0.7024314976 | GQ12: 0.7104288111 | GR12: 0.5364070478 | GS12: 0.4613736747 | GT12: 0.5061378041 | GU12: 0.4404614866 | GV12: 0.8176849797 | GW12: 0.6557591428 | GX12: 79 | GY12: =AVERAGE(Data!EY12:FQ12) -> 0.6929920506 | GZ12: 74 | HA12: =AVERAGE(Data!FR12:FZ12) -> 0.6330858052 | HB12: 41 | HC12: =AVERAGE(Data!GA12:GL12) -> 0.613812042 | HD12: 225
A13: E05004875 | B13: 29UBHH | C13: Downs West | D13: Ashford | E13: NHS Ashford CCG | F13: 9 | G13: 1.342786916 | H13: 0.7601972725 | I13: 1.044034404 | J13: 1.000992564 | K13: 1.15434531 | L13: 1.059790722 | M13: 1.112796469 | N13: 0.925705086 | O13: 1.324663059 | P13: 1.202580905 | Q13: 0.9179045415 | R13: 1.100412668 | S13: 0.6390002068 | T13: 1.188116697 | U13: 0.886203698 | V13: 0.6568985226 | W13: 1.086627293 | X13: 1.135321327 | Y13: 1.004567366 | Z13: 1.070704872 | AA13: 1.096576515 | AB13: 0.8350021496 | AC13: 1.486205945 | AD13: 1.006795682 | AE13: 1.22168508 | AF13: 1.772130889 | AG13: 0.7777790539 | AH13: 1.972223547 | AI13: 0.1206475526 | AJ13: 0.6833435781 | AK13: 1.088824194 | AL13: 1.023721397 | AM13: 0.9179045415 | AN13: 0.6106319995 | AO13: 1.356849302 | AP13: 1.118873434 | AQ13: 0.9163308738 | AR13: 1.089070632 | AS13: 1.112227729 | AT13: 1.129984378 | AU13: 1.049006198 | AV13: 132 | AW13: 0.464 | BB13: 1.05072603 | BC13: 134 | BD13: 0.471 | BI13: 0.9894725372 | BJ13: 145 | BK13: 0.51 | BP13: 1.075505329 | BQ13: 127 | BR13: 0.446 | BW13: 1.099057033 | BX13: 116 | BY13: 0.407 | CD13: 1.435954643 | CE13: 22 | CF13: 0.074 | CK13: 0.6309384417 | CL13: 273 | CM13: 0.964 | CR13: 0.9708129692 | CS13: 109 | CT13: 0.382 | CY13: 0.9837406509 | CZ13: 150 | DA13: 0.528 | DF13: 1.073297409 | DG13: 90 | DH13: 0.315 | DM13: 1.028576054 | DN13: 147 | DO13: 0.517 | DT13: =AVERAGE(Data!Z13:AH13) -> 1.248789304 | DU13: 40 | DV13: 0.138 | EA13: 0.9307008011 | EB13: 223 | EC13: 0.787 | EH13: 1.048761459 | EI13: 124 | EJ13: 0.436 | EO13: Ashford | EP13: 160 | EQ13: 137 | ER13: 244 | ES13: 61 | ET13: 0.482 | EU13: 0.861 | EV13: 0.212 | EW13: 160 | EX13: 0.563 | EY13: 0.7837836066 | EZ13: 0.4753727971 | FA13: 0.7879811272 | FB13: 0.6950470233 | FC13: 0.8183881066 | FD13: 0.8044926599 | FE13: 0.7332988892 | FF13: 0.52803286 | FG13: 0.6716915495 | FH13: 0.6798028998 | FI13: 0.7003143995 | FJ13: 0.7071408068 | FK13: 0.2787154601 | FL13: 0.7386244982 | FM13: 0.4734288789 | FN13: 0.3923393535 | FO13: 0.5273206192 | FP13: 0.5973229971 | FQ13: 0.3880584907 | FR13: 0.7759026255 | FS13: 0.6772352217 | FT13: 0.52998611 | FU13: 0.8349251143 | FV13: 0.6058278493 | FW13: 0.4950319632 | FX13: 0.5224861006 | FY13: 0.3622156499 | FZ13: 0.6867061605 | GA13: 0.07104457312 | GB13: 0.5569883095 | GC13: 0.7876003002 | GD13: 0.1412248969 | GE13: 0.7003143995 | GF13: 0.2073769769 | GG13: 0.6486610355 | GH13: 0.9736431498 | GI13: 0.6697255924 | GJ13: 0.9685882618 | GK13: 0.9849447685 | GL13: 0.6144474714 | GM13: 0.682379177 | GN13: 0.7158519078 | GO13: 0.5802572308 | GP13: 0.5042340356 | GQ13: 0.6847753842 | GR13: 0.5166099686 | GS13: 0.4718777276 | GT13: 0.4207696482 | GU13: 0.4280190062 | GV13: 0.8422698488 | GW13: 0.6149008388 | GX13: 140 | GY13: =AVERAGE(Data!EY13:FQ13) -> 0.620060896 | GZ13: 151 | HA13: =AVERAGE(Data!FR13:FZ13) -> 0.6100351994 | HB13: 62 | HC13: =AVERAGE(Data!GA13:GL13) -> 0.610379978 | HD13: 230
A14: E05004876 | B14: 29UBHJ | C14: Godinton | D14: Ashford | E14: NHS Ashford CCG | F14: 10 | G14: 1.396394688 | H14: 0.8526927581 | I14: 1.148865387 | J14: 1.000992564 | K14: 1.097678067 | L14: 0.9430557665 | M14: 0.9527624201 | N14: 0.925705086 | O14: 1.324663059 | P14: 1.202580905 | Q14: 0.9411655675 | R14: 1.248576059 | S14: 0.6459223646 | T14: 1.02426825 | U14: 1.261518232 | V14: 1.408693194 | W14: 0.9155459904 | X14: 0.962355786 | Y14: 0.9048962068 | Z14: 1.07453457 | AA14: 1.327609636 | AB14: 1.185232723 | AC14: 1.486205945 | AD14: 1.006795682 | AE14: 1.056017243 | AF14: 1.202769066 | AG14: 0.9114482411 | AH14: 0.4087984018 | AI14: 0.8223494571 | AJ14: 0.9671513293 | AK14: 1.028988249 | AL14: 1.002856756 | AM14: 0.9411655675 | AN14: 1.430350461 | AO14: 0.4668124747 | AP14: 1.005949772 | AQ14: 1.09599079 | AR14: 0.9943249769 | AS14: 1.014650907 | AT14: 0.9896938895 | AU14: 1.132650944 | AV14: 96 | AW14: 0.336 | BB14: 0.9840387809 | BC14: 169 | BD14: 0.595 | BI14: 1.132173454 | BJ14: 96 | BK14: 0.336 | BP14: 0.9275993277 | BQ14: 166 | BR14: 0.585 | BW14: 1.216075712 | BX14: 59 | BY14: 0.205 | CD14: 0.8947582379 | CE14: 166 | CF14: 0.585 | CK14: 0.9394963451 | CL14: 192 | CM14: 0.677 | CR14: 0.9720111619 | CS14: 107 | CT14: 0.375 | CY14: 0.9485814679 | CZ14: 200 | DA14: 0.705 | DF14: 1.020122067 | DG14: 148 | DH14: 0.521 | DM14: 1.060964861 | DN14: 129 | DO14: 0.453 | DT14: =AVERAGE(Data!Z14:AH14) -> 1.073267945 | DU14: 110 | DV14: 0.386 | EA14: 0.9800237192 | EB14: 164 | EC14: 0.578 | EH14: 1.039450712 | EI14: 132 | EJ14: 0.464 | EO14: Ashford | EP14: 152 | EQ14: 155 | ER14: 174 | ES14: 120 | ET14: 0.546 | EU14: 0.613 | EV14: 0.421 | EW14: 152 | EX14: 0.535 | EY14: 0.8150744186 | EZ14: 0.5332128333 | FA14: 0.8671019258 | FB14: 0.6950470233 | FC14: 0.7782131288 | FD14: 0.7158785466 | FE14: 0.6278413381 | FF14: 0.52803286 | FG14: 0.6716915495 | FH14: 0.6798028998 | FI14: 0.7180613773 | FJ14: 0.8023527065 | FK14: 0.2817347274 | FL14: 0.6367637322 | FM14: 0.6739298918 | FN14: 0.8413564011 | FO14: 0.4442979497 | FP14: 0.5063211874 | FQ14: 0.3495561056 | FR14: 0.7786778745 | FS14: 0.8199190791 | FT14: 0.7522817527 | FU14: 0.8349251143 | FV14: 0.6058278493 | FW14: 0.4279026545 | FX14: 0.3546183429 | FY14: 0.4244660683 | FZ14: 0.1423390271 | GA14: 0.4842490783 | GB14: 0.7883179139 | GC14: 0.7443180064 | GD14: 0.1383465682 | GE14: 0.7180613773 | GF14: 0.4857618904 | GG14: 0.2231663183 | GH14: 0.8753770307 | GI14: 0.8010349779 | GJ14: 0.8843241868 | GK14: 0.8985346043 | GL14: 0.5381622255 | GM14: 0.7384630592 | GN14: 0.6690025794 | GO14: 0.6632116607 | GP14: 0.4333917476 | GQ14: 0.758326334 | GR14: 0.3373315232 | GS14: 0.6722949995 | GT14: 0.4282039727 | GU14: 0.3544641043 | GV14: 0.799486605 | GW14: 0.6221720636 | GX14: 129 | GY14: =AVERAGE(Data!EY14:FQ14) -> 0.6403300317 | GZ14: 127 | HA14: =AVERAGE(Data!FR14:FZ14) -> 0.5712175292 | HB14: 97 | HC14: =AVERAGE(Data!GA14:GL14) -> 0.6316378482 | HD14: 192
A15: E05004877 | B15: 29UBHK | C15: Great Chart with Singleton North | D15: Ashford | E15: NHS Ashford CCG | F15: 11 | G15: 1.075020712 | H15: 0.9313518289 | I15: 1.107752564 | J15: 1.000992564 | K15: 1.060236818 | L15: 1.115722127 | M15: 1.052700461 | N15: 0.925705086 | O15: 1.324663059 | P15: 1.202580905 | Q15: 1.213979328 | R15: 1.369441891 | S15: 0.2751512126 | T15: 0.9627256651 | U15: 1.362641584 | V15: 1.47110386 | W15: 1.011664605 | X15: 1.119839664 | Y15: 0.6011585431 | Z15: 1.144478653 | AA15: 1.354464548 | AB15: 1.403696095 | AC15: 1.486205945 | AD15: 1.006795682 | AE15: 1.246794209 | AF15: 1.380840172 | AG15: 0.7936356933 | AH15: 0.6125476515 | AI15: 1.042119178 | AJ15: 1.026215411 | AK15: 1.125924797 | AL15: 0.3537085163 | AM15: 1.213979328 | AN15: 1.357645754 | AO15: 0.5007524273 | AP15: 1.047667305 | AQ15: 0.8955494442 | AR15: 1.032768739 | AS15: 1.058590215 | AT15: 1.48348081 | AU15: 1.038041701 | AV15: 139 | AW15: 0.489 | BB15: 1.031071411 | BC15: 145 | BD15: 0.51 | BI15: 1.147785938 | BJ15: 89 | BK15: 0.312 | BP15: 0.9108876043 | BQ15: 174 | BR15: 0.613 | BW15: 1.279128185 | BX15: 33 | BY15: 0.113 | CD15: 1.008454431 | CE15: 134 | CF15: 0.471 | CK15: 1.064753129 | CL15: 124 | CM15: 0.436 | CR15: 0.783843922 | CS15: 185 | CT15: 0.652 | CY15: 0.9291990907 | CZ15: 215 | DA15: 0.758 | DF15: 1.103611303 | DG15: 62 | DH15: 0.216 | DM15: 1.062338552 | DN15: 127 | DO15: 0.446 | DT15: =AVERAGE(Data!Z15:AH15) -> 1.158828739 | DU15: 75 | DV15: 0.262 | EA15: 1.011533494 | EB15: 120 | EC15: 0.421 | EH15: 1.068807326 | EI15: 105 | EJ15: 0.368 | EO15: Ashford | EP15: 179 | EQ15: 157 | ER15: 209 | ES15: 164 | ET15: 0.553 | EU15: 0.737 | EV15: 0.578 | EW15: 179 | EX15: 0.631 | EY15: 0.6274886957 | EZ15: 0.5824005689 | FA15: 0.8360721737 | FB15: 0.6950470233 | FC15: 0.7516686688 | FD15: 0.8469504805 | FE15: 0.6936974552 | FF15: 0.52803286 | FG15: 0.6716915495 | FH15: 0.6798028998 | FI15: 0.9262043769 | FJ15: 0.8800228063 | FK15: 0.1200138842 | FL15: 0.5985041395 | FM15: 0.7279521392 | FN15: 0.8786318092 | FO15: 0.4909425792 | FP15: 0.5891776792 | FQ15: 0.2322240248 | FR15: 0.8293639217 | FS15: 0.8365044168 | FT15: 0.8909431354 | FU15: 0.8349251143 | FV15: 0.6058278493 | FW15: 0.5052062884 | FX15: 0.4071199264 | FY15: 0.3696001673 | FZ15: 0.2132822349 | GA15: 0.6136627769 | GB15: 0.8364606109 | GC15: 0.8144369978 | GD15: 0.04879496404 | GE15: 0.9262043769 | GF15: 0.4610706159 | GG15: 0.2393917935 | GH15: 0.9116796091 | GI15: 0.6545369136 | GJ15: 0.918514969 | GK15: 0.9374455129 | GL15: 0.806666933 | GM15: 0.6819871461 | GN15: 0.7030792976 | GO15: 0.6853529506 | GP15: 0.4374480944 | GQ15: 0.7995128875 | GR15: 0.3738021542 | GS15: 0.7548534619 | GT15: 0.4874996705 | GU15: 0.3502312047 | GV15: 0.8457687875 | GW15: 0.6504541235 | GX15: 90 | GY15: =AVERAGE(Data!EY15:FQ15) -> 0.6503434639 | GZ15: 117 | HA15: =AVERAGE(Data!FR15:FZ15) -> 0.6103081172 | HB15: 61 | HC15: =AVERAGE(Data!GA15:GL15) -> 0.6807388395 | HD15: 80
A16: E05004878 | B16: 29UBHL | C16: Highfield | D16: Ashford | E16: NHS Ashford CCG | F16: 12 | G16: 1.212858167 | H16: 1.09381997 | I16: 1.155532871 | J16: 1.000992564 | K16: 1.312638587 | L16: 1.211751412 | M16: 1.208099413 | N16: 0.925705086 | O16: 1.324663059 | P16: 1.202580905 | Q16: 1.223605266 | R16: 1.14197029 | S16: 0.202152013 | T16: 0.9032912815 | U16: 1.228692198 | V16: 1.257647612 | W16: 1.053853079 | X16: 1.074460493 | Y16: 0.853128463 | Z16: 1.267562812 | AA16: 1.35729451 | AB16: 1.23990214 | AC16: 1.486205945 | AD16: 1.006795682 | AE16: 1.063597968 | AF16: 0.7349415819 | AG16: 0.8954275922 | AH16: 0.5356211447 | AI16: 1.166314616 | AJ16: 1.162045917 | AK16: 1.358761549 | AL16: 4.441152158 | AM16: 1.223605266 | AN16: 1.029926593 | AO16: 0.7049769704 | AP16: 1.120501555 | AQ16: 1.055563944 | AR16: 1.096703532 | AS16: 1.119466556 | AT16: 1.397953688 | AU16: 1.154070336 | AV16: 79 | AW16: 0.276 | BB16: 1.131837412 | BC16: 106 | BD16: 0.372 | BI16: 1.060575328 | BJ16: 119 | BK16: 0.418 | BP16: 0.9938140117 | BQ16: 151 | BR16: 0.531 | BW16: 1.271552218 | BX16: 35 | BY16: 0.12 | CD16: 0.8073970717 | CE16: 204 | CF16: 0.719 | CK16: 1.229040694 | CL16: 20 | CM16: 0.067 | CR16: 2.832378712 | CS16: 3 | CT16: 0.007 | CY16: 0.8674517818 | CZ16: 250 | DA16: 0.882 | DF16: 1.158037855 | DG16: 19 | DH16: 0.063 | DM16: 1.083549617 | DN16: 112 | DO16: 0.393 | DT16: =AVERAGE(Data!Z16:AH16) -> 1.065261042 | DU16: 117 | DV16: 0.411 | EA16: 1.406414362 | EB16: 2 | EC16: 0.003 | EH16: 1.176294111 | EI16: 36 | EJ16: 0.124 | EO16: Ashford | EP16: 248 | EQ16: 172 | ER16: 167 | ES16: 282 | ET16: 0.606 | EU16: 0.588 | EV16: 0.996 | EW16: 248 | EX16: 0.875 | EY16: 0.7079443038 | EZ16: 0.6839964801 | FA16: 0.8721341852 | FB16: 0.6950470233 | FC16: 0.9306121822 | FD16: 0.9198468112 | FE16: 0.7961006184 | FF16: 0.52803286 | FG16: 0.6716915495 | FH16: 0.6798028998 | FI16: 0.9335484775 | FJ16: 0.7338463249 | FK16: 0.08817351033 | FL16: 0.5615551664 | FM16: 0.656393526 | FN16: 0.7511428843 | FO16: 0.5114158843 | FP16: 0.5653024802 | FQ16: 0.3295585293 | FR16: 0.9185587353 | FS16: 0.8382521747 | FT16: 0.7869811021 | FU16: 0.8349251143 | FV16: 0.6058278493 | FW16: 0.4309743965 | FX16: 0.2166864556 | FY16: 0.4170051709 | FZ16: 0.1864972864 | GA16: 0.6867965594 | GB16: 0.9471750547 | GC16: 0.9828593167 | GD16: 0.6126679168 | GE16: 0.9335484775 | GF16: 0.349773781 | GG16: 0.3370242302 | GH16: 0.9750599406 | GI16: 0.7714879064 | GJ16: 0.9753767444 | GK16: 0.9913551861 | GL16: 0.7601601623 | GM16: 0.7546916564 | GN16: 0.773927899 | GO16: 0.6345192923 | GP16: 0.4687589646 | GQ16: 0.7969089951 | GR16: 0.3127908274 | GS16: 0.8722769769 | GT16: 0.7731081971 | GU16: 0.3433990056 | GV16: 0.8946879879 | GW16: 0.6793784814 | GX16: 47 | GY16: =AVERAGE(Data!EY16:FQ16) -> 0.6640076683 | GZ16: 100 | HA16: =AVERAGE(Data!FR16:FZ16) -> 0.581745365 | HB16: 89 | HC16: =AVERAGE(Data!GA16:GL16) -> 0.7769404397 | HD16: 1
A17: E05004879 | B17: 29UBHM | C17: Isle of Oxney | D17: Ashford | E17: NHS Ashford CCG | F17: 13 | G17: 0.943520275 | H17: 0.9871630973 | I17: 1.031137051 | J17: 1.000992564 | K17: 0.9437298065 | L17: 1.033042338 | M17: 0.9798738101 | N17: 0.925705086 | O17: 1.324663059 | P17: 1.202580905 | Q17: 1.282864236 | R17: 1.095520025 | S17: 1.349866061 | T17: 1.169456041 | U17: 1.222208558 | V17: 0.9567503472 | W17: 0.4903810295 | X17: 0.5953347877 | Y17: 0.5011331065 | Z17: 1.126168524 | AA17: 0.9150257104 | AB17: 1.140562937 | AC17: 1.486205945 | AD17: 1.006795682 | AE17: 1.030168087 | AF17: 1.52512191 | AG17: 0.6533140977 | AH17: 2.24830062 | AI17: 0.21445922 | AJ17: 0.4659120436 | AK17: 1.203189198 | AL17: 0.425272316 | AM17: 1.282864236 | AN17: 0.752108981 | AO17: 1.422453383 | AP17: 1.105949168 | AQ17: 0.8816936725 | AR17: 1.093214824 | AS17: 1.093930483 | AT17: 1.166590513 | AU17: 0.9872734746 | AV17: 166 | AW17: 0.585 | BB17: 0.976668721 | BC17: 171 | BD17: 0.602 | BI17: 1.200488654 | BJ17: 67 | BK17: 0.234 | BP17: 0.5289496412 | BQ17: 243 | BR17: 0.858 | BW17: 1.13495176 | BX17: 95 | BY17: 0.333 | CD17: 1.364226179 | CE17: 36 | CF17: 0.124 | CK17: 0.6278534871 | CL17: 274 | CM17: 0.968 | CR17: 0.8540682759 | CS17: 152 | CT17: 0.535 | CY17: 1.087281182 | CZ17: 53 | DA17: 0.184 | DF17: 1.068275732 | DG17: 94 | DH17: 0.329 | DM17: 1.001890641 | DN17: 161 | DO17: 0.567 | DT17: =AVERAGE(Data!Z17:AH17) -> 1.236851502 | DU17: 44 | DV17: 0.152 | EA17: 0.9256365032 | EB17: 226 | EC17: 0.797 | EH17: 1.031880593 | EI17: 140 | EJ17: 0.492 | EO17: Ashford | EP17: 144 | EQ17: 123 | ER17: 240 | ES17: 58 | ET17: 0.432 | EU17: 0.847 | EV17: 0.202 | EW17: 144 | EX17: 0.507 | EY17: 0.550732 | EZ17: 0.6173009293 | FA17: 0.7782468976 | FB17: 0.6950470233 | FC17: 0.6690695088 | FD17: 0.7841878221 | FE17: 0.6457069161 | FF17: 0.52803286 | FG17: 0.6716915495 | FH17: 0.6798028998 | FI17: 0.9787600522 | FJ17: 0.7039967252 | FK17: 0.5887768677 | FL17: 0.7270236027 | FM17: 0.6529298272 | FN17: 0.571428919 | FO17: 0.2379730655 | FP17: 0.3132215974 | FQ17: 0.1935847844 | FR17: 0.8160952067 | FS17: 0.5651111722 | FT17: 0.7239292908 | FU17: 0.8349251143 | FV17: 0.6058278493 | FW17: 0.4174284675 | FX17: 0.4496592236 | FY17: 0.3042516886 | FZ17: 0.7828331067 | GA17: 0.1262865546 | GB17: 0.3797614697 | GC17: 0.8703261538 | GD17: 0.05866736709 | GE17: 0.9787600522 | GF17: 0.2554240309 | GG17: 0.6800239959 | GH17: 0.9623964602 | GI17: 0.6444100422 | GJ17: 0.9722739876 | GK17: 0.9687414528 | GL17: 0.6343526554 | GM17: 0.6487599423 | GN17: 0.6644088261 | GO17: 0.6968013054 | GP17: 0.2482598158 | GQ17: 0.7091777267 | GR17: 0.4885431216 | GS17: 0.4587913927 | GT17: 0.5187137096 | GU17: 0.4677240134 | GV17: 0.8364349196 | GW17: 0.6154749798 | GX17: 138 | GY17: =AVERAGE(Data!EY17:FQ17) -> 0.6098691499 | GZ17: 160 | HA17: =AVERAGE(Data!FR17:FZ17) -> 0.6111179022 | HB17: 59 | HC17: =AVERAGE(Data!GA17:GL17) -> 0.6276186852 | HD17: 202
A18: E05004880 | B18: 29UBHN | C18: Kennington | D18: Ashford | E18: NHS Ashford CCG | F18: 14 | G18: 1.241711406 | H18: 1.101996997 | I18: 1.203753452 | J18: 1.000992564 | K18: 1.188296279 | L18: 1.25282517 | M18: 1.445169114 | N18: 0.925705086 | O18: 1.324663059 | P18: 1.202580905 | Q18: 0.7302809151 | R18: 1.202964216 | S18: 0.6763644693 | T18: 1.117276066 | U18: 1.350974177 | V18: 0.8886005079 | W18: 1.103091546 | X18: 0.9180347926 | Y18: 1.668361964 | Z18: 1.207962644 | AA18: 1.029355931 | AB18: 1.164523274 | AC18: 1.486205945 | AD18: 1.006795682 | AE18: 1.421378264 | AF18: 0.9068997006 | AG18: 0.8190470688 | AH18: 1.015576634 | AI18: 1.410625587 | AJ18: 0.9786623204 | AK18: 1.136077234 | AL18: 0.7456114764 | AM18: 0.7302809151 | AN18: 1.177435767 | AO18: 0.8488680637 | AP18: 1.108827401 | AQ18: 1.046336408 | AR18: 1.06245617 | AS18: 1.106039311 | AT18: 1.133514106 | AU18: 1.182487285 | AV18: 61 | AW18: 0.212 | BB18: 1.162597643 | BC18: 93 | BD18: 0.326 | BI18: 1.061713039 | BJ18: 118 | BK18: 0.414 | BP18: 1.229829434 | BQ18: 90 | BR18: 0.315 | BW18: 1.178968695 | BX18: 69 | BY18: 0.241 | CD18: 1.040725417 | CE18: 121 | CF18: 0.425 | CK18: 1.175121714 | CL18: 47 | CM18: 0.163 | CR18: 0.7379461958 | CS18: 210 | CT18: 0.741 | CY18: 1.013151915 | CZ18: 117 | DA18: 0.411 | DF18: 1.091434679 | DG18: 73 | DH18: 0.255 | DM18: 1.133875931 | DN18: 84 | DO18: 0.294 | DT18: =AVERAGE(Data!Z18:AH18) -> 1.117527238 | DU18: 90 | DV18: 0.315 | EA18: 1.040394563 | EB18: 85 | EC18: 0.297 | EH18: 1.102153065 | EI18: 84 | EJ18: 0.294 | EO18: Ashford | EP18: 200 | EQ18: 200 | ER18: 194 | ES18: 199 | ET18: 0.705 | EU18: 0.684 | EV18: 0.702 | EW18: 200 | EX18: 0.705 | EY18: 0.7247859155 | EZ18: 0.6891098057 | FA18: 0.9085284908 | FB18: 0.6950470233 | FC18: 0.8424580873 | FD18: 0.9510261147 | FE18: 0.9523223114 | FF18: 0.52803286 | FG18: 0.6716915495 | FH18: 0.6798028998 | FI18: 0.5571671317 | FJ18: 0.7730418885 | FK18: 0.2950127907 | FL18: 0.6945845267 | FM18: 0.7217191616 | FN18: 0.5307257312 | FO18: 0.5353104237 | FP18: 0.4830027242 | FQ18: 0.6444784568 | FR18: 0.8753685644 | FS18: 0.6357204286 | FT18: 0.7391372113 | FU18: 0.8349251143 | FV18: 0.6058278493 | FW18: 0.5759484861 | FX18: 0.2673857169 | FY18: 0.3814343737 | FZ18: 0.3536124148 | GA18: 0.8306616298 | GB18: 0.7977004377 | GC18: 0.8217807566 | GD18: 0.102858946 | GE18: 0.5571671317 | GF18: 0.3998694303 | GG18: 0.4058134063 | GH18: 0.9649010967 | GI18: 0.7647437088 | GJ18: 0.9449181203 | GK18: 0.9794645505 | GL18: 0.6163668186 | GM18: 0.774141404 | GN18: 0.7937772794 | GO18: 0.61546821 | GP18: 0.5542638682 | GQ18: 0.7381958336 | GR18: 0.3945952479 | GS18: 0.8167142747 | GT18: 0.3300130388 | GU18: 0.4028414183 | GV18: 0.854078859 | GW18: 0.6583363521 | GX18: 70 | GY18: =AVERAGE(Data!EY18:FQ18) -> 0.6777814681 | GZ18: 88 | HA18: =AVERAGE(Data!FR18:FZ18) -> 0.5854844621 | HB18: 85 | HC18: =AVERAGE(Data!GA18:GL18) -> 0.6821871694 | HD18: 74
A19: E05004881 | B19: 29UBHP | C19: Little Burton Farm | D19: Ashford | E19: NHS Ashford CCG | F19: 15 | G19: 1.316765405 | H19: 0.9871630973 | I19: 1.117925435 | J19: 1.000992564 | K19: 1.015646125 | L19: 1.094434726 | M19: 1.097295853 | N19: 0.925705086 | O19: 1.324663059 | P19: 1.202580905 | Q19: 1.153087533 | R19: 1.228189645 | S19: 0.6247218096 | T19: 1.093064968 | U19: 1.042646866 | V19: 1.238323739 | W19: 1.091377014 | X19: 1.16847405 | Y19: 0.8463346874 | Z19: 1.037699827 | AA19: 1.26855151 | AB19: 1.069632067 | AC19: 1.486205945 | AD19: 1.006795682 | AE19: 1.14427599 | AF19: 1.191385578 | AG19: 0.8766550242 | AH19: 0.6143325405 | AI19: 0.988165214 | AJ19: 1.097366141 | AK19: 1.189715335 | AL19: 0.05750050996 | AM19: 1.153087533 | AN19: 1.267729507 | AO19: 0.8281440982 | AP19: 1.145061845 | AQ19: 1.010637832 | AR19: 1.11976712 | AS19: 1.122722131 | AT19: 0.7275106368 | AU19: 1.140617979 | AV19: 88 | AW19: 0.308 | BB19: 1.026814871 | BC19: 149 | BD19: 0.524 | BI19: 1.113409816 | BJ19: 104 | BK19: 0.365 | BP19: 1.03539525 | BQ19: 139 | BR19: 0.489 | BW19: 1.173777006 | BX19: 71 | BY19: 0.248 | CD19: 0.9566622831 | CE19: 144 | CF19: 0.507 | CK19: 1.091748897 | CL19: 104 | CM19: 0.365 | CR19: 0.6052940217 | CS19: 256 | CT19: 0.904 | CY19: 1.047936803 | CZ19: 81 | DA19: 0.283 | DF19: 1.025139913 | DG19: 142 | DH19: 0.5 | DM19: 1.082599609 | DN19: 115 | DO19: 0.404 | DT19: =AVERAGE(Data!Z19:AH19) -> 1.077281574 | DU19: 108 | DV19: 0.379 | EA19: 0.9756173253 | EB19: 167 | EC19: 0.588 | EH19: 1.049308366 | EI19: 123 | EJ19: 0.432 | EO19: Ashford | EP19: 161 | EQ19: 169 | ER19: 176 | ES19: 117 | ET19: 0.595 | EU19: 0.62 | EV19: 0.411 | EW19: 161 | EX19: 0.567 | EY19: 0.7685948718 | EZ19: 0.6173009293 | FA19: 0.8437501108 | FB19: 0.6950470233 | FC19: 0.7200555174 | FD19: 0.8307911035 | FE19: 0.7230844567 | FF19: 0.52803286 | FG19: 0.6716915495 | FH19: 0.6798028998 | FI19: 0.8797470402 | FJ19: 0.7892521072 | FK19: 0.2724875904 | FL19: 0.6795330505 | FM19: 0.5570041491 | FN19: 0.739601504 | FO19: 0.5296255728 | FP19: 0.6147655337 | FQ19: 0.3269341336 | FR19: 0.7519850156 | FS19: 0.783445342 | FT19: 0.6789085973 | FU19: 0.8349251143 | FV19: 0.6058278493 | FW19: 0.4636654722 | FX19: 0.3512620929 | FY19: 0.4082626907 | FZ19: 0.2139037133 | GA19: 0.581891421 | GB19: 0.894455046 | GC19: 0.8605798437 | GD19: 0.007932337466 | GE19: 0.8797470402 | GF19: 0.4305341233 | GG19: 0.395906021 | GH19: 0.9964322937 | GI19: 0.7386524232 | GJ19: 0.99588884 | GK19: 0.9942381945 | GL19: 0.3955957974 | GM19: 0.743215304 | GN19: 0.6994021922 | GO19: 0.6586399864 | GP19: 0.4904417467 | GQ19: 0.7310183837 | GR19: 0.3592734923 | GS19: 0.7789754369 | GT19: 0.4438396888 | GU19: 0.4132200721 | GV19: 0.8241615098 | GW19: 0.6432785318 | GX19: 101 | GY19: =AVERAGE(Data!EY19:FQ19) -> 0.6561632634 | GZ19: 107 | HA19: =AVERAGE(Data!FR19:FZ19) -> 0.565798432 | HB19: 103 | HC19: =AVERAGE(Data!GA19:GL19) -> 0.6809877818 | HD19: 79
A20: E05004882 | B20: 29UBHQ | C20: Norman | D20: Ashford | E20: NHS Ashford CCG | F20: 16 | G20: 0.5553329282 | H20: 0.9466334857 | I20: 0.749627819 | J20: 1.000992564 | K20: 0.8643730134 | L20: 0.4427983642 | M20: 0.5319853798 | N20: 0.925705086 | O20: 1.324663059 | P20: 1.202580905 | Q20: 0.918889153 | R20: 0.6523377953 | S20: 0.4765930613 | T20: 0.9244592908 | U20: 0.7727985062 | V20: 1.033305074 | W20: 1.575890337 | X20: 1.383692213 | Y20: 1.460100053 | Z20: 0.7668507727 | AA20: 1.167044791 | AB20: 1.046668679 | AC20: 1.486205945 | AD20: 1.006795682 | AE20: 0.3898810588 | AF20: 0.5433532932 | AG20: 1.501831962 | AH20: 0.2999996636 | AI20: 1.083552903 | AJ20: 1.019510747 | AK20: 1.278386828 | AL20: 3.276036893 | AM20: 0.918889153 | AN20: 0.7659403066 | AO20: 1.079309242 | AP20: 1.078539929 | AQ20: 0.4919821921 | AR20: 1.088228246 | AS20: 1.090047302 | AT20: 1.264725503 | AU20: 0.750531411 | AV20: 237 | AW20: 0.836 | BB20: 0.7531708815 | BC20: 232 | BD20: 0.819 | BI20: 0.9132033556 | BJ20: 185 | BK20: 0.652 | BP20: 1.473227535 | BQ20: 35 | BR20: 0.12 | BW20: 1.094713174 | BX20: 119 | BY20: 0.418 | CD20: 0.6837664944 | CE20: 236 | CF20: 0.833 | CK20: 1.127150159 | CL20: 78 | CM20: 0.273 | CR20: 2.097463023 | CS20: 9 | CT20: 0.028 | CY20: 0.9226247741 | CZ20: 219 | DA20: 0.773 | DF20: 1.002704634 | DG20: 164 | DH20: 0.578 | DM20: 0.9338293731 | DN20: 185 | DO20: 0.652 | DT20: =AVERAGE(Data!Z20:AH20) -> 0.9120702054 | DU20: 188 | DV20: 0.663 | EA20: 1.202929104 | EB20: 7 | EC20: 0.021 | EH20: 1.00966348 | EI20: 156 | EJ20: 0.549 | EO20: Ashford | EP20: 128 | EQ20: 99 | ER20: 96 | ES20: 277 | ET20: 0.347 | EU20: 0.336 | EV20: 0.978 | EW20: 128 | EX20: 0.45 | EY20: 0.3241473684 | EZ20: 0.59195662 | FA20: 0.5657788396 | FB20: 0.6950470233 | FC20: 0.6128084793 | FD20: 0.3361305457 | FE20: 0.3505621188 | FF20: 0.52803286 | FG20: 0.6716915495 | FH20: 0.6798028998 | FI20: 0.701065608 | FJ20: 0.4192015309 | FK20: 0.2078776391 | FL20: 0.5747148251 | FM20: 0.4128454116 | FN20: 0.6171520116 | FO20: 0.7647511465 | FP20: 0.7279975812 | FQ20: 0.5640281003 | FR20: 0.5557101152 | FS20: 0.7207557581 | FT20: 0.6643334537 | FU20: 0.8349251143 | FV20: 0.6058278493 | FW20: 0.1579814545 | FX20: 0.1601995344 | FY20: 0.6994107613 | FZ20: 0.1044565244 | GA20: 0.638061459 | GB20: 0.8309956886 | GC20: 0.9247203126 | GD20: 0.4519373864 | GE20: 0.701065608 | GF20: 0.2601212929 | GG20: 0.5159790768 | GH20: 0.9385449524 | GI20: 0.3595787007 | GJ20: 0.9678390678 | GK20: 0.9653026612 | GL20: 0.6877151597 | GM20: 0.4939609427 | GN20: 0.5045162054 | GO20: 0.5355439345 | GP20: 0.685592276 | GQ20: 0.6763104581 | GR20: 0.2805120687 | GS20: 0.7979258201 | GT20: 0.5765014972 | GU20: 0.3880501849 | GV20: 0.7837961083 | GW20: 0.5772763523 | GX20: 177 | GY20: =AVERAGE(Data!EY20:FQ20) -> 0.5445048505 | GZ20: 194 | HA20: =AVERAGE(Data!FR20:FZ20) -> 0.5004000628 | HB20: 168 | HC20: =AVERAGE(Data!GA20:GL20) -> 0.6868217805 | HD20: 67
A21: E05004883 | B21: 29UBHR | C21: North Willesborough | D21: Ashford | E21: NHS Ashford CCG | F21: 17 | G21: 1.129609477 | H21: 1.194644962 | I21: 1.076259783 | J21: 1.000992564 | K21: 1.121955453 | L21: 1.122108814 | M21: 1.184502829 | N21: 0.925705086 | O21: 1.324663059 | P21: 1.202580905 | Q21: 1.024884966 | R21: 1.068874715 | S21: 0.3316800538 | T21: 0.9372347924 | U21: 1.120173137 | V21: 1.074782722 | W21: 0.3733067275 | X21: 0.417341627 | Y21: 0.4372814747 | Z21: 1.151967036 | AA21: 1.009193015 | AB21: 0.9900550929 | AC21: 1.486205945 | AD21: 1.006795682 | AE21: 0.9847688772 | AF21: 0.666347326 | AG21: 1.023783394 | AH21: 0.6397799192 | AI21: 0.9203279494 | AJ21: 1.074151572 | AK21: 1.328034115 | AL21: 3.290368876 | AM21: 1.024884966 | AN21: 1.097361479 | AO21: 0.932867685 | AP21: 1.056807758 | AQ21: 1.046108816 | AR21: 1.063385346 | AS21: 1.044575354 | AT21: 1.187835461 | AU21: 1.133504741 | AV21: 95 | AW21: 0.333 | BB21: 1.071052949 | BC21: 128 | BD21: 0.45 | BI21: 1.010609294 | BJ21: 137 | BK21: 0.482 | BP21: 0.4093099431 | BQ21: 264 | BR21: 0.932 | BW21: 1.128843354 | BX21: 99 | BY21: 0.347 | CD21: 0.828669879 | CE21: 194 | CF21: 0.684 | CK21: 1.107504546 | CL21: 96 | CM21: 0.336 | CR21: 2.157626921 | CS21: 8 | CT21: 0.024 | CY21: 1.015114582 | CZ21: 111 | DA21: 0.39 | DF21: 1.079742547 | DG21: 85 | DH21: 0.297 | DM21: 0.9509780604 | DN21: 184 | DO21: 0.648 | DT21: =AVERAGE(Data!Z21:AH21) -> 0.9954329209 | DU21: 149 | DV21: 0.524 | EA21: 1.255559115 | EB21: 6 | EC21: 0.017 | EH21: 1.05235472 | EI21: 119 | EJ21: 0.418 | EO21: Ashford | EP21: 165 | EQ21: 100 | ER21: 135 | ES21: 278 | ET21: 0.351 | EU21: 0.475 | EV21: 0.982 | EW21: 165 | EX21: 0.581 | EY21: 0.6593521127 | EZ21: 0.7470451917 | FA21: 0.8123031132 | FB21: 0.6950470233 | FC21: 0.7954248965 | FD21: 0.8517986477 | FE21: 0.7805511906 | FF21: 0.52803286 | FG21: 0.6716915495 | FH21: 0.6798028998 | FI21: 0.7819350131 | FJ21: 0.6868740706 | FK21: 0.1446703112 | FL21: 0.5826570572 | FM21: 0.5984203336 | FN21: 0.6419249607 | FO21: 0.1811590191 | FP21: 0.2195746222 | FQ21: 0.168919273 | FR21: 0.8347904928 | FS21: 0.6232680033 | FT21: 0.6284001157 | FU21: 0.8349251143 | FV21: 0.6058278493 | FW21: 0.3990325154 | FX21: 0.1964624725 | FY21: 0.4767811186 | FZ21: 0.2227642057 | GA21: 0.5419447383 | GB21: 0.8755330227 | GC21: 0.9606326469 | GD21: 0.4539145188 | GE21: 0.7819350131 | GF21: 0.3726753695 | GG21: 0.4459706155 | GH21: 0.9196336272 | GI21: 0.7645773665 | GJ21: 0.9457445029 | GK21: 0.9250345078 | GL21: 0.6459049431 | GM21: 0.7395668059 | GN21: 0.7301709236 | GO21: 0.5984970245 | GP21: 0.1898843048 | GQ21: 0.7054423151 | GR21: 0.323760078 | GS21: 0.7927034693 | GT21: 0.617924766 | GU21: 0.4093229925 | GV21: 0.8401789895 | GW21: 0.6170734226 | GX21: 137 | GY21: =AVERAGE(Data!EY21:FQ21) -> 0.5909044287 | GZ21: 168 | HA21: =AVERAGE(Data!FR21:FZ21) -> 0.5358057653 | HB21: 132 | HC21: =AVERAGE(Data!GA21:GL21) -> 0.719458406 | HD21: 18
A22: E05004884 | B22: 29UBHS | C22: Park Farm North | D22: Ashford | E22: NHS Ashford CCG | F22: 18 | G22: 1.415429644 | H22: 1.222183864 | I22: 1.150134762 | J22: 1.000992564 | K22: 1.321405634 | L22: 1.212078677 | M22: 1.317228992 | N22: 0.925705086 | O22: 1.324663059 | P22: 1.202580905 | Q22: 1.307241011 | R22: 1.536217223 | S22: 0.4985741191 | T22: 1.299755433 | U22: 1.449894327 | V22: 1.458347346 | W22: 0.6677647797 | X22: 0.863918694 | Y22: 0.9421357214 | Z22: 1.076328614 | AA22: 1.59808698 | AB22: 1.238032894 | AC22: 1.486205945 | AD22: 1.006795682 | AE22: 1.539348588 | AF22: 1.813319082 | AG22: 0.5012425257 | AH22: 0.6087034143 | AI22: 0.7934067083 | AJ22: 1.145535709 | AK22: 1.349451542 | AL22: 0.3197129685 | AM22: 1.307241011 | AN22: 1.44568399 | AO22: 0.6429287703 | AP22: 1.126903808 | AQ22: 1.303064814 | AR22: 1.096936264 | AS22: 1.111739437 | AT22: 1.307628887 | AU22: 1.262582757 | AV22: 29 | AW22: 0.099 | BB22: 1.155482191 | BC22: 97 | BD22: 0.34 | BI22: 1.259659178 | BJ22: 42 | BK22: 0.145 | BP22: 0.8246063984 | BQ22: 191 | BR22: 0.673 | BW22: 1.281090023 | BX22: 32 | BY22: 0.109 | CD22: 1.115653403 | CE22: 96 | CF22: 0.336 | CK22: 1.09613132 | CL22: 102 | CM22: 0.358 | CR22: 0.8134769898 | CS22: 170 | CT22: 0.599 | CY22: 1.04430638 | CZ22: 83 | DA22: 0.29 | DF22: 1.189254642 | DG22: 7 | DH22: 0.021 | DM22: 1.164013255 | DN22: 71 | DO22: 0.248 | DT22: =AVERAGE(Data!Z22:AH22) -> 1.207562636 | DU22: 59 | DV22: 0.205 | EA22: 1.079186159 | EB22: 48 | EC22: 0.166 | EH22: 1.148363737 | EI22: 49 | EJ22: 0.17 | EO22: Ashford | EP22: 235 | EQ22: 213 | ER22: 225 | ES22: 236 | ET22: 0.751 | EU22: 0.794 | EV22: 0.833 | EW22: 235 | EX22: 0.829 | EY22: 0.8261851064 | EZ22: 0.7642660437 | FA22: 0.8680599819 | FB22: 0.6950470233 | FC22: 0.9368276941 | FD22: 0.9200952397 | FE22: 0.8680136782 | FF22: 0.52803286 | FG22: 0.6716915495 | FH22: 0.6798028998 | FI22: 0.9973582898 | FJ22: 0.987195003 | FK22: 0.2174652113 | FL22: 0.808027702 | FM22: 0.7745644117 | FN22: 0.8710128507 | FO22: 0.3240541989 | FP22: 0.4545307934 | FQ22: 0.363941512 | FR22: 0.7799779555 | FS22: 0.986963313 | FT22: 0.7857946691 | FU22: 0.8349251143 | FV22: 0.6058278493 | FW22: 0.6237505605 | FX22: 0.5346298189 | FY22: 0.2334311863 | FZ22: 0.2119437146 | GA22: 0.467205838 | GB22: 0.9337177062 | GC22: 0.9761249295 | GD22: 0.04410519419 | GE22: 0.9973582898 | GF22: 0.4909693163 | GG22: 0.3073612089 | GH22: 0.9806311775 | GI22: 0.9523807171 | GJ22: 0.9755837297 | GK22: 0.9845123563 | GL22: 0.7110445759 | GM22: 0.8195037107 | GN22: 0.7896032991 | GO22: 0.7508897397 | GP22: 0.3808421681 | GQ22: 0.7986977802 | GR22: 0.4009388201 | GS22: 0.7923494912 | GT22: 0.520731742 | GU22: 0.3991652626 | GV22: 0.9208305113 | GW22: 0.6993602818 | GX22: 33 | GY22: =AVERAGE(Data!EY22:FQ22) -> 0.7134827395 | GZ22: 56 | HA22: =AVERAGE(Data!FR22:FZ22) -> 0.6219160202 | HB22: 52 | HC22: =AVERAGE(Data!GA22:GL22) -> 0.7350829199 | HD22: 7
A23: E05004885 | B23: 29UBHT | C23: Park Farm South | D23: Ashford | E23: NHS Ashford CCG | F23: 19 | G23: 0.9899491573 | H23: 1.412724019 | I23: 1.171005184 | J23: 1.000992564 | K23: 1.141076688 | L23: 1.042476259 | M23: 1.070838159 | N23: 0.925705086 | O23: 1.324663059 | P23: 1.202580905 | Q23: 1.053183474 | R23: 1.516223402 | S23: 0.4899126302 | T23: 1.303296549 | U23: 1.090058848 | V23: 1.606196133 | W23: 1.072507382 | X23: 1.168076313 | Y23: 0.7554743985 | Z23: 1.001615203 | AA23: 1.594820116 | AB23: 1.427150679 | AC23: 1.486205945 | AD23: 1.006795682 | AE23: 1.389250303 | AF23: 1.731925032 | AG23: 0.73334137 | AH23: 0.3712170882 | AI23: 0.9622372996 | AJ23: 1.085635899 | AK23: 1.315674401 | AL23: 0.2309416787 | AM23: 1.053183474 | AN23: 1.627529042 | AO23: 0.3053222667 | AP23: 1.140459122 | AQ23: 1.313978177 | AR23: 1.112441125 | AS23: 1.119330614 | AT23: 1.197083081 | AU23: 1.19122612 | AV23: 56 | AW23: 0.195 | BB23: 1.036217751 | BC23: 142 | BD23: 0.5 | BI23: 1.198264375 | BJ23: 68 | BK23: 0.237 | BP23: 0.9986860312 | BQ23: 148 | BR23: 0.521 | BW23: 1.303317525 | BX23: 24 | BY23: 0.081 | CD23: 1.056433448 | CE23: 118 | CF23: 0.414 | CK23: 1.121182533 | CL23: 86 | CM23: 0.301 | CR23: 0.6420625762 | CS23: 247 | CT23: 0.872 | CY23: 0.9664256543 | CZ23: 173 | DA23: 0.609 | DF23: 1.176658424 | DG23: 10 | DH23: 0.031 | DM23: 1.122996853 | DN23: 88 | DO23: 0.308 | DT23: =AVERAGE(Data!Z23:AH23) -> 1.193591269 | DU23: 62 | DV23: 0.216 | EA23: 1.038651348 | EB23: 89 | EC23: 0.312 | EH23: 1.113576945 | EI23: 70 | EJ23: 0.244 | EO23: Ashford | EP23: 214 | EQ23: 196 | ER23: 222 | ES23: 195 | ET23: 0.691 | EU23: 0.783 | EV23: 0.687 | EW23: 214 | EX23: 0.755 | EY23: 0.5778325 | EZ23: 0.8834161771 | FA23: 0.883811856 | FB23: 0.6950470233 | FC23: 0.8089811445 | FD23: 0.7913491609 | FE23: 0.7056496441 | FF23: 0.52803286 | FG23: 0.6716915495 | FH23: 0.6798028998 | FI23: 0.8035253326 | FJ23: 0.9743466894 | FK23: 0.2136872926 | FL23: 0.8102291315 | FM23: 0.5823326395 | FN23: 0.9593170494 | FO23: 0.5204684809 | FP23: 0.6145562736 | FQ23: 0.2918353361 | FR23: 0.7258357423 | FS23: 0.9849457285 | FT23: 0.9058300476 | FU23: 0.8349251143 | FV23: 0.6058278493 | FW23: 0.5629301006 | FX23: 0.5106320092 | FY23: 0.3415207952 | FZ23: 0.1292536344 | GA23: 0.5666234974 | GB23: 0.8848938124 | GC23: 0.9516922556 | GD23: 0.03185897536 | GE23: 0.8035253326 | GF23: 0.5527257869 | GG23: 0.145963636 | GH23: 0.9924270062 | GI23: 0.9603570481 | GJ23: 0.98937331 | GK23: 0.9912348015 | GL23: 0.6509334875 | GM23: 0.7816868444 | GN23: 0.7058119666 | GO23: 0.711866573 | GP23: 0.4756200302 | GQ23: 0.8114728964 | GR23: 0.3860841348 | GS23: 0.8010698552 | GT23: 0.417692154 | GU23: 0.3493447114 | GV23: 0.9168651307 | GW23: 0.6779805753 | GX23: 49 | GY23: =AVERAGE(Data!EY23:FQ23) -> 0.6839954232 | GZ23: 80 | HA23: =AVERAGE(Data!FR23:FZ23) -> 0.6224112246 | HB23: 50 | HC23: =AVERAGE(Data!GA23:GL23) -> 0.7101340791 | HD23: 26
A24: E05004886 | B24: 29UBHU | C24: Rolvenden and Tenterden West | D24: Ashford | E24: NHS Ashford CCG | F24: 20 | G24: 0.9505284082 | H24: 0.919999741 | I24: 1.035566008 | J24: 1.000992564 | K24: 1.008662009 | L24: 1.123100322 | M24: 1.133387262 | N24: 0.925705086 | O24: 1.324663059 | P24: 1.202580905 | Q24: 1.253210272 | R24: 1.076602211 | S24: 1.686277394 | T24: 1.114991118 | U24: 1.125170151 | V24: 1.081013885 | W24: 0.7322915835 | X24: 0.852324432 | Y24: 0.6119870704 | Z24: 1.190803985 | AA24: 0.7718471034 | AB24: 1.108884322 | AC24: 1.486205945 | AD24: 1.006795682 | AE24: 1.106803874 | AF24: 1.193746779 | AG24: 0.7445037419 | AH24: 2.104803401 | AI24: 0.6525071276 | AJ24: 0.7344027453 | AK24: 1.11761615 | AL24: 1.495126024 | AM24: 1.253210272 | AN24: 0.6802604624 | AO24: 1.469144801 | AP24: 1.143537486 | AQ24: 0.998420513 | AR24: 1.121384536 | AS24: 1.127307496 | AT24: 1.227674527 | AU24: 0.9686980524 | AV24: 177 | AW24: 0.624 | BB24: 1.038369449 | BC24: 140 | BD24: 0.492 | BI24: 1.233063624 | BJ24: 54 | BK24: 0.187 | BP24: 0.7322010286 | BQ24: 209 | BR24: 0.737 | BW24: 1.112907408 | BX24: 109 | BY24: 0.382 | CD24: 1.287464449 | CE24: 54 | CF24: 0.187 | CK24: 0.8348420076 | CL24: 230 | CM24: 0.812 | CR24: 1.374168148 | CS24: 42 | CT24: 0.145 | CY24: 1.074702632 | CZ24: 61 | DA24: 0.212 | DF24: 1.123664912 | DG24: 42 | DH24: 0.145 | DM24: 1.061002815 | DN24: 128 | DO24: 0.45 | DT24: =AVERAGE(Data!Z24:AH24) -> 1.190488315 | DU24: 64 | DV24: 0.223 | EA24: 1.085049345 | EB24: 41 | EC24: 0.141 | EH24: 1.097351011 | EI24: 88 | EJ24: 0.308 | EO24: Ashford | EP24: 196 | EQ24: 156 | ER24: 220 | ES24: 243 | ET24: 0.549 | EU24: 0.776 | EV24: 0.858 | EW24: 196 | EX24: 0.691 | EY24: 0.5548226415 | EZ24: 0.5753017881 | FA24: 0.7815896364 | FB24: 0.6950470233 | FC24: 0.7151040374 | FD24: 0.8525513071 | FE24: 0.746867593 | FF24: 0.52803286 | FG24: 0.6716915495 | FH24: 0.6798028998 | FI24: 0.9561355886 | FJ24: 0.6918398696 | FK24: 0.7355108413 | FL24: 0.6931640275 | FM24: 0.6010898445 | FN24: 0.6456465863 | FO24: 0.3553678925 | FP24: 0.4484307412 | FQ24: 0.2364070215 | FR24: 0.8629342802 | FS24: 0.4766854269 | FT24: 0.7038224855 | FU24: 0.8349251143 | FV24: 0.6058278493 | FW24: 0.4484816125 | FX24: 0.3519582575 | FY24: 0.3467191684 | FZ24: 0.7328689816 | GA24: 0.3842356463 | GB24: 0.59860626 | GC24: 0.8084269433 | GD24: 0.2062563303 | GE24: 0.9561355886 | GF24: 0.2310235269 | GG24: 0.70234549 | GH24: 0.9951057964 | GI24: 0.7297230603 | GJ24: 0.9973273238 | GK24: 0.9982988117 | GL24: 0.6675680858 | GM24: 0.637238022 | GN24: 0.7075205642 | GO24: 0.7093601509 | GP24: 0.3467352184 | GQ24: 0.6968390312 | GR24: 0.470007005 | GS24: 0.5970896165 | GT24: 0.5811959595 | GU24: 0.4666845084 | GV24: 0.8776046156 | GW24: 0.6450919947 | GX24: 97 | GY24: =AVERAGE(Data!EY24:FQ24) -> 0.6402317763 | GZ24: 128 | HA24: =AVERAGE(Data!FR24:FZ24) -> 0.5960247973 | HB24: 72 | HC24: =AVERAGE(Data!GA24:GL24) -> 0.6895877386 | HD24: 64
A25: E05004888 | B25: 29UBHX | C25: Saxon Shore | D25: Ashford | E25: NHS Ashford CCG | F25: 21 | G25: 1.177875586 | H25: 1.133069699 | I25: 1.13116165 | J25: 1.000992564 | K25: 1.205984838 | L25: 1.167255451 | M25: 1.187257727 | N25: 0.925705086 | O25: 1.324663059 | P25: 1.202580905 | Q25: 1.143888828 | R25: 1.215829717 | S25: 1.366121868 | T25: 1.363741297 | U25: 1.261557195 | V25: 1.082449389 | W25: 1.383152141 | X25: 1.279481672 | Y25: 1.598971985 | Z25: 1.201689116 | AA25: 1.154360255 | AB25: 0.9864938336 | AC25: 1.486205945 | AD25: 1.006795682 | AE25: 1.317338724 | AF25: 1.743997999 | AG25: 0.6792567489 | AH25: 2.203027667 | AI25: 0.6919091662 | AJ25: 0.6730114742 | AK25: 1.036692072 | AL25: 1.070847173 | AM25: 1.143888828 | AN25: 0.6098648726 | AO25: 1.306131679 | AP25: 1.109739001 | AQ25: 1.09151579 | AR25: 1.096629222 | AS25: 1.090143173 | AT25: 0.9816147914 | AU25: 1.147368978 | AV25: 84 | AW25: 0.294 | BB25: 1.097439133 | BC25: 121 | BD25: 0.425 | BI25: 1.245104032 | BJ25: 46 | BK25: 0.159 | BP25: 1.420535266 | BQ25: 49 | BR25: 0.17 | BW25: 1.167108967 | BX25: 75 | BY25: 0.262 | CD25: 1.485905285 | CE25: 16 | CF25: 0.053 | CK25: 0.8005375708 | CL25: 241 | CM25: 0.851 | CR25: 1.107368001 | CS25: 75 | CT25: 0.262 | CY25: 0.9579982759 | CZ25: 185 | DA25: 0.652 | DF25: 1.073928395 | DG25: 89 | DH25: 0.312 | DM25: 1.218512666 | DN25: 45 | DO25: 0.156 | DT25: =AVERAGE(Data!Z25:AH25) -> 1.308796219 | DU25: 26 | DV25: 0.088 | EA25: 0.9918322703 | EB25: 141 | EC25: 0.496 | EH25: 1.170822347 | EI25: 41 | EJ25: 0.141 | EO25: Ashford | EP25: 243 | EQ25: 239 | ER25: 258 | ES25: 143 | ET25: 0.843 | EU25: 0.911 | EV25: 0.503 | EW25: 243 | EX25: 0.858 | EY25: 0.687525 | EZ25: 0.7085404428 | FA25: 0.8537400956 | FB25: 0.6950470233 | FC25: 0.8549986208 | FD25: 0.8860696953 | FE25: 0.7823665838 | FF25: 0.52803286 | FG25: 0.6716915495 | FH25: 0.6798028998 | FI25: 0.872728897 | FJ25: 0.781309442 | FK25: 0.5958672327 | FL25: 0.8478062244 | FM25: 0.6739507068 | FN25: 0.646503956 | FO25: 0.6712187774 | FP25: 0.6731696206 | FQ25: 0.6176735143 | FR25: 0.8708223569 | FS25: 0.7129219096 | FT25: 0.6261397407 | FU25: 0.8349251143 | FV25: 0.6058278493 | FW25: 0.5337912243 | FX25: 0.5141915418 | FY25: 0.3163333128 | FZ25: 0.7670695712 | GA25: 0.4074379489 | GB25: 0.5485666878 | GC25: 0.749890562 | GD25: 0.1477260142 | GE25: 0.872728897 | GF25: 0.2071164526 | GG25: 0.6244147571 | GH25: 0.9656943706 | GI25: 0.797764301 | GJ25: 0.9753106556 | GK25: 0.9653875612 | GL25: 0.5337690839 | GM25: 0.7499351795 | GN25: 0.7493029567 | GO25: 0.7212076135 | GP25: 0.6540206374 | GQ25: 0.7301273942 | GR25: 0.5328464125 | GS25: 0.5686317329 | GT25: 0.5102274556 | GU25: 0.4157656048 | GV25: 0.8475851944 | GW25: 0.6826468264 | GX25: 45 | GY25: =AVERAGE(Data!EY25:FQ25) -> 0.7225285864 | GZ25: 46 | HA25: =AVERAGE(Data!FR25:FZ25) -> 0.6424469579 | HB25: 32 | HC25: =AVERAGE(Data!GA25:GL25) -> 0.6496506076 | HD25: 149
A26: E05004889 | B26: 29UBHY | C26: Singleton South | D26: Ashford | E26: NHS Ashford CCG | F26: 22 | G26: 1.187243802 | H26: 1.26376725 | I26: 1.066811624 | J26: 1.000992564 | K26: 1.126741908 | L26: 0.9011666756 | M26: 0.907275393 | N26: 0.925705086 | O26: 1.324663059 | P26: 1.202580905 | Q26: 1.251957943 | R26: 0.9857872879 | S26: 0.2496003481 | T26: 0.9528854523 | U26: 1.109164019 | V26: 1.369171362 | W26: 1.555136039 | X26: 1.402411526 | Y26: 1.521603827 | Z26: 1.018410934 | AA26: 1.129655599 | AB26: 1.215146101 | AC26: 1.486205945 | AD26: 1.006795682 | AE26: 0.7122643305 | AF26: 0.5026730278 | AG26: 1.082463035 | AH26: 0.4887533531 | AI26: 1.02094573 | AJ26: 1.19754377 | AK26: 1.214147719 | AL26: 0.1874170836 | AM26: 1.251957943 | AN26: 1.325092084 | AO26: 0.8373039694 | AP26: 1.131816536 | AQ26: 1.205323073 | AR26: 1.100394641 | AS26: 1.116626644 | AT26: 0.8877497693 | AU26: 1.172607559 | AV26: 69 | AW26: 0.241 | BB26: 0.9723763254 | BC26: 175 | BD26: 0.617 | BI26: 1.055726297 | BJ26: 123 | BK26: 0.432 | BP26: 1.493050464 | BQ26: 31 | BR26: 0.106 | BW26: 1.171242852 | BX26: 72 | BY26: 0.251 | CD26: 0.6965384367 | CE26: 233 | CF26: 0.822 | CK26: 1.144212407 | CL26: 68 | CM26: 0.237 | CR26: 0.7196875134 | CS26: 214 | CT26: 0.755 | CY26: 1.081198027 | CZ26: 59 | DA26: 0.205 | DF26: 1.088382133 | DG26: 78 | DH26: 0.273 | DM26: 1.121298214 | DN26: 90 | DO26: 0.315 | DT26: =AVERAGE(Data!Z26:AH26) -> 0.9602631121 | DU26: 171 | DV26: 0.602 | EA26: 1.039693247 | EB26: 87 | EC26: 0.304 | EH26: 1.060583826 | EI26: 112 | EJ26: 0.393 | EO26: Ashford | EP26: 172 | EQ26: 194 | ER26: 113 | ES26: 197 | ET26: 0.684 | EU26: 0.397 | EV26: 0.695 | EW26: 172 | EX26: 0.606 | EY26: 0.6929932203 | EZ26: 0.7902693084 | FA26: 0.8051721501 | FB26: 0.6950470233 | FC26: 0.7988183164 | FD26: 0.6840803194 | FE26: 0.5978667764 | FF26: 0.52803286 | FG26: 0.6716915495 | FH26: 0.6798028998 | FI26: 0.9551801256 | FJ26: 0.6334809101 | FK26: 0.1088692541 | FL26: 0.5923867081 | FM26: 0.5925390285 | FN26: 0.8177515832 | FO26: 0.7546794598 | FP26: 0.7378463138 | FQ26: 0.587786648 | FR26: 0.7380070254 | FS26: 0.6976645489 | FT26: 0.7712681405 | FU26: 0.8349251143 | FV26: 0.6058278493 | FW26: 0.2886125202 | FX26: 0.1482055709 | FY26: 0.5041085252 | FZ26: 0.1701784461 | GA26: 0.6011945708 | GB26: 0.9761090928 | GC26: 0.8782529934 | GD26: 0.0258546499 | GE26: 0.9551801256 | GF26: 0.4500150512 | GG26: 0.4002850271 | GH26: 0.9849062314 | GI26: 0.88094348 | GJ26: 0.9786595117 | GK26: 0.9888402727 | GL26: 0.4827284442 | GM26: 0.7628115596 | GN26: 0.6607690591 | GO26: 0.6314627574 | GP26: 0.6934374738 | GQ26: 0.7295385357 | GR26: 0.2777762656 | GS26: 0.8185188857 | GT26: 0.4905173878 | GU26: 0.4251500392 | GV26: 0.863215588 | GW26: 0.6521515412 | GX26: 87 | GY26: =AVERAGE(Data!EY26:FQ26) -> 0.6696997082 | GZ26: 92 | HA26: =AVERAGE(Data!FR26:FZ26) -> 0.5287553045 | HB26: 140 | HC26: =AVERAGE(Data!GA26:GL26) -> 0.7169141209 | HD26: 21
A27: E05004890 | B27: 29UBHZ | C27: South Willesborough | D27: Ashford | E27: NHS Ashford CCG | F27: 23 | G27: 0.8607045383 | H27: 1.13923288 | I27: 0.9399843148 | J27: 1.000992564 | K27: 0.9931695334 | L27: 0.8476759656 | M27: 0.6529323312 | N27: 0.925705086 | O27: 1.324663059 | P27: 1.202580905 | Q27: 1.044999469 | R27: 0.9874430027 | S27: 0.2153208951 | T27: 0.8837042558 | U27: 0.9292327105 | V27: 1.306544647 | W27: 0.3662776405 | X27: 0.5067448218 | Y27: 0.1404297129 | Z27: 0.8211328706 | AA27: 1.46752817 | AB27: 1.246849745 | AC27: 1.486205945 | AD27: 1.006795682 | AE27: 0.6308912402 | AF27: 0.588820483 | AG27: 1.137237495 | AH27: 0.3601965756 | AI27: 1.108346423 | AJ27: 1.099384456 | AK27: 1.32342713 | AL27: 0.3555834987 | AM27: 1.044999469 | AN27: 1.04832119 | AO27: 0.8197086792 | AP27: 1.121602205 | AQ27: 1.185687443 | AR27: 1.098872694 | AS27: 1.10323277 | AT27: 1.463676422 | AU27: 0.9799739109 | AV27: 171 | AW27: 0.602 | BB27: 0.8840950961 | BC27: 200 | BD27: 0.705 | BI27: 0.986811118 | BJ27: 149 | BK27: 0.524 | BP27: 0.3378173917 | BQ27: 269 | BR27: 0.95 | BW27: 1.205702483 | BX27: 61 | BY27: 0.212 | CD27: 0.6792864486 | CE27: 237 | CF27: 0.836 | CK27: 1.17705267 | CL27: 45 | CM27: 0.156 | CR27: 0.7002914836 | CS27: 221 | CT27: 0.78 | CY27: 0.9340149345 | CZ27: 212 | DA27: 0.748 | DF27: 1.194614307 | DG27: 5 | DH27: 0.014 | DM27: 0.8562283333 | DN27: 213 | DO27: 0.751 | DT27: =AVERAGE(Data!Z27:AH27) -> 0.9717398008 | DU27: 160 | DV27: 0.563 | EA27: 1.064403532 | EB27: 60 | EC27: 0.209 | EH27: 0.944670973 | EI27: 189 | EJ27: 0.666 | EO27: Ashford | EP27: 95 | EQ27: 71 | ER27: 124 | ES27: 224 | ET27: 0.248 | EU27: 0.436 | EV27: 0.79 | EW27: 95 | EX27: 0.333 | EY27: 0.5023925234 | EZ27: 0.7123944535 | FA27: 0.7094497048 | FB27: 0.6950470233 | FC27: 0.7041204457 | FD27: 0.6434752427 | FE27: 0.4302624661 | FF27: 0.52803286 | FG27: 0.6716915495 | FH27: 0.6798028998 | FI27: 0.7972813536 | FJ27: 0.634544896 | FK27: 0.09391743808 | FL27: 0.5493783684 | FM27: 0.4964158934 | FN27: 0.7803471379 | FO27: 0.1777479301 | FP27: 0.2666120406 | FQ27: 0.05424717572 | FR27: 0.5950464658 | FS27: 0.9063314339 | FT27: 0.7913908325 | FU27: 0.8349251143 | FV27: 0.6058278493 | FW27: 0.2556397997 | FX27: 0.1736048505 | FY27: 0.5296172691 | FZ27: 0.1254164153 | GA27: 0.6526613829 | GB27: 0.8961001602 | GC27: 0.9573001869 | GD27: 0.04905362249 | GE27: 0.7972813536 | GF27: 0.3560207773 | GG27: 0.3918733494 | GH27: 0.976017725 | GI27: 0.8665922409 | GJ27: 0.9773059352 | GK27: 0.9769791891 | GL27: 0.7958979732 | GM27: 0.6414122272 | GN27: 0.6001876076 | GO27: 0.5879224421 | GP27: 0.1662023821 | GQ27: 0.7467043392 | GR27: 0.2710695837 | GS27: 0.83535391 | GT27: 0.4231674881 | GU27: 0.3739470633 | GV27: 0.9185586127 | GW27: 0.5909511332 | GX27: 168 | GY27: =AVERAGE(Data!EY27:FQ27) -> 0.5330084949 | GZ27: 203 | HA27: =AVERAGE(Data!FR27:FZ27) -> 0.5353111145 | HB27: 134 | HC27: =AVERAGE(Data!GA27:GL27) -> 0.724423658 | HD27: 12
A28: E05004887 | B28: 29UBHW | C28: St Michaels | D28: Ashford | E28: NHS Ashford CCG | F28: 24 | G28: 1.234641915 | H28: 1.164803522 | I28: 1.019241165 | J28: 1.000992564 | K28: 1.202180622 | L28: 1.147109124 | M28: 1.337352803 | N28: 0.925705086 | O28: 1.324663059 | P28: 1.202580905 | Q28: 1.146678277 | R28: 1.088590479 | S28: 1.672179144 | T28: 1.105042824 | U28: 1.125680089 | V28: 1.090961113 | W28: 0.9945501879 | X28: 1.035058144 | Y28: 1.012467844 | Z28: 1.127538066 | AA28: 0.8973245312 | AB28: 1.036897241 | AC28: 1.486205945 | AD28: 1.006795682 | AE28: 1.266199249 | AF28: 1.078982663 | AG28: 0.9469928747 | AH28: 1.380241759 | AI28: 1.172617297 | AJ28: 0.9439174068 | AK28: 1.235760201 | AL28: 0.5984728871 | AM28: 1.146678277 | AN28: 0.9548584142 | AO28: 1.120572627 | AP28: 1.119482637 | AQ28: 1.271016546 | AR28: 1.111461065 | AS28: 1.098988696 | AT28: 0.4555494194 | AU28: 1.139562201 | AV28: 90 | AW28: 0.315 | BB28: 1.12266804 | BC28: 113 | BD28: 0.397 | BI28: 1.219546986 | BJ28: 58 | BK28: 0.202 | BP28: 1.014025392 | BQ28: 145 | BR28: 0.51 | BW28: 1.110952293 | BX28: 110 | BY28: 0.386 | CD28: 1.168104136 | CE28: 81 | CF28: 0.283 | CK28: 1.117431635 | CL28: 87 | CM28: 0.304 | CR28: 0.8725755822 | CS28: 147 | CT28: 0.517 | CY28: 1.03771552 | CZ28: 91 | DA28: 0.319 | DF28: 1.011299673 | DG28: 159 | DH28: 0.56 | DM28: 1.148972572 | DN28: 80 | DO28: 0.28 | DT28: =AVERAGE(Data!Z28:AH28) -> 1.136353112 | DU28: 78 | DV28: 0.273 | EA28: 1.019114623 | EB28: 114 | EC28: 0.4 | EH28: 1.107175809 | EI28: 80 | EJ28: 0.28 | EO28: Ashford | EP28: 204 | EQ28: 204 | ER28: 206 | ES28: 170 | ET28: 0.719 | EU28: 0.726 | EV28: 0.599 | EW28: 204 | EX28: 0.719 | EY28: 0.7206594595 | EZ28: 0.7283844978 | FA28: 0.7692685212 | FB28: 0.6950470233 | FC28: 0.8523015725 | FD28: 0.870776514 | FE28: 0.8812746553 | FF28: 0.52803286 | FG28: 0.6716915495 | FH28: 0.6798028998 | FI28: 0.8748571043 | FJ28: 0.6995437008 | FK28: 0.7293615472 | FL28: 0.686979405 | FM28: 0.6013622646 | FN28: 0.6515876697 | FO28: 0.4826372612 | FP28: 0.5445718479 | FQ28: 0.3911103992 | FR28: 0.8170876668 | FS28: 0.5541790923 | FT28: 0.6581314016 | FU28: 0.8349251143 | FV28: 0.6058278493 | FW28: 0.5130692928 | FX28: 0.3181217865 | FY28: 0.4410193844 | FZ28: 0.4805847289 | GA28: 0.6905079593 | GB28: 0.769380115 | GC28: 0.8938863685 | GD28: 0.08256081395 | GE28: 0.8748571043 | GF28: 0.3242798468 | GG28: 0.5357056227 | GH28: 0.9741732781 | GI28: 0.9289573596 | GJ28: 0.9885016727 | GK28: 0.9732208056 | GL28: 0.2477124412 | GM28: 0.7394374928 | GN28: 0.765486525 | GO28: 0.6993982676 | GP28: 0.4727731694 | GQ28: 0.6940302249 | GR28: 0.4381987981 | GS28: 0.7845914809 | GT28: 0.4787089591 | GU28: 0.4299927348 | GV28: 0.8225131114 | GW28: 0.6641485114 | GX28: 62 | GY28: =AVERAGE(Data!EY28:FQ28) -> 0.687328987 | GZ28: 78 | HA28: =AVERAGE(Data!FR28:FZ28) -> 0.5803273685 | HB28: 91 | HC28: =AVERAGE(Data!GA28:GL28) -> 0.690311949 | HD28: 62
A29: E05004891 | B29: 29UBJA | C29: Stanhope | D29: Ashford | E29: NHS Ashford CCG | F29: 25 | G29: 0.2582356169 | H29: 0.4248465997 | I29: 0.2233244952 | J29: 1.000992564 | K29: 0.2261229095 | L29: 0.3398585877 | M29: 0 | N29: 0.925705086 | O29: 1.324663059 | P29: 1.202580905 | Q29: 0.5194025522 | R29: 0.4686673767 | S29: 0.2382849734 | T29: 0.9092863035 | U29: 0.6354675078 | V29: 1.273646651 | W29: 0.9844405757 | X29: 0.9159005424 | Y29: 1.180814653 | Z29: 0.009358789456 | AA29: 1.549692492 | AB29: 0.9030752742 | AC29: 1.486205945 | AD29: 1.006795682 | AE29: 0 | AF29: 0.9285775368 | AG29: 1.110000797 | AH29: 0 | AI29: 0.7838031939 | AJ29: 1.171728009 | AK29: 1.308671755 | AL29: 0.1796841143 | AM29: 0.5194025522 | AN29: 0.4594890199 | AO29: 0.9108509929 | AP29: 0.9805966827 | AQ29: 1.042533591 | AR29: 1.005814746 | AS29: 0.9573650951 | AT29: 0.9161282196 | AU29: 0.3021355706 | AV29: 279 | AW29: 0.985 | BB29: 0.4985358295 | BC29: 269 | BD29: 0.95 | BI29: 0.8214999161 | BJ29: 217 | BK29: 0.765 | BP29: 1.027051924 | BQ29: 140 | BR29: 0.492 | BW29: 0.9910256367 | BX29: 169 | BY29: 0.595 | CD29: 0.5096445835 | CE29: 278 | CF29: 0.982 | CK29: 1.088067653 | CL29: 106 | CM29: 0.372 | CR29: 0.3495433333 | CS29: 282 | CT29: 0.996 | CY29: 0.6851700064 | CZ29: 279 | DA29: 0.985 | DF29: 0.9804876669 | DG29: 181 | DH29: 0.638 | DM29: 0.6869600505 | DN29: 254 | DO29: 0.897 | DT29: =AVERAGE(Data!Z29:AH29) -> 0.7770785019 | DU29: 229 | DV29: 0.808 | EA29: 0.8530056643 | EB29: 267 | EC29: 0.943 | EH29: 0.7570503862 | EI29: 256 | EJ29: 0.904 | EO29: Ashford | EP29: 28 | EQ29: 30 | ER29: 55 | ES29: 17 | ET29: 0.102 | EU29: 0.191 | EV29: 0.056 | EW29: 28 | EX29: 0.095 | EY29: 0.1507319149 | EZ29: 0.2656685623 | FA29: 0.1685533415 | FB29: 0.6950470233 | FC29: 0.1603127749 | FD29: 0.2579884249 | FE29: 0 | FF29: 0.52803286 | FG29: 0.6716915495 | FH29: 0.6798028998 | FI29: 0.3962776847 | FJ29: 0.3011723117 | FK29: 0.1039337786 | FL29: 0.5652821321 | FM29: 0.3394802691 | FN29: 0.7606984739 | FO29: 0.4777312488 | FP29: 0.4818798379 | FQ29: 0.4561417857 | FR29: 0.006781989601 | FS29: 0.9570753376 | FT29: 0.5731929575 | FU29: 0.8349251143 | FV29: 0.6058278493 | FW29: 0 | FX29: 0.2737771004 | FY29: 0.5169330005 | FZ29: 0 | GA29: 0.4615507081 | GB29: 0.9550668562 | GC29: 0.9466268957 | GD29: 0.02478786768 | GE29: 0.3962776847 | GF29: 0.1560472493 | GG29: 0.4354452239 | GH29: 0.8533147844 | GI29: 0.7619643151 | GJ29: 0.8945428589 | GK29: 0.847804561 | GL29: 0.4981596903 | GM29: 0.1949846062 | GN29: 0.3282762166 | GO29: 0.4772923874 | GP29: 0.4719176241 | GQ29: 0.5955606497 | GR29: 0.1976775252 | GS29: 0.7877481533 | GT29: 0.2105327762 | GU29: 0.2957462366 | GV29: 0.7711572419 | GW29: 0.461513223 | GX29: 256 | GY29: =AVERAGE(Data!EY29:FQ29) -> 0.392654046 | GZ29: 258 | HA29: =AVERAGE(Data!FR29:FZ29) -> 0.4187237055 | HB29: 222 | HC29: =AVERAGE(Data!GA29:GL29) -> 0.6026323913 | HD29: 237
A30: E05004892 | B30: 29UBJB | C30: Stour | D30: Ashford | E30: NHS Ashford CCG | F30: 26 | G30: 1.067330628 | H30: 1.03757798 | I30: 0.9902296293 | J30: 1.000992564 | K30: 0.9845076522 | L30: 0.9546741421 | M30: 0.847505591 | N30: 0.925705086 | O30: 1.324663059 | P30: 1.202580905 | Q30: 0.894930301 | R30: 1.001764654 | S30: 0.6701503281 | T30: 0.9800610224 | U30: 1.032783273 | V30: 1.111175755 | W30: 1.405448898 | X30: 1.24351522 | Y30: 1.466601899 | Z30: 1.023486515 | AA30: 0.9787989205 | AB30: 1.230841152 | AC30: 1.486205945 | AD30: 1.006795682 | AE30: 0.6980941957 | AF30: 0.5110390999 | AG30: 1.193047668 | AH30: 0.5142426424 | AI30: 0.9974186331 | AJ30: 1.167549107 | AK30: 1.236734543 | AL30: 1.905011995 | AM30: 0.894930301 | AN30: 1.153978737 | AO30: 0.8872005728 | AP30: 0.9807079275 | AQ30: 0.9283061297 | AR30: 0.9936486667 | AS30: 0.9946217037 | AT30: 1.2335121 | AU30: 1.031712746 | AV30: 146 | AW30: 0.514 | BB30: 0.9426770071 | BC30: 187 | BD30: 0.659 | BI30: 1.027263662 | BJ30: 131 | BK30: 0.46 | BP30: 1.371855339 | BQ30: 58 | BR30: 0.202 | BW30: 1.145225643 | BX30: 89 | BY30: 0.312 | CD30: 0.7291059014 | CE30: 221 | CF30: 0.78 | CK30: 1.133900761 | CL30: 72 | CM30: 0.251 | CR30: 1.399971148 | CS30: 40 | CT30: 0.138 | CY30: 1.020589655 | CZ30: 104 | DA30: 0.365 | DF30: 1.026159305 | DG30: 141 | DH30: 0.496 | DM30: 1.060115715 | DN30: 131 | DO30: 0.46 | DT30: =AVERAGE(Data!Z30:AH30) -> 0.9602835357 | DU30: 170 | DV30: 0.599 | EA30: 1.114468368 | EB30: 27 | EC30: 0.092 | EH30: 1.053959271 | EI30: 117 | EJ30: 0.411 | EO30: Ashford | EP30: 167 | EQ30: 153 | ER30: 114 | ES30: 257 | ET30: 0.539 | EU30: 0.4 | EV30: 0.907 | EW30: 167 | EX30: 0.588 | EY30: 0.623 | EZ30: 0.6488267775 | FA30: 0.7473721712 | FB30: 0.6950470233 | FC30: 0.6979794924 | FD30: 0.724698116 | FE30: 0.5584803021 | FF30: 0.52803286 | FG30: 0.6716915495 | FH30: 0.6798028998 | FI30: 0.6827862245 | FJ30: 0.6437481924 | FK30: 0.2923023421 | FL30: 0.6092811276 | FM30: 0.5517348079 | FN30: 0.6636610716 | FO30: 0.6820389912 | FP30: 0.6542467057 | FQ30: 0.5665397251 | FR30: 0.7416851225 | FS30: 0.6044968999 | FT30: 0.7812299821 | FU30: 0.8349251143 | FV30: 0.6058278493 | FW30: 0.2828707216 | FX30: 0.1506721813 | FY30: 0.5556083494 | FZ30: 0.1790535313 | GA30: 0.5873403936 | GB30: 0.9516606644 | GC30: 0.8945911585 | GD30: 0.2628011131 | GE30: 0.6827862245 | GF30: 0.391903179 | GG30: 0.4241388055 | GH30: 0.8534115896 | GI30: 0.6784780371 | GJ30: 0.8837226959 | GK30: 0.8807975361 | GL30: 0.6707423616 | GM30: 0.6730663162 | GN30: 0.6408475588 | GO30: 0.5993760269 | GP30: 0.6342751406 | GQ30: 0.7136329936 | GR30: 0.2920511959 | GS30: 0.8111974055 | GT30: 0.4727936688 | GU30: 0.4080209923 | GV30: 0.793430444 | GW30: 0.6205003473 | GX30: 131 | GY30: =AVERAGE(Data!EY30:FQ30) -> 0.6274352832 | GZ30: 139 | HA30: =AVERAGE(Data!FR30:FZ30) -> 0.5262633057 | HB30: 143 | HC30: =AVERAGE(Data!GA30:GL30) -> 0.6801978132 | HD30: 81
A31: E05004893 | B31: 29UBJC | C31: Tenterden North | D31: Ashford | E31: NHS Ashford CCG | F31: 27 | G31: 1.049643435 | H31: 1.133069699 | I31: 1.123051029 | J31: 1.000992564 | K31: 1.128397069 | L31: 1.096630281 | M31: 1.389793805 | N31: 0.925705086 | O31: 1.324663059 | P31: 1.202580905 | Q31: 1.146282419 | R31: 0.8588436907 | S31: 1.695535562 | T31: 1.103329703 | U31: 1.227850159 | V31: 0.9291913151 | W31: 0.6453849942 | X31: 0.7701051729 | Y31: 0.7471317402 | Z31: 1.16983336 | AA31: 0.03488225106 | AB31: 1.011471791 | AC31: 1.486205945 | AD31: 1.006795682 | AE31: 1.100782236 | AF31: 0.480031753 | AG31: 1.133307245 | AH31: 1.366827211 | AI31: 1.015269086 | AJ31: 1.133558911 | AK31: 1.342697898 | AL31: 1.53552417 | AM31: 1.146282419 | AN31: 1.224172732 | AO31: 1.338921643 | AP31: 1.09554409 | AQ31: 0.8433468319 | AR31: 1.084178304 | AS31: 1.091304894 | AT31: 1.129700691 | AU31: 1.101921387 | AV31: 115 | AW31: 0.404 | BB31: 1.108303761 | BC31: 117 | BD31: 0.411 | BI31: 1.186034602 | BJ31: 73 | BK31: 0.255 | BP31: 0.7208739691 | BQ31: 211 | BR31: 0.744 | BW31: 0.9418378059 | BX31: 183 | BY31: 0.645 | CD31: 1.020237111 | CE31: 130 | CF31: 0.457 | CK31: 1.163841965 | CL31: 55 | CM31: 0.191 | CR31: 1.340903294 | CS31: 46 | CT31: 0.159 | CY31: 1.281547188 | CZ31: 11 | DA31: 0.035 | DF31: 1.048814962 | DG31: 118 | DH31: 0.414 | DM31: 1.078851668 | DN31: 118 | DO31: 0.414 | DT31: =AVERAGE(Data!Z31:AH31) -> 0.9766819417 | DU31: 155 | DV31: 0.546 | EA31: 1.165041806 | EB31: 14 | EC31: 0.046 | EH31: 1.081720521 | EI31: 96 | EJ31: 0.336 | EO31: Ashford | EP31: 188 | EQ31: 166 | ER31: 129 | ES31: 270 | ET31: 0.585 | EU31: 0.453 | EV31: 0.953 | EW31: 188 | EX31: 0.663 | EY31: 0.612676 | EZ31: 0.7085404428 | FA31: 0.8476186339 | FB31: 0.6950470233 | FC31: 0.7999917643 | FD31: 0.8324577607 | FE31: 0.9158316739 | FF31: 0.52803286 | FG31: 0.6716915495 | FH31: 0.6798028998 | FI31: 0.8745550844 | FJ31: 0.5519051519 | FK31: 0.7395490165 | FL31: 0.6859143975 | FM31: 0.6559436907 | FN31: 0.5549690055 | FO31: 0.3131936928 | FP31: 0.4051729841 | FQ31: 0.2886126161 | FR31: 0.8477375967 | FS31: 0.02154294635 | FT31: 0.6419935568 | FU31: 0.8349251143 | FV31: 0.6058278493 | FW31: 0.4460416193 | FX31: 0.1415301321 | FY31: 0.5277869317 | FZ31: 0.4759139335 | GA31: 0.5978518193 | GB31: 0.9239555063 | GC31: 0.9712396852 | GD31: 0.2118293544 | GE31: 0.8745550844 | GF31: 0.4157417896 | GG31: 0.640090464 | GH31: 0.9533419653 | GI31: 0.6163832004 | GJ31: 0.9642371653 | GK31: 0.9664163354 | GL31: 0.6142932119 | GM31: 0.7229450256 | GN31: 0.7542722165 | GO31: 0.6767913495 | GP31: 0.3356597643 | GQ31: 0.5904054127 | GR31: 0.3978181541 | GS31: 0.8310156703 | GT31: 0.5431922194 | GU31: 0.5279161268 | GV31: 0.8229343757 | GW31: 0.6413685377 | GX31: 105 | GY31: =AVERAGE(Data!EY31:FQ31) -> 0.650605592 | GZ31: 115 | HA31: =AVERAGE(Data!FR31:FZ31) -> 0.5048110756 | HB31: 165 | HC31: =AVERAGE(Data!GA31:GL31) -> 0.7291612985 | HD31: 10
A32: E05004894 | B32: 29UBJD | C32: Tenterden South | D32: Ashford | E32: NHS Ashford CCG | F32: 28 | G32: 0.4482788637 | H32: 0.813464762 | I32: 0.928026133 | J32: 1.000992564 | K32: 0.8356731533 | L32: 1.122667959 | M32: 1.088759619 | N32: 0.925705086 | O32: 1.324663059 | P32: 1.202580905 | Q32: 1.130724571 | R32: 0.886177929 | S32: 1.675419302 | T32: 1.10169546 | U32: 1.010532746 | V32: 0.894507427 | W32: 1.358792593 | X32: 1.246565923 | Y32: 1.377078877 | Z32: 1.112877695 | AA32: 0.4670276813 | AB32: 1.070875964 | AC32: 1.486205945 | AD32: 1.006795682 | AE32: 0.9458531318 | AF32: 0.7423881559 | AG32: 1.042836805 | AH32: 1.227552911 | AI32: 0.9551796942 | AJ32: 0.876545636 | AK32: 1.197769667 | AL32: 1.716071183 | AM32: 1.130724571 | AN32: 1.098409576 | AO32: 1.233842554 | AP32: 1.130146897 | AQ32: 0.9653173529 | AR32: 1.105691475 | AS32: 1.121486419 | AT32: 0.4202590455 | AU32: 0.7299232529 | AV32: 242 | AW32: 0.854 | BB32: 0.9947596763 | BC32: 161 | BD32: 0.567 | BI32: 1.153287675 | BJ32: 86 | BK32: 0.301 | BP32: 1.327479131 | BQ32: 62 | BR32: 0.216 | BW32: 1.028756594 | BX32: 147 | BY32: 0.517 | CD32: 0.9896577511 | CE32: 138 | CF32: 0.485 | CK32: 1.009831666 | CL32: 154 | CM32: 0.542 | CR32: 1.423397877 | CS32: 38 | CT32: 0.131 | CY32: 1.166126065 | CZ32: 28 | DA32: 0.095 | DF32: 0.9485802378 | DG32: 205 | DH32: 0.723 | DM32: 1.072226681 | DN32: 121 | DO32: 0.425 | DT32: =AVERAGE(Data!Z32:AH32) -> 1.01137933 | DU32: 142 | DV32: 0.5 | EA32: 1.079287006 | EB32: 47 | EC32: 0.163 | EH32: 1.060654124 | EI32: 111 | EJ32: 0.39 | EO32: Ashford | EP32: 173 | EQ32: 163 | ER32: 142 | ES32: 237 | ET32: 0.574 | EU32: 0.5 | EV32: 0.836 | EW32: 173 | EX32: 0.609 | EY32: 0.26166 | EZ32: 0.5086824608 | FA32: 0.7004243111 | FB32: 0.6950470233 | FC32: 0.5924613405 | FD32: 0.8522230975 | FE32: 0.7174593391 | FF32: 0.52803286 | FG32: 0.6716915495 | FH32: 0.6798028998 | FI32: 0.8626852389 | FJ32: 0.5694705215 | FK32: 0.7307748209 | FL32: 0.6848984267 | FM32: 0.5398481028 | FN32: 0.534253699 | FO32: 0.6593975281 | FP32: 0.6558517626 | FQ32: 0.5319575058 | FR32: 0.8064638048 | FS32: 0.2884318522 | FT32: 0.6796981145 | FU32: 0.8349251143 | FV32: 0.6058278493 | FW32: 0.3832636907 | FX32: 0.2188819658 | FY32: 0.4856543889 | FZ32: 0.4274201816 | GA32: 0.5624675527 | GB32: 0.7144658817 | GC32: 0.8664059394 | GD32: 0.2367362611 | GE32: 0.8626852389 | GF32: 0.373031314 | GG32: 0.5898559163 | GH32: 0.9834533125 | GI32: 0.7055287064 | GJ32: 0.9833703638 | GK32: 0.9931438966 | GL32: 0.2285227237 | GM32: 0.4902555906 | GN32: 0.6770447321 | GO32: 0.6591781574 | GP32: 0.6157355989 | GQ32: 0.643069347 | GR32: 0.3788050568 | GS32: 0.7144464579 | GT32: 0.54971075 | GU32: 0.4814436152 | GV32: 0.7788038006 | GW32: 0.6201714139 | GX32: 132 | GY32: =AVERAGE(Data!EY32:FQ32) -> 0.630348552 | GZ32: 136 | HA32: =AVERAGE(Data!FR32:FZ32) -> 0.5256185513 | HB32: 144 | HC32: =AVERAGE(Data!GA32:GL32) -> 0.6749722589 | HD32: 91
A33: E05004895 | B33: 29UBJE | C33: Victoria | D33: Ashford | E33: NHS Ashford CCG | F33: 29 | G33: 0.8346044007 | H33: 0.5668560144 | I33: 0.7548647573 | J33: 1.000992564 | K33: 0.7126477105 | L33: 0.7076691003 | M33: 0.4411510653 | N33: 0.925705086 | O33: 1.324663059 | P33: 1.202580905 | Q33: 0.5764021869 | R33: 0.6902935524 | S33: 0.6290009538 | T33: 0.9312613513 | U33: 0.844823877 | V33: 1.142420914 | W33: 0.5685889607 | X33: 0.7386020257 | Y33: 0.5490081716 | Z33: 0.6924438515 | AA33: 1.098867355 | AB33: 1.11227214 | AC33: 1.486205945 | AD33: 1.006795682 | AE33: 0.3930776845 | AF33: 0.5740848251 | AG33: 1.243024518 | AH33: 0.3387345991 | AI33: 0.9676071774 | AJ33: 1.040688694 | AK33: 1.189513262 | AL33: 3.570876391 | AM33: 0.5764021869 | AN33: 0.9157183756 | AO33: 0.7658371239 | AP33: 0.9103996832 | AQ33: 0.498174256 | AR33: 0.8839451504 | AS33: 0.9495469715 | AT33: 1.165100668 | AU33: 0.7187750575 | AV33: 246 | AW33: 0.868 | BB33: 0.7576331053 | BC33: 230 | BD33: 0.812 | BI33: 0.91768085 | BJ33: 181 | BK33: 0.638 | BP33: 0.6187330526 | BQ33: 230 | BR33: 0.812 | BW33: 1.079316995 | BX33: 126 | BY33: 0.443 | CD33: 0.6372304066 | CE33: 251 | CF33: 0.886 | CK33: 1.065936378 | CL33: 122 | CM33: 0.429 | CR33: 2.073639289 | CS33: 10 | CT33: 0.031 | CY33: 0.8407777498 | CZ33: 261 | DA33: 0.921 | DF33: 0.8814333459 | DG33: 242 | DH33: 0.854 | DM33: 0.7969545609 | DN33: 230 | DO33: 0.812 | DT33: =AVERAGE(Data!Z33:AH33) -> 0.8828340668 | DU33: 201 | DV33: 0.709 | EA33: 1.119484162 | EB33: 24 | EC33: 0.081 | EH33: 0.91303633 | EI33: 202 | EJ33: 0.712 | EO33: Ashford | EP33: 82 | EQ33: 54 | ER33: 83 | ES33: 260 | ET33: 0.187 | EU33: 0.29 | EV33: 0.918 | EW33: 82 | EX33: 0.287 | EY33: 0.4871578947 | EZ33: 0.3544710549 | FA33: 0.5697313996 | FB33: 0.6950470233 | FC33: 0.5052408543 | FD33: 0.5371953017 | FE33: 0.2907050796 | FF33: 0.52803286 | FG33: 0.6716915495 | FH33: 0.6798028998 | FI33: 0.4397655019 | FJ33: 0.4435924395 | FK33: 0.2743540431 | FL33: 0.5789435079 | FM33: 0.4513228978 | FN33: 0.6823225618 | FO33: 0.2759259634 | FP33: 0.3885983335 | FQ33: 0.2120786417 | FR33: 0.5017900042 | FS33: 0.6786500227 | FT33: 0.7059727752 | FU33: 0.8349251143 | FV33: 0.6058278493 | FW33: 0.1592767408 | FX33: 0.1692602637 | FY33: 0.5788828218 | FZ33: 0.1179435954 | GA33: 0.5697856061 | GB33: 0.8482576777 | GC33: 0.8604336743 | GD33: 0.4926112239 | GE33: 0.4397655019 | GF33: 0.3109874827 | GG33: 0.366119289 | GH33: 0.7922293875 | GI33: 0.3641043407 | GJ33: 0.786155527 | GK33: 0.8408811408 | GL33: 0.633542528 | GM33: 0.4704534497 | GN33: 0.5112442238 | GO33: 0.5277244252 | GP33: 0.2922009795 | GQ33: 0.6654331531 | GR33: 0.2563408554 | GS33: 0.7594923194 | GT33: 0.4661883629 | GU33: 0.3385533859 | GV33: 0.6833825848 | GW33: 0.5180845594 | GX33: 228 | GY33: =AVERAGE(Data!EY33:FQ33) -> 0.477156832 | GZ33: 232 | HA33: =AVERAGE(Data!FR33:FZ33) -> 0.4836143541 | HB33: 188 | HC33: =AVERAGE(Data!GA33:GL33) -> 0.6087394483 | HD33: 231
A34: E05004896 | B34: 29UBJF | C34: Washford | D34: Ashford | E34: NHS Ashford CCG | F34: 30 | G34: 0.9409935331 | H34: 1.001467666 | I34: 0.8022601613 | J34: 1.000992564 | K34: 1.039462562 | L34: 1.036036859 | M34: 0.9534953181 | N34: 0.925705086 | O34: 1.324663059 | P34: 1.202580905 | Q34: 0.9415498595 | R34: 1.123178026 | S34: 0.3378077022 | T34: 1.104646855 | U34: 1.147894259 | V34: 1.40455123 | W34: 1.020509998 | X34: 1.122266761 | Y34: 0.7172021578 | Z34: 0.9172275377 | AA34: 1.498437157 | AB34: 1.196028596 | AC34: 1.486205945 | AD34: 1.006795682 | AE34: 0.9566883816 | AF34: 1.069448973 | AG34: 0.8093627511 | AH34: 0.3223788575 | AI34: 0.7931241759 | AJ34: 1.039470124 | AK34: 1.2896418 | AL34: 0 | AM34: 0.9415498595 | AN34: 0.9659663241 | AO34: 0.5855355978 | AP34: 1.139421413 | AQ34: 1.18373216 | AR34: 1.112301207 | AS34: 1.118367989 | AT34: 0.9930507378 | AU34: 0.9149071202 | AV34: 197 | AW34: 0.695 | BB34: 0.9911384779 | BC34: 163 | BD34: 0.574 | BI34: 1.073358987 | BJ34: 114 | BK34: 0.4 | BP34: 0.9533263057 | BQ34: 156 | BR34: 0.549 | BW34: 1.220938984 | BX34: 56 | BY34: 0.195 | CD34: 0.7894697408 | CE34: 210 | CF34: 0.741 | CK34: 1.040745367 | CL34: 138 | CM34: 0.485 | CR34: 0.4707749297 | CS34: 275 | CT34: 0.971 | CY34: 0.7757509609 | CZ34: 272 | DA34: 0.96 | DF34: 1.109374701 | DG34: 55 | DH34: 0.191 | DM34: 1.007750767 | DN34: 157 | DO34: 0.553 | DT34: =AVERAGE(Data!Z34:AH34) -> 1.029174876 | DU34: 131 | DV34: 0.46 | EA34: 0.9301801157 | EB34: 224 | EC34: 0.79 | EH34: 0.9892999959 | EI34: 165 | EJ34: 0.581 | EO34: Ashford | EP34: 119 | EQ34: 127 | ER34: 153 | ES34: 60 | ET34: 0.446 | EU34: 0.539 | EV34: 0.209 | EW34: 119 | EX34: 0.418 | EY34: 0.5492571429 | EZ34: 0.6262459796 | FA34: 0.6055029064 | FB34: 0.6950470233 | FC34: 0.7369404898 | FD34: 0.7864609787 | FE34: 0.6283242954 | FF34: 0.52803286 | FG34: 0.6716915495 | FH34: 0.6798028998 | FI34: 0.7183545725 | FJ34: 0.7217701495 | FK34: 0.147343034 | FL34: 0.6867332403 | FM34: 0.6132295471 | FN34: 0.8388825707 | FO34: 0.4952350887 | FP34: 0.59045464 | FQ34: 0.2770509936 | FR34: 0.6646829328 | FS34: 0.9254205305 | FT34: 0.7591340254 | FU34: 0.8349251143 | FV34: 0.6058278493 | FW34: 0.3876541798 | FX34: 0.3153109215 | FY34: 0.3769243379 | FZ34: 0.1122487092 | GA34: 0.4670394659 | GB34: 0.8472644299 | GC34: 0.9328615898 | GD34: 0 | GE34: 0.7183545725 | GF34: 0.3280522085 | GG34: 0.2799235895 | GH34: 0.9915239916 | GI34: 0.8651631687 | GJ34: 0.9892488709 | GK34: 0.990382339 | GL34: 0.5399875666 | GM34: 0.5936686763 | GN34: 0.6749611295 | GO34: 0.6347259454 | GP34: 0.4542469074 | GQ34: 0.7579980904 | GR34: 0.2980345371 | GS34: 0.7490551618 | GT34: 0.3591772862 | GU34: 0.303987899 | GV34: 0.8752611874 | GW34: 0.6132072589 | GX34: 143 | GY34: =AVERAGE(Data!EY34:FQ34) -> 0.6103347348 | GZ34: 158 | HA34: =AVERAGE(Data!FR34:FZ34) -> 0.5535698445 | HB34: 115 | HC34: =AVERAGE(Data!GA34:GL34) -> 0.6624834827 | HD34: 115
A35: E05004897 | B35: 29UBJG | C35: Weald Central | D35: Ashford | E35: NHS Ashford CCG | F35: 31 | G35: 1.171372941 | H35: 1.231995037 | I35: 0.9821836466 | J35: 1.000992564 | K35: 1.061124449 | L35: 1.066665583 | M35: 1.130014196 | N35: 0.925705086 | O35: 1.324663059 | P35: 1.202580905 | Q35: 0.9638249144 | R35: 1.159109428 | S35: 1.088013429 | T35: 1.128582203 | U35: 1.124245484 | V35: 0.9837932959 | W35: 0.9448769904 | X35: 0.9855831661 | Y35: 0.903339486 | Z35: 1.119890344 | AA35: 1.043741942 | AB35: 1.009606744 | AC35: 1.486205945 | AD35: 1.006795682 | AE35: 1.216326934 | AF35: 1.620717092 | AG35: 0.7060306014 | AH35: 2.334799156 | AI35: 0.5133979651 | AJ35: 0.3500612751 | AK35: 0.7758194476 | AL35: 0.7767288518 | AM35: 0.9638249144 | AN35: 0.4895141439 | AO35: 1.469367399 | AP35: 1.113013964 | AQ35: 0.766695447 | AR35: 1.094798861 | AS35: 1.100075663 | AT35: 1.000348795 | AU35: 1.128517208 | AV35: 99 | AW35: 0.347 | BB35: 1.036900376 | BC35: 141 | BD35: 0.496 | BI35: 1.12185159 | BJ35: 101 | BK35: 0.354 | BP35: 0.9445998808 | BQ35: 162 | BR35: 0.57 | BW35: 1.133248132 | BX35: 97 | BY35: 0.34 | CD35: 1.469468446 | CE35: 18 | CF35: 0.06 | CK35: 0.5464262293 | CL35: 278 | CM35: 0.982 | CR35: 0.8702768831 | CS35: 148 | CT35: 0.521 | CY35: 0.9794407715 | CZ35: 158 | DA35: 0.556 | DF35: 1.014986546 | DG35: 154 | DH35: 0.542 | DM35: 1.072561361 | DN35: 119 | DO35: 0.418 | DT35: =AVERAGE(Data!Z35:AH35) -> 1.282679382 | DU35: 32 | DV35: 0.109 | EA35: 0.8678038938 | EB35: 264 | EC35: 0.932 | EH35: 1.058410676 | EI35: 114 | EJ35: 0.4 | EO35: Ashford | EP35: 170 | EQ35: 165 | ER35: 252 | ES35: 20 | ET35: 0.581 | EU35: 0.89 | EV35: 0.067 | EW35: 170 | EX35: 0.599 | EY35: 0.6837294118 | EZ35: 0.7704012468 | FA35: 0.7412994953 | FB35: 0.6950470233 | FC35: 0.7522979661 | FD35: 0.8097114026 | FE35: 0.744644845 | FF35: 0.52803286 | FG35: 0.6716915495 | FH35: 0.6798028998 | FI35: 0.7353493045 | FJ35: 0.7448601789 | FK35: 0.4745634828 | FL35: 0.7016132886 | FM35: 0.6005958681 | FN35: 0.5875805964 | FO35: 0.4585317547 | FP35: 0.518541735 | FQ35: 0.3489547535 | FR35: 0.8115456284 | FS35: 0.6446050919 | FT35: 0.6408097888 | FU35: 0.8349251143 | FV35: 0.6058278493 | FW35: 0.4928608196 | FX35: 0.4778440233 | FY35: 0.3288020317 | FZ35: 0.8129509286 | GA35: 0.3023197611 | GB35: 0.2853323629 | GC35: 0.5611885123 | GD35: 0.1071516649 | GE35: 0.7353493045 | GF35: 0.1662440936 | GG35: 0.7024519061 | GH35: 0.9685442421 | GI35: 0.5603604299 | GJ35: 0.9736827845 | GK35: 0.9741833799 | GL35: 0.5439560042 | GM35: 0.7318100513 | GN35: 0.7059468194 | GO35: 0.6495071461 | GP35: 0.4420094144 | GQ35: 0.7075426946 | GR35: 0.5281144508 | GS35: 0.3829468788 | GT35: 0.4212504847 | GU35: 0.4343479999 | GV35: 0.8041453681 | GW35: 0.6194546346 | GX35: 134 | GY35: =AVERAGE(Data!EY35:FQ35) -> 0.6445920875 | GZ35: 121 | HA35: =AVERAGE(Data!FR35:FZ35) -> 0.6277968084 | HB35: 47 | HC35: =AVERAGE(Data!GA35:GL35) -> 0.5733970372 | HD35: 255
A36: E05004898 | B36: 29UBJH | C36: Weald East | D36: Ashford | E36: NHS Ashford CCG | F36: 32 | G36: 0.8632476286 | H36: 1.133069699 | I36: 1.100357507 | J36: 1.000992564 | K36: 1.15501894 | L36: 1.164541102 | M36: 1.084699976 | N36: 0.925705086 | O36: 1.324663059 | P36: 1.202580905 | Q36: 1.1374159 | R36: 1.451950461 | S36: 0.5985331591 | T36: 1.176713087 | U36: 1.397803397 | V36: 1.414514282 | W36: 0.892791193 | X36: 0.9580795283 | Y36: 0.6674817409 | Z36: 1.105660955 | AA36: 1.235388591 | AB36: 1.004475844 | AC36: 1.486205945 | AD36: 1.006795682 | AE36: 1.503401418 | AF36: 1.980111078 | AG36: 0.8389945464 | AH36: 0.9578452588 | AI36: 0.7971769186 | AJ36: 0.7940715647 | AK36: 1.151263037 | AL36: 0.421799778 | AM36: 1.1374159 | AN36: 1.416260795 | AO36: 0.3146082358 | AP36: 1.073812102 | AQ36: 1.023105347 | AR36: 1.025241337 | AS36: 1.07163494 | AT36: 1.228901173 | AU36: 1.032224945 | AV36: 145 | AW36: 0.51 | BB36: 1.066191534 | BC36: 130 | BD36: 0.457 | BI36: 1.213021781 | BJ36: 61 | BK36: 0.212 | BP36: 0.8394508208 | BQ36: 190 | BR36: 0.67 | BW36: 1.167705404 | BX36: 74 | BY36: 0.258 | CD36: 1.320088075 | CE36: 45 | CF36: 0.156 | CK36: 0.9141705066 | CL36: 203 | CM36: 0.716 | CR36: 0.7796078392 | CS36: 190 | CT36: 0.67 | CY36: 0.8654345156 | CZ36: 252 | DA36: 0.89 | DF36: 1.08453898 | DG36: 82 | DH36: 0.287 | DM36: 1.086850485 | DN36: 107 | DO36: 0.375 | DT36: =AVERAGE(Data!Z36:AH36) -> 1.235431035 | DU36: 45 | DV36: 0.156 | EA36: 0.9546075941 | EB36: 193 | EC36: 0.68 | EH36: 1.080608242 | EI36: 97 | EJ36: 0.34 | EO36: Ashford | EP36: 187 | EQ36: 177 | ER36: 239 | ES36: 91 | ET36: 0.624 | EU36: 0.843 | EV36: 0.319 | EW36: 187 | EX36: 0.659 | EY36: 0.5038769231 | EZ36: 0.7085404428 | FA36: 0.8304907822 | FB36: 0.6950470233 | FC36: 0.8188656856 | FD36: 0.8840092189 | FE36: 0.7147841582 | FF36: 0.52803286 | FG36: 0.6716915495 | FH36: 0.6798028998 | FI36: 0.8677903827 | FJ36: 0.9330439848 | FK36: 0.2610647744 | FL36: 0.7315351391 | FM36: 0.7467363279 | FN36: 0.8448331053 | FO36: 0.4332554571 | FP36: 0.5040713335 | FQ36: 0.2578442878 | FR36: 0.8012340843 | FS36: 0.762964239 | FT36: 0.6375531434 | FU36: 0.8349251143 | FV36: 0.6058278493 | FW36: 0.609184615 | FX36: 0.5838059268 | FY36: 0.3907240152 | FZ36: 0.3335109963 | GA36: 0.4694259658 | GB36: 0.6472418745 | GC36: 0.8327653976 | GD36: 0.05818832189 | GE36: 0.8677903827 | GF36: 0.4809768935 | GG36: 0.1504029251 | GH36: 0.9344307998 | GI36: 0.7477646497 | GJ36: 0.9118203132 | GK36: 0.9489974038 | GL36: 0.668235095 | GM36: 0.6809693827 | GN36: 0.7281477892 | GO36: 0.7170622704 | GP36: 0.3983903595 | GQ36: 0.728500886 | GR36: 0.4793063883 | GS36: 0.6498110793 | GT36: 0.4629893523 | GU36: 0.3156899093 | GV36: 0.8422496523 | GW36: 0.6473271586 | GX36: 93 | GY36: =AVERAGE(Data!EY36:FQ36) -> 0.6639640177 | GZ36: 101 | HA36: =AVERAGE(Data!FR36:FZ36) -> 0.6177477759 | HB36: 55 | HC36: =AVERAGE(Data!GA36:GL36) -> 0.6431700019 | HD36: 164
A37: E05004899 | B37: 29UBJJ | C37: Weald North | D37: Ashford | E37: NHS Ashford CCG | F37: 33 | G37: 1.288420544 | H37: 1.149281544 | I37: 1.150060278 | J37: 1.000992564 | K37: 1.214799777 | L37: 1.196573458 | M37: 1.195201021 | N37: 0.925705086 | O37: 1.324663059 | P37: 1.202580905 | Q37: 1.20710652 | R37: 1.252185613 | S37: 0.6445020856 | T37: 1.224006347 | U37: 1.182294937 | V37: 1.112452653 | W37: 0.885046579 | X37: 0.8883967432 | Y37: 1.283234482 | Z37: 1.217355505 | AA37: 1.017236129 | AB37: 0.9889294205 | AC37: 1.486205945 | AD37: 1.006795682 | AE37: 1.335028084 | AF37: 1.806252972 | AG37: 0.6133025468 | AH37: 2.616716677 | AI37: 0.544769596 | AJ37: 0.5924087111 | AK37: 0.7830528263 | AL37: 0.6333813469 | AM37: 1.20710652 | AN37: 0.3221937551 | AO37: 1.411433751 | AP37: 1.121201851 | AQ37: 0.8866796284 | AR37: 1.108839221 | AS37: 1.1045929 | AT37: 1.256539756 | AU37: 1.195920788 | AV37: 54 | AW37: 0.187 | BB37: 1.106654381 | BC37: 118 | BD37: 0.414 | BI37: 1.143724015 | BJ37: 92 | BK37: 0.322 | BP37: 1.018892601 | BQ37: 144 | BR37: 0.507 | BW37: 1.143304536 | BX37: 91 | BY37: 0.319 | CD37: 1.59282507 | CE37: 7 | CF37: 0.021 | CK37: 0.6400770445 | CL37: 270 | CM37: 0.953 | CR37: 0.9202439334 | CS37: 129 | CT37: 0.453 | CY37: 0.866813753 | CZ37: 251 | DA37: 0.886 | DF37: 1.095570671 | DG37: 70 | DH37: 0.244 | DM37: 1.122500221 | DN37: 89 | DO37: 0.312 | DT37: =AVERAGE(Data!Z37:AH37) -> 1.34309144 | DU37: 19 | DV37: 0.063 | EA37: 0.9143499886 | EB37: 238 | EC37: 0.84 | EH37: 1.109688176 | EI37: 77 | EJ37: 0.269 | EO37: Ashford | EP37: 207 | EQ37: 195 | ER37: 265 | ES37: 46 | ET37: 0.687 | EU37: 0.936 | EV37: 0.159 | EW37: 207 | EX37: 0.73 | EY37: 0.75205 | EZ37: 0.7186781666 | FA37: 0.8680037657 | FB37: 0.6950470233 | FC37: 0.8612480869 | FD37: 0.9083251476 | FE37: 0.787600972 | FF37: 0.52803286 | FG37: 0.6716915495 | FH37: 0.6798028998 | FI37: 0.9209607747 | FJ37: 0.8046722571 | FK37: 0.2811152382 | FL37: 0.7609362581 | FM37: 0.6316071215 | FN37: 0.6644237117 | FO37: 0.4294971356 | FP37: 0.4674093516 | FQ37: 0.4957059658 | FR37: 0.8821752441 | FS37: 0.6282353542 | FT37: 0.6276856376 | FU37: 0.8349251143 | FV37: 0.6058278493 | FW37: 0.5409590278 | FX37: 0.5325464829 | FY37: 0.2856181064 | FZ37: 0.9111114536 | GA37: 0.3207932741 | GB37: 0.4828679702 | GC37: 0.5664207723 | GD37: 0.08737652225 | GE37: 0.9209607747 | GF37: 0.1094203496 | GG37: 0.6747559046 | GH37: 0.9756693375 | GI37: 0.6480541651 | GJ37: 0.9861698796 | GK37: 0.9781836663 | GL37: 0.683264026 | GM37: 0.7795773107 | GN37: 0.756050818 | GO37: 0.6769012263 | GP37: 0.464204151 | GQ37: 0.7157698399 | GR37: 0.5675587677 | GS37: 0.4566940055 | GT37: 0.5041686485 | GU37: 0.3920881271 | GV37: 0.8542682149 | GW37: 0.65524573 | GX37: 80 | GY37: =AVERAGE(Data!EY37:FQ37) -> 0.6803583308 | GZ37: 87 | HA37: =AVERAGE(Data!FR37:FZ37) -> 0.6498982523 | HB37: 28 | HC37: =AVERAGE(Data!GA37:GL37) -> 0.6194947202 | HD37: 217
A38: E05004900 | B38: 29UBJK | C38: Weald South | D38: Ashford | E38: NHS Ashford CCG | F38: 34 | G38: 1.155766594 | H38: 0.6856227872 | I38: 1.040275521 | J38: 1.000992564 | K38: 1.11738041 | L38: 1.10830473 | M38: 1.195936978 | N38: 0.925705086 | O38: 1.324663059 | P38: 1.202580905 | Q38: 1.041982371 | R38: 1.096823073 | S38: 0.8991925684 | T38: 1.215275537 | U38: 1.092525075 | V38: 0.9867878567 | W38: 1.15942295 | X38: 0.9912406738 | Y38: 1.342705866 | Z38: 1.208238977 | AA38: 0.8898637891 | AB38: 0.9020327699 | AC38: 1.486205945 | AD38: 1.006795682 | AE38: 1.193184976 | AF38: 1.26211881 | AG38: 0.8438515104 | AH38: 2.075820636 | AI38: 0.7940733203 | AJ38: 0.9276720586 | AK38: 1.226599547 | AL38: 0.6140261613 | AM38: 1.041982371 | AN38: 0.7855972342 | AO38: 1.567471893 | AP38: 1.095912394 | AQ38: 1.116992418 | AR38: 1.08919104 | AS38: 1.073731558 | AT38: 1.168198751 | AU38: 0.9605549675 | AV38: 180 | AW38: 0.634 | BB38: 1.069663954 | BC38: 129 | BD38: 0.453 | BI38: 1.107478806 | BJ38: 105 | BK38: 0.368 | BP38: 1.164456497 | BQ38: 106 | BR38: 0.372 | BW38: 1.098627433 | BX38: 117 | BY38: 0.411 | CD38: 1.343743983 | CE38: 38 | CF38: 0.131 | CK38: 0.982781642 | CL38: 170 | CM38: 0.599 | CR38: 0.8280042663 | CS38: 164 | CT38: 0.578 | CY38: 1.176534564 | CZ38: 24 | DA38: 0.081 | DF38: 1.108805232 | DG38: 57 | DH38: 0.198 | DM38: 1.083325506 | DN38: 113 | DO38: 0.397 | DT38: =AVERAGE(Data!Z38:AH38) -> 1.207568122 | DU38: 58 | DV38: 0.202 | EA38: 1.041787396 | EB38: 84 | EC38: 0.294 | EH38: 1.098818661 | EI38: 87 | EJ38: 0.304 | EO38: Ashford | EP38: 197 | EQ38: 171 | ER38: 226 | ES38: 200 | ET38: 0.602 | EU38: 0.797 | EV38: 0.705 | EW38: 197 | EX38: 0.695 | EY38: 0.67462 | EZ38: 0.428739268 | FA38: 0.785144124 | FB38: 0.6950470233 | FC38: 0.7921813605 | FD38: 0.8413198959 | FE38: 0.7880859452 | FF38: 0.52803286 | FG38: 0.6716915495 | FH38: 0.6798028998 | FI38: 0.7949794622 | FJ38: 0.7048340824 | FK38: 0.3922046782 | FL38: 0.7555085171 | FM38: 0.5836501501 | FN38: 0.5893691283 | FO38: 0.562647038 | FP38: 0.5215183015 | FQ38: 0.5186794133 | FR38: 0.8755688132 | FS38: 0.549571409 | FT38: 0.5725312672 | FU38: 0.8349251143 | FV38: 0.6058278493 | FW38: 0.4834836002 | FX38: 0.3721167211 | FY38: 0.392985928 | FZ38: 0.7227775071 | GA38: 0.4675983795 | GB38: 0.7561386515 | GC38: 0.8872600155 | GD38: 0.08470642656 | GE38: 0.7949794622 | GF38: 0.26679699 | GG38: 0.7493521496 | GH38: 0.9536624634 | GI38: 0.8163845948 | GJ38: 0.9686953494 | GK38: 0.9508540855 | GL38: 0.6352271612 | GM38: 0.6295011307 | GN38: 0.728933417 | GO38: 0.6465050585 | GP38: 0.5342815843 | GQ38: 0.6876848906 | GR38: 0.4928409391 | GS38: 0.7036656821 | GT38: 0.4398429444 | GU38: 0.5080745698 | GV38: 0.8649647309 | GW38: 0.6512374909 | GX38: 89 | GY38: =AVERAGE(Data!EY38:FQ38) -> 0.6477924051 | GZ38: 118 | HA38: =AVERAGE(Data!FR38:FZ38) -> 0.6010875788 | HB38: 69 | HC38: =AVERAGE(Data!GA38:GL38) -> 0.6943046441 | HD38: 54
A39: E05004901 | B39: 29UBJL | C39: Wye | D39: Ashford | E39: NHS Ashford CCG | F39: 35 | G39: 1.362117182 | H39: 1.326410957 | I39: 1.19286015 | J39: 1.000992564 | K39: 1.110025008 | L39: 1.093889053 | M39: 1.120734739 | N39: 0.925705086 | O39: 1.324663059 | P39: 1.202580905 | Q39: 1.218802326 | R39: 0.8690173332 | S39: 1.263405023 | T39: 1.316910951 | U39: 1.030549476 | V39: 1.156050249 | W39: 0.4226124137 | X39: 0.5026474322 | Y39: 0.4606728962 | Z39: 1.121075735 | AA39: 0.3804696389 | AB39: 0.9213386218 | AC39: 1.486205945 | AD39: 1.006795682 | AE39: 0.9317994998 | AF39: 0.9923769361 | AG39: 0.8203045999 | AH39: 1.683568449 | AI39: 1.091867307 | AJ39: 1.119840941 | AK39: 1.334962418 | AL39: 1.010900653 | AM39: 1.218802326 | AN39: 1.050381479 | AO39: 1.630530283 | AP39: 1.1349186 | AQ39: 0.9163588932 | AR39: 1.114012247 | AS39: 1.116807468 | AT39: 1.125895681 | AU39: 1.293796096 | AV39: 21 | AW39: 0.07 | BB39: 1.05026929 | BC39: 135 | BD39: 0.475 | BI39: 1.172747415 | BJ39: 82 | BK39: 0.287 | BP39: 0.4619775807 | BQ39: 250 | BR39: 0.882 | BW39: 0.9831771247 | BX39: 171 | BY39: 0.602 | CD39: 1.107012371 | CE39: 104 | CF39: 0.365 | CK39: 1.182223555 | CL39: 40 | CM39: 0.138 | CR39: 1.11485149 | CS39: 74 | CT39: 0.258 | CY39: 1.340455881 | CZ39: 7 | DA39: 0.021 | DF39: 1.081598578 | DG39: 84 | DH39: 0.294 | DM39: 1.047402463 | DN39: 139 | DO39: 0.489 | DT39: =AVERAGE(Data!Z39:AH39) -> 1.038215012 | DU39: 128 | DV39: 0.45 | EA39: 1.155439858 | EB39: 18 | EC39: 0.06 | EH39: 1.077746505 | EI39: 102 | EJ39: 0.358 | EO39: Ashford | EP39: 182 | EQ39: 145 | ER39: 156 | ES39: 266 | ET39: 0.51 | EU39: 0.549 | EV39: 0.939 | EW39: 182 | EX39: 0.641 | EY39: 0.7950666667 | EZ39: 0.8294421851 | FA39: 0.9003068116 | FB39: 0.6950470233 | FC39: 0.7869666529 | FD39: 0.8303768803 | FE39: 0.7385299667 | FF39: 0.52803286 | FG39: 0.6716915495 | FH39: 0.6798028998 | FI39: 0.9298840791 | FJ39: 0.558442879 | FK39: 0.5510647861 | FL39: 0.8186928882 | FM39: 0.5505414663 | FN39: 0.6904628212 | FO39: 0.205086179 | FP39: 0.264456294 | FQ39: 0.1779552421 | FR39: 0.8124046397 | FS39: 0.2349744288 | FT39: 0.5847849283 | FU39: 0.8349251143 | FV39: 0.6058278493 | FW39: 0.3775690996 | FX39: 0.2925873923 | FY39: 0.3820200124 | FZ39: 0.5861996867 | GA39: 0.6429574829 | GB39: 0.9127740896 | GC39: 0.9656442301 | GD39: 0.1394562436 | GE39: 0.9298840791 | GF39: 0.3567204729 | GG39: 0.7794981062 | GH39: 0.9876056463 | GI39: 0.6697460711 | GJ39: 0.9907706209 | GK39: 0.9890004035 | GL39: 0.6122241752 | GM39: 0.8416052211 | GN39: 0.7157906767 | GO39: 0.6813229212 | GP39: 0.2158325717 | GQ39: 0.6145833921 | GR39: 0.4095940477 | GS39: 0.8404586008 | GT39: 0.5346701613 | GU39: 0.5681092896 | GV39: 0.8498693834 | GW39: 0.6472356226 | GX39: 94 | GY39: =AVERAGE(Data!EY39:FQ39) -> 0.6422026385 | GZ39: 124 | HA39: =AVERAGE(Data!FR39:FZ39) -> 0.5234770168 | HB39: 146 | HC39: =AVERAGE(Data!GA39:GL39) -> 0.7480234685 | HD39: 5
A40: E05004902 | B40: 29UCGC | C40: Barham Downs | D40: Canterbury | E40: NHS Canterbury & Coastal CCG | F40: 36 | G40: 0.8292337955 | H40: 1.455095885 | I40: 1.149268437 | J40: 1.277693851 | K40: 1.28910766 | L40: 1.07037931 | M40: 1.187135325 | N40: 1.753120224 | O40: 0.9198385758 | P40: 0.6977167122 | Q40: 1.081458722 | R40: 1.141762894 | S40: 1.194109029 | T40: 0.8791649554 | U40: 1.071988647 | V40: 0.9295199893 | W40: 0.9193957914 | X40: 0.9638769811 | Y40: 0.7649419107 | Z40: 1.128172092 | AA40: 0.9922964437 | AB40: 0.9434900599 | AC40: 1.297315282 | AD40: 1.102868795 | AE40: 1.220830825 | AF40: 1.358072918 | AG40: 0.8051130377 | AH40: 2.142400288 | AI40: 0.6629036083 | AJ40: 0.810747038 | AK40: 0.7804372645 | AL40: 1.208578999 | AM40: 1.081458722 | AN40: 0.7283403809 | AO40: 1.506912595 | AP40: 1.13923313 | AQ40: 0.8879259004 | AR40: 1.119561787 | AS40: 1.113753828 | AT40: 0.9186210103 | AU40: 1.144532706 | AV40: 85 | AW40: 0.297 | BB40: 1.315487274 | BC40: 21 | BD40: 0.07 | BI40: 0.9894449405 | BJ40: 146 | BK40: 0.514 | BP40: 0.8827382277 | BQ40: 180 | BR40: 0.634 | BW40: 1.092828535 | BX40: 122 | BY40: 0.429 | CD40: 1.381604267 | CE40: 31 | CF40: 0.106 | CK40: 0.7513626369 | CL40: 255 | CM40: 0.9 | CR40: 1.14501886 | CS40: 69 | CT40: 0.241 | CY40: 1.117626488 | CZ40: 42 | DA40: 0.145 | DF40: 1.035819131 | DG40: 126 | DH40: 0.443 | DM40: 1.082884668 | DN40: 114 | DO40: 0.4 | DT40: =AVERAGE(Data!Z40:AH40) -> 1.221173305 | DU40: 52 | DV40: 0.18 | EA40: 0.9965395219 | EB40: 133 | EC40: 0.468 | EH40: 1.088096067 | EI40: 95 | EJ40: 0.333 | EO40: Canterbury | EP40: 189 | EQ40: 170 | ER40: 232 | ES40: 151 | ET40: 0.599 | EU40: 0.819 | EV40: 0.531 | EW40: 189 | EX40: 0.666 | EY40: 0.4840230769 | EZ40: 0.9099125005 | FA40: 0.8674061262 | FB40: 0.8871767278 | FC40: 0.9139296258 | FD40: 0.8125305119 | FE40: 0.7822859245 | FF40: 1 | FG40: 0.4664188331 | FH40: 0.3944099247 | FI40: 0.8250979061 | FJ40: 0.7337130494 | FK40: 0.5208396553 | FL40: 0.546556391 | FM40: 0.5726791533 | FN40: 0.5551653095 | FO40: 0.4461661887 | FP40: 0.5071215289 | FQ40: 0.2954925806 | FR40: 0.8175471233 | FS40: 0.6128328419 | FT40: 0.5988447179 | FU40: 0.7288095658 | FV40: 0.6636387522 | FW40: 0.4946858153 | FX40: 0.4004073444 | FY40: 0.3749452248 | FZ40: 0.7459597966 | GA40: 0.3903577227 | GB40: 0.6608339298 | GC40: 0.5645288073 | GD40: 0.16672646 | GE40: 0.8250979061 | GF40: 0.2473519672 | GG40: 0.7204009191 | GH40: 0.9913601485 | GI40: 0.6489650372 | GJ40: 0.9957062224 | GK40: 0.9862962208 | GL40: 0.499515186 | GM40: 0.7537805679 | GN40: 0.879184558 | GO40: 0.5768600278 | GP40: 0.4162600994 | GQ40: 0.6843346002 | GR40: 0.5039995453 | GS40: 0.5385734866 | GT40: 0.4959121831 | GU40: 0.4838764431 | GV40: 0.824368563 | GW40: 0.6413934181 | GX40: 104 | GY40: =AVERAGE(Data!EY40:FQ40) -> 0.6589960534 | GZ40: 105 | HA40: =AVERAGE(Data!FR40:FZ40) -> 0.6041856869 | HB40: 66 | HC40: =AVERAGE(Data!GA40:GL40) -> 0.6414283773 | HD40: 166
A41: E05004903 | B41: 29UCGD | C41: Barton | D41: Canterbury | E41: NHS Canterbury & Coastal CCG | F41: 37 | G41: 0.7218776344 | H41: 0.7635264906 | I41: 0.9927187246 | J41: 1.277693851 | K41: 0.9204104319 | L41: 0.9149114738 | M41: 0.7679264249 | N41: 1.753120224 | O41: 0.9198385758 | P41: 0.6977167122 | Q41: 0.9315978953 | R41: 1.284602798 | S41: 1.308332115 | T41: 0.6165800551 | U41: 0.8770448773 | V41: 1.187127726 | W41: 0.2193498788 | X41: 0.2532987819 | Y41: 0.2919528274 | Z41: 0.8804388173 | AA41: 1.04569385 | AB41: 1.174654064 | AC41: 1.297315282 | AD41: 1.102868795 | AE41: 1.09270317 | AF41: 0.957482673 | AG41: 1.40820752 | AH41: 0.6243810341 | AI41: 1.097549524 | AJ41: 1.065636468 | AK41: 1.289310054 | AL41: 2.114977953 | AM41: 0.9315978953 | AN41: 1.965647032 | AO41: 0.5065878314 | AP41: 0.989763185 | AQ41: 0.830432959 | AR41: 1.011021022 | AS41: 0.970687192 | AT41: 1.640352855 | AU41: 0.8260409499 | AV41: 220 | AW41: 0.776 | BB41: 1.126812481 | BC41: 111 | BD41: 0.39 | BI41: 0.9778550944 | BJ41: 155 | BK41: 0.546 | BP41: 0.2548671627 | BQ41: 274 | BR41: 0.968 | BW41: 1.100194162 | BX41: 115 | BY41: 0.404 | CD41: 1.020693599 | CE41: 128 | CF41: 0.45 | CK41: 1.150832016 | CL41: 62 | CM41: 0.216 | CR41: 1.523287924 | CS41: 31 | CT41: 0.106 | CY41: 1.236117432 | CZ41: 19 | DA41: 0.063 | DF41: 1.088451443 | DG41: 77 | DH41: 0.269 | DM41: 0.8789277631 | DN41: 204 | DO41: 0.719 | DT41: =AVERAGE(Data!Z41:AH41) -> 1.064860578 | DU41: 118 | DV41: 0.414 | EA41: 1.201130331 | EB41: 8 | EC41: 0.024 | EH41: 1.017423417 | EI41: 148 | EJ41: 0.521 | EO41: Canterbury | EP41: 136 | EQ41: 80 | ER41: 166 | ES41: 276 | ET41: 0.28 | EU41: 0.585 | EV41: 0.975 | EW41: 136 | EX41: 0.478 | EY41: 0.421359375 | EZ41: 0.4774546511 | FA41: 0.7492508067 | FB41: 0.8871767278 | FC41: 0.6525369352 | FD41: 0.6945140673 | FE41: 0.506040062 | FF41: 1 | FG41: 0.4664188331 | FH41: 0.3944099247 | FI41: 0.7107617308 | FJ41: 0.8255040003 | FK41: 0.5706608287 | FL41: 0.3833134699 | FM41: 0.468536042 | FN41: 0.7090241622 | FO41: 0.1064465384 | FP41: 0.1332672821 | FQ41: 0.1127796675 | FR41: 0.6380234251 | FS41: 0.6458105717 | FT41: 0.7455673479 | FU41: 0.7288095658 | FV41: 0.6636387522 | FW41: 0.4427679474 | FX41: 0.2822993444 | FY41: 0.6558093839 | FZ41: 0.2174024863 | GA41: 0.6463035161 | GB41: 0.868592424 | GC41: 0.9326216214 | GD41: 0.2917664359 | GE41: 0.7107617308 | GF41: 0.6675541724 | GG41: 0.2421814911 | GH41: 0.8612914705 | GI41: 0.6069447416 | GJ41: 0.8991731718 | GK41: 0.8596020817 | GL41: 0.8919686708 | GM41: 0.5493549442 | GN41: 0.7480535585 | GO41: 0.5660786239 | GP41: 0.1174978293 | GQ41: 0.6843699325 | GR41: 0.3995697905 | GS41: 0.8158391872 | GT41: 0.5012640833 | GU41: 0.4548678318 | GV41: 0.8237960273 | GW41: 0.5942086364 | GX41: 163 | GY41: =AVERAGE(Data!EY41:FQ41) -> 0.5404976371 | GZ41: 196 | HA41: =AVERAGE(Data!FR41:FZ41) -> 0.5577920916 | HB41: 110 | HC41: =AVERAGE(Data!GA41:GL41) -> 0.7065634607 | HD41: 32
A42: E05004904 | B42: 29UCGE | C42: Blean Forest | D42: Canterbury | E42: NHS Canterbury & Coastal CCG | F42: 38 | G42: 1.028880208 | H42: 1.041754003 | I42: 1.274852286 | J42: 1.277693851 | K42: 1.354682973 | L42: 1.195100972 | M42: 1.043077808 | N42: 1.753120224 | O42: 0.9198385758 | P42: 0.6977167122 | Q42: 1.040144327 | R42: 1.463412835 | S42: 1.231959498 | T42: 1.180356831 | U42: 1.673517009 | V42: 1.674312089 | W42: 0.8584800829 | X42: 1.001357834 | Y42: 0.3638341977 | Z42: 1.157830912 | AA42: 0.8039856207 | AB42: 1.527809135 | AC42: 1.297315282 | AD42: 1.102868795 | AE42: 2.2125368 | AF42: 3.391728291 | AG42: 1.84743811 | AH42: 1.2230595 | AI42: 0.702663868 | AJ42: 1.014813803 | AK42: 0.9898266336 | AL42: 1.303436916 | AM42: 1.040144327 | AN42: 2.606493433 | AO42: 0.9731856815 | AP42: 1.111387589 | AQ42: 1.153703956 | AR42: 1.095463746 | AS42: 1.096084394 | AT42: 1.128212865 | AU42: 1.115162166 | AV42: 110 | AW42: 0.386 | BB42: 1.324735165 | BC42: 16 | BD42: 0.053 | BI42: 1.235157235 | BJ42: 52 | BK42: 0.18 | BP42: 0.7412240381 | BQ42: 205 | BR42: 0.723 | BW42: 1.177961949 | BX42: 70 | BY42: 0.244 | CD42: 2.168690675 | CE42: 1 | CF42: 0 | CK42: 0.9024347683 | CL42: 208 | CM42: 0.734 | CR42: 1.171790622 | CS42: 63 | CT42: 0.219 | CY42: 1.789839557 | CZ42: 1 | DA42: 0 | DF42: 1.11697051 | DG42: 49 | DH42: 0.17 | DM42: 1.161794332 | DN42: 72 | DO42: 0.251 | DT42: =AVERAGE(Data!Z42:AH42) -> 1.618285827 | DU42: 1 | DV42: 0 | EA42: 1.184618101 | EB42: 11 | EC42: 0.035 | EH42: 1.271352049 | EI42: 7 | EJ42: 0.021 | EO42: Canterbury | EP42: 277 | EQ42: 212 | ER42: 283 | ES42: 273 | ET42: 0.748 | EU42: 1 | EV42: 0.964 | EW42: 277 | EX42: 0.978 | EY42: 0.6005565217 | EZ42: 0.6514381623 | FA42: 0.9621900747 | FB42: 0.8871767278 | FC42: 0.9604200959 | FD42: 0.9072073751 | FE42: 0.6873564204 | FF42: 1 | FG42: 0.4664188331 | FH42: 0.3944099247 | FI42: 0.793577128 | FJ42: 0.9404098694 | FK42: 0.5373490566 | FL42: 0.7338003701 | FM42: 0.894028408 | FN42: 1 | FO42: 0.4166048944 | FP42: 0.5268412107 | FQ42: 0.14054702 | FR42: 0.8390398396 | FS42: 0.4965338694 | FT42: 0.9697192044 | FU42: 0.7288095658 | FV42: 0.6636387522 | FW42: 0.896529272 | FX42: 1 | FY42: 0.860361297 | FZ42: 0.4258556261 | GA42: 0.4137709675 | GB42: 0.8271672448 | GC42: 0.7159904765 | GD42: 0.1798123441 | GE42: 0.793577128 | GF42: 0.8851922742 | GG42: 0.4652452051 | GH42: 0.9671289709 | GI42: 0.8432162306 | GJ42: 0.9742741147 | GK42: 0.9706488712 | GL42: 0.613484182 | GM42: 0.7380615862 | GN42: 0.8884321238 | GO42: 0.7199991987 | GP42: 0.3613310417 | GQ42: 0.7395482462 | GR42: 0.7956865488 | GS42: 0.6523095629 | GT42: 0.4866947361 | GU42: 0.6752187397 | GV42: 0.8737504739 | GW42: 0.7257581882 | GX42: 16 | GY42: =AVERAGE(Data!EY42:FQ42) -> 0.7105437944 | GZ42: 59 | HA42: =AVERAGE(Data!FR42:FZ42) -> 0.7644986029 | HB42: 1 | HC42: =AVERAGE(Data!GA42:GL42) -> 0.7207923341 | HD42: 16
A43: E05004905 | B43: 29UCGF | C43: Chartham and Stone Street | D43: Canterbury | E43: NHS Canterbury & Coastal CCG | F43: 39 | G43: 0.8402653089 | H43: 0.8684505576 | I43: 1.191672164 | J43: 1.277693851 | K43: 1.126859804 | L43: 1.126762796 | M43: 1.05770757 | N43: 1.753120224 | O43: 0.9198385758 | P43: 0.6977167122 | Q43: 1.091799711 | R43: 1.231917535 | S43: 0.9051178662 | T43: 0.7903028332 | U43: 1.031352269 | V43: 1.306804355 | W43: 0.8251833878 | X43: 0.861639915 | Y43: 0.9230597526 | Z43: 1.106132755 | AA43: 1.251447481 | AB43: 1.087388373 | AC43: 1.297315282 | AD43: 1.102868795 | AE43: 1.236905582 | AF43: 1.770737749 | AG43: 0.6776458224 | AH43: 1.441143409 | AI43: 0.791181092 | AJ43: 0.6722933052 | AK43: 0.9632529857 | AL43: 0.5538153763 | AM43: 1.091799711 | AN43: 0.9776739203 | AO43: 0.9960780689 | AP43: 1.097043334 | AQ43: 1.177117212 | AR43: 1.078589481 | AS43: 1.075626328 | AT43: 1.454212914 | AU43: 0.9667960101 | AV43: 178 | AW43: 0.627 | BB43: 1.268428849 | BC43: 46 | BD43: 0.159 | BI43: 0.9968562322 | BJ43: 142 | BK43: 0.5 | BP43: 0.8699610185 | BQ43: 183 | BR43: 0.645 | BW43: 1.169030537 | BX43: 73 | BY43: 0.255 | CD43: 1.281608141 | CE43: 58 | CF43: 0.202 | CK43: 0.8089091276 | CL43: 237 | CM43: 0.836 | CR43: 0.8228075435 | CS43: 167 | CT43: 0.588 | CY43: 0.9868759946 | CZ43: 148 | DA43: 0.521 | DF43: 1.176517854 | DG43: 11 | DH43: 0.035 | DM43: 1.043540273 | DN43: 142 | DO43: 0.5 | DT43: =AVERAGE(Data!Z43:AH43) -> 1.219065028 | DU43: 55 | DV43: 0.191 | EA43: 0.9940569773 | EB43: 136 | EC43: 0.478 | EH43: 1.068188354 | EI43: 106 | EJ43: 0.372 | EO43: Canterbury | EP43: 178 | EQ43: 142 | ER43: 229 | ES43: 148 | ET43: 0.5 | EU43: 0.808 | EV43: 0.521 | EW43: 178 | EX43: 0.627 | EY43: 0.4904621622 | EZ43: 0.5430666297 | FA43: 0.8994101832 | FB43: 0.8871767278 | FC43: 0.7989018999 | FD43: 0.8553315103 | FE43: 0.6969969869 | FF43: 1 | FG43: 0.4664188331 | FH43: 0.3944099247 | FI43: 0.832987554 | FJ43: 0.7916477023 | FK43: 0.3947891407 | FL43: 0.4913128778 | FM43: 0.5509703354 | FN43: 0.7805022511 | FO43: 0.4004466091 | FP43: 0.4533318667 | FQ43: 0.356572577 | FR43: 0.8015759813 | FS43: 0.7728820569 | FT43: 0.6901787431 | FU43: 0.7288095658 | FV43: 0.6636387522 | FW43: 0.5011993747 | FX43: 0.5220753542 | FY43: 0.3155830962 | FZ43: 0.5017900019 | GA43: 0.4658952606 | GB43: 0.5479813135 | GC43: 0.6967684449 | GD43: 0.07640019995 | GE43: 0.832987554 | GF43: 0.3320282299 | GG43: 0.4761892353 | GH43: 0.9546466074 | GI43: 0.8603284519 | GJ43: 0.9592666263 | GK43: 0.9525320186 | GL43: 0.7907520358 | GM43: 0.6443129917 | GN43: 0.847681425 | GO43: 0.5878798274 | GP43: 0.4034503509 | GQ43: 0.7314170198 | GR43: 0.4601619568 | GS43: 0.5702150063 | GT43: 0.454693877 | GU43: 0.4041087326 | GV43: 0.903505148 | GW43: 0.6382061169 | GX43: 108 | GY43: =AVERAGE(Data!EY43:FQ43) -> 0.6360387248 | GZ43: 133 | HA43: =AVERAGE(Data!FR43:FZ43) -> 0.610859214 | HB43: 60 | HC43: =AVERAGE(Data!GA43:GL43) -> 0.6621479982 | HD43: 116
A44: E05004906 | B44: 29UCGG | C44: Chestfield and Swalecliffe | D44: Canterbury | E44: NHS Canterbury & Coastal CCG | F44: 40 | G44: 0.8015115383 | H44: 0.8338217644 | I44: 1.107322291 | J44: 1.277693851 | K44: 1.11281733 | L44: 1.110080484 | M44: 1.393169789 | N44: 1.753120224 | O44: 0.9198385758 | P44: 0.6977167122 | Q44: 1.03811422 | R44: 0.8810158547 | S44: 1.280996216 | T44: 1.007166596 | U44: 1.028264581 | V44: 0.5319775793 | W44: 1.110365211 | X44: 0.9640413902 | Y44: 1.33634362 | Z44: 1.137547723 | AA44: 0.7320645041 | AB44: 0.8548659519 | AC44: 1.297315282 | AD44: 1.102868795 | AE44: 1.27981612 | AF44: 0.685586748 | AG44: 1.078679727 | AH44: 1.197232274 | AI44: 0.9893670746 | AJ44: 0.846121791 | AK44: 1.296272374 | AL44: 1.260416322 | AM44: 1.03811422 | AN44: 0.8959209703 | AO44: 1.125091832 | AP44: 1.016381931 | AQ44: 1.141187331 | AR44: 1.025144397 | AS44: 1.007354895 | AT44: 0.9062243547 | AU44: 0.9142185313 | AV44: 198 | AW44: 0.698 | BB44: 1.329376335 | BC44: 15 | BD44: 0.049 | BI44: 0.923136292 | BJ44: 178 | BK44: 0.627 | BP44: 1.13691674 | BQ44: 111 | BR44: 0.39 | BW44: 1.024932451 | BX44: 149 | BY44: 0.524 | CD44: 1.060328717 | CE44: 116 | CF44: 0.407 | CK44: 1.043920413 | CL44: 135 | CM44: 0.475 | CR44: 1.149265271 | CS44: 68 | CT44: 0.237 | CY44: 1.010506401 | CZ44: 120 | DA44: 0.421 | DF44: 1.019258582 | DG44: 150 | DH44: 0.528 | DM44: 1.062388307 | DN44: 126 | DO44: 0.443 | DT44: =AVERAGE(Data!Z44:AH44) -> 1.040664125 | DU44: 127 | DV44: 0.446 | EA44: 1.045633124 | EB44: 80 | EC44: 0.28 | EH44: 1.052473811 | EI44: 118 | EJ44: 0.414 | EO44: Canterbury | EP44: 166 | EQ44: 158 | ER44: 157 | ES44: 204 | ET44: 0.556 | EU44: 0.553 | EV44: 0.719 | EW44: 166 | EX44: 0.585 | EY44: 0.4678416185 | EZ44: 0.5214122686 | FA44: 0.8357474272 | FB44: 0.8871767278 | FC44: 0.7889463054 | FD44: 0.8426678798 | FE44: 0.9180563444 | FF44: 1 | FG44: 0.4664188331 | FH44: 0.3944099247 | FI44: 0.7920282597 | FJ44: 0.5661532993 | FK44: 0.5587376123 | FL44: 0.6261320321 | FM44: 0.5493208267 | FN44: 0.3177290439 | FO44: 0.5388402024 | FP44: 0.507208029 | FQ44: 0.5162217148 | FR44: 0.8243413174 | FS44: 0.4521160721 | FT44: 0.5425939091 | FU44: 0.7288095658 | FV44: 0.6636387522 | FW44: 0.5185869063 | FX44: 0.2021349263 | FY44: 0.5023466191 | FZ44: 0.4168628751 | GA44: 0.5825991491 | GB44: 0.68966763 | GC44: 0.9376578113 | GD44: 0.1738775468 | GE44: 0.7920282597 | GF44: 0.304264078 | GG44: 0.5378660927 | GH44: 0.8844550911 | GI44: 0.8340681114 | GJ44: 0.9117340973 | GK44: 0.8920735456 | GL44: 0.4927743019 | GM44: 0.6083337714 | GN44: 0.8873694515 | GO44: 0.533866229 | GP44: 0.5207566487 | GQ44: 0.6422999233 | GR44: 0.4099828317 | GS44: 0.7366415302 | GT44: 0.4829529033 | GU44: 0.4210650853 | GV44: 0.8030210294 | GW44: 0.6244886252 | GX44: 124 | GY44: =AVERAGE(Data!EY44:FQ44) -> 0.6365814921 | GZ44: 132 | HA44: =AVERAGE(Data!FR44:FZ44) -> 0.5390478826 | HB44: 128 | HC44: =AVERAGE(Data!GA44:GL44) -> 0.6694221429 | HD44: 101
A45: E05004907 | B45: 29UCGH | C45: Gorrell | D45: Canterbury | E45: NHS Canterbury & Coastal CCG | F45: 41 | G45: 0.5994758383 | H45: 0.878425115 | I45: 0.9895700188 | J45: 1.277693851 | K45: 1.021557331 | L45: 0.8882328247 | M45: 1.043116164 | N45: 1.753120224 | O45: 0.9198385758 | P45: 0.6977167122 | Q45: 0.9756221637 | R45: 0.955552937 | S45: 1.286757781 | T45: 1.007839389 | U45: 0.8609900831 | V45: 0.9400173746 | W45: 0.2728513897 | X45: 0.262726143 | Y45: 0.3064854186 | Z45: 0.9116386614 | AA45: 0.9508736234 | AB45: 0.7550532469 | AC45: 1.297315282 | AD45: 1.102868795 | AE45: 0.8589342995 | AF45: 0.6371573864 | AG45: 1.053201166 | AH45: 0.6139613031 | AI45: 0.9075489875 | AJ45: 0.1740776848 | AK45: 1.215028862 | AL45: 0.6627339903 | AM45: 0.9756221637 | AN45: 1.117555827 | AO45: 0.9088634239 | AP45: 1.110714028 | AQ45: 1.210070882 | AR45: 1.100333418 | AS45: 1.088607018 | AT45: 0.8467006823 | AU45: 0.8224903241 | AV45: 222 | AW45: 0.783 | BB45: 1.196744079 | BC45: 81 | BD45: 0.283 | BI45: 0.9555418771 | BJ45: 167 | BK45: 0.588 | BP45: 0.2806876505 | BQ45: 273 | BR45: 0.964 | BW45: 1.003549922 | BX45: 160 | BY45: 0.563 | CD45: 0.7908135387 | CE45: 208 | CF45: 0.734 | CK45: 0.7655518446 | CL45: 250 | CM45: 0.882 | CR45: 0.819178077 | CS45: 169 | CT45: 0.595 | CY45: 1.013209625 | CZ45: 116 | DA45: 0.407 | DF45: 1.071285206 | DG45: 91 | DH45: 0.319 | DM45: 0.8914520703 | DN45: 197 | DO45: 0.695 | DT45: =AVERAGE(Data!Z45:AH45) -> 0.9090004182 | DU45: 192 | DV45: 0.677 | EA45: 0.9431547473 | EB45: 209 | EC45: 0.737 | EH45: 0.9109112516 | EI45: 204 | EJ45: 0.719 | EO45: Canterbury | EP45: 80 | EQ45: 87 | ER45: 92 | ES45: 75 | ET45: 0.304 | EU45: 0.322 | EV45: 0.262 | EW45: 80 | EX45: 0.28 | EY45: 0.3499135484 | EZ45: 0.5493040019 | FA45: 0.7468743326 | FB45: 0.8871767278 | FC45: 0.7242463434 | FD45: 0.6742621658 | FE45: 0.6873816962 | FF45: 1 | FG45: 0.4664188331 | FH45: 0.3944099247 | FI45: 0.7443500046 | FJ45: 0.6140518869 | FK45: 0.5612506587 | FL45: 0.6265502918 | FM45: 0.4599592292 | FN45: 0.5614349801 | FO45: 0.1324098563 | FP45: 0.1382272696 | FQ45: 0.1183935224 | FR45: 0.6606328682 | FS45: 0.5872505022 | FT45: 0.4792415605 | FU45: 0.7288095658 | FV45: 0.6636387522 | FW45: 0.3480438121 | FX45: 0.1878562584 | FY45: 0.4904811242 | FZ45: 0.2137744526 | GA45: 0.5344197129 | GB45: 0.1418894367 | GC45: 0.8788903673 | GD45: 0.09142579196 | GE45: 0.7443500046 | GF45: 0.37953358 | GG45: 0.4344950384 | GH45: 0.966542839 | GI45: 0.8844135469 | GJ45: 0.9786050614 | GK45: 0.9640272035 | GL45: 0.4604073324 | GM45: 0.5486972943 | GN45: 0.7946133866 | GO45: 0.5535532261 | GP45: 0.1296768828 | GQ45: 0.6239146498 | GR45: 0.3100389118 | GS45: 0.5183998389 | GT45: 0.4178878983 | GU45: 0.4070143092 | GV45: 0.8507991966 | GW45: 0.5563836021 | GX45: 200 | GY45: =AVERAGE(Data!EY45:FQ45) -> 0.5492955407 | GZ45: 190 | HA45: =AVERAGE(Data!FR45:FZ45) -> 0.4844143218 | HB45: 185 | HC45: =AVERAGE(Data!GA45:GL45) -> 0.6215833263 | HD45: 214
A46: E05004908 | B46: 29UCGJ | C46: Greenhill and Eddington | D46: Canterbury | E46: NHS Canterbury & Coastal CCG | F46: 42 | G46: 0.6684075189 | H46: 1.053168465 | I46: 0.8991403355 | J46: 1.277693851 | K46: 0.992327794 | L46: 1.012298055 | M46: 1.217858965 | N46: 1.753120224 | O46: 0.9198385758 | P46: 0.6977167122 | Q46: 0.8806650951 | R46: 0.9154590526 | S46: 0.315882295 | T46: 0.7420339872 | U46: 0.819158782 | V46: 0.7772396054 | W46: 0.4607170986 | X46: 0.6679121392 | Y46: 0.5798273037 | Z46: 0.9622852352 | AA46: 1.059216022 | AB46: 0.643837047 | AC46: 1.297315282 | AD46: 1.102868795 | AE46: 0.9970331592 | AF46: 0.634425446 | AG46: 1.06222916 | AH46: 0.6840093107 | AI46: 0.9007907363 | AJ46: 0.7809436855 | AK46: 1.161297185 | AL46: 0.2976768222 | AM46: 0.8806650951 | AN46: 0.8763061404 | AO46: 0.9533304925 | AP46: 1.084816669 | AQ46: 1.142655186 | AR46: 1.073870624 | AS46: 1.05699548 | AT46: 1.113864415 | AU46: 0.8735721064 | AV46: 210 | AW46: 0.741 | BB46: 1.250659778 | BC46: 55 | BD46: 0.191 | BI46: 0.7584992632 | BJ46: 238 | BK46: 0.84 | BP46: 0.5694855139 | BQ46: 237 | BR46: 0.836 | BW46: 1.013104476 | BX46: 157 | BY46: 0.553 | CD46: 0.8444242689 | CE46: 189 | CF46: 0.666 | CK46: 0.9476772022 | CL46: 188 | CM46: 0.663 | CR46: 0.5891709586 | CS46: 258 | CT46: 0.911 | CY46: 0.9148183165 | CZ46: 226 | DA46: 0.797 | DF46: 1.094440475 | DG46: 71 | DH46: 0.248 | DM46: 0.8763403081 | DN46: 205 | DO46: 0.723 | DT46: =AVERAGE(Data!Z46:AH46) -> 0.9381354952 | DU46: 178 | DV46: 0.627 | EA46: 0.9436010442 | EB46: 207 | EC46: 0.73 | EH46: 0.910422446 | EI46: 205 | EJ46: 0.723 | EO46: Canterbury | EP46: 79 | EQ46: 79 | ER46: 106 | ES46: 77 | ET46: 0.276 | EU46: 0.372 | EV46: 0.269 | EW46: 79 | EX46: 0.276 | EY46: 0.390148913 | EZ46: 0.6585759473 | FA46: 0.6786228617 | FB46: 0.8871767278 | FC46: 0.7035236835 | FD46: 0.7684407283 | FE46: 0.802531865 | FF46: 1 | FG46: 0.4664188331 | FH46: 0.3944099247 | FI46: 0.6719025992 | FJ46: 0.5882869874 | FK46: 0.1377797351 | FL46: 0.4613052597 | FM46: 0.4376120577 | FN46: 0.4642142946 | FO46: 0.2235776951 | FP46: 0.3514064885 | FQ46: 0.223983892 | FR46: 0.6973346808 | FS46: 0.6541617368 | FT46: 0.4086512738 | FU46: 0.7288095658 | FV46: 0.6636387522 | FW46: 0.4040020543 | FX46: 0.187050787 | FY46: 0.4946855068 | FZ46: 0.2381643847 | GA46: 0.530440046 | GB46: 0.636541437 | GC46: 0.8400235926 | GD46: 0.04106525335 | GE46: 0.6719025992 | GF46: 0.2976026778 | GG46: 0.4557531506 | GH46: 0.944006969 | GI46: 0.8351409331 | GJ46: 0.9550698099 | GK46: 0.9360332784 | GL46: 0.6056819778 | GM46: 0.575782574 | GN46: 0.8323346009 | GO46: 0.4527412114 | GP46: 0.2663226918 | GQ46: 0.6305192019 | GR46: 0.3309756832 | GS46: 0.6690016919 | GT46: 0.3564839263 | GU46: 0.3766779142 | GV46: 0.8551865936 | GW46: 0.563391974 | GX46: 190 | GY46: =AVERAGE(Data!EY46:FQ46) -> 0.5426272891 | GZ46: 195 | HA46: =AVERAGE(Data!FR46:FZ46) -> 0.4973887491 | HB46: 171 | HC46: =AVERAGE(Data!GA46:GL46) -> 0.6457718104 | HD46: 156
A47: E05004909 | B47: 29UCGK | C47: Harbledown | D47: Canterbury | E47: NHS Canterbury & Coastal CCG | F47: 43 | G47: 1.067330628 | H47: 1.402807199 | I47: 1.263046255 | J47: 1.277693851 | K47: 1.250464398 | L47: 1.152811051 | M47: 1.36861664 | N47: 1.753120224 | O47: 0.9198385758 | P47: 0.6977167122 | Q47: 1.298515863 | R47: 1.254649511 | S47: 1.086729582 | T47: 0.7437426549 | U47: 1.104582641 | V47: 1.157006976 | W47: 0.5429894589 | X47: 0.4926301472 | Y47: 0.7911187006 | Z47: 1.223277892 | AA47: 1.006434847 | AB47: 1.300650124 | AC47: 1.297315282 | AD47: 1.102868795 | AE47: 1.48132029 | AF47: 1.309354375 | AG47: 0.7792008037 | AH47: 1.576069889 | AI47: 0.6787609688 | AJ47: 0.8744325887 | AK47: 1.023289421 | AL47: 1.658498068 | AM47: 1.298515863 | AN47: 0.9644925646 | AO47: 1.075897637 | AP47: 1.144777856 | AQ47: 1.258761834 | AR47: 1.117588608 | AS47: 1.129228526 | AT47: 0.621387085 | AU47: 1.244394694 | AV47: 35 | AW47: 0.12 | BB47: 1.360541233 | BC47: 7 | BD47: 0.021 | BI47: 1.032847814 | BJ47: 128 | BK47: 0.45 | BP47: 0.6089127689 | BQ47: 232 | BR47: 0.819 | BW47: 1.186109388 | BX47: 66 | BY47: 0.23 | CD47: 1.286486339 | CE47: 55 | CF47: 0.191 | CK47: 0.8588276594 | CL47: 226 | CM47: 0.797 | CR47: 1.478506966 | CS47: 34 | CT47: 0.117 | CY47: 1.020195101 | CZ47: 105 | DA47: 0.368 | DF47: 1.054348782 | DG47: 110 | DH47: 0.386 | DM47: 1.085547951 | DN47: 108 | DO47: 0.379 | DT47: =AVERAGE(Data!Z47:AH47) -> 1.230721366 | DU47: 46 | DV47: 0.159 | EA47: 1.070469252 | EB47: 56 | EC47: 0.195 | EH47: 1.11368836 | EI47: 69 | EJ47: 0.241 | EO47: Canterbury | EP47: 215 | EQ47: 176 | ER47: 238 | ES47: 228 | ET47: 0.62 | EU47: 0.84 | EV47: 0.804 | EW47: 215 | EX47: 0.758 | EY47: 0.623 | EZ47: 0.87721491 | FA47: 0.9532795164 | FB47: 0.8871767278 | FC47: 0.8865329832 | FD47: 0.8751048761 | FE47: 0.9018765689 | FF47: 1 | FG47: 0.4664188331 | FH47: 0.3944099247 | FI47: 0.9907014467 | FJ47: 0.8062555926 | FK47: 0.4740035013 | FL47: 0.4623674986 | FM47: 0.5900915584 | FN47: 0.6910342363 | FO47: 0.2635029871 | FP47: 0.2591859317 | FQ47: 0.3056045212 | FR47: 0.8864669925 | FS47: 0.6215645849 | FT47: 0.8255385931 | FU47: 0.7288095658 | FV47: 0.6636387522 | FW47: 0.6002372487 | FX47: 0.3860434158 | FY47: 0.362877766 | FZ47: 0.5487698915 | GA47: 0.3996954953 | GB47: 0.7127435524 | GC47: 0.7401957627 | GD47: 0.2287939075 | GE47: 0.9907014467 | GF47: 0.3275517044 | GG47: 0.5143481106 | GH47: 0.9961851659 | GI47: 0.9200006666 | GJ47: 0.9939513335 | GK47: 1 | GL47: 0.3378893819 | GM47: 0.8178314754 | GN47: 0.9101382312 | GO47: 0.609410324 | GP47: 0.2760978134 | GQ47: 0.7452036977 | GR47: 0.4744820805 | GS47: 0.6175449368 | GT47: 0.6097476771 | GU47: 0.4209499075 | GV47: 0.8496053096 | GW47: 0.6623441238 | GX47: 64 | GY47: =AVERAGE(Data!EY47:FQ47) -> 0.6688295586 | GZ47: 94 | HA47: =AVERAGE(Data!FR47:FZ47) -> 0.6248829789 | HB47: 48 | HC47: =AVERAGE(Data!GA47:GL47) -> 0.6801713773 | HD47: 82
A48: E05004910 | B48: 29UCGL | C48: Harbour | D48: Canterbury | E48: NHS Canterbury & Coastal CCG | F48: 44 | G48: 1.251277438 | H48: 1.086093645 | I48: 1.193258837 | J48: 1.277693851 | K48: 1.1466864 | L48: 0.8654183057 | M48: 1.014825662 | N48: 1.753120224 | O48: 0.9198385758 | P48: 0.6977167122 | Q48: 0.9411109495 | R48: 1.120552413 | S48: 1.290268064 | T48: 1.008433841 | U48: 0.9354563998 | V48: 0.9038035586 | W48: 0.5628036182 | X48: 0.6543846361 | Y48: 0.6475724543 | Z48: 1.067390926 | AA48: 0.9086270664 | AB48: 1.342623301 | AC48: 1.297315282 | AD48: 1.102868795 | AE48: 0.8253652637 | AF48: 0.5138252263 | AG48: 1.04260629 | AH48: 0.6334377181 | AI48: 1.424182542 | AJ48: 1.147476664 | AK48: 1.220949931 | AL48: 1.153972725 | AM48: 0.9411109495 | AN48: 1.332282209 | AO48: 0.752208699 | AP48: 1.041551149 | AQ48: 0.997883818 | AR48: 0.9762960481 | AS48: 1.06445147 | AT48: 1.35172633 | AU48: 1.17687664 | AV48: 66 | AW48: 0.23 | BB48: 1.211548889 | BC48: 74 | BD48: 0.258 | BI48: 0.9771475643 | BJ48: 157 | BK48: 0.553 | BP48: 0.6215869029 | BQ48: 229 | BR48: 0.808 | BW48: 1.143765074 | BX48: 90 | BY48: 0.315 | CD48: 0.7538086245 | CE48: 217 | CF48: 0.765 | CK48: 1.264203046 | CL48: 9 | CM48: 0.028 | CR48: 1.047541837 | CS48: 84 | CT48: 0.294 | CY48: 1.042245454 | CZ48: 88 | DA48: 0.308 | DF48: 1.086381763 | DG48: 80 | DH48: 0.28 | DM48: 1.014227136 | DN48: 155 | DO48: 0.546 | DT48: =AVERAGE(Data!Z48:AH48) -> 0.9704510965 | DU48: 163 | DV48: 0.574 | EA48: 1.117007711 | EB48: 26 | EC48: 0.088 | EH48: 1.0352117 | EI48: 137 | EJ48: 0.482 | EO48: Canterbury | EP48: 147 | EQ48: 129 | ER48: 121 | ES48: 258 | ET48: 0.453 | EU48: 0.425 | EV48: 0.911 | EW48: 147 | EX48: 0.517 | EY48: 0.7303696 | EZ48: 0.6791649914 | FA48: 0.9006077188 | FB48: 0.8871767278 | FC48: 0.8129582231 | FD48: 0.6569435455 | FE48: 0.6687391191 | FF48: 1 | FG48: 0.4664188331 | FH48: 0.3944099247 | FI48: 0.7180197065 | FJ48: 0.7200828931 | FK48: 0.5627817542 | FL48: 0.6269198484 | FM48: 0.4997407207 | FN48: 0.5398059086 | FO48: 0.2731184411 | FP48: 0.3442893063 | FQ48: 0.2501534469 | FR48: 0.7735011234 | FS48: 0.5611594305 | FT48: 0.8521794837 | FU48: 0.7288095658 | FV48: 0.6636387522 | FW48: 0.3344414968 | FX48: 0.1514936287 | FY48: 0.4855470368 | FZ48: 0.2205559222 | GA48: 0.8386447848 | GB48: 0.9352997636 | GC48: 0.8831733691 | GD48: 0.1591933895 | GE48: 0.7180197065 | GF48: 0.4524568923 | GG48: 0.3596040274 | GH48: 0.9063573333 | GI48: 0.7293308021 | GJ48: 0.8682897733 | GK48: 0.9426360079 | GL48: 0.7350232813 | GM48: 0.7700474367 | GN48: 0.8051635231 | GO48: 0.5660224487 | GP48: 0.2891870648 | GQ48: 0.7158576711 | GR48: 0.2980095211 | GS48: 0.8857059725 | GT48: 0.438606548 | GU48: 0.4060304598 | GV48: 0.8363274396 | GW48: 0.625776407 | GX48: 121 | GY48: =AVERAGE(Data!EY48:FQ48) -> 0.6174579321 | GZ48: 153 | HA48: =AVERAGE(Data!FR48:FZ48) -> 0.5301473822 | HB48: 138 | HC48: =AVERAGE(Data!GA48:GL48) -> 0.7106690943 | HD48: 25
A49: E05004911 | B49: 29UCGM | C49: Herne and Broomfield | D49: Canterbury | E49: NHS Canterbury & Coastal CCG | F49: 45 | G49: 0.8690437078 | H49: 0.8530083132 | I49: 1.082551653 | J49: 1.277693851 | K49: 1.115853288 | L49: 1.13361212 | M49: 1.244930672 | N49: 1.753120224 | O49: 0.9198385758 | P49: 0.6977167122 | Q49: 0.979960909 | R49: 1.070503914 | S49: 0 | T49: 0.6129369242 | U49: 0.9727178672 | V49: 0.9810318511 | W49: 1.053684377 | X49: 1.090672962 | Y49: 1.123610186 | Z49: 1.066586023 | AA49: 1.154535401 | AB49: 1.060366981 | AC49: 1.297315282 | AD49: 1.102868795 | AE49: 1.155146328 | AF49: 0.9380007706 | AG49: 0.9533450859 | AH49: 0.735354107 | AI49: 1.148091799 | AJ49: 0.8864937315 | AK49: 0.9636667063 | AL49: 0.4308119651 | AM49: 0.979960909 | AN49: 1.058877022 | AO49: 0.8237071001 | AP49: 1.087390725 | AQ49: 1.28296604 | AR49: 1.075921649 | AS49: 1.06103809 | AT49: 0.5916628938 | AU49: 0.9348678913 | AV49: 191 | AW49: 0.673 | BB49: 1.305042031 | BC49: 24 | BD49: 0.081 | BI49: 0.7793383442 | BJ49: 232 | BK49: 0.819 | BP49: 1.089322508 | BQ49: 124 | BR49: 0.436 | BW49: 1.136334496 | BX49: 94 | BY49: 0.329 | CD49: 0.9454615728 | CE49: 151 | CF49: 0.531 | CK49: 0.9994174121 | CL49: 161 | CM49: 0.567 | CR49: 0.7053864371 | CS49: 219 | CT49: 0.773 | CY49: 0.9412920612 | CZ49: 205 | DA49: 0.723 | DF49: 1.019795879 | DG49: 149 | DH49: 0.524 | DM49: 0.9911835846 | DN49: 164 | DO49: 0.578 | DT49: =AVERAGE(Data!Z49:AH49) -> 1.051502086 | DU49: 122 | DV49: 0.429 | EA49: 0.9492157192 | EB49: 199 | EC49: 0.702 | EH49: 0.9921648878 | EI49: 162 | EJ49: 0.57 | EO49: Canterbury | EP49: 122 | EQ49: 120 | ER49: 162 | ES49: 85 | ET49: 0.421 | EU49: 0.57 | EV49: 0.297 | EW49: 122 | EX49: 0.429 | EY49: 0.5072600897 | EZ49: 0.5334101587 | FA49: 0.8170518789 | FB49: 0.8871767278 | FC49: 0.7910986879 | FD49: 0.8605308672 | FE49: 0.8203712935 | FF49: 1 | FG49: 0.4664188331 | FH49: 0.3944099247 | FI49: 0.7476602463 | FJ49: 0.6879210174 | FK49: 0 | FL49: 0.3810486202 | FM49: 0.5196465896 | FN49: 0.5859312952 | FO49: 0.511334016 | FP49: 0.573832295 | FQ49: 0.4340440352 | FR49: 0.7729178382 | FS49: 0.7130300784 | FT49: 0.673027934 | FU49: 0.7288095658 | FV49: 0.6636387522 | FW49: 0.4680701792 | FX49: 0.2765553989 | FY49: 0.4439776414 | FZ49: 0.2560420679 | GA49: 0.6760658629 | GB49: 0.7225745009 | GC49: 0.6970677094 | GD49: 0.05943157537 | GE49: 0.7476602463 | GF49: 0.3596056477 | GG49: 0.3937848511 | GH49: 0.9462469113 | GI49: 0.9376909757 | GJ49: 0.9568939322 | GK49: 0.9396132535 | GL49: 0.3217263672 | GM49: 0.6192407091 | GN49: 0.8718355153 | GO49: 0.4728795658 | GP49: 0.5064034487 | GQ49: 0.7102848337 | GR49: 0.3611613219 | GS49: 0.6985693577 | GT49: 0.4035459108 | GU49: 0.3766952494 | GV49: 0.820434288 | GW49: 0.6068394466 | GX49: 150 | GY49: =AVERAGE(Data!EY49:FQ49) -> 0.6062708724 | GZ49: 161 | HA49: =AVERAGE(Data!FR49:FZ49) -> 0.5551188284 | HB49: 113 | HC49: =AVERAGE(Data!GA49:GL49) -> 0.6465301528 | HD49: 155
A50: E05004912 | B50: 29UCGN | C50: Heron | D50: Canterbury | E50: NHS Canterbury & Coastal CCG | F50: 46 | G50: 0.8496420954 | H50: 0.7135882192 | I50: 0.93360684 | J50: 1.277693851 | K50: 0.6433818802 | L50: 0.7632331737 | M50: 0.6892787148 | N50: 1.753120224 | O50: 0.9198385758 | P50: 0.6977167122 | Q50: 0.322322004 | R50: 0.4828154931 | S50: 0.1737560227 | T50: 0.6978135507 | U50: 0.5411664397 | V50: 0.3836521587 | W50: 0.873765342 | X50: 0.9727814726 | Y50: 0.8044127506 | Z50: 0.8314742331 | AA50: 0.4219199972 | AB50: 1.113969375 | AC50: 1.297315282 | AD50: 1.102868795 | AE50: 0.4601192961 | AF50: 0.28184557 | AG50: 1.278464093 | AH50: 0.5264139702 | AI50: 1.275522541 | AJ50: 1.222119068 | AK50: 1.018288121 | AL50: 0.8287812942 | AM50: 0.322322004 | AN50: 1.14835944 | AO50: 1.003377032 | AP50: 0.9066883369 | AQ50: 1.019403481 | AR50: 0.9060968191 | AS50: 0.9032665377 | AT50: 1.403011078 | AU50: 0.8322790515 | AV50: 218 | AW50: 0.769 | BB50: 1.025341569 | BC50: 151 | BD50: 0.531 | BI50: 0.5273851196 | BJ50: 270 | BK50: 0.953 | BP50: 0.8836531884 | BQ50: 179 | BR50: 0.631 | BW50: 0.9535095365 | BX50: 180 | BY50: 0.634 | CD50: 0.6367107324 | CE50: 252 | CF50: 0.89 | CK50: 1.171976577 | CL50: 48 | CM50: 0.166 | CR50: 0.5755516491 | CS50: 262 | CT50: 0.925 | CY50: 1.075868236 | CZ50: 60 | DA50: 0.209 | DF50: 1.027693251 | DG50: 138 | DH50: 0.485 | DM50: 0.7628202905 | DN50: 240 | DO50: 0.847 | DT50: =AVERAGE(Data!Z50:AH50) -> 0.812710068 | DU50: 216 | DV50: 0.762 | EA50: 0.9964363128 | EB50: 134 | EC50: 0.471 | EH50: 0.8441302972 | EI50: 232 | EJ50: 0.819 | EO50: Canterbury | EP50: 52 | EQ50: 44 | ER50: 68 | ES50: 150 | ET50: 0.152 | EU50: 0.237 | EV50: 0.528 | EW50: 52 | EX50: 0.18 | EY50: 0.4959353846 | EZ50: 0.4462268414 | FA50: 0.7046363292 | FB50: 0.8871767278 | FC50: 0.4561339439 | FD50: 0.5793742793 | FE50: 0.4542136229 | FF50: 1 | FG50: 0.4664188331 | FH50: 0.3944099247 | FI50: 0.2459152673 | FJ50: 0.3102640922 | FK50: 0.07578790947 | FL50: 0.4338144435 | FM50: 0.2891026312 | FN50: 0.2291401712 | FO50: 0.4240225549 | FP50: 0.5118064207 | FQ50: 0.3107399349 | FR50: 0.6025404919 | FS50: 0.2605737756 | FT50: 0.7070500312 | FU50: 0.7288095658 | FV50: 0.6636387522 | FW50: 0.1864422854 | FX50: 0.08309792111 | FY50: 0.5953872119 | FZ50: 0.1832914513 | GA50: 0.7511047884 | GB50: 0.996140237 | GC50: 0.7365780759 | GD50: 0.1143324279 | GE50: 0.2459152673 | GF50: 0.3899948074 | GG50: 0.4796786079 | GH50: 0.7889997757 | GI50: 0.7450590389 | GJ50: 0.8058565874 | GK50: 0.799897024 | GL50: 0.7629102012 | GM50: 0.5489328517 | GN50: 0.6753797148 | GO50: 0.3056066591 | GP50: 0.4155229702 | GQ50: 0.5925225233 | GR50: 0.2620547175 | GS50: 0.8279410338 | GT50: 0.1801238476 | GU50: 0.4348367077 | GV50: 0.7805445255 | GW50: 0.5085604409 | GX50: 234 | GY50: =AVERAGE(Data!EY50:FQ50) -> 0.4586904901 | GZ50: 240 | HA50: =AVERAGE(Data!FR50:FZ50) -> 0.4456479429 | HB50: 214 | HC50: =AVERAGE(Data!GA50:GL50) -> 0.6347055699 | HD50: 182
A51: E05004913 | B51: 29UCGP | C51: Little Stour | D51: Canterbury | E51: NHS Canterbury & Coastal CCG | F51: 47 | G51: 0.9409935331 | H51: 1.183628672 | I51: 1.203726409 | J51: 1.277693851 | K51: 1.195379548 | L51: 1.123494056 | M51: 1.169503147 | N51: 1.753120224 | O51: 0.9198385758 | P51: 0.6977167122 | Q51: 1.244390198 | R51: 1.15105898 | S51: 1.234871637 | T51: 0.7800867406 | U51: 1.105973095 | V51: 1.178406172 | W51: 1.167084967 | X51: 1.059774696 | Y51: 1.129166171 | Z51: 1.052893853 | AA51: 1.002948693 | AB51: 1.128592098 | AC51: 1.297315282 | AD51: 1.102868795 | AE51: 1.260598131 | AF51: 1.592834337 | AG51: 0.6923055149 | AH51: 1.761274568 | AI51: 0.9939162753 | AJ51: 0.4744078368 | AK51: 0.8963565592 | AL51: 0.6215927247 | AM51: 1.244390198 | AN51: 0.726215648 | AO51: 1.257741037 | AP51: 1.142986703 | AQ51: 1.195770111 | AR51: 1.116060164 | AS51: 1.123536409 | AT51: 0.9691979225 | AU51: 1.109449538 | AV51: 111 | AW51: 0.39 | BB51: 1.303838165 | BC51: 25 | BD51: 0.085 | BI51: 1.039042764 | BJ51: 127 | BK51: 0.446 | BP51: 1.118675278 | BQ51: 116 | BR51: 0.407 | BW51: 1.116923744 | BX51: 107 | BY51: 0.375 | CD51: 1.326753138 | CE51: 42 | CF51: 0.145 | CK51: 0.7882268904 | CL51: 246 | CM51: 0.868 | CR51: 0.9329914611 | CS51: 122 | CT51: 0.429 | CY51: 0.9919783427 | CZ51: 143 | DA51: 0.503 | DF51: 1.109510262 | DG51: 54 | DH51: 0.187 | DM51: 1.132416178 | DN51: 85 | DO51: 0.297 | DT51: =AVERAGE(Data!Z51:AH51) -> 1.210181252 | DU51: 57 | DV51: 0.198 | EA51: 0.9801809657 | EB51: 162 | EC51: 0.57 | EH51: 1.104242756 | EI51: 82 | EJ51: 0.287 | EO51: Canterbury | EP51: 202 | EQ51: 199 | ER51: 227 | ES51: 122 | ET51: 0.702 | EU51: 0.801 | EV51: 0.429 | EW51: 202 | EX51: 0.712 | EY51: 0.5492571429 | EZ51: 0.7401563948 | FA51: 0.9085080806 | FB51: 0.8871767278 | FC51: 0.847479863 | FD51: 0.8528501921 | FE51: 0.7706668581 | FF51: 1 | FG51: 0.4664188331 | FH51: 0.3944099247 | FI51: 0.9494063212 | FJ51: 0.7396868464 | FK51: 0.5386192568 | FL51: 0.4849617708 | FM51: 0.5908343688 | FN51: 0.7038151247 | FO51: 0.5663652764 | FP51: 0.5575758887 | FQ51: 0.4361902793 | FR51: 0.7629955984 | FS51: 0.6194115696 | FT51: 0.7163312526 | FU51: 0.7288095658 | FV51: 0.6636387522 | FW51: 0.5107996959 | FX51: 0.4696232127 | FY51: 0.3224101893 | FZ51: 0.6132560876 | GA51: 0.5852779935 | GB51: 0.3866863281 | GC51: 0.6483789566 | GD51: 0.08575025268 | GE51: 0.9494063212 | GF51: 0.2466303858 | GG51: 0.6012809251 | GH51: 0.9946265059 | GI51: 0.8739614353 | GJ51: 0.992591979 | GK51: 0.9949592869 | GL51: 0.5270172085 | GM51: 0.7326405394 | GN51: 0.8716347282 | GO51: 0.6085190558 | GP51: 0.5200438148 | GQ51: 0.6982373477 | GR51: 0.4790222964 | GS51: 0.5401144261 | GT51: 0.5175782869 | GU51: 0.4239556554 | GV51: 0.8766312831 | GW51: 0.6569555663 | GX51: 74 | GY51: =AVERAGE(Data!EY51:FQ51) -> 0.6833883763 | GZ51: 81 | HA51: =AVERAGE(Data!FR51:FZ51) -> 0.600808436 | HB51: 70 | HC51: =AVERAGE(Data!GA51:GL51) -> 0.6572139649 | HD51: 129
A52: E05004914 | B52: 29UCGQ | C52: Marshside | D52: Canterbury | E52: NHS Canterbury & Coastal CCG | F52: 48 | G52: 0.743065418 | H52: 1.244931427 | I52: 1.015471541 | J52: 1.277693851 | K52: 1.039747787 | L52: 1.004902522 | M52: 0.9431818752 | N52: 1.753120224 | O52: 0.9198385758 | P52: 0.6977167122 | Q52: 0.9628358533 | R52: 1.107308016 | S52: 0.856116184 | T52: 0.6474804897 | U52: 0.7743373031 | V52: 0.7411736939 | W52: 1.501721251 | X52: 1.352900387 | Y52: 1.383773062 | Z52: 0.9465140128 | AA52: 1.321163634 | AB52: 1.033208268 | AC52: 1.297315282 | AD52: 1.102868795 | AE52: 1.051492309 | AF52: 1.361390056 | AG52: 0.7391475258 | AH52: 1.266921526 | AI52: 1.029913386 | AJ52: 0.5609224501 | AK52: 0.6910498705 | AL52: 1.314414255 | AM52: 0.9628358533 | AN52: 0.8690614677 | AO52: 1.023753019 | AP52: 1.110123908 | AQ52: 1.033287666 | AR52: 1.101347983 | AS52: 1.089463144 | AT52: 1.374715803 | AU52: 1.001156128 | AV52: 163 | AW52: 0.574 | BB52: 1.203729252 | BC52: 79 | BD52: 0.276 | BI52: 0.8383508535 | BJ52: 212 | BK52: 0.748 | BP52: 1.412798233 | BQ52: 51 | BR52: 0.177 | BW52: 1.140213998 | BX52: 92 | BY52: 0.322 | CD52: 1.104737854 | CE52: 105 | CF52: 0.368 | CK52: 0.7606285688 | CL52: 251 | CM52: 0.886 | CR52: 1.138625054 | CS52: 70 | CT52: 0.244 | CY52: 0.9464072434 | CZ52: 203 | DA52: 0.716 | DF52: 1.141787701 | DG52: 31 | DH52: 0.106 | DM52: 1.050911378 | DN52: 136 | DO52: 0.478 | DT52: =AVERAGE(Data!Z52:AH52) -> 1.124446823 | DU52: 86 | DV52: 0.301 | EA52: 1.0134074 | EB52: 117 | EC52: 0.411 | EH52: 1.05620566 | EI52: 115 | EJ52: 0.404 | EO52: Canterbury | EP52: 169 | EQ52: 148 | ER52: 198 | ES52: 167 | ET52: 0.521 | EU52: 0.698 | EV52: 0.588 | EW52: 169 | EX52: 0.595 | EY52: 0.4337266667 | EZ52: 0.7784907366 | FA52: 0.7664234108 | FB52: 0.8871767278 | FC52: 0.7371427034 | FD52: 0.7628267411 | FE52: 0.6215280516 | FF52: 1 | FG52: 0.4664188331 | FH52: 0.3944099247 | FI52: 0.7345947013 | FJ52: 0.7115718556 | FK52: 0.3734158669 | FL52: 0.402523551 | FM52: 0.4136674697 | FN52: 0.4426735605 | FO52: 0.7287582273 | FP52: 0.7117971757 | FQ52: 0.5345434304 | FR52: 0.6859058239 | FS52: 0.8159380893 | FT52: 0.6557899655 | FU52: 0.7288095658 | FV52: 0.6636387522 | FW52: 0.4260691324 | FX52: 0.4013853526 | FY52: 0.3442247513 | FZ52: 0.4411278925 | GA52: 0.6064752685 | GB52: 0.4572037511 | GC52: 0.4998704917 | GD52: 0.1813266951 | GE52: 0.7345947013 | GF52: 0.2951423116 | GG52: 0.4894196374 | GH52: 0.9660293165 | GI52: 0.755206677 | GJ52: 0.9795073868 | GK52: 0.9647853547 | GL52: 0.7475241826 | GM52: 0.659546938 | GN52: 0.8017348448 | GO52: 0.4924094703 | GP52: 0.6583662778 | GQ52: 0.7100164393 | GR52: 0.4032017822 | GS52: 0.5211831705 | GT52: 0.4579606982 | GU52: 0.3922809745 | GV52: 0.8826105835 | GW52: 0.6185416183 | GX52: 135 | GY52: =AVERAGE(Data!EY52:FQ52) -> 0.6264047176 | GZ52: 140 | HA52: =AVERAGE(Data!FR52:FZ52) -> 0.5736543695 | HB52: 95 | HC52: =AVERAGE(Data!GA52:GL52) -> 0.6397571479 | HD52: 173
A53: E05004915 | B53: 29UCGR | C53: North Nailbourne | D53: Canterbury | E53: NHS Canterbury & Coastal CCG | F53: 49 | G53: 1.165592813 | H53: 1.513253349 | I53: 1.292385345 | J53: 1.277693851 | K53: 1.315248404 | L53: 1.199822092 | M53: 1.299053486 | N53: 1.753120224 | O53: 0.9198385758 | P53: 0.6977167122 | Q53: 1.006911709 | R53: 1.160337603 | S53: 1.241443505 | T53: 0.7815938956 | U53: 1.122958697 | V53: 0.9437173879 | W53: 0.8475613334 | X53: 0.9300118788 | Y53: 0.7525062411 | Z53: 1.216193273 | AA53: 0.7518644583 | AB53: 1.426571912 | AC53: 1.297315282 | AD53: 1.102868795 | AE53: 1.386449795 | AF53: 1.547559777 | AG53: 0.7021459903 | AH53: 1.810739752 | AI53: 0.8732613797 | AJ53: 1.140873368 | AK53: 1.090112697 | AL53: 1.904016938 | AM53: 1.006911709 | AN53: 0.8962555202 | AO53: 1.220980992 | AP53: 1.137039773 | AQ53: 1.185034019 | AR53: 1.118566338 | AS53: 1.117980254 | AT53: 0.6195165943 | AU53: 1.323743836 | AV53: 15 | AW53: 0.049 | BB53: 1.368987611 | BC53: 2 | BD53: 0.003 | BI53: 0.9843147607 | BJ53: 151 | BK53: 0.531 | BP53: 0.8433598178 | BQ53: 188 | BR53: 0.663 | BW53: 1.158962744 | BX53: 83 | BY53: 0.29 | CD53: 1.361723829 | CE53: 37 | CF53: 0.127 | CK53: 1.034749148 | CL53: 143 | CM53: 0.503 | CR53: 1.455464323 | CS53: 35 | CT53: 0.12 | CY53: 1.058618256 | CZ53: 71 | DA53: 0.248 | DF53: 1.035627396 | DG53: 127 | DH53: 0.446 | DM53: 1.116882479 | DN53: 92 | DO53: 0.322 | DT53: =AVERAGE(Data!Z53:AH53) -> 1.249078782 | DU53: 39 | DV53: 0.134 | EA53: 1.109212465 | EB53: 30 | EC53: 0.102 | EH53: 1.144325643 | EI53: 52 | EJ53: 0.18 | EO53: Canterbury | EP53: 232 | EQ53: 192 | ER53: 245 | ES53: 254 | ET53: 0.677 | EU53: 0.865 | EV53: 0.897 | EW53: 232 | EX53: 0.819 | EY53: 0.6803555556 | EZ53: 0.9462800032 | FA53: 0.9754230868 | FB53: 0.8871767278 | FC53: 0.9324624457 | FD53: 0.910791202 | FE53: 0.8560365748 | FF53: 1 | FG53: 0.4664188331 | FH53: 0.3944099247 | FI53: 0.7682223333 | FJ53: 0.7456494215 | FK53: 0.5414857368 | FL53: 0.485898734 | FM53: 0.5999084389 | FN53: 0.5636448509 | FO53: 0.4113062223 | FP53: 0.4893041904 | FQ53: 0.2906887543 | FR53: 0.8813330155 | FS53: 0.4643443354 | FT53: 0.9054626972 | FU53: 0.7288095658 | FV53: 0.6636387522 | FW53: 0.5617953226 | FX53: 0.4562746908 | FY53: 0.3269929486 | FZ53: 0.6304793108 | GA53: 0.5142290965 | GB53: 0.9299174659 | GC53: 0.7885323377 | GD53: 0.2626638425 | GE53: 0.7682223333 | GF53: 0.3043776946 | GG53: 0.5837072644 | GH53: 0.9894514899 | GI53: 0.8661146681 | GJ53: 0.9948208984 | GK53: 0.9900389756 | GL53: 0.336872272 | GM53: 0.8673528818 | GN53: 0.9172933901 | GO53: 0.5707047841 | GP53: 0.3970997223 | GQ53: 0.7287176732 | GR53: 0.4938855682 | GS53: 0.7442263 | GT53: 0.5154430879 | GU53: 0.4440424795 | GV53: 0.8354596608 | GW53: 0.6723385503 | GX53: 53 | GY53: =AVERAGE(Data!EY53:FQ53) -> 0.6813401598 | GZ53: 85 | HA53: =AVERAGE(Data!FR53:FZ53) -> 0.6243478488 | HB53: 49 | HC53: =AVERAGE(Data!GA53:GL53) -> 0.6940790282 | HD53: 55
A54: E05004916 | B54: 29UCGS | C54: Northgate | D54: Canterbury | E54: NHS Canterbury & Coastal CCG | F54: 50 | G54: 0.2537197378 | H54: 0.8790841331 | I54: 0.5978652387 | J54: 1.277693851 | K54: 0.3290641331 | L54: 0.5516391326 | M54: 0.3300821803 | N54: 1.753120224 | O54: 0.9198385758 | P54: 0.6977167122 | Q54: 0.4841668558 | R54: 1.090262198 | S54: 0.9720362492 | T54: 0.475493845 | U54: 0.4572852362 | V54: 1.076980296 | W54: 0.8176237436 | X54: 0.8865508 | Y54: 0.8281005578 | Z54: 0.6640611232 | AA54: 1.009346781 | AB54: 1.076384569 | AC54: 1.297315282 | AD54: 1.102868795 | AE54: 0.8035416881 | AF54: 0.5877215714 | AG54: 1.88683942 | AH54: 0.277717726 | AI54: 1.106053539 | AJ54: 1.096973432 | AK54: 1.194784749 | AL54: 1.10601605 | AM54: 0.4841668558 | AN54: 2.249934545 | AO54: 0.6067369495 | AP54: 0.7120955365 | AQ54: 0.5585019783 | AR54: 0.7849422056 | AS54: 0.7833240008 | AT54: 1.34155975 | AU54: 0.5768897032 | AV54: 270 | AW54: 0.953 | BB54: 0.8483199042 | BC54: 213 | BD54: 0.751 | BI54: 0.771722496 | BJ54: 234 | BK54: 0.826 | BP54: 0.8440917005 | BQ54: 187 | BR54: 0.659 | BW54: 1.02999531 | BX54: 145 | BY54: 0.51 | CD54: 0.8889551013 | CE54: 170 | CF54: 0.599 | CK54: 1.132603907 | CL54: 73 | CM54: 0.255 | CR54: 0.7950914529 | CS54: 179 | CT54: 0.631 | CY54: 1.428335747 | CZ54: 4 | DA54: 0.01 | DF54: 0.8360846942 | DG54: 258 | DH54: 0.911 | DM54: 0.7725433526 | DN54: 236 | DO54: 0.833 | DT54: =AVERAGE(Data!Z54:AH54) -> 0.9673107728 | DU54: 165 | DV54: 0.581 | EA54: 1.002090799 | EB54: 129 | EC54: 0.453 | EH54: 0.8852302562 | EI54: 217 | EJ54: 0.765 | EO54: Canterbury | EP54: 67 | EQ54: 48 | ER54: 119 | ES54: 155 | ET54: 0.166 | EU54: 0.418 | EV54: 0.546 | EW54: 67 | EX54: 0.234 | EY54: 0.148096 | EZ54: 0.5497161044 | FA54: 0.4512365903 | FB54: 0.8871767278 | FC54: 0.2332942929 | FD54: 0.4187521401 | FE54: 0.2175140763 | FF54: 1 | FG54: 0.4664188331 | FH54: 0.3944099247 | FI54: 0.3693946436 | FJ54: 0.7006179707 | FK54: 0.4239772188 | FL54: 0.2956034567 | FM54: 0.2442915068 | FN54: 0.6432374844 | FO54: 0.3967780501 | FP54: 0.4664381513 | FQ54: 0.3198903961 | FR54: 0.481222027 | FS54: 0.6233629681 | FT54: 0.6831944932 | FU54: 0.7288095658 | FV54: 0.6636387522 | FW54: 0.3255984916 | FX54: 0.173280853 | FY54: 0.8787106868 | FZ54: 0.0966982032 | GA54: 0.6513111938 | GB54: 0.8941349523 | GC54: 0.8642468009 | GD54: 0.1525776477 | GE54: 0.3693946436 | GF54: 0.7641011681 | GG54: 0.2900591962 | GH54: 0.6196652099 | GI54: 0.4081965139 | GJ54: 0.6981051405 | GK54: 0.6936806701 | GL54: 0.7294950371 | GM54: 0.3830162316 | GN54: 0.5513474474 | GO54: 0.4422438798 | GP54: 0.3943688659 | GQ54: 0.6360455612 | GR54: 0.3685720587 | GS54: 0.8032309823 | GT54: 0.2609861456 | GU54: 0.5270801821 | GV54: 0.6298285143 | GW54: 0.5104081946 | GX54: 233 | GY54: =AVERAGE(Data!EY54:FQ54) -> 0.4540443983 | GZ54: 244 | HA54: =AVERAGE(Data!FR54:FZ54) -> 0.517168449 | HB54: 155 | HC54: =AVERAGE(Data!GA54:GL54) -> 0.5945806812 | HD54: 245
A55: E05004917 | B55: 29UCGT | C55: Reculver | D55: Canterbury | E55: NHS Canterbury & Coastal CCG | F55: 51 | G55: 0.926345754 | H55: 0.8011485795 | I55: 1.093436773 | J55: 1.277693851 | K55: 1.152055299 | L55: 1.074622762 | M55: 1.364204497 | N55: 1.753120224 | O55: 0.9198385758 | P55: 0.6977167122 | Q55: 1.118010637 | R55: 0.8825499459 | S55: 0.411004051 | T55: 0.8147865162 | U55: 0.8025985924 | V55: 0.7000534686 | W55: 0.4302698228 | X55: 0.4116824104 | Y55: 0.5299630042 | Z55: 1.171649828 | AA55: 0.7219422988 | AB55: 0.7969927581 | AC55: 1.297315282 | AD55: 1.102868795 | AE55: 1.155897703 | AF55: 0.8549317524 | AG55: 1.144272534 | AH55: 1.052889118 | AI55: 1.174794836 | AJ55: 0.7582182252 | AK55: 0.7044017416 | AL55: 0.4488335796 | AM55: 1.118010637 | AN55: 1.017313679 | AO55: 1.098924241 | AP55: 1.108311884 | AQ55: 1.312508931 | AR55: 1.084218164 | AS55: 1.084643366 | AT55: 1.101931609 | AU55: 0.9403103689 | AV55: 188 | AW55: 0.663 | BB55: 1.324339327 | BC55: 17 | BD55: 0.056 | BI55: 0.7933198124 | BJ55: 229 | BK55: 0.808 | BP55: 0.4573050791 | BQ55: 253 | BR55: 0.893 | BW55: 1.018153792 | BX55: 154 | BY55: 0.542 | CD55: 1.051997777 | CE55: 119 | CF55: 0.418 | CK55: 0.8791382676 | CL55: 219 | CM55: 0.773 | CR55: 0.7834221082 | CS55: 187 | CT55: 0.659 | CY55: 1.05811896 | CZ55: 72 | DA55: 0.251 | DF55: 1.138322791 | DG55: 34 | DH55: 0.117 | DM55: 0.9032158672 | DN55: 189 | DO55: 0.666 | DT55: =AVERAGE(Data!Z55:AH55) -> 1.033195563 | DU55: 129 | DV55: 0.453 | EA55: 1.001009241 | EB55: 130 | EC55: 0.457 | EH55: 0.961799311 | EI55: 180 | EJ55: 0.634 | EO55: Canterbury | EP55: 104 | EQ55: 95 | ER55: 155 | ES55: 154 | ET55: 0.333 | EU55: 0.546 | EV55: 0.542 | EW55: 104 | EX55: 0.365 | EY55: 0.5407072464 | EZ55: 0.5009808044 | FA55: 0.8252673835 | FB55: 0.8871767278 | FC55: 0.8167645738 | FD55: 0.8157517385 | FE55: 0.8989691018 | FF55: 1 | FG55: 0.4664188331 | FH55: 0.3944099247 | FI55: 0.8529851552 | FJ55: 0.5671391281 | FK55: 0.1792693993 | FL55: 0.5065338137 | FM55: 0.428765252 | FN55: 0.4181140858 | FO55: 0.2088021815 | FP55: 0.2165971566 | FQ55: 0.2047216051 | FR55: 0.8490539278 | FS55: 0.4458646944 | FT55: 0.5058610829 | FU55: 0.7288095658 | FV55: 0.6636387522 | FW55: 0.4683746398 | FX55: 0.2520637501 | FY55: 0.5328935223 | FZ55: 0.3666042041 | GA55: 0.6917902257 | GB55: 0.618018082 | GC55: 0.5095285593 | GD55: 0.06191770163 | GE55: 0.8529851552 | GF55: 0.3454903042 | GG55: 0.5253563053 | GH55: 0.9644524939 | GI55: 0.9592832092 | GJ55: 0.9642726154 | GK55: 0.9605171502 | GL55: 0.5991933195 | GM55: 0.6223184781 | GN55: 0.8837324284 | GO55: 0.476704449 | GP55: 0.2100403144 | GQ55: 0.6386456046 | GR55: 0.4049840291 | GS55: 0.6064456223 | GT55: 0.4574514284 | GU55: 0.4354233047 | GV55: 0.8895437576 | GW55: 0.5898835843 | GX55: 169 | GY55: =AVERAGE(Data!EY55:FQ55) -> 0.5647039006 | GZ55: 185 | HA55: =AVERAGE(Data!FR55:FZ55) -> 0.5347960155 | HB55: 135 | HC55: =AVERAGE(Data!GA55:GL55) -> 0.6710670935 | HD55: 98
A56: E05004919 | B56: 29UCGW | C56: Seasalter | D56: Canterbury | E56: NHS Canterbury & Coastal CCG | F56: 52 | G56: 0.7836680944 | H56: 0.8735212453 | I56: 1.053911946 | J56: 1.277693851 | K56: 1.077571547 | L56: 1.131565634 | M56: 1.317312991 | N56: 1.753120224 | O56: 0.9198385758 | P56: 0.6977167122 | Q56: 1.067662277 | R56: 0.8941992079 | S56: 1.282276087 | T56: 1.007938216 | U56: 1.02836588 | V56: 0.7280229343 | W56: 1.428193995 | X56: 1.272705263 | Y56: 1.322293334 | Z56: 1.098318225 | AA56: 0.8254852992 | AB56: 0.5779203561 | AC56: 1.297315282 | AD56: 1.102868795 | AE56: 1.144400588 | AF56: 0.9893288489 | AG56: 1.121180977 | AH56: 1.068879785 | AI56: 1.065678792 | AJ56: 0.8954642269 | AK56: 1.042415417 | AL56: 0.8473494909 | AM56: 1.067662277 | AN56: 0.957525082 | AO56: 1.14149211 | AP56: 1.074246205 | AQ56: 1.093817112 | AR56: 1.066953656 | AS56: 1.058719617 | AT56: 0.9618536996 | AU56: 0.9037004285 | AV56: 200 | AW56: 0.705 | BB56: 1.31145285 | BC56: 22 | BD56: 0.074 | BI56: 0.9532524863 | BJ56: 169 | BK56: 0.595 | BP56: 1.341064197 | BQ56: 61 | BR56: 0.212 | BW56: 0.9803815914 | BX56: 172 | BY56: 0.606 | CD56: 1.08094755 | CE56: 108 | CF56: 0.379 | CK56: 1.001186145 | CL56: 158 | CM56: 0.556 | CR56: 0.957505884 | CS56: 112 | CT56: 0.393 | CY56: 1.049508596 | CZ56: 78 | DA56: 0.273 | DF56: 1.051118058 | DG56: 113 | DH56: 0.397 | DM56: 1.100925159 | DN56: 101 | DO56: 0.354 | DT56: =AVERAGE(Data!Z56:AH56) -> 1.025077573 | DU56: 134 | DV56: 0.471 | EA56: 1.022764807 | EB56: 109 | EC56: 0.382 | EH56: 1.060411346 | EI56: 113 | EJ56: 0.397 | EO56: Canterbury | EP56: 171 | EQ56: 183 | ER56: 150 | ES56: 175 | ET56: 0.645 | EU56: 0.528 | EV56: 0.617 | EW56: 171 | EX56: 0.602 | EY56: 0.4574264151 | EZ56: 0.5462374738 | FA56: 0.7954361654 | FB56: 0.8871767278 | FC56: 0.7639583497 | FD56: 0.8589773697 | FE56: 0.8680690314 | FF56: 1 | FG56: 0.4664188331 | FH56: 0.3944099247 | FI56: 0.8145719219 | FJ56: 0.5746251093 | FK56: 0.5592958593 | FL56: 0.6266117298 | FM56: 0.5493749424 | FN56: 0.4348191349 | FO56: 0.6930767766 | FP56: 0.66960437 | FQ56: 0.5107941716 | FR56: 0.7959130628 | FS56: 0.5098118662 | FT56: 0.3668131412 | FU56: 0.7288095658 | FV56: 0.6636387522 | FW56: 0.4637159598 | FX56: 0.2916887097 | FY56: 0.5221396673 | FZ56: 0.3721719753 | GA56: 0.6275361021 | GB56: 0.7298862855 | GC56: 0.7540305399 | GD56: 0.1168939566 | GE56: 0.8145719219 | GF56: 0.3251854749 | GG56: 0.5457064781 | GH56: 0.9348085562 | GI56: 0.7994462854 | GJ56: 0.9489180561 | GK56: 0.9375601056 | GL56: 0.5230236673 | GM56: 0.5997000181 | GN56: 0.8756362957 | GO56: 0.5525159319 | GP56: 0.6244917727 | GQ56: 0.6129972776 | GR56: 0.412429078 | GS56: 0.7038176425 | GT56: 0.4657329392 | GU56: 0.4354459765 | GV56: 0.8287513341 | GW56: 0.6310788609 | GX56: 113 | GY56: =AVERAGE(Data!EY56:FQ56) -> 0.6563623319 | GZ56: 106 | HA56: =AVERAGE(Data!FR56:FZ56) -> 0.5238558556 | HB56: 145 | HC56: =AVERAGE(Data!GA56:GL56) -> 0.6714639525 | HD56: 96
A57: E05004918 | B57: 29UCGU | C57: St Stephens | D57: Canterbury | E57: NHS Canterbury & Coastal CCG | F57: 53 | G57: 0.6458779759 | H57: 0.844394272 | I57: 0.9833222188 | J57: 1.277693851 | K57: 0.7569254848 | L57: 1.022584518 | M57: 0.6019692644 | N57: 1.753120224 | O57: 0.9198385758 | P57: 0.6977167122 | Q57: 0.9077759709 | R57: 1.556143638 | S57: 1.094949353 | T57: 0.7304990017 | U57: 0.9292190456 | V57: 1.365328259 | W57: 1.136729695 | X57: 1.080668182 | Y57: 1.127784585 | Z57: 1.014817856 | AA57: 1.158854061 | AB57: 1.24525801 | AC57: 1.297315282 | AD57: 1.102868795 | AE57: 1.403201579 | AF57: 1.130104071 | AG57: 2.147281748 | AH57: 0.4780899787 | AI57: 0.8821321983 | AJ57: 1.115176726 | AK57: 1.183360683 | AL57: 0.2480650881 | AM57: 0.9077759709 | AN57: 2.94455059 | AO57: 0.3651899613 | AP57: 0.940058134 | AQ57: 0.8133344932 | AR57: 0.9249035899 | AS57: 0.9472010552 | AT57: 0.8638253779 | AU57: 0.8245314889 | AV57: 221 | AW57: 0.78 | BB57: 1.082458668 | BC57: 126 | BD57: 0.443 | BI57: 1.025183819 | BJ57: 133 | BK57: 0.468 | BP57: 1.115060821 | BQ57: 118 | BR57: 0.414 | BW57: 1.163822801 | BX57: 78 | BY57: 0.273 | CD57: 1.289669344 | CE57: 52 | CF57: 0.18 | CK57: 1.060223202 | CL57: 127 | CM57: 0.446 | CR57: 0.5779205295 | CS57: 261 | CT57: 0.921 | CY57: 1.654870276 | CZ57: 2 | DA57: 0.003 | DF57: 0.89786453 | DG57: 235 | DH57: 0.829 | DM57: 1.022765307 | DN57: 152 | DO57: 0.535 | DT57: =AVERAGE(Data!Z57:AH57) -> 1.219754598 | DU57: 53 | DV57: 0.184 | EA57: 1.011297822 | EB57: 121 | EC57: 0.425 | EH57: 1.063647652 | EI57: 109 | EJ57: 0.382 | EO57: Canterbury | EP57: 175 | EQ57: 132 | ER57: 231 | ES57: 163 | ET57: 0.464 | EU57: 0.815 | EV57: 0.574 | EW57: 175 | EX57: 0.617 | EY57: 0.3769984375 | EZ57: 0.5280235558 | FA57: 0.7421588284 | FB57: 0.8871767278 | FC57: 0.5366321577 | FD57: 0.7762492362 | FE57: 0.3966793615 | FF57: 1 | FG57: 0.4664188331 | FH57: 0.3944099247 | FI57: 0.6925868162 | FJ57: 1 | FK57: 0.4775887542 | FL57: 0.4541342276 | FM57: 0.4964085933 | FN57: 0.8154562507 | FO57: 0.5516344106 | FP57: 0.5685685118 | FQ57: 0.4356565809 | FR57: 0.7354032464 | FS57: 0.7156972414 | FT57: 0.7903805384 | FU57: 0.7288095658 | FV57: 0.6636387522 | FW57: 0.5685832166 | FX57: 0.3331941636 | FY57: 1 | FZ57: 0.1664655785 | GA57: 0.5194527708 | GB57: 0.9089723225 | GC57: 0.8559832104 | GD57: 0.03422119201 | GE57: 0.6925868162 | GF57: 1 | GG57: 0.1745842357 | GH57: 0.8180381579 | GI57: 0.5944478581 | GJ57: 0.8225827913 | GK57: 0.8388036904 | GL57: 0.4697191654 | GM57: 0.5490602739 | GN57: 0.7193474966 | GO57: 0.599625425 | GP57: 0.5186198344 | GQ57: 0.7267858688 | GR57: 0.5170607397 | GS57: 0.7614694345 | GT57: 0.3634040041 | GU57: 0.5872921179 | GV57: 0.7087183326 | GW57: 0.625708643 | GX57: 122 | GY57: =AVERAGE(Data!EY57:FQ57) -> 0.6103569057 | GZ57: 157 | HA57: =AVERAGE(Data!FR57:FZ57) -> 0.6335747003 | HB57: 40 | HC57: =AVERAGE(Data!GA57:GL57) -> 0.6441160176 | HD57: 162
A58: E05004920 | B58: 29UCGX | C58: Sturry North | D58: Canterbury | E58: NHS Canterbury & Coastal CCG | F58: 54 | G58: 0.9982400291 | H58: 0.9748813968 | I58: 0.9539088871 | J58: 1.277693851 | K58: 0.8621993986 | L58: 0.8875272091 | M58: 1.105964582 | N58: 1.753120224 | O58: 0.9198385758 | P58: 0.6977167122 | Q58: 0.8734289948 | R58: 0.8095881597 | S58: 0.9999709534 | T58: 0.4966475949 | U58: 0.7578752069 | V58: 0.6507135758 | W58: 1.13611163 | X58: 1.227230385 | Y58: 1.035665034 | Z58: 0.9197467536 | AA58: 0.871046861 | AB58: 0.5100859247 | AC58: 1.297315282 | AD58: 1.102868795 | AE58: 0.8480599307 | AF58: 0.7054770281 | AG58: 1.162480406 | AH58: 0.8163328784 | AI58: 0.9050042959 | AJ58: 0.9836203204 | AK58: 0.9399307766 | AL58: 0.5123543755 | AM58: 0.8734289948 | AN58: 0.7932587058 | AO58: 1.050022476 | AP58: 1.103804531 | AQ58: 0.9392308991 | AR58: 1.090052278 | AS58: 1.087064478 | AT58: 1.25908827 | AU58: 0.975676771 | AV58: 174 | AW58: 0.613 | BB58: 1.177301053 | BC58: 88 | BD58: 0.308 | BI58: 0.7757224717 | BJ58: 233 | BK58: 0.822 | BP58: 1.133002349 | BQ58: 113 | BR58: 0.397 | BW58: 0.9402127232 | BX58: 184 | BY58: 0.648 | CD58: 0.8830875608 | CE58: 174 | CF58: 0.613 | CK58: 0.9428517976 | CL58: 191 | CM58: 0.673 | CR58: 0.6928916852 | CS58: 227 | CT58: 0.801 | CY58: 0.921640591 | CZ58: 220 | DA58: 0.776 | DF58: 1.095848091 | DG58: 69 | DH58: 0.241 | DM58: 0.9693853895 | DN58: 173 | DO58: 0.609 | DT58: =AVERAGE(Data!Z58:AH58) -> 0.9148237621 | DU58: 186 | DV58: 0.656 | EA58: 0.9614050334 | EB58: 187 | EC58: 0.659 | EH58: 0.9547149165 | EI58: 184 | EJ58: 0.648 | EO58: Canterbury | EP58: 100 | EQ58: 111 | ER58: 98 | ES58: 97 | ET58: 0.39 | EU58: 0.343 | EV58: 0.34 | EW58: 100 | EX58: 0.351 | EY58: 0.582671875 | EZ58: 0.6096208356 | FA58: 0.7199592246 | FB58: 0.8871767278 | FC58: 0.6112674668 | FD58: 0.6737265293 | FE58: 0.7287968842 | FF58: 1 | FG58: 0.4664188331 | FH58: 0.3944099247 | FI58: 0.6663818234 | FJ58: 0.5202528482 | FK58: 0.4361616185 | FL58: 0.3087542507 | FM58: 0.4048730675 | FN58: 0.3886453308 | FO58: 0.5513344747 | FP58: 0.6456788171 | FQ58: 0.4000713377 | FR58: 0.666508521 | FS58: 0.5379502532 | FT58: 0.3237577953 | FU58: 0.7288095658 | FV58: 0.6636387522 | FW58: 0.3436374719 | FX58: 0.2079992758 | FY58: 0.5413730205 | FZ58: 0.2842379696 | GA58: 0.5329212446 | GB58: 0.801741667 | GC58: 0.6798983395 | GD58: 0.07068055243 | GE58: 0.6663818234 | GF58: 0.2693989054 | GG58: 0.5019781236 | GH58: 0.9605301975 | GI58: 0.686462705 | GJ58: 0.9694613099 | GK58: 0.9626611905 | GL58: 0.6846498223 | GM58: 0.6374173117 | GN58: 0.7801935216 | GO58: 0.4482372121 | GP58: 0.5323615432 | GQ58: 0.5841329775 | GR58: 0.3443119344 | GS58: 0.671520417 | GT58: 0.3685311879 | GU58: 0.3856885145 | GV58: 0.852753045 | GW58: 0.5770220094 | GX58: 178 | GY58: =AVERAGE(Data!EY58:FQ58) -> 0.5787474668 | GZ58: 175 | HA58: =AVERAGE(Data!FR58:FZ58) -> 0.4775458472 | HB58: 190 | HC58: =AVERAGE(Data!GA58:GL58) -> 0.6488971568 | HD58: 152
A59: E05004921 | B59: 29UCGY | C59: Sturry South | D59: Canterbury | E59: NHS Canterbury & Coastal CCG | F59: 55 | G59: 1.199324607 | H59: 1.277407412 | I59: 1.162524647 | J59: 1.277693851 | K59: 1.175266376 | L59: 1.128241601 | M59: 1.267923978 | N59: 1.753120224 | O59: 0.9198385758 | P59: 0.6977167122 | Q59: 0.8816937654 | R59: 0.9851417835 | S59: 1.07496815 | T59: 0.5145596026 | U59: 0.9124815097 | V59: 0.7739684319 | W59: 0.8183569659 | X59: 0.8623125091 | Y59: 0.7874131652 | Z59: 1.166137578 | AA59: 0.8345301876 | AB59: 0.6025244551 | AC59: 1.297315282 | AD59: 1.102868795 | AE59: 1.053076019 | AF59: 0.6973464581 | AG59: 1.101470583 | AH59: 0.7955332355 | AI59: 1.371950909 | AJ59: 1.081054995 | AK59: 1.079086872 | AL59: 0.4965345704 | AM59: 0.8816937654 | AN59: 1.122297899 | AO59: 0.935445683 | AP59: 1.126020817 | AQ59: 1.117157272 | AR59: 1.105247746 | AS59: 1.10958334 | AT59: 1.313141349 | AU59: 1.213085556 | AV59: 46 | AW59: 0.159 | BB59: 1.320449206 | BC59: 19 | BD59: 0.063 | BI59: 0.8450460664 | BJ59: 209 | BK59: 0.737 | BP59: 0.8226942134 | BQ59: 192 | BR59: 0.677 | BW59: 1.00067526 | BX59: 163 | BY59: 0.574 | CD59: 0.9118565739 | CE59: 159 | CF59: 0.56 | CK59: 1.177364259 | CL59: 44 | CM59: 0.152 | CR59: 0.6891141679 | CS59: 230 | CT59: 0.812 | CY59: 1.028871791 | CZ59: 95 | DA59: 0.333 | DF59: 1.154230105 | DG59: 24 | DH59: 0.081 | DM59: 1.024734414 | DN59: 150 | DO59: 0.528 | DT59: =AVERAGE(Data!Z59:AH59) -> 0.9612002882 | DU59: 169 | DV59: 0.595 | EA59: 1.061601268 | EB59: 63 | EC59: 0.219 | EH59: 1.021499292 | EI59: 147 | EJ59: 0.517 | EO59: Canterbury | EP59: 137 | EQ59: 134 | ER59: 115 | ES59: 221 | ET59: 0.471 | EU59: 0.404 | EV59: 0.78 | EW59: 137 | EX59: 0.482 | EY59: 0.7000447761 | EZ59: 0.7987988863 | FA59: 0.8774112021 | FB59: 0.8871767278 | FC59: 0.8332203685 | FD59: 0.8564540786 | FE59: 0.8355231801 | FF59: 1 | FG59: 0.4664188331 | FH59: 0.3944099247 | FI59: 0.6726874222 | FJ59: 0.6330660998 | FK59: 0.4688734674 | FL59: 0.319889729 | FM59: 0.4874670453 | FN59: 0.4622605528 | FO59: 0.3971338697 | FP59: 0.4536857365 | FQ59: 0.3041730946 | FR59: 0.8450593923 | FS59: 0.5153979032 | FT59: 0.3824296648 | FU59: 0.7288095658 | FV59: 0.6636387522 | FW59: 0.4267108581 | FX59: 0.2056020997 | FY59: 0.5129604367 | FZ59: 0.2769957668 | GA59: 0.8078876411 | GB59: 0.8811599512 | GC59: 0.7805568143 | GD59: 0.06849817121 | GE59: 0.6726874222 | GF59: 0.3811440369 | GG59: 0.447203064 | GH59: 0.9798627996 | GI59: 0.8165050825 | GJ59: 0.9829757243 | GK59: 0.9826030023 | GL59: 0.7140420675 | GM59: 0.7920849548 | GN59: 0.882474871 | GO59: 0.4881341343 | GP59: 0.3849975669 | GQ59: 0.6270670556 | GR59: 0.3555672903 | GS59: 0.8232014689 | GT59: 0.3705927967 | GU59: 0.4141735505 | GV59: 0.8951977352 | GW59: 0.6230356303 | GX59: 128 | GY59: =AVERAGE(Data!EY59:FQ59) -> 0.623615526 | GZ59: 145 | HA59: =AVERAGE(Data!FR59:FZ59) -> 0.5064004933 | HB59: 163 | HC59: =AVERAGE(Data!GA59:GL59) -> 0.7095938148 | HD59: 27
A60: E05004922 | B60: 29UCGZ | C60: Tankerton | D60: Canterbury | E60: NHS Canterbury & Coastal CCG | F60: 56 | G60: 1.397750722 | H60: 1.204470802 | I60: 1.268366569 | J60: 1.277693851 | K60: 1.280139641 | L60: 1.183942668 | M60: 1.375091478 | N60: 1.753120224 | O60: 0.9198385758 | P60: 0.6977167122 | Q60: 1.176555042 | R60: 0.9650653358 | S60: 1.288290589 | T60: 1.008758536 | U60: 1.303396955 | V60: 1.007680967 | W60: 1.026451809 | X60: 1.175898365 | Y60: 0.8277394437 | Z60: 1.255889247 | AA60: 0.5115382014 | AB60: 0.7833460426 | AC60: 1.297315282 | AD60: 1.102868795 | AE60: 1.168479263 | AF60: 0.887318504 | AG60: 1.059550584 | AH60: 1.148156309 | AI60: 1.479397293 | AJ60: 1.070696223 | AK60: 1.32039066 | AL60: 0.751042906 | AM60: 1.176555042 | AN60: 1.222778789 | AO60: 1.064499413 | AP60: 1.127416816 | AQ60: 1.130002172 | AR60: 1.098272108 | AS60: 1.11512526 | AT60: 1.093380353 | AU60: 1.290196031 | AV60: 24 | AW60: 0.081 | BB60: 1.373997572 | BC60: 1 | BD60: 0 | BI60: 1.045912839 | BJ60: 124 | BK60: 0.436 | BP60: 1.010029873 | BQ60: 147 | BR60: 0.517 | BW60: 0.9901915136 | BX60: 170 | BY60: 0.599 | CD60: 1.065876165 | CE60: 115 | CF60: 0.404 | CK60: 1.290161392 | CL60: 4 | CM60: 0.01 | CR60: 0.9637989741 | CS60: 111 | CT60: 0.39 | CY60: 1.143639101 | CZ60: 36 | DA60: 0.124 | DF60: 1.112839342 | DG60: 53 | DH60: 0.184 | DM60: 1.165156226 | DN60: 68 | DO60: 0.237 | DT60: =AVERAGE(Data!Z60:AH60) -> 1.023829136 | DU60: 136 | DV60: 0.478 | EA60: 1.137463086 | EB60: 21 | EC60: 0.07 | EH60: 1.125049689 | EI60: 63 | EJ60: 0.219 | EO60: Canterbury | EP60: 221 | EQ60: 216 | ER60: 148 | ES60: 263 | ET60: 0.762 | EU60: 0.521 | EV60: 0.929 | EW60: 221 | EX60: 0.78 | EY60: 0.8158659341 | EZ60: 0.7531895665 | FA60: 0.9572950036 | FB60: 0.8871767278 | FC60: 0.9075716322 | FD60: 0.8987370491 | FE60: 0.9061432896 | FF60: 1 | FG60: 0.4664188331 | FH60: 0.3944099247 | FI60: 0.8976515538 | FJ60: 0.6201646894 | FK60: 0.5619192304 | FL60: 0.6271217037 | FM60: 0.6963023972 | FN60: 0.6018477521 | FO60: 0.4981185424 | FP60: 0.6186716651 | FQ60: 0.3197508999 | FR60: 0.9100993087 | FS60: 0.3159211258 | FT60: 0.4971993451 | FU60: 0.7288095658 | FV60: 0.6636387522 | FW60: 0.4734727411 | FX60: 0.261612496 | FY60: 0.4934380806 | FZ60: 0.3997751733 | GA60: 0.8711585683 | GB60: 0.872716593 | GC60: 0.9551037584 | GD60: 0.1036082251 | GE60: 0.8976515538 | GF60: 0.4152683921 | GG60: 0.5088990284 | GH60: 0.9810775972 | GI60: 0.8258931308 | GJ60: 0.9767717908 | GK60: 0.9875107067 | GL60: 0.5945434347 | GM60: 0.8421168347 | GN60: 0.9199257397 | GO60: 0.6082295105 | GP60: 0.4788470358 | GQ60: 0.6231336195 | GR60: 0.4070746228 | GS60: 0.8996596399 | GT60: 0.5006298895 | GU60: 0.4620837102 | GV60: 0.873159332 | GW60: 0.6790631441 | GX60: 48 | GY60: =AVERAGE(Data!EY60:FQ60) -> 0.7067555997 | GZ60: 63 | HA60: =AVERAGE(Data!FR60:FZ60) -> 0.5271073987 | HB60: 142 | HC60: =AVERAGE(Data!GA60:GL60) -> 0.7491835649 | HD60: 4
A61: E05004923 | B61: 29UCHA | C61: West Bay | D61: Canterbury | E61: NHS Canterbury & Coastal CCG | F61: 57 | G61: 0.6750207021 | H61: 0.813464762 | I61: 0.8528290203 | J61: 1.277693851 | K61: 0.8931044202 | L61: 0.9131341761 | M61: 1.242381203 | N61: 1.753120224 | O61: 0.9198385758 | P61: 0.6977167122 | Q61: 0.896623514 | R61: 0.7099783585 | S61: 0.3716159698 | T61: 0.7623405443 | U61: 0.7456760767 | V61: 0.5637305694 | W61: 1.44945498 | X61: 1.3745476 | Y61: 1.454289066 | Z61: 0.9346888014 | AA61: 0.6899304534 | AB61: 0.4265449388 | AC61: 1.297315282 | AD61: 1.102868795 | AE61: 0.8560006745 | AF61: 0.4171121235 | AG61: 1.424356719 | AH61: 0.8109206338 | AI61: 1.212863048 | AJ61: 0.9952957121 | AK61: 1.159982905 | AL61: 0.3510757778 | AM61: 0.896623514 | AN61: 0.7603927526 | AO61: 1.163408238 | AP61: 0.9423349368 | AQ61: 1.059738036 | AR61: 0.9604822491 | AS61: 0.92158525 | AT61: 0.7781953857 | AU61: 0.7804381615 | AV61: 229 | AW61: 0.808 | BB61: 1.215886775 | BC61: 72 | BD61: 0.251 | BI61: 0.7084400401 | BJ61: 249 | BK61: 0.879 | BP61: 1.426097215 | BQ61: 46 | BR61: 0.159 | BW61: 0.8902696541 | BX61: 197 | BY61: 0.695 | CD61: 0.8770975377 | CE61: 176 | CF61: 0.62 | CK61: 1.122713888 | CL61: 84 | CM61: 0.294 | CR61: 0.6238496459 | CS61: 251 | CT61: 0.886 | CY61: 0.9619004954 | CZ61: 179 | DA61: 0.631 | DF61: 0.9324671714 | DG61: 217 | DH61: 0.765 | DM61: 0.9666610697 | DN61: 175 | DO61: 0.617 | DT61: =AVERAGE(Data!Z61:AH61) -> 0.8844153801 | DU61: 200 | DV61: 0.705 | EA61: 0.9334981503 | EB61: 217 | EC61: 0.765 | EH61: 0.9382069138 | EI61: 194 | EJ61: 0.684 | EO61: Canterbury | EP61: 90 | EQ61: 109 | ER61: 84 | ES61: 67 | ET61: 0.382 | EU61: 0.294 | EV61: 0.234 | EW61: 90 | EX61: 0.315 | EY61: 0.3940090226 | EZ61: 0.5086824608 | FA61: 0.6436695668 | FB61: 0.8871767278 | FC61: 0.6331779834 | FD61: 0.6931649114 | FE61: 0.8186912712 | FF61: 1 | FG61: 0.4664188331 | FH61: 0.3944099247 | FI61: 0.6840780598 | FJ61: 0.4562421754 | FK61: 0.162089331 | FL61: 0.4739293736 | FM61: 0.3983560324 | FN61: 0.3366938416 | FO61: 0.7033943486 | FP61: 0.7231863547 | FQ61: 0.56178335 | FR61: 0.677336504 | FS61: 0.4260944833 | FT61: 0.2707333065 | FU61: 0.7288095658 | FV61: 0.6636387522 | FW61: 0.3468550949 | FX61: 0.122979227 | FY61: 0.6633301477 | FZ61: 0.2823534866 | GA61: 0.7142070903 | GB61: 0.8112581926 | GC61: 0.8390729088 | GD61: 0.04843177126 | GE61: 0.6840780598 | GF61: 0.2582372859 | GG61: 0.5561837938 | GH61: 0.8200194306 | GI61: 0.7745386562 | GJ61: 0.8542254329 | GK61: 0.8161193491 | GL61: 0.4231564579 | GM61: 0.5154536834 | GN61: 0.8064421788 | GO61: 0.4215271964 | GP61: 0.6627880178 | GQ61: 0.5533225223 | GR61: 0.353879489 | GS61: 0.7881793972 | GT61: 0.3662549155 | GU61: 0.4072105399 | GV61: 0.7376118653 | GW61: 0.5680203141 | GX61: 187 | GY61: =AVERAGE(Data!EY61:FQ61) -> 0.5757449247 | GZ61: 180 | HA61: =AVERAGE(Data!FR61:FZ61) -> 0.4646811742 | HB61: 197 | HC61: =AVERAGE(Data!GA61:GL61) -> 0.6332940358 | HD61: 188
A62: E05004924 | B62: 29UCHB | C62: Westgate | D62: Canterbury | E62: NHS Canterbury & Coastal CCG | F62: 58 | G62: 0.7631109037 | H62: 0.9981610824 | I62: 1.066667815 | J62: 1.277693851 | K62: 1.061155063 | L62: 0.9065119388 | M62: 0.7830669565 | N62: 1.753120224 | O62: 0.9198385758 | P62: 0.6977167122 | Q62: 0.849966868 | R62: 1.326190157 | S62: 1.169614765 | T62: 0.736543017 | U62: 0.8753673756 | V62: 1.256703922 | W62: 1.282035472 | X62: 1.180748154 | Y62: 1.32392684 | Z62: 1.021388415 | AA62: 0.815947534 | AB62: 1.34931457 | AC62: 1.297315282 | AD62: 1.102868795 | AE62: 1.09579592 | AF62: 0.3993099051 | AG62: 1.869128176 | AH62: 0.6747022275 | AI62: 0.9479096654 | AJ62: 1.046129601 | AK62: 1.231753461 | AL62: 2.05529134 | AM62: 0.849966868 | AN62: 2.383125572 | AO62: 0.3841767636 | AP62: 0.04668666928 | AQ62: 0.8741123351 | AR62: 0 | AS62: 0.4025751083 | AT62: 0.7847961527 | AU62: 0.9426466004 | AV62: 187 | AW62: 0.659 | BB62: 1.156309607 | BC62: 95 | BD62: 0.333 | BI62: 0.978992674 | BJ62: 153 | BK62: 0.539 | BP62: 1.262236822 | BQ62: 79 | BR62: 0.276 | BW62: 1.117366919 | BX62: 106 | BY62: 0.372 | CD62: 1.009734057 | CE62: 133 | CF62: 0.468 | CK62: 1.075264243 | CL62: 115 | CM62: 0.404 | CR62: 1.452629104 | CS62: 36 | CT62: 0.124 | CY62: 1.383651168 | CZ62: 6 | DA62: 0.017 | DF62: 0.4216340531 | DG62: 283 | DH62: 1 | DM62: 1.064638931 | DN62: 125 | DO62: 0.439 | DT62: =AVERAGE(Data!Z62:AH62) -> 1.069530092 | DU62: 112 | DV62: 0.393 | EA62: 0.9172102947 | EB62: 233 | EC62: 0.822 | EH62: 1.021510851 | EI62: 146 | EJ62: 0.514 | EO62: Canterbury | EP62: 138 | EQ62: 159 | ER62: 172 | ES62: 51 | ET62: 0.56 | EU62: 0.606 | EV62: 0.177 | EW62: 138 | EX62: 0.485 | EY62: 0.4454272 | EZ62: 0.6241782796 | FA62: 0.8050636107 | FB62: 0.8871767278 | FC62: 0.7523196699 | FD62: 0.6881379366 | FE62: 0.51601721 | FF62: 1 | FG62: 0.4664188331 | FH62: 0.3944099247 | FI62: 0.6484814159 | FJ62: 0.8522286277 | FK62: 0.5101558871 | FL62: 0.4578916513 | FM62: 0.4676398849 | FN62: 0.7505792558 | FO62: 0.6221486823 | FP62: 0.621223269 | FQ62: 0.5114251853 | FR62: 0.7401647018 | FS62: 0.5039214332 | FT62: 0.8564265138 | FU62: 0.7288095658 | FV62: 0.6636387522 | FW62: 0.444021143 | FX62: 0.117730511 | FY62: 0.8704624708 | FZ62: 0.2349237625 | GA62: 0.5581865202 | GB62: 0.8526925204 | GC62: 0.8909880959 | GD62: 0.2835325202 | GE62: 0.6484814159 | GF62: 0.8093342258 | GG62: 0.1836611456 | GH62: 0.04062671823 | GI62: 0.6388690135 | GJ62: 0 | GK62: 0.3565045506 | GL62: 0.4267457328 | GM62: 0.6248896968 | GN62: 0.7687303089 | GO62: 0.5684756851 | GP62: 0.5849323788 | GQ62: 0.6985921934 | GR62: 0.4167844718 | GS62: 0.7672890455 | GT62: 0.4660069681 | GU62: 0.4964976857 | GV62: 0.292549203 | GW62: 0.5717661141 | GX62: 183 | GY62: =AVERAGE(Data!EY62:FQ62) -> 0.6326801711 | GZ62: 134 | HA62: =AVERAGE(Data!FR62:FZ62) -> 0.5733443171 | HB62: 96 | HC62: =AVERAGE(Data!GA62:GL62) -> 0.4741352049 | HD62: 281
A63: E05004925 | B63: 29UCHC | C63: Wincheap | D63: Canterbury | E63: NHS Canterbury & Coastal CCG | F63: 59 | G63: 0.7525585444 | H63: 0.9279898644 | I63: 1.074528554 | J63: 1.277693851 | K63: 0.9182264952 | L63: 0.8918148155 | M63: 0.804175705 | N63: 1.753120224 | O63: 0.9198385758 | P63: 0.6977167122 | Q63: 0.8229421896 | R63: 1.245025591 | S63: 1.207434782 | T63: 0.6482976514 | U63: 0.7516134287 | V63: 1.101496257 | W63: 1.205105117 | X63: 1.097244445 | Y63: 1.098109017 | Z63: 0.9858955428 | AA63: 1.11598874 | AB63: 1.016378225 | AC63: 1.297315282 | AD63: 1.102868795 | AE63: 0.9917208316 | AF63: 0.898603084 | AG63: 1.380017014 | AH63: 0.620968853 | AI63: 0.8866662626 | AJ63: 0.9713519527 | AK63: 1.252222621 | AL63: 0.5642655439 | AM63: 0.8229421896 | AN63: 1.900282532 | AO63: 0.6307017438 | AP63: 0.9319055463 | AQ63: 0.9945683584 | AR63: 0.9347342909 | AS63: 0.9689671553 | AT63: 0.7094467764 | AU63: 0.9183589877 | AV63: 196 | AW63: 0.691 | BB63: 1.129006218 | BC63: 109 | BD63: 0.382 | BI63: 0.9242956485 | BJ63: 176 | BK63: 0.62 | BP63: 1.133486193 | BQ63: 112 | BR63: 0.393 | BW63: 1.103689317 | BX63: 111 | BY63: 0.39 | CD63: 0.9728274458 | CE63: 142 | CF63: 0.5 | CK63: 1.036746945 | CL63: 142 | CM63: 0.5 | CR63: 0.6936038668 | CS63: 225 | CT63: 0.794 | CY63: 1.265492138 | CZ63: 12 | DA63: 0.039 | DF63: 0.9079244254 | DG63: 231 | DH63: 0.815 | DM63: 1.01025957 | DN63: 156 | DO63: 0.549 | DT63: =AVERAGE(Data!Z63:AH63) -> 1.045528485 | DU63: 125 | DV63: 0.439 | EA63: 0.964004581 | EB63: 186 | EC63: 0.656 | EH63: 1.004318579 | EI63: 158 | EJ63: 0.556 | EO63: Canterbury | EP63: 126 | EQ63: 128 | ER63: 159 | ES63: 98 | ET63: 0.45 | EU63: 0.56 | EV63: 0.343 | EW63: 126 | EX63: 0.443 | EY63: 0.4392677966 | EZ63: 0.5802982377 | FA63: 0.8109964749 | FB63: 0.8871767278 | FC63: 0.6509886049 | FD63: 0.6769812736 | FE63: 0.5299272306 | FF63: 1 | FG63: 0.4664188331 | FH63: 0.3944099247 | FI63: 0.6278629632 | FJ63: 0.8000711251 | FK63: 0.5266520063 | FL63: 0.4030315613 | FM63: 0.4015278922 | FN63: 0.6578798921 | FO63: 0.5848157694 | FP63: 0.5772897284 | FQ63: 0.4241930828 | FR63: 0.7144442506 | FS63: 0.6892240268 | FT63: 0.6451077309 | FU63: 0.7288095658 | FV63: 0.6636387522 | FW63: 0.4018494767 | FX63: 0.2649395845 | FY63: 0.6426809224 | FZ63: 0.216214403 | GA63: 0.5221227019 | GB63: 0.791741811 | GC63: 0.9057944496 | GD63: 0.07784182641 | GE63: 0.6278629632 | GF63: 0.6453557085 | GG63: 0.3015159057 | GH63: 0.8109437798 | GI63: 0.7269076073 | GJ63: 0.8313259356 | GK63: 0.8580788854 | GL63: 0.3857732781 | GM63: 0.6101875031 | GN63: 0.7490147674 | GO63: 0.5347317748 | GP63: 0.5287661935 | GQ63: 0.6882448652 | GR63: 0.3814210967 | GS63: 0.7398863208 | GT63: 0.3528523948 | GU63: 0.4734358071 | GV63: 0.7226058972 | GW63: 0.5972990672 | GX63: 160 | GY63: =AVERAGE(Data!EY63:FQ63) -> 0.6020941645 | GZ63: 162 | HA63: =AVERAGE(Data!FR63:FZ63) -> 0.5518787459 | HB63: 118 | HC63: =AVERAGE(Data!GA63:GL63) -> 0.623772071 | HD63: 209
A64: E05004926 | B64: 29UDGA | C64: Bean and Darenth | D64: Dartford | E64: NHS Dartford, Gravesham & Swanley CCG | F64: 60 | G64: 1.061395328 | H64: 0.907792608 | I64: 0.8485438866 | J64: 1.088346516 | K64: 0.8655118108 | L64: 0.9310101402 | M64: 1.01984375 | N64: 1.120691019 | O64: 0.0113670343 | P64: 0.9954291871 | Q64: 0.8621064867 | R64: 1.066059489 | S64: 1.379655894 | T64: 1.159653087 | U64: 0.7542460699 | V64: 0.6140495381 | W64: 0.6759093563 | X64: 0.7150552288 | Y64: 0.8610505515 | Z64: 1.022371085 | AA64: 1.277098255 | AB64: 1.008787799 | AC64: 0.5031535123 | AD64: 1.020549805 | AE64: 0.9336147326 | AF64: 0.8304102292 | AG64: 1.04728567 | AH64: 0.5420473735 | AI64: 0.7422442109 | AJ64: 1.10892918 | AK64: 1.267471853 | AL64: 2.365483609 | AM64: 0.8621064867 | AN64: 0.8873026162 | AO64: 0.926174302 | AP64: 0.9928213735 | AQ64: 0.9651639648 | AR64: 0.9976688321 | AS64: 1.006955766 | AT64: 0.8471297784 | AU64: 0.9392439409 | AV64: 189 | AW64: 0.666 | BB64: 1.005080647 | BC64: 158 | BD64: 0.556 | BI64: 0.8553208482 | BJ64: 204 | BK64: 0.719 | BP64: 0.7506717122 | BQ64: 203 | BR64: 0.716 | BW64: 0.9663920912 | BX64: 175 | BY64: 0.617 | CD64: 0.8383395013 | CE64: 191 | CF64: 0.673 | CK64: 1.039548415 | CL64: 140 | CM64: 0.492 | CR64: 1.613795048 | CS64: 23 | CT64: 0.078 | CY64: 0.9067384591 | CZ64: 230 | DA64: 0.812 | DF64: 0.9619479429 | DG64: 196 | DH64: 0.691 | DM64: 0.8914587885 | DN64: 196 | DO64: 0.691 | DT64: =AVERAGE(Data!Z64:AH64) -> 0.909479829 | DU64: 191 | DV64: 0.673 | EA64: 1.080787664 | EB64: 45 | EC64: 0.156 | EH64: 0.9523121853 | EI64: 186 | EJ64: 0.656 | EO64: Dartford | EP64: 98 | EQ64: 88 | ER64: 93 | ES64: 239 | ET64: 0.308 | EU64: 0.326 | EV64: 0.843 | EW64: 98 | EX64: 0.343 | EY64: 0.6195355705 | EZ64: 0.5676683235 | FA64: 0.6404353779 | FB64: 0.7557019237 | FC64: 0.6136158445 | FD64: 0.7067346489 | FE64: 0.6720458857 | FF64: 0.6392550855 | FG64: 0.005763836191 | FH64: 0.5627028045 | FI64: 0.6577433266 | FJ64: 0.6850649667 | FK64: 0.6017704268 | FL64: 0.7209293341 | FM64: 0.4029343052 | FN64: 0.3667473597 | FO64: 0.328006615 | FP64: 0.3762097322 | FQ64: 0.3326187858 | FR64: 0.7408768087 | FS64: 0.7887237308 | FT64: 0.640289994 | FU64: 0.2826630488 | FV64: 0.6141042359 | FW64: 0.3783046396 | FX64: 0.2448339483 | FY64: 0.4877262477 | FZ64: 0.1887348274 | GA64: 0.4370782664 | GB64: 0.9038799936 | GC64: 0.9168249725 | GD64: 0.3263243103 | GE64: 0.6577433266 | GF64: 0.3013371953 | GG64: 0.442770749 | GH64: 0.8639527047 | GI64: 0.7054165985 | GJ64: 0.8872981159 | GK64: 0.8917200921 | GL64: 0.4606406604 | GM64: 0.6092130906 | GN64: 0.6774706776 | GO64: 0.500457045 | GP64: 0.345611711 | GQ64: 0.6133315637 | GR64: 0.3248999157 | GS64: 0.7525944108 | GT64: 0.4920338184 | GU64: 0.3720539721 | GV64: 0.7618056343 | GW64: 0.5604182155 | GX64: 195 | GY64: =AVERAGE(Data!EY64:FQ64) -> 0.5397623238 | GZ64: 197 | HA64: =AVERAGE(Data!FR64:FZ64) -> 0.4851397201 | HB64: 184 | HC64: =AVERAGE(Data!GA64:GL64) -> 0.6495822488 | HD64: 150
A65: E05004927 | B65: 29UDGB | C65: Brent | D65: Dartford | E65: NHS Dartford, Gravesham & Swanley CCG | F65: 61 | G65: 1.067330628 | H65: 0.9612750732 | I65: 1.097074341 | J65: 1.088346516 | K65: 1.205231052 | L65: 1.127316208 | M65: 1.071127958 | N65: 1.120691019 | O65: 0.0113670343 | P65: 0.9954291871 | Q65: 1.151246561 | R65: 1.100656211 | S65: 1.512978776 | T65: 1.072380125 | U65: 0.9532763264 | V65: 0.9203283058 | W65: 0.7568186068 | X65: 0.8905688351 | Y65: 0.4301746136 | Z65: 1.135440714 | AA65: 1.137719992 | AB65: 1.183504092 | AC65: 0.5031535123 | AD65: 1.020549805 | AE65: 0.899720946 | AF65: 0.6575400404 | AG65: 1.137288736 | AH65: 0.5106994884 | AI65: 1.269387821 | AJ65: 1.140822501 | AK65: 1.283115177 | AL65: 0.8980333722 | AM65: 1.151246561 | AN65: 1.09136485 | AO65: 0.8065222821 | AP65: 1.052994947 | AQ65: 0.9364144235 | AR65: 1.062710741 | AS65: 1.052374502 | AT65: 0.9302404659 | AU65: 1.041893347 | AV65: 136 | AW65: 0.478 | BB65: 1.12254255 | BC65: 114 | BD65: 0.4 | BI65: 0.9647078158 | BJ65: 162 | BK65: 0.57 | BP65: 0.6925206852 | BQ65: 218 | BR65: 0.769 | BW65: 0.996073623 | BX65: 165 | BY65: 0.581 | CD65: 0.8013123027 | CE65: 205 | CF65: 0.723 | CK65: 1.2311085 | CL65: 19 | CM65: 0.063 | CR65: 1.024639967 | CS65: 94 | CT65: 0.329 | CY65: 0.9489435663 | CZ65: 198 | DA65: 0.698 | DF65: 1.006947016 | DG65: 162 | DH65: 0.57 | DM65: 0.9754535461 | DN65: 171 | DO65: 0.602 | DT65: =AVERAGE(Data!Z65:AH65) -> 0.9095130362 | DU65: 190 | DV65: 0.67 | EA65: 1.05626897 | EB65: 67 | EC65: 0.234 | EH65: 0.9848615586 | EI65: 168 | EJ65: 0.592 | EO65: Dartford | EP65: 116 | EQ65: 113 | ER65: 94 | ES65: 217 | ET65: 0.397 | EU65: 0.329 | EV65: 0.765 | EW65: 116 | EX65: 0.407 | EY65: 0.623 | EZ65: 0.6011124176 | FA65: 0.8280128242 | FB65: 0.7557019237 | FC65: 0.8544642147 | FD65: 0.8557516076 | FE65: 0.7058406126 | FF65: 0.6392550855 | FG65: 0.005763836191 | FH65: 0.5627028045 | FI65: 0.8783424723 | FJ65: 0.7072973111 | FK65: 0.6599224402 | FL65: 0.6666737651 | FM65: 0.5092605047 | FN65: 0.5496754826 | FO65: 0.3672704144 | FP65: 0.4685521473 | FQ65: 0.1661739342 | FR65: 0.8228144409 | FS65: 0.7026450418 | FT65: 0.7511845692 | FU65: 0.2826630488 | FV65: 0.6141042359 | FW65: 0.3645707338 | FX65: 0.1938657769 | FY65: 0.5296411322 | FZ65: 0.1778198447 | GA65: 0.7474922944 | GB65: 0.9298760048 | GC65: 0.9281405606 | GD65: 0.1238859233 | GE65: 0.8783424723 | GF65: 0.370638852 | GG65: 0.3855694054 | GH65: 0.9163157205 | GI65: 0.6844042064 | GJ65: 0.9451445292 | GK65: 0.9319411235 | GL65: 0.5058334549 | GM65: 0.6840417473 | GN65: 0.7622026888 | GO65: 0.5674548271 | GP65: 0.333998832 | GQ65: 0.6346822673 | GR65: 0.3164743719 | GS65: 0.8685029533 | GT65: 0.5011141978 | GU65: 0.3781041287 | GV65: 0.7967278069 | GW65: 0.6047916792 | GX65: 153 | GY65: =AVERAGE(Data!EY65:FQ65) -> 0.6002512525 | GZ65: 163 | HA65: =AVERAGE(Data!FR65:FZ65) -> 0.493256536 | HB65: 176 | HC65: =AVERAGE(Data!GA65:GL65) -> 0.6956320456 | HD65: 48
A66: E05004928 | B66: 29UDGC | C66: Castle | D66: Dartford | E66: NHS Dartford, Gravesham & Swanley CCG | F66: 62 | G66: 1.160421119 | H66: 1.197917077 | I66: 1.201074131 | J66: 1.088346516 | K66: 1.135052537 | L66: 1.150958938 | M66: 0.9450761787 | N66: 1.120691019 | O66: 0.0113670343 | P66: 0.9954291871 | Q66: 1.069079326 | R66: 1.390027834 | S66: 1.27578863 | T66: 1.086594355 | U66: 1.159447927 | V66: 1.614531504 | W66: 0.9609915694 | X66: 1.18116029 | Y66: 0.63356111 | Z66: 1.118116332 | AA66: 1.619195931 | AB66: 1.468843991 | AC66: 0.5031535123 | AD66: 1.020549805 | AE66: 0.9947012516 | AF66: 1.321476958 | AG66: 0.8334159569 | AH66: 0.5522402575 | AI66: 0.6251006519 | AJ66: 1.18119299 | AK66: 1.256605199 | AL66: 0.2259933127 | AM66: 1.069079326 | AN66: 1.765269794 | AO66: 0.3367857196 | AP66: 1.019628282 | AQ66: 1.134308052 | AR66: 0.9560698909 | AS66: 1.026480561 | AT66: 0.6665173332 | AU66: 1.186470776 | AV66: 60 | AW66: 0.209 | BB66: 1.088025038 | BC66: 125 | BD66: 0.439 | BI66: 1.075283225 | BJ66: 112 | BK66: 0.393 | BP66: 0.9252376566 | BQ66: 169 | BR66: 0.595 | BW66: 1.145971914 | BX66: 88 | BY66: 0.308 | CD66: 0.9254586059 | CE66: 158 | CF66: 0.556 | CK66: 1.020966281 | CL66: 149 | CM66: 0.524 | CR66: 0.6475363193 | CS66: 244 | CT66: 0.861 | CY66: 1.051027757 | CZ66: 75 | DA66: 0.262 | DF66: 0.9606008239 | DG66: 198 | DH66: 0.698 | DM66: 1.072500857 | DN66: 120 | DO66: 0.421 | DT66: =AVERAGE(Data!Z66:AH66) -> 1.047965999 | DU66: 124 | DV66: 0.436 | EA66: 0.9385859261 | EB66: 213 | EC66: 0.751 | EH66: 1.026806035 | EI66: 142 | EJ66: 0.5 | EO66: Dartford | EP66: 142 | EQ66: 164 | ER66: 160 | ES66: 71 | ET66: 0.578 | EU66: 0.563 | EV66: 0.248 | EW66: 142 | EX66: 0.5 | EY66: 0.6773368421 | EZ66: 0.7490913377 | FA66: 0.9065062836 | FB66: 0.7557019237 | FC66: 0.8047102446 | FD66: 0.8736989273 | FE66: 0.6227763397 | FF66: 0.6392550855 | FG66: 0.005763836191 | FH66: 0.5627028045 | FI66: 0.8156530579 | FJ66: 0.8932516258 | FK66: 0.5564661974 | FL66: 0.6755104208 | FM66: 0.6194017625 | FN66: 0.9642954346 | FO66: 0.4663518692 | FP66: 0.6214401051 | FQ66: 0.2447409467 | FR66: 0.8102600632 | FS66: 1 | FT66: 0.9322933039 | FU66: 0.2826630488 | FV66: 0.6141042359 | FW66: 0.4030571555 | FX66: 0.3896175767 | FY66: 0.3881260378 | FZ66: 0.1922838755 | GA66: 0.3680970565 | GB66: 0.9627816927 | GC66: 0.9089645853 | GD66: 0.03117633605 | GE66: 0.8156530579 | GF66: 0.5995039786 | GG66: 0.1610051855 | GH66: 0.8872800647 | GI66: 0.8290402013 | GJ66: 0.8503012078 | GK66: 0.9090104767 | GL66: 0.3624296918 | GM66: 0.7776448211 | GN66: 0.7392285041 | GO66: 0.6366306425 | GP66: 0.4441776403 | GQ66: 0.7278641304 | GR66: 0.3432711614 | GS66: 0.7466144448 | GT66: 0.423414697 | GU66: 0.3802545821 | GV66: 0.7676123285 | GW66: 0.6288075969 | GX66: 117 | GY66: =AVERAGE(Data!EY66:FQ66) -> 0.6555081602 | GZ66: 108 | HA66: =AVERAGE(Data!FR66:FZ66) -> 0.5569339219 | HB66: 111 | HC66: =AVERAGE(Data!GA66:GL66) -> 0.6404369612 | HD66: 170
A67: E05004929 | B67: 29UDGD | C67: Greenhithe | D67: Dartford | E67: NHS Dartford, Gravesham & Swanley CCG | F67: 63 | G67: 1.110470124 | H67: 0.9466334857 | I67: 1.034851589 | J67: 1.088346516 | K67: 1.00208979 | L67: 1.104592453 | M67: 0.8945054319 | N67: 1.120691019 | O67: 0.0113670343 | P67: 0.9954291871 | Q67: 1.136290949 | R67: 1.291339177 | S67: 1.311869655 | T67: 1.12778454 | U67: 1.188368747 | V67: 1.408826097 | W67: 1.14440188 | X67: 1.224142046 | Y67: 1.01026538 | Z67: 1.053225207 | AA67: 1.495041739 | AB67: 1.24759855 | AC67: 0.5031535123 | AD67: 1.020549805 | AE67: 0.9592026568 | AF67: 1.190137381 | AG67: 0.9045571351 | AH67: 0.3682965339 | AI67: 1.005943336 | AJ67: 1.062228145 | AK67: 1.197477659 | AL67: 0.359589298 | AM67: 1.136290949 | AN67: 1.603709804 | AO67: 0.334635179 | AP67: 1.071499268 | AQ67: 1.152944282 | AR67: 1.029478783 | AS67: 1.076076467 | AT67: 1.018756368 | AU67: 1.030651733 | AV67: 147 | AW67: 0.517 | BB67: 1.042045042 | BC67: 138 | BD67: 0.485 | BI67: 1.058909423 | BJ67: 120 | BK67: 0.421 | BP67: 1.126269769 | BQ67: 114 | BR67: 0.4 | BW67: 1.063913762 | BX67: 133 | BY67: 0.468 | CD67: 0.8555484267 | CE67: 184 | CF67: 0.648 | CK67: 1.088549713 | CL67: 105 | CM67: 0.368 | CR67: 0.7479401235 | CS67: 204 | CT67: 0.719 | CY67: 0.9691724916 | CZ67: 166 | DA67: 0.585 | DF67: 1.069751034 | DG67: 93 | DH67: 0.326 | DM67: 1.060645532 | DN67: 130 | DO67: 0.457 | DT67: =AVERAGE(Data!Z67:AH67) -> 0.9713069466 | DU67: 162 | DV67: 0.57 | EA67: 1.004052462 | EB67: 126 | EC67: 0.443 | EH67: 1.023566429 | EI67: 145 | EJ67: 0.51 | EO67: Dartford | EP67: 139 | EQ67: 154 | ER67: 122 | ES67: 158 | ET67: 0.542 | EU67: 0.429 | EV67: 0.556 | EW67: 139 | EX67: 0.489 | EY67: 0.6481804878 | EZ67: 0.59195662 | FA67: 0.7810504308 | FB67: 0.7557019237 | FC67: 0.7104445772 | FD67: 0.8385018869 | FE67: 0.589451762 | FF67: 0.6392550855 | FG67: 0.005763836191 | FH67: 0.5627028045 | FI67: 0.866932102 | FJ67: 0.8298328929 | FK67: 0.5722038125 | FL67: 0.7011174001 | FM67: 0.63485188 | FN67: 0.8414357787 | FO67: 0.5553575837 | FP67: 0.6440539592 | FQ67: 0.3902596003 | FR67: 0.7632357196 | FS67: 0.9233235522 | FT67: 0.7918661078 | FU67: 0.2826630488 | FV67: 0.6141042359 | FW67: 0.3886729747 | FX67: 0.3508940808 | FY67: 0.4212568453 | FZ67: 0.1282367301 | GA67: 0.592360254 | GB67: 0.8658143252 | GC67: 0.8661947159 | GD67: 0.0496062324 | GE67: 0.866932102 | GF67: 0.5446365261 | GG67: 0.1599770891 | GH67: 0.9324181726 | GI67: 0.8426610022 | GJ67: 0.9155889758 | GK67: 0.9529306441 | GL67: 0.5539654232 | GM67: 0.6737291795 | GN67: 0.7066710471 | GO67: 0.6268550633 | GP67: 0.5298903811 | GQ67: 0.6750385329 | GR67: 0.3222651577 | GS67: 0.774789765 | GT67: 0.4582691672 | GU67: 0.3523068076 | GV67: 0.8395128436 | GW67: 0.6241598295 | GX67: 125 | GY67: =AVERAGE(Data!EY67:FQ67) -> 0.6399502328 | GZ67: 129 | HA67: =AVERAGE(Data!FR67:FZ67) -> 0.5182503661 | HB67: 154 | HC67: =AVERAGE(Data!GA67:GL67) -> 0.6785904552 | HD67: 83
A68: E05004930 | B68: 29UDGE | C68: Heath | D68: Dartford | E68: NHS Dartford, Gravesham & Swanley CCG | F68: 64 | G68: 1.519793711 | H68: 1.084168397 | I68: 1.208175381 | J68: 1.088346516 | K68: 1.345659194 | L68: 1.25499537 | M68: 1.334758878 | N68: 1.120691019 | O68: 0.0113670343 | P68: 0.9954291871 | Q68: 1.18170785 | R68: 1.302025214 | S68: 1.017552004 | T68: 1.024415735 | U68: 1.174936704 | V68: 1.00070337 | W68: 1.297274957 | X68: 1.311668864 | Y68: 0.9706485109 | Z68: 1.28769115 | AA68: 1.234332682 | AB68: 1.10675358 | AC68: 0.5031535123 | AD68: 1.020549805 | AE68: 1.395642319 | AF68: 1.177458504 | AG68: 0.9949569032 | AH68: 0.7138216269 | AI68: 1.142526689 | AJ68: 1.042347053 | AK68: 1.030019713 | AL68: 0.1705556991 | AM68: 1.18170785 | AN68: 1.064317594 | AO68: 0.8314270392 | AP68: 1.121668047 | AQ68: 1.033154497 | AR68: 1.105431809 | AS68: 1.113021688 | AT68: 0.5105508859 | AU68: 1.270712496 | AV68: 26 | AW68: 0.088 | BB68: 1.228890195 | BC68: 66 | BD68: 0.23 | BI68: 0.9635171371 | BJ68: 163 | BK68: 0.574 | BP68: 1.193197444 | BQ68: 102 | BR68: 0.358 | BW68: 1.030496146 | BX68: 144 | BY68: 0.507 | CD68: 1.070469838 | CE68: 111 | CF68: 0.39 | CK68: 1.071631152 | CL68: 119 | CM68: 0.418 | CR68: 0.6761317744 | CS68: 234 | CT68: 0.826 | CY68: 0.9478723168 | CZ68: 202 | DA68: 0.712 | DF68: 0.9767653857 | DG68: 185 | DH68: 0.652 | DM68: 1.118121995 | DN68: 91 | DO68: 0.319 | DT68: =AVERAGE(Data!Z68:AH68) -> 1.048262231 | DU68: 123 | DV68: 0.432 | EA68: 0.9455607139 | EB68: 203 | EC68: 0.716 | EH68: 1.050635164 | EI68: 122 | EJ68: 0.429 | EO68: Dartford | EP68: 162 | EQ68: 193 | ER68: 161 | ES68: 81 | ET68: 0.68 | EU68: 0.567 | EV68: 0.283 | EW68: 162 | EX68: 0.57 | EY68: 0.8871023256 | EZ68: 0.6779610795 | FA68: 0.9118659255 | FB68: 0.7557019237 | FC68: 0.9540225709 | FD68: 0.9526735253 | FE68: 0.8795653376 | FF68: 0.6392550855 | FG68: 0.005763836191 | FH68: 0.5627028045 | FI68: 0.9015828834 | FJ68: 0.836699892 | FK68: 0.4438300206 | FL68: 0.6368554201 | FM68: 0.6276761965 | FN68: 0.5976803107 | FO68: 0.6295441297 | FP68: 0.6901041657 | FQ68: 0.3749558357 | FR68: 0.9331450433 | FS68: 0.7623121194 | FT68: 0.7024700774 | FU68: 0.2826630488 | FV68: 0.6141042359 | FW68: 0.5655201724 | FX68: 0.3471559048 | FY68: 0.4633564757 | FZ68: 0.2485446994 | GA68: 0.67278879 | GB68: 0.8496093939 | GC68: 0.7450641153 | GD68: 0.02352858023 | GE68: 0.9015828834 | GF68: 0.3614533226 | GG68: 0.3974754774 | GH68: 0.9760750215 | GI68: 0.755109347 | GJ68: 0.9831394247 | GK68: 0.985647867 | GL68: 0.2776203874 | GM68: 0.8256431102 | GN68: 0.8362436886 | GO68: 0.5765989205 | GP68: 0.5648680437 | GQ68: 0.658938905 | GR68: 0.4061443131 | GS68: 0.7558207664 | GT68: 0.4625557318 | GU68: 0.3794644 | GV68: 0.7955184095 | GW68: 0.6453477414 | GX68: 96 | GY68: =AVERAGE(Data!EY68:FQ68) -> 0.6823970141 | GZ68: 84 | HA68: =AVERAGE(Data!FR68:FZ68) -> 0.546585753 | HB68: 121 | HC68: =AVERAGE(Data!GA68:GL68) -> 0.6607578842 | HD68: 119
A69: E05004931 | B69: 29UDGF | C69: Joyce Green | D69: Dartford | E69: NHS Dartford, Gravesham & Swanley CCG | F69: 65 | G69: 0.7338835417 | H69: 0.8575102314 | I69: 0.8955523876 | J69: 1.088346516 | K69: 0.7617447824 | L69: 0.6822409327 | M69: 0.3414440078 | N69: 1.120691019 | O69: 0.0113670343 | P69: 0.9954291871 | Q69: 1.07121504 | R69: 0.8717804692 | S69: 0.8723261933 | T69: 0.9388138198 | U69: 0.7183870336 | V69: 1.394445604 | W69: 0.05259787268 | X69: 0.2306330586 | Y69: 0.1126392538 | Z69: 0.4789132903 | AA69: 0.9178948928 | AB69: 0.7756680909 | AC69: 0.5031535123 | AD69: 1.020549805 | AE69: 0.6121823605 | AF69: 1.113903482 | AG69: 1.274361931 | AH69: 0.326597585 | AI69: 0.6287766446 | AJ69: 1.043311161 | AK69: 1.084042116 | AL69: 0.7995049734 | AM69: 1.07121504 | AN69: 1.217829427 | AO69: 0.6881019644 | AP69: 1.012119959 | AQ69: 1.057940274 | AR69: 1.004058507 | AS69: 1.010294303 | AT69: 1.047474018 | AU69: 0.8289820536 | AV69: 219 | AW69: 0.773 | BB69: 0.7988934516 | BC69: 222 | BD69: 0.783 | BI69: 0.8592205477 | BJ69: 203 | BK69: 0.716 | BP69: 0.1319567284 | BQ69: 279 | BR69: 0.985 | BW69: 0.7392359182 | BX69: 236 | BY69: 0.833 | CD69: 0.8317613396 | CE69: 193 | CF69: 0.68 | CK69: 0.918709974 | CL69: 202 | CM69: 0.712 | CR69: 0.9353600069 | CS69: 120 | CT69: 0.421 | CY69: 0.9529656959 | CZ69: 190 | DA69: 0.67 | DF69: 1.026377412 | DG69: 140 | DH69: 0.492 | DM69: 0.7237393677 | DN69: 250 | DO69: 0.882 | DT69: =AVERAGE(Data!Z69:AH69) -> 0.7803583277 | DU69: 227 | DV69: 0.801 | EA69: 0.972055699 | EB69: 173 | EC69: 0.609 | EH69: 0.8109735331 | EI69: 243 | EJ69: 0.858 | EO69: Dartford | EP69: 41 | EQ69: 34 | ER69: 57 | ES69: 111 | ET69: 0.117 | EU69: 0.198 | EV69: 0.39 | EW69: 41 | EX69: 0.141 | EY69: 0.4283672131 | EZ69: 0.5362253351 | FA69: 0.6759148712 | FB69: 0.7557019237 | FC69: 0.5400488613 | FD69: 0.5178926472 | FE69: 0.2250011737 | FF69: 0.6392550855 | FG69: 0.005763836191 | FH69: 0.5627028045 | FI69: 0.8172824992 | FJ69: 0.5602185095 | FK69: 0.3804862562 | FL69: 0.5836387017 | FM69: 0.3837776447 | FN69: 0.8328468827 | FO69: 0.02552479857 | FP69: 0.1213422372 | FQ69: 0.04351188411 | FR69: 0.3470518244 | FS69: 0.5668831519 | FT69: 0.492326055 | FU69: 0.2826630488 | FV69: 0.6141042359 | FW69: 0.2480588825 | FX69: 0.3284176641 | FY69: 0.593476814 | FZ69: 0.1137176229 | GA69: 0.3702617032 | GB69: 0.8503952312 | GC69: 0.7841411866 | GD69: 0.1102936871 | GE69: 0.8172824992 | GF69: 0.4135875374 | GG69: 0.3289568945 | GH69: 0.8807463247 | GI69: 0.7732247124 | GJ69: 0.89298091 | GK69: 0.8946765689 | GL69: 0.5695811147 | GM69: 0.5468358065 | GN69: 0.5355799383 | GO69: 0.5158396418 | GP69: 0.06345963998 | GQ69: 0.4606056632 | GR69: 0.3209177459 | GS69: 0.6682660404 | GT69: 0.4637880932 | GU69: 0.371272216 | GV69: 0.8022419261 | GW69: 0.4977082709 | GX69: 239 | GY69: =AVERAGE(Data!EY69:FQ69) -> 0.4545001666 | GZ69: 243 | HA69: =AVERAGE(Data!FR69:FZ69) -> 0.3985221444 | HB69: 235 | HC69: =AVERAGE(Data!GA69:GL69) -> 0.6405106975 | HD69: =RANK(HC69,HC$5:HC$287) -> 169
A70: E05004932 | B70: 29UDGG | C70: Joydens Wood | D70: Dartford | E70: NHS Dartford, Gravesham & Swanley CCG | F70: 66 | G70: 1.370724089 | H70: 1.164803522 | I70: 1.175287149 | J70: 1.088346516 | K70: 1.256929254 | L70: 1.211180909 | M70: 1.354078841 | N70: 1.120691019 | O70: 0.0113670343 | P70: 0.9954291871 | Q70: 0.9637885525 | R70: 1.245199162 | S70: 2.120264642 | T70: 1.531353352 | U70: 1.197163903 | V70: 0.9989923613 | W70: 1.401256691 | X70: 1.168639259 | Y70: 1.592183439 | Z70: 1.151349636 | AA70: 1.097780457 | AB70: 1.031349526 | AC70: 0.5031535123 | AD70: 1.020549805 | AE70: 1.517644079 | AF70: 1.325028307 | AG70: 0.8246704104 | AH70: 1.111710923 | AI70: 1.268255767 | AJ70: 1.202941638 | AK70: 0.9033777132 | AL70: 0.7332662657 | AM70: 0.9637885525 | AN70: 1.177407738 | AO70: 0.8532576545 | AP70: 1.094398226 | AQ70: 1.163043841 | AR70: 1.084156442 | AS70: 1.075099231 | AT70: 0.3698044445 | AU70: =AVERAGE(G70:I70) -> 1.236938254 | AV70: 38 | AW70: =PERCENTRANK($AV$5:$AV$287,AV70) -> 0.131 | BB70: =AVERAGE(J70:N70) -> 1.206245308 | BC70: =RANK(BB70,$BB$5:$BB$287) -> 77 | BD70: =PERCENTRANK($BC$5:$BC$287,BC70) -> 0.269 | BI70: =AVERAGE(O70:V70) -> 1.132944774 | BJ70: =RANK(BI70,$BI$5:$BI$287) -> 95 | BK70: =PERCENTRANK($BJ$5:$BJ$287,BJ70) -> 0.333 | BP70: =AVERAGE(W70:Y70) -> 1.387359796 | BQ70: =RANK(BP70,$BP$5:$BP$287) -> 54 | BR70: =PERCENTRANK($BJ$5:$BJ$287,BQ70) -> 0.187 | BW70: =AVERAGE(Z70:AD70) -> 0.9608365872 | BX70: =RANK(BW70,$BW$5:$BW$287) -> 177 | BY70: =PERCENTRANK($BX$5:$BX$287,BX70) -> 0.624 | CD70: =AVERAGE(AE70:AH70) -> 1.19476343 | CE70: =RANK(CD70,$CD$5:$CD$287) -> 76 | CF70: =PERCENTRANK($CE$5:$CE$287,CE70) -> 0.265 | CK70: =AVERAGE(AI70:AK70) -> 1.124858373 | CL70: =RANK(CK70,$CK$5:$CK$287) -> 83 | CM70: =PERCENTRANK($CL$5:$CL$287,CL70) -> 0.29 | CR70: =AVERAGE(AL70:AM70) -> 0.8485274091 | CS70: =RANK(CR70,$CR$5:$CR$287) -> 154 | CT70: =PERCENTRANK($CS$5:$CS$287,CS70) -> 0.542 | CY70: =AVERAGE(AN70:AO70) -> 1.015332696 | CZ70: =RANK(CY70,$CY$5:$CY$287) -> 110 | DA70: =PERCENTRANK($CZ$5:$CZ$287,CZ70) -> 0.386 | DF70: =AVERAGE(AP70:AT70) -> 0.957300437 | DG70: =RANK(DF70,$DF$5:$DF$287) -> 200 | DH70: =PERCENTRANK($DG$5:$DG$287,DG70) -> 0.705 | DM70: =AVERAGE(G70:Y70) -> 1.208825204 | DN70: =RANK(DM70,DM$5:DM$287) -> 48 | DO70: =PERCENTRANK(DN$5:DN$287,DN70) -> 0.166 | DT70: =AVERAGE(Data!Z70:AH70) -> 1.064804073 | DU70: =RANK(DT70,DT$5:DT$287) -> 119 | DV70: =PERCENTRANK(DU$5:DU$287,DU70) -> 0.418 | EA70: =AVERAGE(AI70:AT70) -> 0.9907331262 | EB70: =RANK(EA70,EA$5:EA$287) -> 145 | EC70: =PERCENTRANK(EB$5:EB$287,EB70) -> 0.51 | EH70: =AVERAGE(G70:AT70) -> 1.110992826 | EI70: =RANK(EH70,EH$5:EH$287) -> 73 | EJ70: =PERCENTRANK(EI$5:EI$287,EI70) -> 0.255 | EO70: Dartford | EP70: =RANK(EH70,EH$5:EH$287,1) -> 211 | EQ70: =RANK(DM70,DM$5:DM$287,1) -> 236 | ER70: =RANK(DT70,DT$5:DT$287,1) -> 165 | ES70: =RANK(EA70,EA$5:EA$287,1) -> 139 | ET70: =PERCENTRANK(EQ$5:EQ$287,EQ70) -> 0.833 | EU70: =PERCENTRANK(ER$5:ER$287,ER70) -> 0.581 | EV70: =PERCENTRANK(ES$5:ES$287,ES70) -> 0.489 | EW70: =RANK(EH70,EH$5:EH$287,1) -> 211 | EX70: =PERCENTRANK(EW$5:EW$287,EW70) -> 0.744 | EY70: =G70/G$292 -> 0.8000905109 | EZ70: 0.7283844978 | FA70: 0.8870436539 | FB70: 0.7557019237 | FC70: 0.8911163267 | FD70: 0.9194137394 | FE70: 0.8922966036 | FF70: 0.6392550855 | FG70: 0.005763836191 | FH70: 0.5627028045 | FI70: 0.7353215622 | FJ70: 0.8001826642 | FK70: 0.9248049202 | FL70: 0.9520067382 | FM70: 0.6395504395 | FN70: 0.5966583934 | FO70: 0.6800045887 | FP70: 0.6148524544 | FQ70: 0.6150511386 | FR70: 0.8343430839 | FS70: 0.6779787648 | FT70: 0.6546101994 | FU70: 0.2826630488 | FV70: 0.6141042359 | FW70: 0.6149558017 | FX70: 0.3906646385 | FY70: 0.3840531924 | FZ70: 0.3870852979 | GA70: 0.7468256727 | GB70: 0.980508855 | GC70: 0.653457704 | GD70: 0.1011558937 | GE70: 0.7353215622 | GF70: 0.3998599112 | GG70: 0.4079119124 | GH70: 0.9523448355 | GI70: 0.8500425418 | GJ70: 0.9642177221 | GK70: 0.9520652429 | GL70: 0.2010872099 | GM70: =AVERAGE(EY70:FA70) -> 0.8051728876 | GN70: =AVERAGE(FB70:FF70) -> 0.8195567358 | GO70: =AVERAGE(FG70:FN70) -> 0.6521239198 | GP70: =AVERAGE(FO70:FQ70) -> 0.6366360606 | GQ70: =AVERAGE(FR70:FV70) -> 0.6127398666 | GR70: =AVERAGE(FW70:FZ70) -> 0.4441897326 | GS70: =AVERAGE(GA70:GC70) -> 0.7935974106 | GT70: =AVERAGE(GD70:GE70) -> 0.418238728 | GU70: =AVERAGE(GF70:GG70) -> 0.4038859118 | GV70: =AVERAGE(GH70:GL70) -> 0.7839515104 | GW70: =AVERAGE(EY70:GL70) -> 0.6606364802 | GX70: =RANK(GW70,$GW$5:$GW$287) -> 67 | GY70: =AVERAGE(Data!EY70:FQ70) -> 0.7179053622 | GZ70: =RANK(GY70,GY$5:GY$287) -> 51 | HA70: =AVERAGE(Data!FR70:FZ70) -> 0.5378286959 | HB70: 129 | HC70: =AVERAGE(Data!GA70:GL70) -> 0.6620665886 | HD70: 117
A71: E05004933 | B71: 29UDGH | C71: Littlebrook | D71: Dartford | E71: NHS Dartford, Gravesham & Swanley CCG | F71: 67 | G71: 0.7308043844 | H71: 1.100289705 | I71: 0.8438204143 | J71: 1.088346516 | K71: 0.747519167 | L71: 0.7440214107 | M71: 0.4390896675 | N71: 1.120691019 | O71: 0.0113670343 | P71: 0.9954291871 | Q71: 0.7484602944 | R71: 0.8305086362 | S71: 1.059031034 | T71: 0.9694118552 | U71: 0.7413044239 | V71: 0.7995409984 | W71: 0.2169018898 | X71: 0.4217459159 | Y71: 0.2854778238 | Z71: 0.5175391906 | AA71: 1.14700379 | AB71: 0.7587256613 | AC71: 0.5031535123 | AD71: 1.020549805 | AE71: 0.396815275 | AF71: 0.7016465684 | AG71: 1.248323444 | AH71: 0.2722839296 | AI71: 0.9579094542 | AJ71: 1.106433063 | AK71: 1.175295474 | AL71: 1.405579155 | AM71: 0.7484602944 | AN71: 1.044916676 | AO71: 0.9834647989 | AP71: 0.7919988723 | AQ71: 0.8023131107 | AR71: 0.9056304188 | AS71: 0.7940172542 | AT71: 1.09673182 | AU71: 0.891638168 | AV71: =RANK(AU71,$AU$5:$AU$287) -> 206 | AW71: 0.726 | BB71: 0.827933556 | BC71: 217 | BD71: 0.765 | BI71: 0.769381683 | BJ71: 235 | BK71: 0.829 | BP71: 0.3080418765 | BQ71: 272 | BR71: 0.96 | BW71: 0.7893943917 | BX71: 219 | BY71: 0.773 | CD71: 0.6547673043 | CE71: 245 | CF71: 0.865 | CK71: 1.07987933 | CL71: 110 | CM71: 0.386 | CR71: 1.077019725 | CS71: 80 | CT71: 0.28 | CY71: 1.014190737 | CZ71: 114 | DA71: 0.4 | DF71: 0.8781382952 | DG71: 244 | DH71: 0.861 | DM71: 0.7312505988 | DN71: 248 | DO71: 0.875 | DT71: =AVERAGE(Data!Z71:AH71) -> 0.7295601306 | DU71: 244 | DV71: 0.861 | EA71: 0.9843958659 | EB71: 156 | EC71: 0.549 | EH71: 0.8068138236 | EI71: 245 | EJ71: 0.865 | EO71: Dartford | EP71: 39 | EQ71: 36 | ER71: 40 | ES71: 128 | ET71: 0.124 | EU71: 0.138 | EV71: 0.45 | EW71: 39 | EX71: 0.134 | EY71: 0.4265699115 | EZ71: 0.6880421883 | FA71: 0.6368703546 | FB71: 0.7557019237 | FC71: 0.5299634265 | FD71: 0.56479053 | FE71: 0.2893466814 | FF71: 0.6392550855 | FG71: 0.005763836191 | FH71: 0.5627028045 | FI71: 0.5710370719 | FJ71: 0.5336966434 | FK71: 0.4619221071 | FL71: 0.6026607882 | FM71: 0.3960206024 | FN71: 0.4775340294 | FO71: 0.1052585735 | FP71: 0.2218918367 | FQ71: 0.1102784116 | FR71: 0.3750426725 | FS71: 0.7083786268 | FT71: 0.481572487 | FU71: 0.2826630488 | FV71: 0.6141042359 | FW71: 0.1607912283 | FX71: 0.2068699224 | FY71: 0.5813505588 | FZ71: 0.09480621614 | GA71: 0.5640750004 | GB71: 0.9018454273 | GC71: 0.8501492463 | GD71: 0.1939031184 | GE71: 0.5710370719 | GF71: 0.3548645689 | GG71: 0.4701592828 | GH71: 0.6891970561 | GI71: 0.586392578 | GJ71: 0.8054417844 | GK71: 0.7031501911 | GL71: 0.5963658492 | GM71: 0.5838274848 | GN71: 0.5558115294 | GO71: 0.4514172354 | GP71: 0.1458096073 | GQ71: 0.4923522142 | GR71: 0.2609544814 | GS71: 0.7720232247 | GT71: 0.3824700952 | GU71: 0.4125119259 | GV71: 0.6761094918 | GW71: 0.4842866744 | GX71: 247 | GY71: =AVERAGE(Data!EY71:FQ71) -> 0.4515424635 | GZ71: 246 | HA71: =AVERAGE(Data!FR71:FZ71) -> 0.3895087774 | HB71: 242 | HC71: =AVERAGE(Data!GA71:GL71) -> 0.6072150979 | HD71: 232
A72: E05004934 | B72: 29UDGJ | C72: Longfield, New Barn and Southfleet | D72: Dartford | E72: NHS Dartford, Gravesham & Swanley CCG | F72: 68 | G72: 1.317258359 | H72: 1.191944293 | I72: 1.194222284 | J72: 1.088346516 | K72: 1.268287551 | L72: 1.198333096 | M72: 1.517521008 | N72: 1.120691019 | O72: 0.0113670343 | P72: 0.9954291871 | Q72: 1.157845303 | R72: 1.261857461 | S72: 1.25392668 | T72: 1.428519831 | U72: 1.184658399 | V72: 0.7670236207 | W72: 1.520448294 | X72: 1.376096251 | Y72: 1.5091398 | Z72: 1.219382604 | AA72: 1.031048754 | AB72: 0.9499219217 | AC72: 0.5031535123 | AD72: 1.020549805 | AE72: 1.761469692 | AF72: 1.408209425 | AG72: 0.6665537387 | AH72: 1.375310012 | AI72: 0.8281693874 | AJ72: 1.01643365 | AK72: 1.124760853 | AL72: 1.556545877 | AM72: 1.157845303 | AN72: 1.064002675 | AO72: 0.8891747972 | AP72: 1.07160905 | AQ72: 1.031185753 | AR72: 1.055784617 | AS72: 1.073625194 | AT72: 0.6436372957 | AU72: 1.234474978 | AV72: 41 | AW72: 0.141 | BB72: 1.238635838 | BC72: 61 | BD72: 0.212 | BI72: 1.00757844 | BJ72: 139 | BK72: 0.489 | BP72: 1.468561449 | BQ72: 37 | BR72: 0.127 | BW72: 0.9448113191 | BX72: 182 | BY72: 0.641 | CD72: 1.302885717 | CE72: 48 | CF72: 0.166 | CK72: 0.9897879634 | CL72: 167 | CM72: 0.588 | CR72: 1.35719559 | CS72: 44 | CT72: 0.152 | CY72: 0.976588736 | CZ72: 162 | DA72: 0.57 | DF72: 0.975168382 | DG72: 187 | DH72: 0.659 | DM72: 1.176995578 | DN72: 58 | DO72: 0.202 | DT72: =AVERAGE(Data!Z72:AH72) -> 1.103955496 | DU72: 99 | DV72: 0.347 | EA72: 1.042731204 | EB72: 83 | EC72: 0.29 | EH72: 1.120282248 | EI72: 65 | EJ72: 0.226 | EO72: Dartford | EP72: 219 | EQ72: 226 | ER72: 185 | ES72: 201 | ET72: 0.797 | EU72: 0.652 | EV72: 0.709 | EW72: 219 | EX72: 0.773 | EY72: 0.7688826087 | EZ72: 0.7453563869 | FA72: 0.9013348771 | FB72: 0.7557019237 | FC72: 0.8991689387 | FD72: 0.9096608978 | FE72: 1 | FF72: 0.6392550855 | FG72: 0.005763836191 | FH72: 0.5627028045 | FI72: 0.8833769759 | FJ72: 0.810887524 | FK72: 0.5469305767 | FL72: 0.8880775315 | FM72: 0.632869733 | FN72: 0.4581126934 | FO72: 0.7378461234 | FP72: 0.7240011419 | FQ72: 0.5829718672 | FR72: 0.8836442123 | FS72: 0.6367658998 | FT72: 0.6029270995 | FU72: 0.2826630488 | FV72: 0.6141042359 | FW72: 0.7137549716 | FX72: 0.4151893385 | FY72: 0.3104174566 | FZ72: 0.4788675501 | GA72: 0.4876762052 | GB72: 0.8284875697 | GC72: 0.8135950596 | GD72: 0.2147293509 | GE72: 0.8833769759 | GF72: 0.3613463727 | GG72: 0.4250826114 | GH72: 0.9325137046 | GI72: 0.7536704364 | GJ72: 0.938984632 | GK72: 0.9507598942 | GL72: 0.3499882975 | GM72: 0.8051912909 | GN72: 0.8407573691 | GO72: 0.5985902094 | GP72: 0.6816063775 | GQ72: 0.6040208993 | GR72: 0.4795573292 | GS72: 0.7099196115 | GT72: 0.5490531634 | GU72: 0.393214492 | GV72: 0.785183393 | GW72: 0.6582861612 | GX72: 71 | GY72: =AVERAGE(Data!EY72:FQ72) -> 0.7080474487 | GZ72: 62 | HA72: =AVERAGE(Data!FR72:FZ72) -> 0.548703757 | HB72: 120 | HC72: =AVERAGE(Data!GA72:GL72) -> 0.6616842592 | HD72: 118
A73: E05004935 | B73: 29UDGK | C73: Newtown | D73: Dartford | E73: NHS Dartford, Gravesham & Swanley CCG | F73: 69 | G73: 0.9059511273 | H73: 0.8347717578 | I73: 1.020632625 | J73: 1.088346516 | K73: 1.049865657 | L73: 1.055607397 | M73: 0.9237878949 | N73: 1.120691019 | O73: 0.0113670343 | P73: 0.9954291871 | Q73: 0.9280314537 | R73: 1.173441411 | S73: 1.507413129 | T73: 1.057087797 | U73: 0.9725471887 | V73: 1.091909217 | W73: 0.4943906006 | X73: 0.7390957536 | Y73: 0.3584121491 | Z73: 1.043781251 | AA73: 1.303928746 | AB73: 1.223056394 | AC73: 0.5031535123 | AD73: 1.020549805 | AE73: 0.7884811655 | AF73: 0.585412245 | AG73: 1.093060708 | AH73: 0.4262559991 | AI73: 0.9719621704 | AJ73: 1.155111284 | AK73: 1.248201121 | AL73: 0.3597751683 | AM73: 0.9280314537 | AN73: 1.315183705 | AO73: 0.6169262356 | AP73: 0.9169446124 | AQ73: 1.106478727 | AR73: 1.025250761 | AS73: 0.8471803095 | AT73: 0.6885586428 | AU73: 0.9204518366 | AV73: 195 | AW73: 0.687 | BB73: 1.047659697 | BC73: 136 | BD73: 0.478 | BI73: 0.9671533022 | BJ73: 161 | BK73: 0.567 | BP73: 0.5306328344 | BQ73: 241 | BR73: 0.851 | BW73: 1.018893942 | BX73: 153 | BY73: 0.539 | CD73: 0.7233025295 | CE73: 225 | CF73: 0.794 | CK73: 1.125091525 | CL73: 81 | CM73: 0.283 | CR73: 0.643903311 | CS73: 246 | CT73: 0.868 | CY73: 0.9660549705 | CZ73: 174 | DA73: 0.613 | DF73: 0.9168826106 | DG73: 223 | DH73: 0.787 | DM73: 0.9120409955 | DN73: 186 | DO73: 0.656 | DT73: =AVERAGE(Data!Z73:AH73) -> 0.8875199807 | DU73: 198 | DV73: 0.698 | EA73: 0.9316336826 | EB73: 220 | EC73: 0.776 | EH73: 0.9124015733 | EI73: 203 | EJ73: 0.716 | EO73: Dartford | EP73: 81 | EQ73: 98 | ER73: 86 | ES73: 64 | ET73: 0.343 | EU73: 0.301 | EV73: 0.223 | EW73: 81 | EX73: 0.283 | EY73: 0.5288029197 | EZ73: 0.5220063263 | FA73: 0.7703187202 | FB73: 0.7557019237 | FC73: 0.7443158995 | FD73: 0.8013170757 | FE73: 0.6087480108 | FF73: 0.6392550855 | FG73: 0.005763836191 | FH73: 0.5627028045 | FI73: 0.7080407176 | FJ73: 0.7540701142 | FK73: 0.6574948481 | FL73: 0.6571668808 | FM73: 0.5195554096 | FN73: 0.6521539348 | FO73: 0.239918838 | FP73: 0.388858097 | FQ73: 0.1384525143 | FR73: 0.7563920126 | FS73: 0.8052939865 | FT73: 0.7762889006 | FU73: 0.2826630488 | FV73: 0.6141042359 | FW73: 0.3194959041 | FX73: 0.1725999829 | FY73: 0.5090439153 | FZ73: 0.1484175671 | GA73: 0.5723500893 | GB73: 0.9415226861 | GC73: 0.9028855002 | GD73: 0.04963187368 | GE73: 0.7080407176 | GF73: 0.4466500626 | GG73: 0.2949303288 | GH73: 0.797924782 | GI73: 0.8087003749 | GJ73: 0.9118286943 | GK73: 0.7502292846 | GL73: 0.3744150141 | GM73: 0.6070426554 | GN73: 0.709867599 | GO73: 0.5646185682 | GP73: 0.2557431498 | GQ73: 0.6469484369 | GR73: 0.2873893424 | GS73: 0.8055860919 | GT73: 0.3788362956 | GU73: 0.3707901957 | GV73: 0.72861963 | GW73: 0.564951323 | GX73: 189 | GY73: =AVERAGE(Data!EY73:FQ73) -> 0.5607707345 | GZ73: 188 | HA73: =AVERAGE(Data!FR73:FZ73) -> 0.4871443949 | HB73: 183 | HC73: =AVERAGE(Data!GA73:GL73) -> 0.629925784 | HD73: 195
A74: E05004936 | B74: 29UDGL | C74: Princes | D74: Dartford | E74: NHS Dartford, Gravesham & Swanley CCG | F74: 70 | G74: 0.9801402385 | H74: 0.8162247356 | I74: 0.8044950882 | J74: 1.088346516 | K74: 0.8078353642 | L74: 0.7679805075 | M74: 0.48335529 | N74: 1.120691019 | O74: 0.0113670343 | P74: 0.9954291871 | Q74: 0.7040119331 | R74: 0.7509249407 | S74: 0.9564706816 | T74: 0.9053630018 | U74: 0.6185101303 | V74: 0.8013852182 | W74: 0.02460907609 | X74: 0.05175426835 | Y74: 0 | Z74: 0.5893933282 | AA74: 0.9696548796 | AB74: 0.8220196374 | AC74: 0.5031535123 | AD74: 1.020549805 | AE74: 0.3832094937 | AF74: 0.5601386712 | AG74: 1.362830935 | AH74: 0.3125888966 | AI74: 0.8361231624 | AJ74: 1.134635705 | AK74: 1.163853334 | AL74: 0.9606513664 | AM74: 0.7040119331 | AN74: 1.033197835 | AO74: 1.112680719 | AP74: 1.038303947 | AQ74: 0.9044285374 | AR74: 1.040164019 | AS74: 1.030288828 | AT74: 0.6733433241 | AU74: 0.8669533541 | AV74: 213 | AW74: 0.751 | BB74: 0.8536417393 | BC74: 211 | BD74: 0.744 | BI74: 0.7179327659 | BJ74: 248 | BK74: 0.875 | BP74: 0.02545444815 | BQ74: 282 | BR74: 0.996 | BW74: 0.7809542324 | BX74: 224 | BY74: 0.79 | CD74: 0.654691999 | CE74: 246 | CF74: 0.868 | CK74: 1.044870734 | CL74: 134 | CM74: 0.471 | CR74: 0.8323316498 | CS74: 162 | CT74: 0.57 | CY74: 1.072939277 | CZ74: 63 | DA74: 0.219 | DF74: 0.9373057311 | DG74: 213 | DH74: 0.751 | DM74: 0.6678365384 | DN74: 255 | DO74: 0.9 | DT74: =AVERAGE(Data!Z74:AH74) -> 0.7248376842 | DU74: 246 | DV74: 0.868 | EA74: 0.9693068926 | EB74: 176 | EC74: 0.62 | EH74: 0.7711029025 | EI74: 253 | EJ74: 0.893 | EO74: Dartford | EP74: 31 | EQ74: 29 | ER74: 38 | ES74: 108 | ET74: 0.099 | EU74: 0.131 | EV74: 0.379 | EW74: 31 | EX74: 0.106 | EY74: 0.5721070423 | EZ74: 0.5104083501 | FA74: 0.6071897093 | FB74: 0.7557019237 | FC74: 0.5727253782 | FD74: 0.5829780052 | FE74: 0.3185163748 | FF74: 0.6392550855 | FG74: 0.005763836191 | FH74: 0.5627028045 | FI74: 0.5371252368 | FJ74: 0.4825550306 | FK74: 0.4171879184 | FL74: 0.5628431067 | FM74: 0.330421277 | FN74: 0.4786355085 | FO74: 0.0119423406 | FP74: 0.02722930852 | FQ74: 0 | FR74: 0.4271128698 | FS74: 0.5988496273 | FT74: 0.5217459502 | FU74: 0.2826630488 | FV74: 0.6141042359 | FW74: 0.1552781081 | FX74: 0.1651484503 | FY74: 0.6346772778 | FZ74: 0.1088399544 | GA74: 0.4923598688 | GB74: 0.9248331926 | GC74: 0.8418725814 | GD74: 0.1325242303 | GE74: 0.5371252368 | GF74: 0.3508847289 | GG74: 0.5319327844 | GH74: 0.9035316192 | GI74: 0.6610264428 | GJ74: 0.9250921194 | GK74: 0.9123829273 | GL74: 0.3661414359 | GM74: 0.5632350339 | GN74: 0.5738353535 | GO74: 0.4221543398 | GP74: 0.01305721637 | GQ74: 0.4888951464 | GR74: 0.2659859477 | GS74: 0.7530218809 | GT74: 0.3348247336 | GU74: 0.4414087566 | GV74: 0.7536349089 | GW74: 0.4765853732 | GX74: 251 | GY74: =AVERAGE(Data!EY74:FQ74) -> 0.4197520125 | GZ74: 254 | HA74: =AVERAGE(Data!FR74:FZ74) -> 0.3898243914 | HB74: 241 | HC74: =AVERAGE(Data!GA74:GL74) -> 0.631642264 | HD74: 191
A75: E05004937 | B75: 29UDGM | C75: Stone | D75: Dartford | E75: NHS Dartford, Gravesham & Swanley CCG | F75: 71 | G75: 0.9297635691 | H75: 0.8374591266 | I75: 0.9200234424 | J75: 1.088346516 | K75: 0.846155398 | L75: 0.8631428982 | M75: 0.643914371 | N75: 1.120691019 | O75: 0.0113670343 | P75: 0.9954291871 | Q75: 0.8700867452 | R75: 0.9317917603 | S75: 1.507499314 | T75: 1.113301155 | U75: 0.727375746 | V75: 0.7824304875 | W75: 0.6573311826 | X75: 0.7894632926 | Y75: 0.7119187972 | Z75: 0.8760226747 | AA75: 1.131383062 | AB75: 1.054048857 | AC75: 0.5031535123 | AD75: 1.020549805 | AE75: 0.5374075993 | AF75: 0.5401078447 | AG75: 1.080753919 | AH75: 0.3450346668 | AI75: 0.9856720664 | AJ75: 1.200165862 | AK75: 1.291577809 | AL75: 7.248873388 | AM75: 0.8700867452 | AN75: 1.184391541 | AO75: 0.7721527424 | AP75: 0.9277772637 | AQ75: 0.6654500153 | AR75: 1.018694923 | AS75: 0.9890172493 | AT75: 0.9245366428 | AU75: 0.8957487127 | AV75: 202 | AW75: 0.712 | BB75: 0.9124500404 | BC75: 194 | BD75: 0.684 | BI75: 0.8674101787 | BJ75: 200 | BK75: 0.705 | BP75: 0.7195710908 | BQ75: 213 | BR75: 0.751 | BW75: 0.917031582 | BX75: 189 | BY75: 0.666 | CD75: 0.6258260075 | CE75: 257 | CF75: 0.907 | CK75: 1.159138579 | CL75: 58 | CM75: 0.202 | CR75: 4.059480067 | CS75: 1 | CT75: 0 | CY75: 0.9782721419 | CZ75: 160 | DA75: 0.563 | DF75: 0.9050952188 | DG75: 233 | DH75: 0.822 | DM75: 0.8603942654 | DN75: 211 | DO75: 0.744 | DT75: =AVERAGE(Data!Z75:AH75) -> 0.7876068822 | DU75: 223 | DV75: 0.787 | EA75: 1.506533021 | EB75: 1 | EC75: 0 | EH75: 1.037858731 | EI75: 134 | EJ75: 0.471 | EO75: Dartford | EP75: 150 | EQ75: 73 | ER75: 61 | ES75: 283 | ET75: 0.255 | EU75: 0.212 | EV75: 1 | EW75: 150 | EX75: 0.528 | EY75: 0.5427022222 | EZ75: 0.5236868138 | FA75: 0.6943843097 | FB75: 0.7557019237 | FC75: 0.5998928641 | FD75: 0.6552162719 | FE75: 0.4243199057 | FF75: 0.6392550855 | FG75: 0.005763836191 | FH75: 0.5627028045 | FI75: 0.6638318572 | FJ75: 0.5987826173 | FK75: 0.6575324399 | FL75: 0.6921134169 | FM75: 0.3885796062 | FN75: 0.4673146019 | FO75: 0.3189909625 | FP75: 0.41535781 | FQ75: 0.2750100624 | FR75: 0.6348231999 | FS75: 0.6987314137 | FT75: 0.6690177429 | FU75: =AC75/AC$292 -> 0.2826630488 | FV75: =AD75/AD$292 -> 0.6141042359 | FW75: =AE75/AE$292 -> 0.2177598329 | FX75: =AF75/AF$292 -> 0.1592426628 | FY75: =AG75/AG$292 -> 0.5033125811 | FZ75: =AH75/AH$292 -> 0.1201372084 | GA75: =AI75/AI$292 -> 0.5804233049 | GB75: =AJ75/AJ$292 -> 0.9782463406 | GC75: =AK75/AK$292 -> 0.9342620008 | GD75: =AL75/AL$292 -> 1 | GE75: =AM75/AM$292 -> 0.6638318572 | GF75: =AN75/AN$292 -> 0.4022316836 | GG75: =AO75/AO$292 -> 0.3691385599 | GH75: =AP75/AP$292 -> 0.8073513501 | GI75: =AQ75/AQ$292 -> 0.4863624248 | GJ75: =AR75/AR$292 -> 0.9059981196 | GK75: =AS75/AS$292 -> 0.8758344535 | GL75: =AT75/AT$292 -> 0.5027319078 | GM75: 0.5869244486 | GN75: 0.6148772102 | GO75: 0.5045776475 | GP75: 0.3364529449 | GQ75: 0.5798679283 | GR75: 0.2501130713 | GS75: 0.8309772154 | GT75: 0.8319159286 | GU75: 0.3856851218 | GV75: 0.7156556512 | GW75: 0.5571835835 | GX75: 198 | GY75: =AVERAGE(Data!EY75:FQ75) -> 0.520059969 | GZ75: 209 | HA75: =AVERAGE(Data!FR75:FZ75) -> 0.4333102141 | HB75: 217 | HC75: =AVERAGE(Data!GA75:GL75) -> 0.7088676669 | HD75: 29
A76: E05004938 | B76: 29UDGN | C76: Sutton-at-Hone and Hawley | D76: Dartford | E76: NHS Dartford, Gravesham & Swanley CCG | F76: 72 | G76: 1.02029022 | H76: 0.9827645348 | I76: 1.096232874 | J76: 1.088346516 | K76: 1.227730044 | L76: 1.110666149 | M76: 1.199767824 | N76: 1.120691019 | O76: 0.0113670343 | P76: 0.9954291871 | Q76: 1.081733538 | R76: 1.04688557 | S76: 0.3988972277 | T76: 1.234803865 | U76: 1.012255045 | V76: 0.8872593503 | W76: 1.342212438 | X76: 1.35083361 | Y76: 1.123121009 | Z76: 1.17733219 | AA76: 1.108539074 | AB76: 1.262222171 | AC76: 0.5031535123 | AD76: 1.020549805 | AE76: 1.022890177 | AF76: 0.7847307669 | AG76: 0.9539970447 | AH76: 0.6508046484 | AI76: 0.8038130742 | AJ76: 1.026961876 | AK76: 1.121108912 | AL76: 0.9309212052 | AM76: 1.081733538 | AN76: 1.041309517 | AO76: 0.8943671413 | AP76: 1.122419952 | AQ76: 0.985804079 | AR76: 1.10770918 | AS76: 1.107764887 | AT76: 0.5914819298 | AU76: 1.033095876 | AV76: 144 | AW76: 0.507 | BB76: 1.14944031 | BC76: 98 | BD76: 0.343 | BI76: 0.8335788522 | BJ76: 214 | BK76: 0.755 | BP76: 1.272055685 | BQ76: 73 | BR76: 0.255 | BW76: 1.01435935 | BX76: 156 | BY76: 0.549 | CD76: 0.8531056593 | CE76: 186 | CF76: 0.656 | CK76: 0.9839612876 | CL76: 169 | CM76: 0.595 | CR76: 1.006327372 | CS76: 96 | CT76: 0.336 | CY76: 0.9678383294 | CZ76: 170 | DA76: 0.599 | DF76: 0.9830360056 | DG76: 177 | DH76: 0.624 | DM76: 1.017436161 | DN76: 154 | DO76: 0.542 | DT76: =AVERAGE(Data!Z76:AH76) -> 0.9426910432 | DU76: 176 | DV76: 0.62 | EA76: 0.9846162744 | EB76: 155 | EC76: 0.546 | EH76: 0.9907725434 | EI76: 163 | EJ76: 0.574 | EO76: Dartford | EP76: 121 | EQ76: 130 | ER76: 108 | ES76: 129 | ET76: 0.457 | EU76: 0.379 | EV76: 0.453 | EW76: 121 | EX76: 0.425 | EY76: 0.5955425532 | EZ76: =H76/H$292 -> 0.6145503841 | FA76: =I76/I$292 -> 0.82737773 | FB76: =J76/J$292 -> 0.7557019237 | FC76: =K76/K$292 -> 0.8704151672 | FD76: =L76/L$292 -> 0.8431124615 | FE76: =M76/M$292 -> 0.790610356 | FF76: =N76/N$292 -> 0.6392550855 | FG76: =O76/O$292 -> 0.005763836191 | FH76: =P76/P$292 -> 0.5627028045 | FI76: =Q76/Q$292 -> 0.8253075772 | FJ76: =R76/R$292 -> 0.6727435341 | FK76: =S76/S$292 -> 0.1739887142 | FL76: =T76/T$292 -> 0.7676488238 | FM76: =U76/U$292 -> 0.5407681917 | FN76: =V76/V$292 -> 0.5299247112 | FO76: =W76/W$292 -> 0.6513514781 | FP76: =X76/X$292 -> 0.7107097887 | FQ76: =Y76/Y$292 -> 0.4338550687 | FR76: =Z76/Z$292 -> 0.8531717383 | FS76: =AA76/AA$292 -> 0.6846231842 | FT76: =AB76/AB$292 -> 0.8011478996 | FU76: 0.2826630488 | FV76: 0.6141042359 | FW76: 0.4144794275 | FX76: 0.2313660469 | FY76: 0.4442812619 | FZ76: 0.226602893 | GA76: 0.4733337354 | GB76: 0.8370690493 | GC76: 0.8109534307 | GD76: 0.1284228811 | GE76: 0.8253075772 | GF76: 0.3536395404 | GG76: 0.4275648851 | GH76: 0.9767293284 | GI76: 0.7205019929 | GJ76: 0.9851648532 | GK76: 0.9809926525 | GL76: 0.321627965 | GM76: 0.6791568891 | GN76: 0.7798189988 | GO76: 0.5098560241 | GP76: 0.5986387785 | GQ76: 0.6471420214 | GR76: 0.3291824073 | GS76: 0.7071187385 | GT76: 0.4768652291 | GU76: 0.3906022128 | GV76: 0.7970033584 | GW76: 0.6051269454 | GX76: 152 | GY76: =AVERAGE(Data!EY76:FQ76) -> 0.6216489573 | GZ76: 146 | HA76: =AVERAGE(Data!FR76:FZ76) -> 0.5058266373 | HB76: 164 | HC76: =AVERAGE(Data!GA76:GL76) -> 0.6534423243 | HD76: 139
A77: E05004939 | B77: 29UDGP | C77: Swanscombe | D77: Dartford | E77: NHS Dartford, Gravesham & Swanley CCG | F77: 73 | G77: 0.8353674375 | H77: 0.8929145768 | I77: 0.8259558102 | J77: 1.088346516 | K77: 0.7304498752 | L77: 0.826265228 | M77: 0.4319148245 | N77: 1.120691019 | O77: 0.0113670343 | P77: 0.9954291871 | Q77: 0.9554463736 | R77: 0.7869761167 | S77: 1.399822482 | T77: 1.162435146 | U77: 0.7597861663 | V77: 0.8415902585 | W77: 0.3511694516 | X77: 0.5109470688 | Y77: 0.4205478011 | Z77: 0.5460267064 | AA77: 1.164808471 | AB77: 1.078925898 | AC77: 0.5031535123 | AD77: 1.020549805 | AE77: 0.3853049112 | AF77: 0.5646123584 | AG77: 1.377612642 | AH77: 0.350200586 | AI77: 1.073145179 | AJ77: 1.125704534 | AK77: 1.182759144 | AL77: 0.5342587178 | AM77: 0.9554463736 | AN77: 0.8815227067 | AO77: 0.9832633457 | AP77: 0.532194906 | AQ77: 0.4342872674 | AR77: 0.6350319009 | AS77: 0.6265395322 | AT77: 0.5167691424 | AU77: 0.8514126082 | AV77: 214 | AW77: 0.755 | BB77: 0.8395334925 | BC77: 215 | BD77: 0.758 | BI77: 0.8641065956 | BJ77: 202 | BK77: 0.712 | BP77: 0.4275547738 | BQ77: 260 | BR77: 0.918 | BW77: 0.8626928784 | BX77: 200 | BY77: 0.705 | CD77: 0.6694326244 | CE77: 242 | CF77: 0.854 | CK77: 1.127202952 | CL77: 77 | CM77: 0.269 | CR77: 0.7448525457 | CS77: 206 | CT77: 0.726 | CY77: 0.9323930262 | CZ77: 213 | DA77: 0.751 | DF77: 0.5489645498 | DG77: 278 | DH77: 0.982 | DM77: 0.7867064407 | DN77: 233 | DO77: 0.822 | DT77: =AVERAGE(Data!Z77:AH77) -> 0.7767994322 | DU77: 230 | DV77: 0.812 | EA77: 0.7900768958 | EB77: 282 | EC77: 0.996 | EH77: 0.7854885003 | EI77: 248 | EJ77: 0.875 | EO77: Dartford | EP77: 36 | EQ77: 51 | ER77: 54 | ES77: 2 | ET77: 0.177 | EU77: 0.187 | EV77: 0.003 | EW77: 36 | EX77: 0.124 | EY77: 0.4876032787 | EZ77: 0.558364671 | FA77: 0.6233871103 | FB77: 0.7557019237 | FC77: 0.5178619303 | FD77: 0.6272222402 | FE77: 0.2846186789 | FF77: 0.6392550855 | FG77: 0.005763836191 | FH77: 0.5627028045 | FI77: 0.7289569048 | FJ77: 0.5057220283 | FK77: 0.6105665743 | FL77: 0.7226588755 | FM77: 0.4058939426 | FN77: 0.5026483795 | FO77: 0.1704161986 | FP77: 0.2688229554 | FQ77: 0.1624551529 | FR77: 0.3956865856 | FS77: 0.7193746284 | FT77: 0.6848075061 | FU77: 0.2826630488 | FV77: 0.6141042359 | FW77: 0.1561271802 | FX77: 0.1664674496 | FY77: 0.641561194 | FZ77: 0.1219359236 | GA77: 0.6319327622 | GB77: 0.9175534613 | GC77: 0.8555480871 | GD77: 0.07370231058 | GE77: 0.7289569048 | GF77: 0.2993742779 | GG77: 0.4700629753 | GH77: 0.4631157636 | GI77: 0.3174107801 | GJ77: 0.5647792044 | GK77: 0.5548385624 | GL77: 0.281001666 | GM77: 0.5564516867 | GN77: 0.5649319717 | GO77: 0.5056141682 | GP77: 0.200564769 | GQ77: 0.539327201 | GR77: 0.2715229369 | GS77: 0.8016781035 | GT77: 0.4013296077 | GU77: 0.3847186266 | GV77: 0.4362291953 | GW77: 0.477040677 | GX77: 250 | GY77: =AVERAGE(Data!EY77:FQ77) -> 0.4810853985 | GZ77: 229 | HA77: =AVERAGE(Data!FR77:FZ77) -> 0.4203030836 | HB77: 220 | HC77: =AVERAGE(Data!GA77:GL77) -> 0.5131897296 | HD77: 277
A78: E05004940 | B78: 29UDGQ | C78: Town | D78: Dartford | E78: NHS Dartford, Gravesham & Swanley CCG | F78: 74 | G78: 1.208828174 | H78: 1.085468964 | I78: 1.017410872 | J78: 1.088346516 | K78: 1.073721476 | L78: 0.9093076174 | M78: 0.6395213926 | N78: 1.120691019 | O78: 0.0113670343 | P78: 0.9954291871 | Q78: 0.9731681276 | R78: 1.052943509 | S78: 0.9809960267 | T78: 0.9367648974 | U78: 0.7697939603 | V78: 1.086427636 | W78: 0.6583984445 | X78: 0.9276327244 | Y78: 0.316375084 | Z78: 1.061726256 | AA78: 1.280001304 | AB78: 1.289263747 | AC78: 0.5031535123 | AD78: 1.020549805 | AE78: 0.7451594841 | AF78: 0.8603831562 | AG78: 1.129554328 | AH78: 0.501740745 | AI78: 0.9405207291 | AJ78: 1.139648083 | AK78: 1.116425139 | AL78: 2.963911802 | AM78: 0.9731681276 | AN78: 1.29779557 | AO78: 0.3245220901 | AP78: 0.911132217 | AQ78: 0.3883708508 | AR78: 0.9429300986 | AS78: 0.9637696517 | AT78: 0.9646858959 | AU78: 1.10390267 | AV78: 114 | AW78: 0.4 | BB78: 0.9663176042 | BC78: 178 | BD78: 0.627 | BI78: 0.8508612974 | BJ78: 208 | BK78: 0.734 | BP78: 0.6341354176 | BQ78: 225 | BR78: 0.794 | BW78: 1.030938925 | BX78: 143 | BY78: 0.503 | CD78: 0.8092094283 | CE78: 203 | CF78: 0.716 | CK78: 1.065531317 | CL78: 123 | CM78: 0.432 | CR78: 1.968539965 | CS78: 11 | CT78: 0.035 | CY78: 0.8111588301 | CZ78: 268 | DA78: 0.946 | DF78: 0.8341777428 | DG78: 259 | DH78: 0.914 | DM78: 0.8869785612 | DN78: 198 | DO78: 0.698 | DT78: =AVERAGE(Data!Z78:AH78) -> 0.9323924819 | DU78: 180 | DV78: 0.634 | EA78: 1.077240021 | EB78: 51 | EC78: 0.177 | EH78: 0.9542751314 | EI78: 185 | EJ78: 0.652 | EO78: Dartford | EP78: 99 | EQ78: 86 | ER78: 104 | ES78: 233 | ET78: 0.301 | EU78: 0.365 | EV78: 0.822 | EW78: 99 | EX78: 0.347 | EY78: 0.705592 | EZ78: 0.6787743604 | FA78: 0.7678871144 | FB78: 0.7557019237 | FC78: 0.7612287922 | FD78: 0.6902601508 | FE78: 0.4214250671 | FF78: 0.6392550855 | FG78: 0.005763836191 | FH78: 0.5627028045 | FI78: 0.7424777001 | FJ78: 0.6766364518 | FK78: 0.4278852433 | FL78: 0.5823649343 | FM78: 0.4112403192 | FN78: 0.6488800046 | FO78: 0.3195088854 | FP78: 0.4880524535 | FQ78: 0.1222138422 | FR78: 0.7693961342 | FS78: 0.7905166262 | FT78: 0.8183115198 | FU78: 0.2826630488 | FV78: 0.6141042359 | FW78: 0.3019417756 | FX78: 0.2536710144 | FY78: 0.526039179 | FZ78: 0.1747005106 | GA78: 0.5538354677 | GB78: 0.9289187449 | GC78: 0.8075654263 | GD78: 0.4088789586 | GE78: 0.7424777001 | GF78: 0.440744871 | GG78: 0.1551423837 | GH78: 0.7928668382 | GI78: 0.2838515056 | GJ78: 0.8386150524 | GK78: 0.8534761823 | GL78: 0.5245637203 | GM78: 0.7174178249 | GN78: 0.6535742039 | GO78: 0.5072439118 | GP78: 0.3099250604 | GQ78: 0.654998313 | GR78: 0.3140881199 | GS78: 0.7634398796 | GT78: 0.5756783294 | GU78: 0.2979436273 | GV78: 0.6586746598 | GW78: 0.5567532966 | GX78: 199 | GY78: =AVERAGE(Data!EY78:FQ78) -> 0.54778163 | GZ78: 191 | HA78: =AVERAGE(Data!FR78:FZ78) -> 0.5034826716 | HB78: 166 | HC78: =AVERAGE(Data!GA78:GL78) -> 0.6109114043 | HD78: 229
A79: E05004941 | B79: 29UDGR | C79: West Hill | D79: Dartford | E79: NHS Dartford, Gravesham & Swanley CCG | F79: 75 | G79: 1.360125381 | H79: 0.9249548563 | I79: 1.186066411 | J79: 1.088346516 | K79: 1.24023443 | L79: 1.157261613 | M79: 1.06379402 | N79: 1.120691019 | O79: 0.0113670343 | P79: 0.9954291871 | Q79: 1.126345231 | R79: 1.24927166 | S79: 1.009515319 | T79: 1.017436657 | U79: 1.139669946 | V79: 1.194687063 | W79: 1.097979052 | X79: 1.117019462 | Y79: 0.7170813235 | Z79: 1.059400191 | AA79: 1.255317311 | AB79: 1.260974942 | AC79: 0.5031535123 | AD79: 1.020549805 | AE79: 1.068114567 | AF79: 0.9989632093 | AG79: 1.136472194 | AH79: 0.5797783366 | AI79: 1.247125991 | AJ79: 1.192663816 | AK79: 1.088355998 | AL79: 0.7655275967 | AM79: 1.126345231 | AN79: 1.210636872 | AO79: 0.7165274289 | AP79: 1.081306216 | AQ79: 1.051758187 | AR79: 1.076576557 | AS79: 1.077153912 | AT79: 0.93952495 | AU79: 1.157048883 | AV79: 77 | AW79: 0.269 | BB79: 1.13406552 | BC79: 103 | BD79: 0.361 | BI79: 0.9679652621 | BJ79: 160 | BK79: 0.563 | BP79: 0.9773599459 | BQ79: 153 | BR79: 0.539 | BW79: 1.019879152 | BX79: 151 | BY79: 0.531 | CD79: 0.9458320767 | CE79: 150 | CF79: 0.528 | CK79: 1.176048602 | CL79: 46 | CM79: 0.159 | CR79: 0.9459364137 | CS79: 117 | CT79: 0.411 | CY79: 0.9635821506 | CZ79: 176 | DA79: 0.62 | DF79: 1.045263964 | DG79: 121 | DH79: 0.425 | DM79: 1.043014536 | DN79: 144 | DO79: 0.507 | DT79: =AVERAGE(Data!Z79:AH79) -> 0.9869693409 | DU79: 152 | DV79: 0.535 | EA79: 1.047791896 | EB79: 74 | EC79: 0.258 | EH79: 1.031837575 | EI79: 141 | EJ79: 0.496 | EO79: Dartford | EP79: 143 | EQ79: 140 | ER79: 132 | ES79: 210 | ET79: 0.492 | EU79: 0.464 | EV79: 0.741 | EW79: 143 | EX79: 0.503 | EY79: 0.7939040541 | EZ79: 0.5784003615 | FA79: 0.8951792622 | FB79: 0.7557019237 | FC79: 0.8792803145 | FD79: 0.8784833213 | FE79: 0.7010077713 | FF79: 0.6392550855 | FG79: 0.005763836191 | FH79: 0.5627028045 | FI79: 0.8593440257 | FJ79: 0.8027997095 | FK79: 0.4403246255 | FL79: 0.6325166895 | FM79: 0.6088359437 | FN79: 0.7135390532 | FO79: 0.5328294229 | FP79: 0.587693895 | FQ79: 0.2770043161 | FR79: 0.767710516 | FS79: 0.7752720271 | FT79: 0.8003562681 | FU79: 0.2826630488 | FV79: 0.6141042359 | FW79: 0.4328045416 | FX79: 0.2945292558 | FY79: 0.5292608641 | FZ79: 0.2018723263 | GA79: 0.7343831831 | GB79: 0.972131478 | GC79: 0.7872616304 | GD79: 0.105606424 | GE79: 0.8593440257 | GF79: 0.4111448709 | GG79: 0.3425460906 | GH79: 0.9409521738 | GI79: 0.7687063648 | GJ79: 0.9574763889 | GK79: 0.9538847863 | GL79: 0.5108820448 | GM79: 0.7558278926 | GN79: 0.7707456833 | GO79: 0.578228336 | GP79: 0.4658425447 | GQ79: 0.6480212192 | GR79: 0.364616747 | GS79: 0.8312587638 | GT79: 0.4824752248 | GU79: 0.3768454807 | GV79: 0.8263803517 | GW79: 0.629686474 | GX79: 114 | GY79: =AVERAGE(Data!EY79:FQ79) -> 0.6391877061 | GZ79: 130 | HA79: =AVERAGE(Data!FR79:FZ79) -> 0.522063676 | HB79: 148 | HC79: =AVERAGE(Data!GA79:GL79) -> 0.6953599551 | HD79: 51
A80: E05004942 | B80: 29UDGS | C80: Wilmington | D80: Dartford | E80: NHS Dartford, Gravesham & Swanley CCG | F80: 76 | G80: 1.324080207 | H80: 1.105786351 | I80: 1.133347441 | J80: 1.088346516 | K80: 1.205337678 | L80: 1.116053184 | M80: 1.323952649 | N80: 1.120691019 | O80: 0.0113670343 | P80: 0.9954291871 | Q80: 1.217681699 | R80: 1.166476123 | S80: 1.262260367 | T80: 1.100000599 | U80: 0.9560417622 | V80: 0.8348691614 | W80: 1.385496963 | X80: 1.323636331 | Y80: 1.419025837 | Z80: 1.235025254 | AA80: 0.8044955856 | AB80: 0.9566364751 | AC80: 0.5031535123 | AD80: 1.020549805 | AE80: 1.324151402 | AF80: 0.8938088296 | AG80: 0.8850867109 | AH80: 0.9734988676 | AI80: 0.6674501679 | AJ80: 0.9446478435 | AK80: 1.072029216 | AL80: 0.8409644497 | AM80: 1.217681699 | AN80: 1.182593548 | AO80: 0.8831608502 | AP80: 1.122858653 | AQ80: 1.052167758 | AR80: 1.109576858 | AS80: 1.103558593 | AT80: 0.9467557312 | AU80: 1.187738 | AV80: 59 | AW80: 0.205 | BB80: 1.170876209 | BC80: 90 | BD80: 0.315 | BI80: 0.9430157416 | BJ80: 171 | BK80: 0.602 | BP80: 1.376053044 | BQ80: 56 | BR80: 0.195 | BW80: 0.9039721263 | BX80: 192 | BY80: 0.677 | CD80: 1.019136453 | CE80: 131 | CF80: 0.46 | CK80: 0.8947090758 | CL80: 210 | CM80: 0.741 | CR80: 1.029323074 | CS80: 92 | CT80: 0.322 | CY80: 1.032877199 | CZ80: 93 | DA80: 0.326 | DF80: 1.066983519 | DG80: 96 | DH80: 0.336 | DM80: 1.10999369 | DN80: 97 | DO80: 0.34 | DT80: =AVERAGE(Data!Z80:AH80) -> 0.9551562713 | DU80: 174 | DV80: 0.613 | EA80: 1.011953781 | EB80: 119 | EC80: 0.418 | EH80: 1.045743298 | EI80: 127 | EJ80: 0.446 | EO80: Dartford | EP80: 157 | EQ80: 187 | ER80: 110 | ES80: 165 | ET80: 0.659 | EU80: 0.386 | EV80: 0.581 | EW80: 157 | EX80: 0.553 | EY80: 0.7728645161 | EZ80: 0.6914793956 | FA80: 0.8553898129 | FB80: 0.7557019237 | FC80: 0.8545398089 | FD80: 0.8472017877 | FE80: 0.8724443632 | FF80: 0.6392550855 | FG80: 0.005763836191 | FH80: 0.5627028045 | FI80: 0.9290290976 | FJ80: 0.7495941213 | FK80: 0.5505655165 | FL80: 0.683844771 | FM80: 0.5107378594 | FN80: 0.4986341356 | FO80: 0.6723566773 | FP80: 0.6964005708 | FQ80: 0.5481613711 | FR80: 0.8949798977 | FS80: 0.4968488188 | FT80: 0.6071889089 | FU80: 0.2826630488 | FV80: 0.6141042359 | FW80: 0.5365517504 | FX80: 0.2635260708 | FY80: 0.41218937 | FZ80: 0.3389614076 | GA80: 0.3930350119 | GB80: 0.7699754886 | GC80: 0.775451663 | GD80: 0.1160131243 | GE80: 0.9290290976 | GF80: 0.4016210662 | GG80: 0.4222075588 | GH80: 0.9771110857 | GI80: 0.769005711 | GJ80: 0.9868259129 | GK80: 0.977267725 | GL80: 0.5148139003 | GM80: 0.7732445749 | GN80: 0.7938285938 | GO80: 0.5613590178 | GP80: 0.6389728731 | GQ80: 0.579156982 | GR80: 0.3878071497 | GS80: 0.6461540545 | GT80: 0.522521111 | GU80: 0.4119143125 | GV80: 0.845004867 | GW80: 0.6294009577 | GX80: 115 | GY80: =AVERAGE(Data!EY80:FQ80) -> 0.6682456555 | GZ80: 95 | HA80: =AVERAGE(Data!FR80:FZ80) -> 0.4941126121 | HB80: 174 | HC80: =AVERAGE(Data!GA80:GL80) -> 0.6693631121 | HD80: 102
A81: E05004943 | B81: 29UEGJ | C81: Aylesham | D81: Dover | E81: NHS South Kent Coast CCG | F81: 77 | G81: 0.4156971919 | H81: 1.023602565 | I81: 0.5689989785 | J81: 0.9203844349 | K81: 0.7707771376 | L81: 0.8636070918 | M81: 0.4344683876 | N81: 0.7964308806 | O81: 0.6144756426 | P81: 0.7165835366 | Q81: 1.107791318 | R81: 0.6519426827 | S81: 1.27850423 | T81: 1.130792573 | U81: 0.6490534694 | V81: 1.138798445 | W81: 1.702258777 | X81: 1.667489978 | Y81: 2.262810276 | Z81: 0.6665355893 | AA81: 1.05954385 | AB81: 0.4966877822 | AC81: 0.9078625848 | AD81: 0.5338308533 | AE81: 0.3611801788 | AF81: 0.8921722232 | AG81: 0.7736528544 | AH81: 0.6875034139 | AI81: 0.9915949844 | AJ81: 0.9882219608 | AK81: 0.5525484768 | AL81: 0.5740043405 | AM81: 1.107791318 | AN81: 0.8533980028 | AO81: 1.438064981 | AP81: 0.9215717062 | AQ81: 1.104230656 | AR81: 0.9306780279 | AS81: 0.8802600631 | AT81: 0.5593384433 | AU81: 0.6694329117 | AV81: 255 | AW81: 0.9 | BB81: 0.7571335865 | BC81: 231 | BD81: 0.815 | BI81: 0.9109927372 | BJ81: 187 | BK81: 0.659 | BP81: 1.877519677 | BQ81: 2 | BR81: 0.003 | BW81: 0.732892132 | BX81: 238 | BY81: 0.84 | CD81: 0.6786271676 | CE81: 238 | CF81: 0.84 | CK81: 0.8441218073 | CL81: 228 | CM81: 0.804 | CR81: 0.8408978294 | CS81: 159 | CT81: 0.56 | CY81: 1.145731492 | CZ81: 34 | DA81: 0.117 | DF81: 0.8792157794 | DG81: 243 | DH81: 0.858 | DM81: 0.9849719787 | DN81: 166 | DO81: 0.585 | DT81: =AVERAGE(Data!Z81:AH81) -> 0.70877437 | DU81: 250 | DV81: 0.882 | EA81: 0.9084752468 | EB81: 241 | EC81: 0.851 | EH81: 0.8998784972 | EI81: 212 | EJ81: 0.748 | EO81: Dover | EP81: 72 | EQ81: 118 | ER81: 34 | ES81: 43 | ET81: 0.414 | EU81: 0.117 | EV81: 0.148 | EW81: 72 | EX81: 0.251 | EY81: 0.2426421053 | EZ81: 0.640087556 | FA81: 0.4294498866 | FB81: 0.6390761377 | FC81: 0.546452467 | FD81: 0.6555686436 | FE81: 0.286301399 | FF81: 0.454293362 | FG81: 0.3115796833 | FH81: 0.4050750881 | FI81: 0.8451883358 | FJ81: 0.418947626 | FK81: 0.5576506719 | FL81: 0.7029874247 | FM81: 0.3467381789 | FN81: 0.6801590052 | FO81: 0.8260754701 | FP81: 0.8773111958 | FQ81: 0.8741103585 | FR81: 0.4830151866 | FS81: 0.6543642003 | FT81: 0.3152538299 | FU81: 0.5100216929 | FV81: 0.3212266435 | FW81: 0.1463517365 | FX81: 0.263043542 | FY81: 0.3602940579 | FZ81: 0.2393809923 | GA81: 0.5839110772 | GB81: 0.8054924301 | GC81: 0.3996855952 | GD81: 0.07918531747 | GE81: 0.8451883358 | GF81: 0.289822836 | GG81: 0.6874873417 | GH81: 0.8019512769 | GI81: 0.8070573104 | GJ81: 0.8277184113 | GK81: 0.7795234025 | GL81: 0.304149419 | GM81: 0.4373931826 | GN81: 0.5163384018 | GO81: 0.5335407518 | GP81: 0.8591656748 | GQ81: 0.4567763106 | GR81: 0.2522675822 | GS81: 0.5963630341 | GT81: 0.4621868266 | GU81: 0.4886550889 | GV81: 0.704079964 | GW81: 0.5310954808 | GX81: 221 | GY81: =AVERAGE(Data!EY81:FQ81) -> 0.565247084 | GZ81: 184 | HA81: =AVERAGE(Data!FR81:FZ81) -> 0.3658835424 | HB81: 251 | HC81: =AVERAGE(Data!GA81:GL81) -> 0.6009310628 | HD81: 240
A82: E05004944 | B82: 29UEGK | C82: Buckland | D82: Dover | E82: NHS South Kent Coast CCG | F82: 78 | G82: 0.2646781075 | H82: 0.9106545674 | I82: 0.6290405128 | J82: 0.9203844349 | K82: 0.4771978562 | L82: 0.8601019129 | M82: 0.3804584245 | N82: 0.7964308806 | O82: 0.6144756426 | P82: 0.7165835366 | Q82: 0.7937038008 | R82: 0.4236984679 | S82: 0.3197473105 | T82: 0.7908175341 | U82: 0.6297064617 | V82: 0.9356641734 | W82: 0.130503153 | X82: 0.1573438398 | Y82: 0.1875622987 | Z82: 0.5061745369 | AA82: 1.110805954 | AB82: 0.6631882391 | AC82: 0.9078625848 | AD82: 0.5338308533 | AE82: 0.196064457 | AF82: 0.291548785 | AG82: 1.281218096 | AH82: 0.1973802132 | AI82: 1.014655466 | AJ82: 1.136523342 | AK82: 1.28359558 | AL82: 0.1447122259 | AM82: 0.7937038008 | AN82: 0.6892053534 | AO82: 1.227678606 | AP82: 0.968517132 | AQ82: 1.119946533 | AR82: 0.9860102199 | AS82: 0.9154007281 | AT82: 1.144283318 | AU82: 0.6014577292 | AV82: 265 | AW82: 0.936 | BB82: 0.6869147018 | BC82: 244 | BD82: 0.861 | BI82: 0.6530496159 | BJ82: 256 | BK82: 0.904 | BP82: 0.1584697638 | BQ82: 278 | BR82: 0.982 | BW82: 0.7443724335 | BX82: 233 | BY82: 0.822 | CD82: 0.4915528878 | CE82: 281 | CF82: 0.992 | CK82: 1.144924796 | CL82: 67 | CM82: 0.234 | CR82: 0.4692080134 | CS82: 276 | CT82: 0.975 | CY82: 0.9584419797 | CZ82: 184 | DA82: 0.648 | DF82: 1.026831586 | DG82: 139 | DH82: 0.489 | DM82: 0.5757238377 | DN82: 268 | DO82: 0.946 | DT82: =AVERAGE(Data!Z82:AH82) -> 0.632008191 | DU82: 264 | DV82: 0.932 | EA82: 0.9520193587 | EB82: 196 | EC82: 0.691 | EH82: 0.7012764735 | EI82: 268 | EJ82: 0.946 | EO82: Dover | EP82: 16 | EQ82: 16 | ER82: 20 | ES82: 88 | ET82: 0.053 | EU82: 0.067 | EV82: 0.308 | EW82: 16 | EX82: 0.053 | EY82: 0.1544923913 | EZ82: 0.5694579875 | FA82: 0.4747660137 | FB82: 0.6390761377 | FC82: 0.3383156207 | FD82: 0.6529078441 | FE82: 0.2507104828 | FF82: 0.454293362 | FG82: 0.3115796833 | FH82: 0.4050750881 | FI82: 0.6055555622 | FJ82: 0.2722746523 | FK82: 0.1394655555 | FL82: 0.4916328554 | FM82: 0.3364025956 | FN82: 0.5588349863 | FO82: 0.06333082543 | FP82: 0.08278281373 | FQ82: 0.07245421763 | FR82: 0.3668071028 | FS82: 0.6860231875 | FT82: 0.4209337129 | FU82: 0.5100216929 | FV82: 0.3212266435 | FW82: 0.07944614748 | FX82: 0.08595876791 | FY82: 0.596669765 | FZ82: 0.0687255806 | GA82: 0.5974904828 | GB82: 0.9263717917 | GC82: 0.92848806 | GD82: 0.01996340924 | GE82: 0.6055555622 | GF82: 0.2340613049 | GG82: 0.5869091538 | GH82: 0.8428031649 | GI82: 0.8185436904 | GJ82: 0.8769292798 | GK82: 0.8106425819 | GL82: 0.6222227533 | GM82: 0.3995721308 | GN82: 0.4670606895 | GO82: 0.3901026223 | GP82: 0.07285595226 | GQ82: 0.4610024679 | GR82: 0.2077000652 | GS82: 0.8174501115 | GT82: 0.3127594857 | GU82: 0.4104852294 | GV82: 0.7942282941 | GW82: 0.4469800628 | GX82: 263 | GY82: =AVERAGE(Data!EY82:FQ82) -> 0.3617583513 | GZ82: 265 | HA82: =AVERAGE(Data!FR82:FZ82) -> 0.3484236223 | HB82: 256 | HC82: =AVERAGE(Data!GA82:GL82) -> 0.6558317696 | HD82: 131
A83: E05004945 | B83: 29UEGL | C83: Capel-le-Ferne | D83: Dover | E83: NHS South Kent Coast CCG | F83: 79 | G83: 1.288420544 | H83: 1.412724019 | I83: 1.075694847 | J83: 0.9203844349 | K83: 1.174985343 | L83: 1.004950672 | M83: 1.338872285 | N83: 0.7964308806 | O83: 0.6144756426 | P83: 0.7165835366 | Q83: 1.301393271 | R83: 0.7647716181 | S83: 0.4038080333 | T83: 0.6514158763 | U83: 0.9416131272 | V83: 0.5300440766 | W83: 1.261766748 | X83: 1.098195281 | Y83: 1.43368139 | Z83: 1.379947479 | AA83: 0.7954548322 | AB83: 0.5646822993 | AC83: 0.9078625848 | AD83: 0.5338308533 | AE83: 1.067947411 | AF83: 0.9774575374 | AG83: 1.219035394 | AH83: 1.502911708 | AI83: 0.4604036859 | AJ83: 0.5988088768 | AK83: 1.064131907 | AL83: 0.3096246538 | AM83: 1.301393271 | AN83: 0.7684331847 | AO83: 1.434186559 | AP83: 1.128901881 | AQ83: 1.202231981 | AR83: 1.106010344 | AS83: 1.116256544 | AT83: 0.6018501975 | AU83: 1.25894647 | AV83: 31 | AW83: 0.106 | BB83: 1.047124723 | BC83: 137 | BD83: 0.482 | BI83: 0.7405131477 | BJ83: 242 | BK83: 0.854 | BP83: 1.264547806 | BQ83: 78 | BR83: 0.273 | BW83: 0.8363556098 | BX83: 204 | BY83: 0.719 | CD83: 1.191838013 | CE83: 77 | CF83: 0.269 | CK83: 0.70778149 | CL83: 263 | CM83: 0.929 | CR83: 0.8055089624 | CS83: 173 | CT83: 0.609 | CY83: 1.101309872 | CZ83: 47 | DA83: 0.163 | DF83: 1.031050189 | DG83: 134 | DH83: 0.471 | DM83: 0.9858006119 | DN83: 165 | DO83: 0.581 | DT83: =AVERAGE(Data!Z83:AH83) -> 0.9943477888 | DU83: 150 | DV83: 0.528 | EA83: 0.9243527571 | EB83: 227 | EC83: 0.801 | EH83: 0.9692893703 | EI83: 175 | EJ83: 0.617 | EO83: Dover | EP83: 109 | EQ83: 119 | ER83: 134 | ES83: 57 | ET83: 0.418 | EU83: 0.471 | EV83: 0.198 | EW83: 109 | EX83: 0.382 | EY83: 0.75205 | EZ83: 0.8834161771 | FA83: 0.8118767299 | FB83: 0.6390761377 | FC83: 0.8330211266 | FD83: 0.762863292 | FE83: 0.8822759473 | FF83: 0.454293362 | FG83: 0.3115796833 | FH83: 0.4050750881 | FI83: 0.992896762 | FJ83: 0.4914531021 | FK83: 0.1761306814 | FL83: 0.4049700892 | FM83: 0.5030297755 | FN83: 0.3165742397 | FO83: 0.6123126366 | FP83: 0.5777899886 | FQ83: 0.5538227253 | FR83: 1 | FS83: 0.4912653355 | FT83: 0.3584107842 | FU83: 0.5100216929 | FV83: 0.3212266435 | FW83: 0.4327368092 | FX83: 0.2881886323 | FY83: 0.5677109653 | FZ83: 0.5232970319 | GA83: 0.2711135255 | GB83: 0.488084698 | GC83: 0.7697391498 | GD83: 0.04271348626 | GE83: 0.992896762 | GF83: 0.2609679003 | GG83: 0.6856332071 | GH83: 0.9823699 | GI83: 0.8786842704 | GJ83: 0.9836539566 | GK83: 0.9885125268 | GL83: 0.32726588 | GM83: 0.815780969 | GN83: 0.7143059731 | GO83: 0.4502136777 | GP83: 0.5813084502 | GQ83: 0.5361848912 | GR83: 0.4529833597 | GS83: 0.5096457911 | GT83: 0.5178051241 | GU83: 0.4733005537 | GV83: 0.8320973068 | GW83: 0.5882250176 | GX83: 170 | GY83: =AVERAGE(Data!EY83:FQ83) -> 0.598131976 | GZ83: 164 | HA83: =AVERAGE(Data!FR83:FZ83) -> 0.4992064328 | HB83: 170 | HC83: =AVERAGE(Data!GA83:GL83) -> 0.6393029386 | HD83: 175
A84: E05004946 | B84: 29UEGM | C84: Castle | D84: Dover | E84: NHS South Kent Coast CCG | F84: 80 | G84: 0.4111928133 | H84: 0.4354374172 | I84: 0.8078069851 | J84: 0.9203844349 | K84: 0.415068298 | L84: 0.9035399219 | M84: 0.510186571 | N84: 0.7964308806 | O84: 0.6144756426 | P84: 0.7165835366 | Q84: 0.2971149695 | R84: 0.2509070137 | S84: 0.2930009193 | T84: 0.7227899813 | U84: 0.5252907283 | V84: 0.132275431 | W84: 0.8972003528 | X84: 0.9315302509 | Y84: 0.9116097371 | Z84: 1.130159865 | AA84: 0.0998571651 | AB84: 0.9240923172 | AC84: 0.9078625848 | AD84: 0.5338308533 | AE84: 0.2072932857 | AF84: 0.2126233257 | AG84: 1.137275172 | AH84: 0.5818507245 | AI84: 0.769955486 | AJ84: 1.127445909 | AK84: 1.226955938 | AL84: 3.28815604 | AM84: 0.2971149695 | AN84: 1.534363491 | AO84: 0.9655263358 | AP84: 0.8209290559 | AQ84: 0 | AR84: 0.8676002482 | AS84: 0.8693036705 | AT84: 1.276495944 | AU84: 0.5514790719 | AV84: 273 | AW84: 0.964 | BB84: 0.7091220213 | BC84: 239 | BD84: 0.843 | BI84: 0.4440547778 | BJ84: 277 | BK84: 0.978 | BP84: 0.9134467802 | BQ84: 173 | BR84: 0.609 | BW84: 0.719160557 | BX84: 241 | BY84: 0.851 | CD84: 0.534760627 | CE84: 275 | CF84: 0.971 | CK84: 1.041452444 | CL84: 136 | CM84: 0.478 | CR84: 1.792635505 | CS84: 15 | CT84: 0.049 | CY84: 1.249944913 | CZ84: 15 | DA84: 0.049 | DF84: 0.7668657837 | DG84: 267 | DH84: 0.943 | DM84: 0.6048855729 | DN84: 262 | DO84: 0.925 | DT84: =AVERAGE(Data!Z84:AH84) -> 0.6372050326 | DU84: 262 | DV84: 0.925 | EA84: 1.086987257 | EB84: 39 | EC84: 0.134 | EH84: 0.7567879566 | EI84: 257 | EJ84: 0.907 | EO84: Dover | EP84: 27 | EQ84: 22 | ER84: 22 | ES84: 245 | ET84: 0.074 | EU84: 0.074 | EV84: 0.865 | EW84: 27 | EX84: 0.092 | EY84: 0.2400129032 | EZ84: 0.2722912992 | FA84: 0.6096893513 | FB84: 0.6390761377 | FC84: 0.2942680631 | FD84: 0.685881863 | FE84: 0.3361973695 | FF84: 0.454293362 | FG84: 0.3115796833 | FH84: 0.4050750881 | FI84: 0.2266835843 | FJ84: 0.1612364101 | FK84: 0.1277994673 | FL84: 0.4493417091 | FM84: 0.2806214883 | FN84: 0.07900285247 | FO84: 0.4353951428 | FP84: 0.4901030467 | FQ84: 0.3521495031 | FR84: 0.818987593 | FS84: 0.06167083502 | FT84: 0.5865327326 | FU84: 0.5100216929 | FV84: 0.3212266435 | FW84: 0.08399611638 | FX84: 0.06268878503 | FY84: 0.5296348153 | FZ84: 0.2025939086 | GA84: 0.4533963405 | GB84: 0.918972843 | GC84: 0.8875178105 | GD84: 0.4536092526 | GE84: 0.2266835843 | GF84: 0.521085797 | GG84: 0.4615835463 | GH84: 0.7143720887 | GI84: 0 | GJ84: 0.7716188387 | GK84: 0.7698208557 | GL84: 0.6941155293 | GM84: 0.3739978513 | GN84: 0.4819433591 | GO84: 0.2551675354 | GP84: 0.4258825642 | GQ84: 0.4596878994 | GR84: 0.2197284063 | GS84: 0.7532956647 | GT84: 0.3401464184 | GU84: 0.4913346717 | GV84: 0.5899854625 | GW84: 0.4225206983 | GX84: 271 | GY84: =AVERAGE(Data!EY84:FQ84) -> 0.3605630697 | GZ84: 267 | HA84: =AVERAGE(Data!FR84:FZ84) -> 0.3530392358 | HB84: 255 | HC84: =AVERAGE(Data!GA84:GL84) -> 0.5727313739 | HD84: 257
A85: E05004947 | B85: 29UEGN | C85: Eastry | D85: Dover | E85: NHS Canterbury & Coastal CCG | F85: 81 | G85: 0.9539511838 | H85: 0.9466334857 | I85: 1.09926159 | J85: 0.9203844349 | K85: 1.115375059 | L85: 1.008694274 | M85: 0.9952755009 | N85: 0.7964308806 | O85: 0.6144756426 | P85: 0.7165835366 | Q85: 1.030541341 | R85: 0.9736076834 | S85: 1.027848454 | T85: 1.001695096 | U85: 0.9844261805 | V85: 0.7820715306 | W85: 1.631831337 | X85: 1.451649321 | Y85: 1.70543904 | Z85: 1.084741052 | AA85: 0.990002389 | AB85: 1.031900308 | AC85: 0.9078625848 | AD85: 0.5338308533 | AE85: 0.9050728959 | AF85: 1.121945317 | AG85: 0.7813775479 | AH85: 1.634789629 | AI85: 0.7061550993 | AJ85: 0.6438139155 | AK85: 0.9978159321 | AL85: 0.4532162089 | AM85: 1.030541341 | AN85: 0.9552080458 | AO85: 1.404824452 | AP85: 1.099958288 | AQ85: 1.122432344 | AR85: 1.089220563 | AS85: 1.079093557 | AT85: 1.203377886 | AU85: 0.9999487533 | AV85: 164 | AW85: 0.578 | BB85: 0.9672320299 | BC85: 177 | BD85: 0.624 | BI85: 0.8914061831 | BJ85: 190 | BK85: 0.67 | BP85: 1.596306566 | BQ85: 11 | BR85: 0.035 | BW85: 0.9096674374 | BX85: 191 | BY85: 0.673 | CD85: 1.110796347 | CE85: 102 | CF85: 0.358 | CK85: 0.7825949823 | CL85: 248 | CM85: 0.875 | CR85: 0.7418787751 | CS85: 208 | CT85: 0.734 | CY85: 1.180016249 | CZ85: 22 | DA85: 0.074 | DF85: 1.118816527 | DG85: 44 | DH85: 0.152 | DM85: 1.039798714 | DN85: 145 | DO85: 0.51 | DT85: =AVERAGE(Data!Z85:AH85) -> 0.9990580641 | DU85: 145 | DV85: 0.51 | EA85: 0.9821381361 | EB85: 160 | EC85: 0.563 | EH85: 1.013333895 | EI85: 151 | EJ85: 0.531 | EO85: Dover | EP85: 133 | EQ85: 139 | ER85: 139 | ES85: 124 | ET85: 0.489 | EU85: 0.489 | EV85: 0.436 | EW85: 133 | EX85: 0.468 | EY85: 0.5568205128 | EZ85: 0.59195662 | FA85: 0.8296636429 | FB85: 0.6390761377 | FC85: 0.790759641 | FD85: 0.7657050797 | FE85: 0.65585616 | FF85: 0.454293362 | FG85: 0.3115796833 | FH85: 0.4050750881 | FI85: 0.7862505392 | FJ85: 0.6256541233 | FK85: 0.4483210673 | FL85: 0.6227305277 | FM85: 0.5259014198 | FN85: 0.4671002112 | FO85: 0.7918983041 | FP85: 0.7637516381 | FQ85: 0.6588011141 | FR85: 0.7860741574 | FS85: 0.6114160554 | FT85: 0.6549597871 | FU85: 0.5100216929 | FV85: 0.3212266435 | FW85: 0.3667393666 | FX85: 0.3307886779 | FY85: 0.3638914868 | FZ85: 0.5692154476 | GA85: 0.4158268155 | GB85: 0.5247679731 | GC85: 0.7217695306 | GD85: 0.06252229618 | GE85: 0.7862505392 | GF85: 0.3243985853 | GG85: 0.6715962357 | GH85: 0.9571831985 | GI85: 0.8203605138 | GJ85: 0.9687216058 | GK85: 0.9556024592 | GL85: 0.6543563907 | GM85: 0.6594802586 | GN85: 0.6611380761 | GO85: 0.5240765825 | GP85: 0.7381503521 | GQ85: 0.5767396673 | GR85: 0.4076587447 | GS85: 0.5541214397 | GT85: 0.4243864177 | GU85: 0.4979974105 | GV85: 0.8712448336 | GW85: 0.6017221083 | GX85: 155 | GY85: =AVERAGE(Data!EY85:FQ85) -> 0.6153260459 | GZ85: 155 | HA85: =AVERAGE(Data!FR85:FZ85) -> 0.5015925906 | HB85: 167 | HC85: =AVERAGE(Data!GA85:GL85) -> 0.6552796786 | HD85: 134
A86: E05004948 | B86: 29UEGP | C86: Eythorne and Shepherdswell | D86: Dover | E86: NHS South Kent Coast CCG | F86: 82 | G86: 0.9463129897 | H86: 1.060314104 | I86: 1.096133095 | J86: 0.9203844349 | K86: 1.004942276 | L86: 1.142516756 | M86: 0.9730594121 | N86: 0.7964308806 | O86: 0.6144756426 | P86: 0.7165835366 | Q86: 0.9586091239 | R86: 0.9950328108 | S86: 0.8828307317 | T86: 1.046508419 | U86: 0.9385138503 | V86: 0.9657127508 | W86: 1.651471447 | X86: 1.507121349 | Y86: 1.666606515 | Z86: 0.9813478348 | AA86: 1.085882847 | AB86: 0.6351832034 | AC86: 0.9078625848 | AD86: 0.5338308533 | AE86: 0.9314757118 | AF86: 1.04827163 | AG86: 0.7016069846 | AH86: 1.630083653 | AI86: 1.144089018 | AJ86: 0.8864370058 | AK86: 0.8215173572 | AL86: 1.285092859 | AM86: 0.9586091239 | AN86: 0.934707161 | AO86: 1.505061365 | AP86: 1.094668051 | AQ86: 1.032740551 | AR86: 1.07601406 | AS86: 1.088152502 | AT86: 1.327944626 | AU86: 1.034253396 | AV86: 143 | AW86: 0.503 | BB86: 0.9674667518 | BC86: 176 | BD86: 0.62 | BI86: 0.8897833581 | BJ86: 192 | BK86: 0.677 | BP86: 1.608399771 | BQ86: 9 | BR86: 0.028 | BW86: 0.8288214646 | BX86: 208 | BY86: 0.734 | CD86: 1.077859495 | CE86: 109 | CF86: 0.382 | CK86: 0.9506811271 | CL86: 185 | CM86: 0.652 | CR86: 1.121850991 | CS86: 72 | CT86: 0.251 | CY86: 1.219884263 | CZ86: 21 | DA86: 0.07 | DF86: 1.123903958 | DG86: 41 | DH86: 0.141 | DM86: 1.046503164 | DN86: 140 | DO86: 0.492 | DT86: =AVERAGE(Data!Z86:AH86) -> 0.9395050336 | DU86: 177 | DV86: 0.624 | EA86: 1.096252807 | EB86: 33 | EC86: 0.113 | EH86: 1.037353478 | EI86: 135 | EJ86: 0.475 | EO86: Dover | EP86: 149 | EQ86: 144 | ER86: 107 | ES86: 251 | ET86: 0.507 | EU86: 0.375 | EV86: 0.886 | EW86: 149 | EX86: 0.524 | EY86: 0.5523621053 | EZ86: 0.6630443168 | FA86: 0.8273024222 | FB86: 0.6390761377 | FC86: 0.7124668844 | FD86: 0.8672904229 | FE86: 0.6412164359 | FF86: 0.454293362 | FG86: 0.3115796833 | FH86: 0.4050750881 | FI86: 0.7313699221 | FJ86: 0.6394222144 | FK86: 0.3850680657 | FL86: 0.6505899273 | FM86: 0.5013740758 | FN86: 0.5767818061 | FO86: 0.8014292954 | FP86: 0.7929369597 | FQ86: 0.6438003372 | FR86: 0.7111486846 | FS86: 0.6706309138 | FT86: 0.403158573 | FU86: 0.5100216929 | FV86: 0.3212266435 | FW86: 0.3774378993 | FX86: 0.3090671009 | FY86: 0.3267419309 | FZ86: 0.5675768796 | GA86: 0.6737087838 | GB86: 0.7225282642 | GC86: 0.5942440667 | GD86: 0.1772817361 | GE86: 0.7313699221 | GF86: 0.3174362716 | GG86: 0.7195159123 | GH86: 0.9525796373 | GI86: 0.7548068029 | GJ86: 0.9569761203 | GK86: 0.963624702 | GL86: 0.7220915913 | GM86: 0.6809029481 | GN86: 0.6628686486 | GO86: 0.5251575978 | GP86: 0.7460555308 | GQ86: 0.5232373016 | GR86: 0.3952059527 | GS86: 0.6634937049 | GT86: 0.4543258291 | GU86: 0.518476092 | GV86: 0.8700157707 | GW86: 0.6069913398 | GX86: 149 | GY86: =AVERAGE(Data!EY86:FQ86) -> 0.6208673401 | GZ86: 149 | HA86: =AVERAGE(Data!FR86:FZ86) -> 0.4663344798 | HB86: 196 | HC86: =AVERAGE(Data!GA86:GL86) -> 0.6905136509 | HD86: 61
A87: E05004949 | B87: 29UEGQ | C87: Little Stour and Ashstone | D87: Dover | E87: NHS Canterbury & Coastal CCG | F87: 83 | G87: 0.9607812708 | H87: 0.8925068432 | I87: 1.155648162 | J87: 0.9203844349 | K87: 1.072186204 | L87: 1.054497312 | M87: 1.01888329 | N87: 0.7964308806 | O87: 0.6144756426 | P87: 0.7165835366 | Q87: 1.071783391 | R87: 1.078600518 | S87: 1.394692571 | T87: 1.142303203 | U87: 1.016767103 | V87: 1.014699458 | W87: 1.390911615 | X87: 1.213744369 | Y87: 1.425207684 | Z87: 1.152297411 | AA87: 1.039027075 | AB87: 1.036360497 | AC87: 0.9078625848 | AD87: 0.5338308533 | AE87: 1.0659161 | AF87: 1.556957492 | AG87: 0.7080828374 | AH87: 1.823164409 | AI87: 0.6098415693 | AJ87: 1.036175544 | AK87: 0.5084736451 | AL87: 0.4174196848 | AM87: 1.071783391 | AN87: 0.9010454656 | AO87: 1.335404938 | AP87: 1.116604795 | AQ87: 1.182223387 | AR87: 1.104617047 | AS87: 1.094080033 | AT87: 1.220234007 | AU87: 1.002978759 | AV87: 162 | AW87: 0.57 | BB87: 0.9724764243 | BC87: 174 | BD87: 0.613 | BI87: 1.006238178 | BJ87: 140 | BK87: 0.492 | BP87: 1.34328789 | BQ87: 60 | BR87: 0.209 | BW87: 0.9338756841 | BX87: 186 | BY87: 0.656 | CD87: 1.28853021 | CE87: 53 | CF87: 0.184 | CK87: 0.7181635862 | CL87: 262 | CM87: 0.925 | CR87: 0.7446015381 | CS87: 207 | CT87: 0.73 | CY87: 1.118225202 | CZ87: 41 | DA87: 0.141 | DF87: 1.143551854 | DG87: 30 | DH87: 0.102 | DM87: 1.050057236 | DN87: 138 | DO87: 0.485 | DT87: =AVERAGE(Data!Z87:AH87) -> 1.091499918 | DU87: 104 | DV87: 0.365 | EA87: 0.966491959 | EB87: 181 | EC87: 0.638 | EH87: 1.034312256 | EI87: 138 | EJ87: 0.485 | EO87: Dover | EP87: 146 | EQ87: 146 | ER87: 180 | ES87: 103 | ET87: 0.514 | EU87: 0.634 | EV87: 0.361 | EW87: 146 | EX87: 0.514 | EY87: 0.5608072289 | EZ87: 0.5581097037 | FA87: 0.8722212004 | FB87: 0.6390761377 | FC87: 0.7601403411 | FD87: 0.8004744042 | FE87: 0.6714129722 | FF87: 0.454293362 | FG87: 0.3115796833 | FH87: 0.4050750881 | FI87: 0.8177161222 | FJ87: 0.6931240099 | FK87: 0.6083290388 | FL87: 0.7101433152 | FM87: 0.5431786288 | FN87: 0.6060396174 | FO87: 0.6749843103 | FP87: 0.6385834629 | FQ87: 0.5505493823 | FR87: 0.8350299036 | FS87: 0.6416932348 | FT87: 0.6577907239 | FU87: 0.5100216929 | FV87: 0.3212266435 | FW87: 0.4319137133 | FX87: 0.4590454655 | FY87: 0.3297577684 | FZ87: 0.6348054375 | GA87: 0.3591115861 | GB87: 0.8445790422 | GC87: 0.3678040932 | GD87: 0.0575840772 | GE87: 0.8177161222 | GF87: 0.3060044099 | GG87: 0.6384092532 | GH87: 0.9716689817 | GI87: 0.8640604404 | GJ87: 0.9824147981 | GK87: 0.9688738883 | GL87: 0.6635221818 | GM87: 0.663712711 | GN87: 0.6650794434 | GO87: 0.586898188 | GP87: 0.6213723852 | GQ87: 0.5931524398 | GR87: 0.4638805962 | GS87: 0.5238315738 | GT87: 0.4376500997 | GU87: 0.4722068316 | GV87: 0.890108058 | GW87: 0.6134717867 | GX87: 141 | GY87: =AVERAGE(Data!EY87:FQ87) -> 0.6250441058 | GZ87: 144 | HA87: =AVERAGE(Data!FR87:FZ87) -> 0.5356982871 | HB87: 133 | HC87: =AVERAGE(Data!GA87:GL87) -> 0.6534790729 | HD87: 138
A88: E05004950 | B88: 29UEGR | C88: Lydden and Temple Ewell | D88: Dover | E88: NHS South Kent Coast CCG | F88: 84 | G88: 1.259582728 | H88: 1.392459213 | I88: 1.22436485 | J88: 0.9203844349 | K88: 1.221573618 | L88: 1.225660841 | M88: 1.196996454 | N88: 0.7964308806 | O88: 0.6144756426 | P88: 0.7165835366 | Q88: 1.166319457 | R88: 1.077063537 | S88: 1.176978688 | T88: 1.262576975 | U88: 0.9368775881 | V88: 0.8311879355 | W88: 1.387094169 | X88: 1.29354144 | Y88: 1.450354621 | Z88: 1.187019001 | AA88: 0.9633115369 | AB88: 1.022803925 | AC88: 0.9078625848 | AD88: 0.5338308533 | AE88: 1.123004594 | AF88: 1.060890628 | AG88: 0.7385008278 | AH88: 1.098322879 | AI88: 1.107494231 | AJ88: 1.150999578 | AK88: 1.044218722 | AL88: 0.2517044907 | AM88: 1.166319457 | AN88: 1.020247313 | AO88: 1.066280687 | AP88: 1.138818909 | AQ88: 1.172342132 | AR88: 1.1104416 | AS88: 1.118490908 | AT88: 0.6858751183 | AU88: 1.292135597 | AV88: 22 | AW88: 0.074 | BB88: 1.072209246 | BC88: 127 | BD88: 0.446 | BI88: 0.97275792 | BJ88: 159 | BK88: 0.56 | BP88: 1.376996744 | BQ88: 55 | BR88: 0.191 | BW88: 0.9229655801 | BX88: 187 | BY88: 0.659 | CD88: 1.005179732 | CE88: 136 | CF88: 0.478 | CK88: 1.100904177 | CL88: 100 | CM88: 0.351 | CR88: 0.7090119739 | CS88: 216 | CT88: 0.762 | CY88: 1.043264 | CZ88: 85 | DA88: 0.297 | DF88: 1.045193733 | DG88: 122 | DH88: 0.429 | DM88: 1.113184558 | DN88: 95 | DO88: 0.333 | DT88: =AVERAGE(Data!Z88:AH88) -> 0.9595052032 | DU88: 173 | DV88: 0.609 | EA88: 1.002769429 | EB88: 128 | EC88: 0.45 | EH88: 1.045482165 | EI88: 128 | EJ88: 0.45 | EO88: Dover | EP88: 156 | EQ88: 189 | ER88: 111 | ES88: 156 | ET88: 0.666 | EU88: 0.39 | EV88: 0.549 | EW88: 156 | EX88: 0.549 | EY88: 0.7352173913 | EZ88: 0.8707440225 | FA88: 0.9240848683 | FB88: 0.6390761377 | FC88: 0.866050489 | FD88: 0.9304055314 | FE88: 0.7887841078 | FF88: 0.454293362 | FG88: 0.3115796833 | FH88: 0.4050750881 | FI88: 0.8898423238 | FJ88: 0.6921363242 | FK88: 0.5133678411 | FL88: 0.7849147199 | FM88: 0.5004999497 | FN88: 0.4964354858 | FO88: 0.6731317724 | FP88: 0.6805668419 | FQ88: 0.5602634969 | FR88: 0.8601914336 | FS88: 0.5949320392 | FT88: 0.6491862011 | FU88: 0.5100216929 | FV88: 0.3212266435 | FW88: 0.4550462126 | FX88: 0.3127876223 | FY88: 0.3439235808 | FZ88: 0.382423731 | GA88: 0.6521595606 | GB88: 0.9381712653 | GC88: 0.7553349597 | GD88: 0.03472325659 | GE88: 0.8898423238 | GF88: 0.3464865967 | GG88: 0.5097505915 | GH88: 0.9909996934 | GI88: 0.8568384532 | GJ88: 0.987594989 | GK88: 0.9904911907 | GL88: 0.3729558038 | GM88: 0.8433487607 | GN88: 0.7357219256 | GO88: 0.574231427 | GP88: 0.6379873704 | GQ88: 0.5871116021 | GR88: 0.3735452867 | GS88: 0.7818885952 | GT88: 0.4622827902 | GU88: 0.4281185941 | GV88: 0.839776026 | GW88: 0.636788932 | GX88: 110 | GY88: =AVERAGE(Data!EY88:FQ88) -> 0.6692878651 | GZ88: 93 | HA88: =AVERAGE(Data!FR88:FZ88) -> 0.4921932397 | HB88: 178 | HC88: =AVERAGE(Data!GA88:GL88) -> 0.693779057 | HD88: 56
A89: E05004951 | B89: 29UEGS | C89: Maxton, Elms Vale and Priory | D89: Dover | E89: NHS South Kent Coast CCG | F89: 85 | G89: 0.6097259184 | H89: 0.762090026 | I89: 0.7352386661 | J89: 0.9203844349 | K89: 0.7540487498 | L89: 0.8678993098 | M89: 0.7118141891 | N89: 0.7964308806 | O89: 0.6144756426 | P89: 0.7165835366 | Q89: 0.8553967199 | R89: 0.7604140073 | S89: 0.3018961967 | T89: 0.7633097477 | U89: 0.7031857354 | V89: 1.077887448 | W89: 0.7333671194 | X89: 0.8304217822 | Y89: 0.8622126803 | Z89: 0.9343831161 | AA89: 1.175236271 | AB89: 1.006134589 | AC89: 0.9078625848 | AD89: 0.5338308533 | AE89: 0.6092560892 | AF89: 0.5783571206 | AG89: 1.309337161 | AH89: 0.405057607 | AI89: 1.146834744 | AJ89: 1.04890345 | AK89: 1.298993422 | AL89: 0.5471772255 | AM89: 0.8553967199 | AN89: 0.8187987783 | AO89: 0.8185819715 | AP89: 0.9324181959 | AQ89: 0.9502124989 | AR89: 0.9696997703 | AS89: 0.8934947108 | AT89: 0.8921259293 | AU89: 0.7023515368 | AV89: 251 | AW89: 0.886 | BB89: 0.8101155128 | BC89: 220 | BD89: 0.776 | BI89: 0.7241436292 | BJ89: 245 | BK89: 0.865 | BP89: 0.808667194 | BQ89: 197 | BR89: 0.695 | BW89: 0.9114894829 | BX89: 190 | BY89: 0.67 | CD89: 0.7255019945 | CE89: 223 | CF89: 0.787 | CK89: 1.164910539 | CL89: 54 | CM89: 0.187 | CR89: 0.7012869727 | CS89: 220 | CT89: 0.776 | CY89: 0.8186903749 | CZ89: 267 | DA89: 0.943 | DF89: 0.927590221 | DG89: 220 | DH89: 0.776 | DM89: 0.7566727784 | DN89: 242 | DO89: 0.854 | DT89: =AVERAGE(Data!Z89:AH89) -> 0.8288283769 | DU89: 211 | DV89: 0.744 | EA89: 0.931053118 | EB89: 222 | EC89: 0.783 | EH89: 0.82522189 | EI89: 240 | EJ89: 0.847 | EO89: Dover | EP89: 44 | EQ89: 42 | ER89: 73 | ES89: 62 | ET89: 0.145 | EU89: 0.255 | EV89: 0.216 | EW89: 44 | EX89: 0.152 | EY89: 0.3558965116 | EZ89: 0.4765563892 | FA89: 0.5549186794 | FB89: 0.6390761377 | FC89: 0.534592659 | FD89: 0.6588268887 | FE89: 0.4690638122 | FF89: 0.454293362 | FG89: 0.3115796833 | FH89: 0.4050750881 | FI89: 0.6526241163 | FJ89: 0.4886528395 | FK89: 0.1316793586 | FL89: 0.4745319048 | FM89: 0.3756567877 | FN89: 0.6437792898 | FO89: 0.3558898307 | FP89: 0.4369071698 | FQ89: 0.3330677093 | FR89: 0.6771149845 | FS89: 0.7258147383 | FT89: 0.6386059694 | FU89: 0.5100216929 | FV89: 0.3212266435 | FW89: 0.246873145 | FX89: 0.1705198857 | FY89: 0.6097649564 | FZ89: 0.1410365242 | GA89: 0.675325633 | GB89: 0.8549534643 | GC89: 0.9396260797 | GD89: 0.07548445065 | GE89: 0.6526241163 | GF89: 0.2780725796 | GG89: 0.3913347108 | GH89: 0.8113898872 | GI89: 0.6944889088 | GJ89: 0.8624232325 | GK89: 0.7912434816 | GL89: 0.4851080527 | GM89: 0.4624571934 | GN89: 0.5511705719 | GO89: 0.4354473835 | GP89: 0.3752882366 | GQ89: 0.5745568057 | GR89: 0.2920486278 | GS89: 0.8233017256 | GT89: 0.3640542835 | GU89: 0.3347036452 | GV89: 0.7289307126 | GW89: 0.5076430339 | GX89: 235 | GY89: =AVERAGE(Data!EY89:FQ89) -> 0.4606667483 | GZ89: 239 | HA89: =AVERAGE(Data!FR89:FZ89) -> 0.4489976155 | HB89: 211 | HC89: =AVERAGE(Data!GA89:GL89) -> 0.6260062164 | HD89: 205
A90: E05004952 | B90: 29UEGT | C90: Middle Deal and Sholden | D90: Dover | E90: NHS South Kent Coast CCG | F90: 86 | G90: 0.8213844493 | H90: 0.9088423614 | I90: 0.9281157932 | J90: 0.9203844349 | K90: 0.7024076094 | L90: 0.9268843514 | M90: 0.9756087434 | N90: 0.7964308806 | O90: 0.6144756426 | P90: 0.7165835366 | Q90: 0.6276668444 | R90: 0.8452385379 | S90: 1.120700153 | T90: 0.8181353369 | U90: 0.7225482173 | V90: 0.8618719474 | W90: 0.773595458 | X90: 0.8754347108 | Y90: 0.7030144778 | Z90: 0.9458417839 | AA90: 0.7042196693 | AB90: 0.7135275237 | AC90: 0.9078625848 | AD90: 0.5338308533 | AE90: 0.7257004115 | AF90: 0.4063907319 | AG90: 1.239766473 | AH90: 0.594778528 | AI90: 1.178443153 | AJ90: 0.89083264 | AK90: 1.254153484 | AL90: 0.4216164478 | AM90: 0.6276668444 | AN90: 1.033617885 | AO90: 1.006515626 | AP90: 1.073293069 | AQ90: 1.211755618 | AR90: 1.064111487 | AS90: 1.045764218 | AT90: 1.090537186 | AU90: 0.8861142013 | AV90: 208 | AW90: 0.734 | BB90: 0.8643432039 | BC90: 207 | BD90: 0.73 | BI90: 0.790902527 | BJ90: 230 | BK90: 0.812 | BP90: 0.7840148822 | BQ90: 200 | BR90: 0.705 | BW90: 0.761056483 | BX90: 229 | BY90: 0.808 | CD90: 0.741659036 | CE90: 219 | CF90: 0.773 | CK90: 1.107809759 | CL90: 94 | CM90: 0.329 | CR90: 0.5246416461 | CS90: 271 | CT90: 0.957 | CY90: 1.020066755 | CZ90: 106 | DA90: 0.372 | DF90: 1.097092315 | DG90: 67 | DH90: 0.234 | DM90: 0.8241749203 | DN90: 221 | DO90: 0.78 | DT90: =AVERAGE(Data!Z90:AH90) -> 0.7524353954 | DU90: 237 | DV90: 0.836 | EA90: 0.9915256381 | EB90: 142 | EC90: 0.5 | EH90: 0.8582387425 | EI90: 225 | EJ90: 0.794 | EO90: Dover | EP90: 59 | EQ90: 63 | ER90: 47 | ES90: 142 | ET90: 0.219 | EU90: 0.163 | EV90: 0.5 | EW90: 59 | EX90: 0.205 | EY90: 0.4794414201 | EZ90: 0.568324764 | FA90: 0.7004919818 | FB90: 0.6390761377 | FC90: 0.4979810015 | FD90: 0.7036027411 | FE90: 0.6428963674 | FF90: 0.454293362 | FG90: 0.3115796833 | FH90: 0.4050750881 | FI90: 0.4788778238 | FJ90: 0.5431622875 | FK90: 0.488820591 | FL90: 0.5086156976 | FM90: 0.3860006377 | FN90: 0.5147618254 | FO90: 0.3754119176 | FP90: 0.4605896787 | FQ90: 0.2715703759 | FR90: 0.6854186829 | FS90: 0.4349193671 | FT90: 0.4528846745 | FU90: 0.5100216929 | FV90: 0.3212266435 | FW90: 0.294056877 | FX90: 0.1198181862 | FY90: 0.5773655337 | FZ90: 0.207095225 | GA90: 0.6939385753 | GB90: 0.7261111132 | GC90: 0.9071911386 | GD90: 0.05816303102 | GE90: 0.4788778238 | GF90: 0.3510273821 | GG90: 0.4811790572 | GH90: 0.9339791369 | GI90: 0.8856448822 | GJ90: 0.9463903122 | GK90: 0.9260873182 | GL90: 0.5929974161 | GM90: 0.582752722 | GN90: 0.5875699219 | GO90: 0.4546117043 | GP90: 0.3691906574 | GQ90: 0.4808942122 | GR90: 0.2995839555 | GS90: 0.7757469423 | GT90: 0.2685204274 | GU90: 0.4161032197 | GV90: 0.8570198131 | GW90: 0.5253741863 | GX90: 225 | GY90: =AVERAGE(Data!EY90:FQ90) -> 0.4963459675 | GZ90: 221 | HA90: =AVERAGE(Data!FR90:FZ90) -> 0.4003118759 | HB90: 232 | HC90: =AVERAGE(Data!GA90:GL90) -> 0.6651322656 | HD90: 107
A91: E05004953 | B91: 29UEGU | C91: Mill Hill | D91: Dover | E91: NHS South Kent Coast CCG | F91: 87 | G91: 0.6814282294 | H91: 0.6491288902 | I91: 0.8618108902 | J91: 0.9203844349 | K91: 0.8431340476 | L91: 0.9125943969 | M91: 0.8959493311 | N91: 0.7964308806 | O91: 0.6144756426 | P91: 0.7165835366 | Q91: 1.023034879 | R91: 0.6581167784 | S91: 1.088127774 | T91: 0.7948672515 | U91: 0.8368246968 | V91: 0.9489276314 | W91: 0.3665676915 | X91: 0.5163226334 | Y91: 0.4135044837 | Z91: 0.9121621233 | AA91: 0.9257200765 | AB91: 0.6411344032 | AC91: 0.9078625848 | AD91: 0.5338308533 | AE91: 0.5329780983 | AF91: 0.2795289352 | AG91: 1.218826125 | AH91: 0.4268267642 | AI91: 1.285681964 | AJ91: 1.226854436 | AK91: 1.303945949 | AL91: 0.06249712311 | AM91: 1.023034879 | AN91: 0.7878470001 | AO91: 1.111868077 | AP91: 1.087244931 | AQ91: 1.195811012 | AR91: 1.095896852 | AS91: 1.052283273 | AT91: 1.14128602 | AU91: 0.7307893366 | AV91: 241 | AW91: 0.851 | BB91: 0.8736986182 | BC91: 204 | BD91: 0.719 | BI91: 0.8351197737 | BJ91: 213 | BK91: 0.751 | BP91: 0.4321316029 | BQ91: 259 | BR91: 0.914 | BW91: 0.7841420082 | BX91: 222 | BY91: 0.783 | CD91: 0.6145399806 | CE91: 259 | CF91: 0.914 | CK91: 1.272160783 | CL91: 8 | CM91: 0.024 | CR91: 0.542766001 | CS91: 268 | CT91: 0.946 | CY91: 0.9498575386 | CZ91: 194 | DA91: 0.684 | DF91: 1.114504418 | DG91: 50 | DH91: 0.173 | DM91: 0.7651691631 | DN91: 239 | DO91: 0.843 | DT91: =AVERAGE(Data!Z91:AH91) -> 0.7087633293 | DU91: 251 | DV91: 0.886 | EA91: 1.031187626 | EB91: 96 | EC91: 0.336 | EH91: 0.8322833895 | EI91: 236 | EJ91: 0.833 | EO91: Dover | EP91: 48 | EQ91: 45 | ER91: 33 | ES91: 188 | ET91: 0.156 | EU91: 0.113 | EV91: 0.663 | EW91: 48 | EX91: 0.166 | EY91: 0.3977490909 | EZ91: 0.4059186048 | FA91: 0.6504486001 | FB91: 0.6390761377 | FC91: 0.5977508385 | FD91: 0.6927551622 | FE91: 0.5904032475 | FF91: 0.454293362 | FG91: 0.3115796833 | FH91: 0.4050750881 | FI91: 0.7805234907 | FJ91: 0.4229151876 | FK91: 0.4746133567 | FL91: 0.4941504705 | FM91: 0.4470495655 | FN91: 0.5667567221 | FO91: 0.1778886866 | FP91: 0.2716511841 | FQ91: 0.1597343606 | FR91: 0.6610122029 | FS91: 0.571715911 | FT91: 0.4069358726 | FU91: 0.5100216929 | FV91: 0.3212266435 | FW91: 0.2159649804 | FX91: 0.08241489624 | FY91: 0.5676135074 | FZ91: 0.1486163011 | GA91: 0.7570872709 | GB91: 1 | GC91: 0.9432084867 | GD91: 0.008621632599 | GE91: 0.7805234907 | GF91: 0.2675610339 | GG91: 0.5315442894 | GH91: 0.9461200416 | GI91: 0.8739913288 | GJ91: 0.9746593068 | GK91: 0.931860335 | GL91: 0.6205929237 | GM91: 0.4847054319 | GN91: 0.5948557496 | GO91: 0.4878329456 | GP91: 0.2030914104 | GQ91: 0.4941824646 | GR91: 0.2536524213 | GS91: 0.9000985859 | GT91: 0.3945725617 | GU91: 0.3995526617 | GV91: 0.8694447872 | GW91: 0.5265406247 | GX91: 223 | GY91: =AVERAGE(Data!EY91:FQ91) -> 0.4705438337 | GZ91: 237 | HA91: =AVERAGE(Data!FR91:FZ91) -> 0.3872802231 | HB91: 245 | HC91: =AVERAGE(Data!GA91:GL91) -> 0.7196475117 | HD91: 17
A92: E05004954 | B92: 29UEGW | C92: North Deal | D92: Dover | E92: NHS South Kent Coast CCG | F92: 88 | G92: 1.05882717 | H92: 0.9331236152 | I92: 1.024799539 | J92: 0.9203844349 | K92: 0.9454052052 | L92: 0.8910820273 | M92: 0.9533835453 | N92: 0.7964308806 | O92: 0.6144756426 | P92: 0.7165835366 | Q92: 1.145302958 | R92: 0.7973726502 | S92: 1.043512277 | T92: 0.8053070576 | U92: 0.8585288558 | V92: 0.8496824578 | W92: 0.8029345576 | X92: 0.8678210405 | Y92: 0.7338075882 | Z92: 1.030016221 | AA92: 0.4548789303 | AB92: 1.162179106 | AC92: 0.9078625848 | AD92: 0.5338308533 | AE92: 0.5453983166 | AF92: 0.09205856399 | AG92: 1.302712511 | AH92: 0.6607866709 | AI92: 1.195737108 | AJ92: 1.064905373 | AK92: 1.301589747 | AL92: 0.8108633054 | AM92: 1.145302958 | AN92: 1.312022208 | AO92: 1.045308265 | AP92: 0.9792016144 | AQ92: 1.130968705 | AR92: 0.9715211739 | AS92: 0.9824610523 | AT92: 1.252101429 | AU92: 1.005583441 | AV92: 160 | AW92: 0.563 | BB92: 0.9013372187 | BC92: 197 | BD92: 0.695 | BI92: 0.8538456794 | BJ92: 206 | BK92: 0.726 | BP92: 0.8015210621 | BQ92: 198 | BR92: 0.698 | BW92: 0.817753539 | BX92: 214 | BY92: 0.755 | CD92: 0.6502390155 | CE92: 249 | CF92: 0.879 | CK92: 1.187410743 | CL92: 36 | CM92: 0.124 | CR92: 0.9780831316 | CS92: 104 | CT92: 0.365 | CY92: 1.178665236 | CZ92: 23 | DA92: 0.078 | DF92: 1.063250795 | DG92: 101 | DH92: 0.354 | DM92: 0.8820402652 | DN92: 202 | DO92: 0.712 | DT92: =AVERAGE(Data!Z92:AH92) -> 0.7433026397 | DU92: 240 | DV92: 0.847 | EA92: 1.099331912 | EB92: 32 | EC92: 0.109 | EH92: 0.9160117934 | EI92: 199 | EJ92: 0.702 | EO92: Dover | EP92: 85 | EQ92: 82 | ER92: 44 | ES92: 252 | ET92: 0.287 | EU92: 0.152 | EV92: 0.89 | EW92: 85 | EX92: 0.297 | EY92: 0.6180365385 | EZ92: 0.5835085169 | FA92: 0.773463683 | FB92: 0.6390761377 | FC92: 0.6702573046 | FD92: 0.6764250103 | FE92: 0.6282506406 | FF92: 0.454293362 | FG92: 0.3115796833 | FH92: 0.4050750881 | FI92: 0.8738078056 | FJ92: 0.5124029883 | FK92: 0.4551532242 | FL92: 0.500640655 | FM92: 0.4586443892 | FN92: 0.5074815282 | FO92: 0.3896496532 | FP92: 0.4565839225 | FQ92: 0.2834655742 | FR92: 0.7464169734 | FS92: 0.2809288992 | FT92: 0.7376493386 | FU92: 0.5100216929 | FV92: 0.3212266435 | FW92: 0.2209977053 | FX92: 0.027142081 | FY92: 0.6066798229 | FZ92: 0.2300785214 | GA92: 0.7041223016 | GB92: 0.8679965135 | GC92: 0.9415041298 | GD92: 0.1118605971 | GE92: 0.8738078056 | GF92: 0.4455763853 | GG92: 0.499724428 | GH92: 0.8521007966 | GI92: 0.8265995478 | GJ92: 0.8640431369 | GK92: 0.8700285454 | GL92: 0.6808506133 | GM92: 0.6583362461 | GN92: 0.613660491 | GO92: 0.5030981702 | GP92: 0.3765663833 | GQ92: 0.5192487095 | GR92: 0.2712245327 | GS92: 0.8378743149 | GT92: 0.4928342013 | GU92: 0.4726504066 | GV92: 0.818724528 | GW92: 0.5604288046 | GX92: 194 | GY92: =AVERAGE(Data!EY92:FQ92) -> 0.5367260898 | GZ92: 200 | HA92: =AVERAGE(Data!FR92:FZ92) -> 0.409015742 | HB92: 226 | HC92: =AVERAGE(Data!GA92:GL92) -> 0.7115179001 | HD92: 24
A93: E05004955 | B93: 29UEGX | C93: Ringwould | D93: Dover | E93: NHS South Kent Coast CCG | F93: 89 | G93: 1.314951333 | H93: 1.370352152 | I93: 1.268266968 | J93: 0.9203844349 | K93: 1.224901352 | L93: 1.164541102 | M93: 1.411127239 | N93: 0.7964308806 | O93: 0.6144756426 | P93: 0.7165835366 | Q93: 1.261041766 | R93: 1.071445871 | S93: 1.182176087 | T93: 0.8243398111 | U93: 1.14524131 | V93: 0.9977243285 | W93: 1.550513479 | X93: 1.405445059 | Y93: 1.769564542 | Z93: 1.228149599 | AA93: 0.782651952 | AB93: 0.7487547851 | AC93: 0.9078625848 | AD93: 0.5338308533 | AE93: 1.32844955 | AF93: 0.7606234511 | AG93: 1.053702571 | AH93: 2.034130559 | AI93: 1.095668016 | AJ93: 0.7240469952 | AK93: 1.065434534 | AL93: 0.5741355383 | AM93: 1.261041766 | AN93: 0.84710622 | AO93: 1.653296976 | AP93: 1.137540948 | AQ93: 1.140276898 | AR93: 1.106300909 | AS93: 1.121237885 | AT93: 1.381678779 | AU93: 1.317856818 | AV93: 17 | AW93: 0.056 | BB93: 1.103477002 | BC93: 120 | BD93: 0.421 | BI93: 0.9766285441 | BJ93: 158 | BK93: 0.556 | BP93: 1.57517436 | BQ93: 18 | BR93: 0.06 | BW93: 0.8402499549 | BX93: 203 | BY93: 0.716 | CD93: 1.294226533 | CE93: 50 | CF93: 0.173 | CK93: 0.961716515 | CL93: 181 | CM93: 0.638 | CR93: 0.9175886522 | CS93: 130 | CT93: 0.457 | CY93: 1.250201598 | CZ93: 14 | DA93: 0.046 | DF93: 1.177407084 | DG93: 9 | DH93: 0.028 | DM93: 1.1583951 | DN93: 73 | DO93: 0.255 | DT93: =AVERAGE(Data!Z93:AH93) -> 1.042017323 | DU93: 126 | DV93: 0.443 | EA93: 1.092313789 | EB93: 34 | EC93: 0.117 | EH93: 1.112385707 | EI93: 72 | EJ93: 0.251 | EO93: Dover | EP93: 212 | EQ93: 211 | ER93: 158 | ES93: 250 | ET93: 0.744 | EU93: 0.556 | EV93: 0.882 | EW93: 212 | EX93: 0.748 | EY93: 0.767536 | EZ93: 0.8569198538 | FA93: 0.9572198304 | FB93: 0.6390761377 | FC93: 0.8684097292 | FD93: 0.8840092189 | FE93: 0.9298897557 | FF93: 0.454293362 | FG93: 0.3115796833 | FH93: 0.4050750881 | FI93: 0.9621106197 | FJ93: 0.6885263322 | FK93: 0.5156348129 | FL93: 0.5124728748 | FM93: 0.611812285 | FN93: 0.5959010479 | FO93: 0.7524362148 | FP93: 0.7394423366 | FQ93: 0.68357242 | FR93: 0.8899973497 | FS93: 0.4833583985 | FT93: 0.4752438495 | FU93: 0.5100216929 | FV93: 0.3212266435 | FW93: 0.5382933782 | FX93: 0.2242583679 | FY93: 0.4907146312 | FZ93: 0.7082614891 | GA93: 0.64519557 | GB93: 0.5901653645 | GC93: 0.7706814042 | GD93: 0.07920341653 | GE93: 0.9621106197 | GF93: 0.2876860812 | GG93: 0.7903820465 | GH93: 0.9898876126 | GI93: 0.833402696 | GJ93: 0.9839123775 | GK93: 0.9929238048 | GL93: 0.7513104148 | GM93: 0.8605585614 | GN93: 0.7551356407 | GO93: 0.575389093 | GP93: 0.7251503238 | GQ93: 0.5359695868 | GR93: 0.4903819666 | GS93: 0.6686807796 | GT93: 0.5206570181 | GU93: 0.5390340638 | GV93: 0.9102873811 | GW93: 0.6613538703 | GX93: 65 | GY93: =AVERAGE(Data!EY93:FQ93) -> 0.6913640844 | GZ93: 75 | HA93: =AVERAGE(Data!FR93:FZ93) -> 0.5157084223 | HB93: 157 | HC93: =AVERAGE(Data!GA93:GL93) -> 0.723071784 | HD93: 14
A94: E05004956 | B94: 29UEGY | C94: River | D94: Dover | E94: NHS South Kent Coast CCG | F94: 90 | G94: 1.104962954 | H94: 1.055589714 | I94: 1.199270825 | J94: 0.9203844349 | K94: 1.336436808 | L94: 1.190141626 | M94: 1.326691283 | N94: 0.7964308806 | O94: 0.6144756426 | P94: 0.7165835366 | Q94: 1.231093466 | R94: 1.071663297 | S94: 0.9361643283 | T94: 1.124077829 | U94: 1.023907769 | V94: 0.8227858325 | W94: 1.268508814 | X94: 1.166975864 | Y94: 1.121332465 | Z94: 1.317097548 | AA94: 0.9746871343 | AB94: 1.023834064 | AC94: 0.9078625848 | AD94: 0.5338308533 | AE94: 1.253867073 | AF94: 1.168219883 | AG94: 0.8703552024 | AH94: 1.163744567 | AI94: 1.004470074 | AJ94: 0.7862462636 | AK94: 1.04006959 | AL94: 0.3547293152 | AM94: 1.231093466 | AN94: 1.027168649 | AO94: 0.9600298905 | AP94: 1.136601743 | AQ94: 1.24285193 | AR94: 1.114009673 | AS94: 1.115644544 | AT94: 1.362116588 | AU94: 1.119941164 | AV94: 107 | AW94: 0.375 | BB94: 1.114017007 | BC94: 116 | BD94: 0.407 | BI94: 0.9425939628 | BJ94: 172 | BK94: 0.606 | BP94: 1.185605714 | BQ94: 104 | BR94: 0.365 | BW94: 0.9514624369 | BX94: 181 | BY94: 0.638 | CD94: 1.114046681 | CE94: 97 | CF94: 0.34 | CK94: 0.943595309 | CL94: 190 | CM94: 0.67 | CR94: 0.7929113908 | CS94: 181 | CT94: 0.638 | CY94: 0.9935992698 | CZ94: 140 | DA94: 0.492 | DF94: 1.194244895 | DG94: 6 | DH94: 0.017 | DM94: 1.054077756 | DN94: 135 | DO94: 0.475 | DT94: =AVERAGE(Data!Z94:AH94) -> 1.023722101 | DU94: 137 | DV94: 0.482 | EA94: 1.031252644 | EB94: 95 | EC94: 0.333 | EH94: 1.0404002 | EI94: 131 | EJ94: 0.46 | EO94: Dover | EP94: 153 | EQ94: 149 | ER94: 147 | ES94: 189 | ET94: 0.524 | EU94: 0.517 | EV94: 0.666 | EW94: 153 | EX94: 0.539 | EY94: 0.6449659574 | EZ94: 0.6600900229 | FA94: 0.9051452445 | FB94: 0.6390761377 | FC94: 0.9474842402 | FD94: 0.9034427102 | FE94: 0.8742490392 | FF94: 0.454293362 | FG94: 0.3115796833 | FH94: 0.4050750881 | FI94: 0.9392615929 | FJ94: 0.6886660533 | FK94: 0.4083308092 | FL94: 0.6988130246 | FM94: 0.5469933249 | FN94: 0.491417244 | FO94: 0.6155844394 | FP94: 0.6139772981 | FQ94: 0.4331641646 | FR94: 0.9544548383 | FS94: 0.6019574999 | FT94: 0.6498400429 | FU94: 0.5100216929 | FV94: 0.3212266435 | FW94: 0.5080722429 | FX94: 0.3444320365 | FY94: 0.4053288318 | FZ94: 0.4052028304 | GA94: 0.5914927081 | GB94: 0.6408635293 | GC94: 0.7523336874 | GD94: 0.04893578577 | GE94: 0.9392615929 | GF94: 0.3488371545 | GG94: 0.4589558928 | GH94: 0.9890703162 | GI94: 0.9083724762 | GJ94: 0.9907683318 | GK94: 0.9879705636 | GL94: 0.7406731535 | GM94: 0.7367337416 | GN94: 0.7637090979 | GO94: 0.5612671025 | GP94: 0.5542419674 | GQ94: 0.6075001435 | GR94: 0.4157589854 | GS94: 0.6615633083 | GT94: 0.4940986893 | GU94: 0.4038965236 | GV94: 0.9233709682 | GW94: 0.6319920322 | GX94: 112 | GY94: =AVERAGE(Data!EY94:FQ94) -> 0.6411373388 | GZ94: 126 | HA94: =AVERAGE(Data!FR94:FZ94) -> 0.522281851 | HB94: 147 | HC94: =AVERAGE(Data!GA94:GL94) -> 0.6997945993 | HD94: 41
A95: E05004959 | B95: 29UEHB | C95: Sandwich | D95: Dover | E95: NHS Canterbury & Coastal CCG | F95: 91 | G95: 1.329589011 | H95: 0.9296847391 | I95: 1.188529338 | J95: 0.9203844349 | K95: 1.147157704 | L95: 1.060745182 | M95: 1.129526421 | N95: 0.7964308806 | O95: 0.6144756426 | P95: 0.7165835366 | Q95: 0.9834426693 | R95: 0.9374010754 | S95: 1.080296371 | T95: 1.096089223 | U95: 1.056490256 | V95: 0.8118498797 | W95: 1.508183704 | X95: 1.350125733 | Y95: 1.425402993 | Z95: 1.105438851 | AA95: 0.6473504928 | AB95: 0.8971518513 | AC95: 0.9078625848 | AD95: 0.5338308533 | AE95: 0.9517429056 | AF95: 0.8866754712 | AG95: 0.9272967549 | AH95: 1.336878175 | AI95: 0.9251199477 | AJ95: 1.188505214 | AK95: 0.8616117214 | AL95: 2.478639408 | AM95: 0.9834426693 | AN95: 1.041810981 | AO95: 1.309812842 | AP95: 1.082829568 | AQ95: 1.002352291 | AR95: 1.0637926 | AS95: 1.075793869 | AT95: 1.284909896 | AU95: 1.149267696 | AV95: 83 | AW95: 0.29 | BB95: 1.010848924 | BC95: 157 | BD95: 0.553 | BI95: 0.9120785816 | BJ95: 186 | BK95: 0.656 | BP95: 1.427904144 | BQ95: 44 | BR95: 0.152 | BW95: 0.8183269267 | BX95: 213 | BY95: 0.751 | CD95: 1.025648327 | CE95: 126 | CF95: 0.443 | CK95: 0.9917456276 | CL95: 166 | CM95: 0.585 | CR95: 1.731041039 | CS95: 18 | CT95: 0.06 | CY95: 1.175811911 | CZ95: 25 | DA95: 0.085 | DF95: 1.101935645 | DG95: 65 | DH95: 0.226 | DM95: 1.056967831 | DN95: 134 | DO95: 0.471 | DT95: =AVERAGE(Data!Z95:AH95) -> 0.9104697712 | DU95: 189 | DV95: 0.666 | EA95: 1.191551751 | EB95: 10 | EC95: 0.031 | EH95: 1.064380944 | EI95: 108 | EJ95: 0.379 | EO95: Dover | EP95: 176 | EQ95: 150 | ER95: 95 | ES95: 274 | ET95: 0.528 | EU95: 0.333 | EV95: 0.968 | EW95: 176 | EX95: 0.62 | EY95: 0.77608 | EZ95: 0.5813580906 | FA95: 0.897038147 | FB95: 0.6390761377 | FC95: 0.8132923598 | FD95: 0.8052171953 | FE95: 0.7443234165 | FF95: 0.454293362 | FG95: 0.3115796833 | FH95: 0.4050750881 | FI95: 0.750316652 | FJ95: 0.6023872428 | FK95: 0.4711975003 | FL95: 0.6814131593 | FM95: 0.5643995828 | FN95: 0.4848856344 | FO95: 0.731894339 | FP95: 0.7103373559 | FQ95: 0.5506248292 | FR95: 0.8010731335 | FS95: 0.3997975047 | FT95: 0.5694332883 | FU95: 0.5100216929 | FV95: 0.3212266435 | FW95: 0.385650252 | FX95: 0.2614229075 | FY95: 0.4318468016 | FZ95: 0.4654860146 | GA95: 0.5447665566 | GB95: 0.9687418321 | GC95: 0.6232462999 | GD95: 0.3419344325 | GE95: 0.750316652 | GF95: 0.3538098425 | GG95: 0.6261745894 | GH95: 0.9422777945 | GI95: 0.7325967083 | GJ95: 0.9461067037 | GK95: 0.9526803865 | GL95: 0.6986907536 | GM95: 0.7514920792 | GN95: 0.6912404943 | GO95: 0.5339068179 | GP95: 0.6642855081 | GQ95: 0.5203104526 | GR95: 0.3861014939 | GS95: 0.7122515628 | GT95: 0.5461255422 | GU95: 0.4899922159 | GV95: 0.8544704693 | GW95: 0.6150522642 | GX95: 139 | GY95: =AVERAGE(Data!EY95:FQ95) -> 0.6302520935 | GZ95: 137 | HA95: =AVERAGE(Data!FR95:FZ95) -> 0.4606620265 | HB95: 201 | HC95: =AVERAGE(Data!GA95:GL95) -> 0.706778546 | HD95: 31
A96: E05004957 | B96: 29UEGZ | C96: St Margaret's-at-Cliffe | D96: Dover | E96: NHS South Kent Coast CCG | F96: 92 | G96: 1.140749166 | H96: 1.263061921 | I96: 1.173914296 | J96: 0.9203844349 | K96: 1.142234956 | L96: 1.023511981 | M96: 1.208255066 | N96: 0.7964308806 | O96: 0.6144756426 | P96: 0.7165835366 | Q96: 1.130784846 | R96: 1.132539209 | S96: 0.5807228772 | T96: 0.8423536725 | U96: 1.008671283 | V96: 0.8163459495 | W96: 1.239608187 | X96: 1.137830247 | Y96: 1.210001614 | Z96: 1.076594084 | AA96: 0.9110195189 | AB96: 0.936460425 | AC96: 0.9078625848 | AD96: 0.5338308533 | AE96: 1.219099591 | AF96: 0.9820401887 | AG96: 0.973997553 | AH96: 1.688071514 | AI96: 0.8561660138 | AJ96: 0.5986323992 | AK96: 0.9767007962 | AL96: 0.5716514861 | AM96: 1.130784846 | AN96: 1.008159 | AO96: 1.323212511 | AP96: 1.123487284 | AQ96: 1.183487226 | AR96: 1.105116466 | AS96: 1.105067558 | AT96: 0.2691098365 | AU96: 1.192575128 | AV96: 55 | AW96: 0.191 | BB96: 1.018163464 | BC96: 154 | BD96: 0.542 | BI96: 0.8553096271 | BJ96: 205 | BK96: 0.723 | BP96: 1.19581335 | BQ96: 101 | BR96: 0.354 | BW96: 0.8731534931 | BX96: 198 | BY96: 0.698 | CD96: 1.215802212 | CE96: 70 | CF96: 0.244 | CK96: 0.8104997364 | CL96: 236 | CM96: 0.833 | CR96: 0.8512181662 | CS96: 153 | CT96: 0.539 | CY96: 1.165685756 | CZ96: 29 | DA96: 0.099 | DF96: 0.9572536739 | DG96: 201 | DH96: 0.709 | DM96: 1.005182093 | DN96: 159 | DO96: 0.56 | DT96: =AVERAGE(Data!Z96:AH96) -> 1.025441812 | DU96: 133 | DV96: 0.468 | EA96: 0.9376312852 | EB96: 214 | EC96: 0.755 | EH96: 0.9894752875 | EI96: 164 | EJ96: 0.578 | EO96: Dover | EP96: 120 | EQ96: 125 | ER96: 151 | ES96: 70 | ET96: 0.439 | EU96: 0.531 | EV96: 0.244 | EW96: 120 | EX96: 0.421 | EY96: 0.6658543396 | EZ96: 0.7898282459 | FA96: 0.886007498 | FB96: 0.6390761377 | FC96: 0.809802314 | FD96: 0.7769532785 | FE96: 0.796203189 | FF96: 0.454293362 | FG96: 0.3115796833 | FH96: 0.4050750881 | FI96: 0.8627312261 | FJ96: 0.7277857788 | FK96: 0.2532963874 | FL96: 0.5236716732 | FM96: 0.5388536698 | FN96: 0.4875709581 | FO96: 0.6015594866 | FP96: 0.5986430074 | FQ96: 0.4674165378 | FR96: 0.7801703323 | FS96: 0.5626369865 | FT96: 0.5943829223 | FU96: 0.5100216929 | FV96: 0.3212266435 | FW96: 0.493984312 | FX96: 0.289539758 | FY96: 0.4535956001 | FZ96: 0.5877676035 | GA96: 0.5041623114 | GB96: 0.4879408525 | GC96: 0.7064959102 | GD96: 0.07886073539 | GE96: 0.8627312261 | GF96: 0.34238128 | GG96: 0.6325804909 | GH96: 0.9776581202 | GI96: 0.8649841514 | GJ96: 0.9828589671 | GK96: 0.9786040042 | GL96: 0.1463328713 | GM96: 0.7805633612 | GN96: 0.6952656562 | GO96: 0.5138205581 | GP96: 0.5558730106 | GQ96: 0.5536877155 | GR96: 0.4562218184 | GS96: 0.5661996914 | GT96: 0.4707959808 | GU96: 0.4874808854 | GV96: 0.7900876229 | GW96: 0.5938779658 | GX96: 166 | GY96: =AVERAGE(Data!EY96:FQ96) -> 0.6103264138 | GZ96: 159 | HA96: =AVERAGE(Data!FR96:FZ96) -> 0.510369539 | HB96: 160 | HC96: =AVERAGE(Data!GA96:GL96) -> 0.6304659101 | HD96: 194
A97: E05004958 | B97: 29UEHA | C97: St Radigunds | D97: Dover | E97: NHS South Kent Coast CCG | F97: 93 | G97: 0.1959762539 | H97: 0.81819965 | I97: 0.6011616626 | J97: 0.9203844349 | K97: 0.4413676274 | L97: 0.566034929 | M97: 0.2398201834 | N97: 0.7964308806 | O97: 0.6144756426 | P97: 0.7165835366 | Q97: 0.9958614264 | R97: 0.3132128185 | S97: 0.3084247346 | T97: 0.7771948546 | U97: 0.4979361952 | V97: 1.030575173 | W97: 0.3659514157 | X97: 0.564167396 | Y97: 0.4201919534 | Z97: 0.2176861816 | AA97: 1.000444228 | AB97: 0.9054686144 | AC97: 0.9078625848 | AD97: 0.5338308533 | AE97: 0.09950591252 | AF97: 0.3748143564 | AG97: 1.201128927 | AH97: 0.181173918 | AI97: 1.182564988 | AJ97: 1.09951905 | AK97: 1.363385948 | AL97: 0.6905962304 | AM97: 0.9958614264 | AN97: 0.7906775548 | AO97: 0.9923828059 | AP97: 0.9474256024 | AQ97: 0.9691855061 | AR97: 0.9818197794 | AS97: 0.8898818534 | AT97: 0.4327826679 | AU97: 0.5384458555 | AV97: 275 | AW97: 0.971 | BB97: 0.5928076111 | BC97: 258 | BD97: 0.911 | BI97: 0.6567830477 | BJ97: 255 | BK97: 0.9 | BP97: 0.4501035884 | BQ97: 257 | BR97: 0.907 | BW97: 0.7130584924 | BX97: 244 | BY97: 0.861 | CD97: 0.4641557785 | CE97: 282 | CF97: 0.996 | CK97: 1.215156662 | CL97: 25 | CM97: 0.085 | CR97: 0.8432288284 | CS97: 157 | CT97: 0.553 | CY97: 0.8915301804 | CZ97: 238 | DA97: 0.84 | DF97: 0.8442190819 | DG97: 252 | DH97: 0.89 | DM97: 0.5886289878 | DN97: 266 | DO97: 0.939 | DT97: =AVERAGE(Data!Z97:AH97) -> 0.602435064 | DU97: 271 | DV97: 0.957 | EA97: 0.9446736178 | EB97: 205 | EC97: 0.723 | EH97: 0.6985487439 | EI97: 270 | EJ97: 0.953 | EO97: Dover | EP97: 14 | EQ97: 18 | ER97: 13 | ES97: 79 | ET97: 0.06 | EU97: 0.042 | EV97: 0.276 | EW97: 14 | EX97: 0.046 | EY97: 0.1143911765 | EZ97: 0.5116433198 | FA97: 0.4537245541 | FB97: 0.6390761377 | FC97: 0.3129133144 | FD97: 0.4296800642 | FE97: 0.1580341769 | FF97: 0.454293362 | FG97: 0.3115796833 | FH97: 0.4050750881 | FI97: 0.7597915309 | FJ97: 0.201275005 | FK97: 0.134526939 | FL97: 0.4831639526 | FM97: 0.2660081144 | FN97: 0.6155215503 | FO97: 0.1775896191 | FP97: 0.2968235968 | FQ97: 0.162317691 | FR97: 0.1577496135 | FS97: 0.6178648357 | FT97: 0.5747120399 | FU97: 0.5100216929 | FV97: 0.3212266435 | FW97: 0.04032021674 | FX97: 0.1105083675 | FY97: 0.5593718328 | FZ97: 0.06308273005 | GA97: 0.696365761 | GB97: 0.8962098666 | GC97: 0.9862043733 | GD97: 0.09526945684 | GE97: 0.7597915309 | GF97: 0.2685223197 | GG97: 0.4744226624 | GH97: 0.8244493255 | GI97: 0.7083558524 | GJ97: 0.8732024219 | GK97: 0.7880440784 | GL97: 0.235332648 | GM97: 0.3599196835 | GN97: 0.398799411 | GO97: 0.397117733 | GP97: 0.2122436356 | GQ97: 0.4363149651 | GR97: 0.1933207868 | GS97: 0.8595933336 | GT97: 0.4275304939 | GU97: 0.3714724911 | GV97: 0.6858768653 | GW97: 0.4362114286 | GX97: 266 | GY97: =AVERAGE(Data!EY97:FQ97) -> 0.3624962566 | GZ97: 264 | HA97: =AVERAGE(Data!FR97:FZ97) -> 0.3283175525 | HB97: 267 | HC97: =AVERAGE(Data!GA97:GL97) -> 0.6338475248 | HD97: 184
A98: E05004960 | B98: 29UEHC | C98: Tower Hamlets | D98: Dover | E98: NHS South Kent Coast CCG | F98: 94 | G98: 0.4844572135 | H98: 0.9254475524 | I98: 0.5689390269 | J98: 0.9203844349 | K98: 0.5968501034 | L98: 0.7165892817 | M98: 0.3353248383 | N98: 0.7964308806 | O98: 0.6144756426 | P98: 0.7165835366 | Q98: 0.7345050677 | R98: 0.4380726276 | S98: 0.2946775967 | T98: 0.7589563925 | U98: 0.6206581233 | V98: 0.9890118919 | W98: 0.3143118111 | X98: 0.5891851769 | Y98: 0.362689438 | Z98: 0.4612682068 | AA98: 1.054781672 | AB98: 0.9602443278 | AC98: 0.9078625848 | AD98: 0.5338308533 | AE98: 0.3455008829 | AF98: 0.6781967087 | AG98: 1.521667408 | AH98: 0.3403440114 | AI98: 1.222628201 | AJ98: 1.178882917 | AK98: 1.341081553 | AL98: 0.4918457249 | AM98: 0.7345050677 | AN98: 0.8277940742 | AO98: 0.9785775303 | AP98: 0.9772352905 | AQ98: 0.6501599817 | AR98: 0.9685751782 | AS98: 0.9632193926 | AT98: 0.7746212213 | AU98: 0.6596145976 | AV98: 258 | AW98: 0.911 | BB98: 0.6731159078 | BC98: 246 | BD98: 0.868 | BI98: 0.6458676098 | BJ98: 258 | BK98: 0.911 | BP98: 0.422062142 | BQ98: 261 | BR98: 0.921 | BW98: 0.7835975289 | BX98: 223 | BY98: 0.787 | CD98: 0.7214272528 | CE98: 227 | CF98: 0.801 | CK98: 1.247530891 | CL98: 12 | CM98: 0.039 | CR98: 0.6131753963 | CS98: 254 | CT98: 0.897 | CY98: 0.9031858023 | CZ98: 232 | DA98: 0.819 | DF98: 0.8667622129 | DG98: 248 | DH98: 0.875 | DM98: 0.6198710861 | DN98: 261 | DO98: 0.921 | DT98: =AVERAGE(Data!Z98:AH98) -> 0.7559662951 | DU98: 236 | DV98: 0.833 | EA98: 0.9257605111 | EB98: 225 | EC98: 0.794 | EH98: 0.7422593356 | EI98: 259 | EJ98: 0.914 | EO98: Dover | EP98: 25 | EQ98: 23 | ER98: 48 | ES98: 59 | ET98: 0.078 | EU98: 0.166 | EV98: 0.205 | EW98: 25 | EX98: 0.085 | EY98: 0.2827772727 | EZ98: 0.5787084583 | FA98: 0.4294046383 | FB98: 0.6390761377 | FC98: 0.4231446361 | FD98: 0.5439666579 | FE98: 0.2209688278 | FF98: 0.454293362 | FG98: 0.3115796833 | FH98: 0.4050750881 | FI98: 0.5603899449 | FJ98: 0.2815116914 | FK98: 0.1285307909 | FL98: 0.4718255252 | FM98: 0.3315687806 | FN98: 0.5906974561 | FO98: 0.1525298507 | FP98: 0.3099861223 | FQ98: 0.140104806 | FR98: 0.3342650454 | FS98: 0.6514231241 | FT98: 0.6094788573 | FU98: 0.5100216929 | FV98: 0.3212266435 | FW98: 0.1399984195 | FX98: 0.1999560845 | FY98: 0.7086482291 | FZ98: 0.1185039747 | GA98: 0.7199574028 | GB98: 0.9608987694 | GC98: 0.9700705031 | GD98: 0.06785133338 | GE98: 0.5603899449 | GF98: 0.2811274756 | GG98: 0.4678228548 | GH98: 0.8503897024 | GI98: 0.4751872836 | GJ98: 0.8614230526 | GK98: 0.8529888947 | GL98: 0.4212129476 | GM98: 0.4302967898 | GN98: 0.4562899243 | GO98: 0.3851473701 | GP98: 0.200873593 | GQ98: 0.4852830726 | GR98: 0.2917766769 | GS98: 0.8836422251 | GT98: 0.3141206391 | GU98: 0.3744751652 | GV98: 0.6922403762 | GW98: 0.4584745492 | GX98: 259 | GY98: =AVERAGE(Data!EY98:FQ98) -> 0.3819020911 | GZ98: 260 | HA98: =AVERAGE(Data!FR98:FZ98) -> 0.3992802301 | HB98: 233 | HC98: =AVERAGE(Data!GA98:GL98) -> 0.6241100137 | HD98: 208
A99: E05004961 | B99: 29UEHD | C99: Town and Pier | D99: Dover | E99: NHS South Kent Coast CCG | F99: 95 | G99: 0.3986684436 | H99: 0.8321551092 | I99: 0.4430039922 | J99: 0.9203844349 | K99: 0.4961276329 | L99: 0.655209943 | M99: 0.2659187805 | N99: 0.7964308806 | O99: 0.6144756426 | P99: 0.7165835366 | Q99: 0.8316019491 | R99: 0 | S99: 0.2974752585 | T99: 0.7330682063 | U99: 0.429122559 | V99: 0.7249798214 | W99: 0.1480394195 | X99: 0.1846721624 | Y99: 0.339600807 | Z99: 0.6728394763 | AA99: 0.4908552734 | AB99: 0.1465497937 | AC99: 0.9078625848 | AD99: 0.5338308533 | AE99: 0.02228055612 | AF99: 0 | AG99: 1.215478626 | AH99: 0.1776861817 | AI99: 0.7757801693 | AJ99: 0.9241228875 | AK99: 1.239133581 | AL99: 2.614838104 | AM99: 0.8316019491 | AN99: 0.7877153564 | AO99: 1.385964524 | AP99: 0.9820805531 | AQ99: 0.7839840931 | AR99: 1.019239296 | AS99: 0.9631296452 | AT99: 1.25707906 | AU99: 0.557942515 | AV99: 272 | AW99: 0.96 | BB99: 0.6268143344 | BC99: 253 | BD99: 0.893 | BI99: 0.5434133717 | BJ99: 267 | BK99: 0.943 | BP99: 0.2241041297 | BQ99: 275 | BR99: 0.971 | BW99: 0.5503875963 | BX99: 269 | BY99: 0.95 | CD99: 0.3538613411 | CE99: 283 | CF99: 1 | CK99: 0.9796788793 | CL99: 172 | CM99: 0.606 | CR99: 1.723220027 | CS99: 19 | CT99: 0.063 | CY99: 1.08683994 | CZ99: 54 | DA99: 0.187 | DF99: 1.00110253 | DG99: 165 | DH99: 0.581 | DM99: 0.51723782 | DN99: 276 | DO99: 0.975 | DT99: =AVERAGE(Data!Z99:AH99) -> 0.463042594 | DU99: 281 | DV99: 0.992 | EA99: 1.130389102 | EB99: 22 | EC99: 0.074 | EH99: 0.6889892786 | EI99: 271 | EJ99: 0.957 | EO99: Dover | EP99: 13 | EQ99: 8 | ER99: 3 | ES99: 262 | ET99: 0.024 | EU99: 0.007 | EV99: 0.925 | EW99: 13 | EX99: 0.042 | EY99: 0.232702439 | EZ99: 0.5203700621 | FA99: 0.334355634 | FB99: 0.6390761377 | FC99: 0.3517361319 | FD99: 0.497373282 | FE99: 0.1752323554 | FF99: 0.454293362 | FG99: 0.3115796833 | FH99: 0.4050750881 | FI99: 0.6344699185 | FJ99: 0 | FK99: 0.129751059 | FL99: 0.4557314423 | FM99: 0.2292464052 | FN99: 0.4330016047 | FO99: 0.07184085918 | FP99: 0.09716097718 | FQ99: 0.131185803 | FR99: 0.4875833946 | FS99: 0.3031475463 | FT99: 0.09301695224 | FU99: 0.5100216929 | FV99: 0.3212266435 | FW99: 0.009028175604 | FX99: 0 | FY99: 0.5660545606 | FZ99: 0.06186833933 | GA99: 0.4568262662 | GB99: 0.7532457483 | GC99: 0.896326501 | GD99: 0.3607233793 | GE99: 0.6344699185 | GF99: 0.2675163263 | GG99: 0.6625799799 | GH99: 0.8546060477 | GI99: 0.5729963119 | GJ99: 0.9064822695 | GK99: 0.852909418 | GL99: 0.6835572815 | GM99: 0.362476045 | GN99: 0.4235422538 | GO99: 0.3248569001 | GP99: 0.1000625465 | GQ99: 0.3429992459 | GR99: 0.1592377689 | GS99: 0.7021328385 | GT99: 0.4975966489 | GU99: 0.4650481531 | GV99: 0.7741102657 | GW99: 0.4089592249 | GX99: 273 | GY99: =AVERAGE(Data!EY99:FQ99) -> 0.3212727497 | GZ99: 275 | HA99: =AVERAGE(Data!FR99:FZ99) -> 0.2613274783 | HB99: 279 | HC99: =AVERAGE(Data!GA99:GL99) -> 0.658519954 | HD99: 125
